Workbook

Sheet Calculation
A1: Dam Breach Analysis DB-IWHR 2014
A2: Copy Right：Chen ZuYu（Email：chenzuyu@cashq.ac.cn）
A3: Disclaimer: The author assumes No responsibility and makes no guarantees, expressed or implied, on the quality, reliability, or any other characteristic of this software
A4: Project Name | C4: Serial Numbe | E4: Calculated by | G4: Checked by | I4: Date | K4: Company
A6: Z0 | B6: 740 | C6: Elevations of channel bed,m
A7: Qin | B7: 80 | C7: Inflow flow,m3/s
A8: Hr | B8: 700 | C8: Elevations of dead Water,m | G8: B0 | H8: =B7/S51/S52/(B61-C61)^1.5 -> 14.3997073 | I8: Channel Width, beginning | O8: Velocity Criteria
G9: Bend | H9: =H8+(B6-H12)*2 -> 40.3997073 | I9: Channel Width, ending | O9: DB-Excel 2014 角度版
G10: а1 | H10: 144 | I10: Channel side inclination, beginning | N10: 5 | O10: Meyer Peter & Muller
A11: a1 | B11: 0.06313333333 | C11: W~H curve coefficient | G11: a2 | H11: 170 | I11: Channel side inclination, ending | O11: Englund_Hense
A12: b1 | B12: 1.963333333 | C12: W~H curve coefficient | G12: Zend | H12: 727 | I12: Elevation ending | O12: DB-Excel 2014 论文版
A13: c1 | B13: 44 | C13: W~H curve coefficient | G13: n | H13: 207 | I13: Row number | O13: Du Boys
A14: Note: obtained by water storage capacity curve worksheet | O14: Einstein-Brown
G15: D50 | H15: 0.005 | I15: 平均粒径（mm） | O15: 指数模型
G16: ρs | H16: 2650 | I16: 颗粒密度（kg/m3)
A17: mq | B17: 0.36 | C17: Broad-crested weir flow coefficient | G17: υ | H17: 0.43 | I17: 孔隙比
A18: mb | B18: 0.9 | C18: Lateral shrinkage coefficient | G18: Gs | H18: 2.65 | I18: 颗粒重度
A19: m | B19: 0.8 | C19: Ratio of tailwater | G19: L | H19: 36 | I19: 冲刷长度（m)
G20: n | H20: 0.025 | I20: 河道粗率
A22: Vc | B22: 2.7 | C22: The incipient velocity,m/s
A23: a2 | B23: 1.1 | C23: Erosion coefficient
A24: b2 | B24: 0.0007 | C24: Erosion coefficient
A25: zc | B25: 0 | C25: Erosion coefficient
B30: Qp | C30: =MAX(G56:G329) -> 7469.959562 | D30: m3/s | E30: Magnitude
B31: tp | C31: =INDEX(AJ62:AJ2080,MATCH(MAX(G62:G2080),G62:G2080,0)) -> 4.853042551 | D31: h | E31: Time
B32: Error | C32: =IF(H13>0,err(H13,B8,B11,B12),"") -> 0.001332540349 | E32: error
C48: 图1 | I48: 图2
K50: Tc | L50: 30
B51: Z0 | C51: =B6 -> 740 | E51: Hr | F51: =B8 -> 700 | G51: Ho | H51: 742.5 | K51: Vc | L51: =B22 -> 2.7 | O51: mq | P51: =B17 -> 0.36 | R51: c2 | S51: =1-27.8*(P53-0.67)^3 -> 0.9389234 | T51: =(S54*S53*C55)^2 -> 2.834173567 | W51: Methods | X51: 2
B52: B | C52: =I9 -> Channel Width, ending | E52: a1*2 | F52: =B11*2 -> 0.1262666667 | G52: H1 | H52: 704.5 | K52: a2 | L52: =B23 -> 1.1 | O52: mb | P52: =B18 -> 0.9 | R52: c1 | S52: =P51*P52*4.427 -> 1.434348
B53: Qin | C53: =B7 -> 80 | E53: b1 | F53: =B12 -> 1.963333333 | K53: b2 | L53: =B24 -> 0.0007 | M53: =1/L53 -> 1428.571429 | O53: m | P53: =B19 -> 0.8 | R53: c2*mq*mb | S53: =P51*P52*S51 -> 0.3042111816 | T53: Balance Check | U53: Row number | V53: Elevation, begin | W53: Elevatiob end | X53: loss of storage | Y53: inflow | Z53: Outflow | AA53: Error
B54: g | C54: 9.8 | E54: c1 | F54: =B13 -> 44 | K54: zc | L54: =B25 -> 0 | O54: s/dz | P54: =B26 -> 0 | R54: m-1 | S54: =1/P53 -> 1.25 | U54: 207 | V54: =B61-B8 -> 42.57217839 | W54: 4.39601758 | X54: =B11*(V54^2-W54^2)+B12*(V54-W54) -> 188.1547248 | Y54: 3.254594753 | Z54: 192.1516207 | AA54: =(Z54-X54-Y54)/Z54 -> 0.003863101471
B55: Sqrt(2g) | C55: =SQRT(2*C54) -> 4.427188724 | E55: Dq | F55: =(H51-Calculation!F51)^2*0.063+Calculation!F53*(H51-Calculation!F51)+44 -> 241.2354167 | G55: =($H$52-Calculation!$F$51)^2*0.063+Calculation!$F$53*($H$52-Calculation!$F$51)+44 -> 54.11075 | H55: =F55-G55 -> 187.1246667 | K55: n | L55: =H20 -> 0.025 | R55: mmqmb | S55: =S53*S54 -> 0.380263977
U56: -7.9
A57: Symbols | B57: Ho | C57: zo | D57: Vo | E57: B | F57: B平均 | G57: Q | H57: dV | I57: h | J57: Qin | K57: Index | L57: V1 | M57: Va1 | N57: s1 | O57: E1 | P57: Tau1 | Q57: A1 | R57: D1 | S57: A/DE_1 | T57: dz1 | U57: V2 | V57: Va2 | W57: s2 | X57: A2 | Y57: Tau2 | Z57: D2 | AA57: A/DE_2 | AB57: dz2 | AC57: dz | AD57: dv/dz | AE57: d2z/dz2 | AF57: H1 | AG57: z1 | AH57: V1 | AI57: dt | AJ57: T | AK57: SumQout | AL57: SumQin
A58: Unit | B58: m | C58: m | D58: m/s | E58: m | F58: m | G58: m3 | H58: m/s | I58: m | L58: m/s | M58: m/s
A59: The formula | D59: eq. (22) | G59: eq.(21) | N59: eq.(24) | AC59: eq.(21) | AI59: eq.(21)
A60: Initial value | L60: =(1-$P$54)*O61*R61+C53 -> 3032.943916 | M60: =M61*(B61-C61+N61/2)/$S$54 -> 5.807005797 | N60: =L60/M60 -> 522.2904922 | P60: =((1-$P$54)*O61*R61+C53)/(M61*(B61-C61+N61/2)/$S$54) -> 522.2904922 | R60: =IF(H60>0, rate1(1,$L$52,$L$51,$L$54,L60,$L$53,$L$50,P60),"") ->  | Z60: =IF(H60>0, rate1(1,$L$52,$L$51,$L$54,U60,$L$53,$L$50,Y60),"") -> 
B61: =(D61/$C$55/$S$54/$S$53)^2+C61 -> 742.5721784 | C61: =B6 -> 740 | D61: =$L$51 -> 2.7 | E61: =B7/S51/S52/(B61-C61)^1.5 -> 14.3997073 | F61: =E61 -> 14.3997073 | G61: =F61*$S$53*$C$55*(B61-C61+N61)^1.5 -> 87.2950775 | H61: 0.08 | I61: =(B61-C61)*B$19 -> 2.057742711 | J61: =$B$7 -> 80 | K61: 1 | L61: =D61+H61*K61 -> 2.78 | M61: =(D61+L61)/2 -> 2.74 | N61: =2*($P$53*M61/$S$52/$S$51)^2-(B61-C61)*2 -> 0.1540061754 | O61: =wh(B61,$F$51,$F$52,$F$53) -> 7.338780391 | P61: =$C$54*$L$55*$L$55*M61*M61/(($B$19*(B61-C61))^0.333)*1000 -> 36.16162945 | Q61: =M61/$S$54*(B61-C61+N61/2)*E61-J61 -> 3.619183791 | R61: =IF(H61>0, rate1(1,$L$52,$L$51,$L$54,L61,$L$53,$L$50,P61),"") -> 402.3752938 | S61: =Q61/O61/R61 -> 0.001225618872 | T61: =N61/(1-S61) -> 0.1541951599 | U61: =L61-K61*H61 -> 2.7 | V61: =(D61+U61)/2 -> 2.7 | W61: =2*($P$53*V61/$S$52/$S$51)^2-(B61-C61)*2 -> 0.0004386200567 | X61: =V61/$S$54*(B61-C61+W61/2)*F61-J61 -> 0.01023170262 | Y61: =$C$54*$L$55*$L$55*V61*V61/(($B$19*(B61-C61))^0.333)*1000 -> 35.11352213 | Z61: =IF(H61>0, rate1(1,$L$52,$L$51,$L$54,U61,$L$53,$L$50,Y61),"") -> 350.7345404 | AA61: =X61/O61/Z61 -> 3.975076397e-06 | AB61: -1e-05 | AC61: =delta_z(N61,S61,H61,AE61,AB61) -> 0.1541951599 | AD61: =H61/AC61*K61 -> 0.5188230295 | AE61: =AD61 -> 0.5188230295 | AF61: =B61-(AC61-N61) -> 742.5719894 | AG61: =C61-AC61 -> 739.8458048 | AH61: =$S$54*$S$53*$C$55*SQRT(AF61-AG61) -> 2.779654696 | AI61: =AC61/R61*1000000 -> 383.2122954 | AJ61: =AI61/3600 -> 0.1064478598
B62: =AF61 -> 742.5719894 | C62: =AG61 -> 739.8458048 | D62: =AH61 -> 2.779654696 | E62: =IF(AND(C62<$B$6,C62>$H$12),bb($B$6,$H$12,C62,$H$8,$H$9,I62,$H$10,$H$11),E61) -> 20.78019093 | F62: =(E62+E61)/2 -> 17.58994912 | G62: =F62*$S$53*$C$55*(B62-C62+N62)^1.5 -> 116.0705334 | H62: =dv(S61) -> 0.08 | I62: =(B62-C62)*B$19 -> 2.180947651 | J62: =$B$7 -> 80 | K62: =INT(IF((1-S61-0.015)>0,1,-1)) -> 1 | L62: =D62+K62*H62 -> 2.859654696 | M62: =(D62+L62)/2 -> 2.819654696 | N62: =2*($P$53*M62/$S$52/$S$51)^2-(B62-C62)*2 -> 0.1585296347 | O62: =wh(B62,$F$51,$F$52,$F$53) -> 7.338756529 | P62: =$C$54*$L$55*$L$55*M62*M62/(($B$19*(B62-C62))^0.333)*1000 -> 37.56030245 | Q62: =M62/$S$54*(B62-C62+N62/2)*E62-J62 -> 51.50367332 | R62: =IF(H62>0, rate1(1,$L$52,$L$51,$L$54,L62,$L$53,$L$50,P62),"") -> 464.0439605 | S62: =Q62/O62/R62 -> 0.01512364937 | T62: =N62/(1-S62) -> 0.1609639978 | U62: =L62-K62*H62 -> 2.779654696 | V62: =(D62+U62)/2 -> 2.779654696 | W62: =2*($P$53*V62/$S$52/$S$51)^2-(B62-C62)*2 -> 0.00046488192 | X62: =V62/$S$54*(B62-C62+W62/2)*F62-J62 -> 26.64431301 | Y62: =$C$54*$L$55*$L$55*V62*V62/(($B$19*(B62-C62))^0.333)*1000 -> 36.50219034 | Z62: =IF(H62>0, rate1(1,$L$52,$L$51,$L$54,U62,$L$53,$L$50,Y62),"") -> 418.1060633 | AA62: =X62/O62/Z62 -> 0.008683515453 | AB62: =W62/(1-AA62) -> 0.0004689540901 | AC62: =delta_z(N62,S62,H62,AE61,AB62) -> 0.1609639978 | AD62: =H62/AC62*K62 -> 0.4970055485 | AE62: =(AD62-AD61)/(AC62+AC61)*2 -> -0.1384537335 | AF62: =B62-(AC62-N62) -> 742.569555 | AG62: =C62-AC62 -> 739.6848408 | AH62: =$S$54*$S$53*$C$55*SQRT(AF62-AG62) -> 2.859332218 | AI62: =AC62/R62*1000000 -> 346.8723041 | AJ62: =AJ61+AI62/3600 -> 0.2028012776 | AK62: =AK61+AI61*G61/1000000 -> 0.03345254702 | AL62: =AL61+AI61*J61/1000000 -> 0.03065698363
B63: =IF(H63>0, AF62,"") -> 742.569555 | C63: =IF(H63>0, AG62,"") -> 739.6848408 | D63: =IF(H63>0, AH62,"") -> 2.859332218 | E63: =IF(AND(C63<$B$6,C63>$H$12),bb($B$6,$H$12,C63,$H$8,$H$9,I63,$H$10,$H$11),E62) -> 21.53200609 | F63: =IF(H63>0, (E63+E62)/2,"") -> 21.15609851 | G63: =IF(H63>0, F63*$S$53*$C$55*(B63-C63+N63)^1.5,"") -> 151.6044453 | H63: 0.08 | I63: =IF(H63>0, (B63-C63)*B$19,"") -> 2.307771359 | J63: =IF(H63>0, $B$7,"") -> 80 | K63: =IF(H63>0, IF((1-S62-0.015)>0,1,-1),"") -> 1 | L63: =IF(H63>0, D63+K63*H63,"") -> 2.939332218 | M63: =IF(H63>0, (D63+L63)/2,"") -> 2.899332218 | N63: =IF(H63>0, 2*($P$53*M63/$S$52/$S$51)^2-(B63-C63)*2,"") -> 0.163055154 | O63: =IF(H63>0, wh(B63,$F$51,$F$52,$F$53),"") -> 7.33844915 | P63: =IF(H63>0, $C$54*$L$55*$L$55*M63*M63/(($B$19*(B63-C63))^0.333)*1000,"") -> 38.97255338 | Q63: =IF(H63>0, M63/$S$54*(B63-C63+N63/2)*E63-J63,"") -> 68.14227495 | R63: =IF(H63>0, rate1(1,$L$52,$L$51,$L$54,L63,$L$53,$L$50,P63),"") -> 519.221329 | S63: =IF(H63>0, Q63/O63/R63,"") -> 0.01788380043 | T63: =IF(H63>0, N63/(1-S63),"") -> 0.1660242995 | U63: 2.859332218 | V63: =IF(H63>0, (D63+U63)/2,"") -> 2.859332218 | W63: =IF(H63>0, 2*($P$53*V63/$S$52/$S$51)^2-(B63-C63)*2,"") -> 0.0004919151451 | X63: =IF(H63>0, V63/$S$54*(B63-C63+W63/2)*F63-J63,"") -> 59.61433269 | Y63: =IF(H63>0, $C$54*$L$55*$L$55*V63*V63/(($B$19*(B63-C63))^0.333)*1000,"") -> 37.90461877 | Z63: =IF(H63>0, rate1(1,$L$52,$L$51,$L$54,U63,$L$53,$L$50,Y63),"") -> 478.1048392 | AA63: =IF(H63>0, X63/O63/Z63,"") -> 0.01699116895 | AB63: =IF(H63>0, W63/(1-AA63),"") -> 0.0005004178289 | AC63: =IF(H63>0, delta_z(N63,S63,H63,AE62,AB63),"") -> 0.1660242995 | AD63: =IF(H63>0, H63/AC63*K63,"") -> 0.4818571755 | AE63: =IF(H63>0, (AD63-AD62)/(AC63+AC62)*2,"") -> -0.09265391541 | AF63: =IF(H63>0, B63-(AC63-N63),"") -> 742.5665859 | AG63: =IF(H63>0, C63-AC63,"") -> 739.5188165 | AH63: =IF(H63>0, $S$54*$S$53*$C$55*SQRT(AF63-AG63),"") -> 2.939031701 | AI63: =IF(H63>0, AC63/R63*1000000,"") -> 319.7563163 | AJ63: =IF(H63>0, AJ62+AI63/3600,"") -> 0.2916224766 | AK63: =IF(H63>0, AK62+AI62*G62/1000000,"") -> 0.07371420036 | AL63: =IF(H63>0, AL62+AI62*J62/1000000,"") -> 0.05840676795
B64: =IF(H64>0, AF63,"") -> 742.5665859 | C64: =IF(H64>0, AG63,"") -> 739.5188165 | D64: =IF(H64>0, AH63,"") -> 2.939031701 | E64: =IF(AND(C64<$B$6,C64>$H$12),bb($B$6,$H$12,C64,$H$8,$H$9,I64,$H$10,$H$11),E63) -> 22.31660986 | F64: =IF(H64>0, (E64+E63)/2,"") -> 21.92430798 | G64: =IF(H64>0, F64*$S$53*$C$55*(B64-C64+N64)^1.5,"") -> 170.2440321 | H64: 0.08 | I64: =IF(H64>0, (B64-C64)*B$19,"") -> 2.438215482 | J64: =IF(H64>0, $B$7,"") -> 80 | K64: =IF(H64>0, IF((1-S63-0.015)>0,1,-1),"") -> 1 | L64: =IF(H64>0, D64+K64*H64,"") -> 3.019031701 | M64: =IF(H64>0, (D64+L64)/2,"") -> 2.979031701 | N64: =IF(H64>0, 2*($P$53*M64/$S$52/$S$51)^2-(B64-C64)*2,"") -> 0.167582685 | O64: =IF(H64>0, wh(B64,$F$51,$F$52,$F$53),"") -> 7.338074246 | P64: =IF(H64>0, $C$54*$L$55*$L$55*M64*M64/(($B$19*(B64-C64))^0.333)*1000,"") -> 40.39813706 | Q64: =IF(H64>0, M64/$S$54*(B64-C64+N64/2)*E64-J64,"") -> 86.55365455 | R64: =IF(H64>0, rate1(1,$L$52,$L$51,$L$54,L64,$L$53,$L$50,P64),"") -> 568.8664603 | S64: =IF(H64>0, Q64/O64/R64,"") -> 0.02073447193 | T64: =IF(H64>0, N64/(1-S64),"") -> 0.1711309958 | U64: 2.939031701 | V64: =IF(H64>0, (D64+U64)/2,"") -> 2.939031701 | W64: =IF(H64>0, 2*($P$53*V64/$S$52/$S$51)^2-(B64-C64)*2,"") -> 0.0005197200832 | X64: =IF(H64>0, V64/$S$54*(B64-C64+W64/2)*F64-J64,"") -> 77.12282417 | Y64: =IF(H64>0, $C$54*$L$55*$L$55*V64*V64/(($B$19*(B64-C64))^0.333)*1000,"") -> 39.32055415 | Z64: =IF(H64>0, rate1(1,$L$52,$L$51,$L$54,U64,$L$53,$L$50,Y64),"") -> 531.8618946 | AA64: =IF(H64>0, X64/O64/Z64,"") -> 0.0197606828 | AB64: =IF(H64>0, W64/(1-AA64),"") -> 0.0005301971407 | AC64: =IF(H64>0, delta_z(N64,S64,H64,AE63,AB64),"") -> 0.1711309958 | AD64: =IF(H64>0, H64/AC64*K64,"") -> 0.4674781422 | AE64: =IF(H64>0, (AD64-AD63)/(AC64+AC63)*2,"") -> -0.08529620307 | AF64: =IF(H64>0, B64-(AC64-N64),"") -> 742.5630376 | AG64: =IF(H64>0, C64-AC64,"") -> 739.3476855 | AH64: =IF(H64>0, $S$54*$S$53*$C$55*SQRT(AF64-AG64),"") -> 3.018752351 | AI64: =IF(H64>0, AC64/R64*1000000,"") -> 300.8280638 | AJ64: =IF(H64>0, AJ63+AI64/3600,"") -> 0.3751858276 | AK64: =IF(H64>0, AK63+AI63*G63/1000000,"") -> 0.1221906793 | AL64: =IF(H64>0, AL63+AI63*J63/1000000,"") -> 0.08398727325
B65: 742.5630376 | C65: 739.3476855 | D65: 3.018752351 | E65: =IF(AND(C65<$B$6,C65>$H$12),bb($B$6,$H$12,C65,$H$8,$H$9,I65,$H$10,$H$11),E64) -> 23.13530855 | F65: 22.72595921 | G65: 190.8259823 | H65: 0.08 | I65: 2.57228163 | J65: 80 | K65: 1 | L65: 3.098752351 | M65: 3.058752351 | N65: 0.1721121831 | O65: 7.337626212 | P65: 41.83681931 | Q65: 106.8997909 | R65: =IF(H65>0, rate1(1,$L$52,$L$51,$L$54,L65,$L$53,$L$50,P65),"") -> 613.7591162 | S65: 0.02373686257 | T65: 0.1762969188 | U65: 3.018752351 | V65: 3.018752351 | W65: 0.0005482970773 | X65: 96.48396518 | Y65: 40.74975479 | Z65: =IF(H65>0, rate1(1,$L$52,$L$51,$L$54,U65,$L$53,$L$50,Y65),"") -> 580.2890361 | AA65: 0.02265975415 | AB65: 0.0005610094127 | AC65: 0.1762969188 | AD65: 0.4537799103 | AE65: -0.07885510226 | AF65: 742.5588528 | AG65: 739.1713886 | AH65: 3.098493433 | AI65: 287.2412224 | AJ65: 0.4549750561 | AK65: 0.1734048619 | AL65: 0.1080535184
B66: 742.5588528 | C66: 739.1713886 | D66: 3.098493433 | E66: =IF(AND(C66<$B$6,C66>$H$12),bb($B$6,$H$12,C66,$H$8,$H$9,I66,$H$10,$H$11),E65) -> 23.98953691 | F66: 23.56242273 | G66: 213.5253311 | H66: 0.08 | I66: 2.709971377 | J66: 80 | K66: 1 | L66: 3.178493433 | M66: 3.138493433 | N66: 0.1766436071 | O66: 7.33709782 | P66: 43.2883762 | Q66: 129.3563358 | R66: =IF(H66>0, rate1(1,$L$52,$L$51,$L$54,L66,$L$53,$L$50,P66),"") -> 654.5397326 | S66: 0.02693564509 | T66: 0.1815333243 | U66: 3.098493433 | V66: 3.098493433 | W66: 0.000577646463 | X66: 117.8664922 | Y66: 42.19198973 | Z66: =IF(H66>0, rate1(1,$L$52,$L$51,$L$54,U66,$L$53,$L$50,Y66),"") -> 624.1294444 | AA66: 0.0257389827 | AB66: 0.0005929072935 | AC66: 0.1815333243 | AD66: 0.4406904369 | AE66: -0.07316024102 | AF66: 742.5539631 | AG66: 738.9898553 | AH66: 3.178254269 | AI66: 277.3450033 | AJ66: 0.5320153348 | AK66: 0.2282179503 | AL66: 0.1310328161
B67: 742.5539631 | C67: 738.9898553 | D67: 3.178254269 | E67: =IF(AND(C67<$B$6,C67>$H$12),bb($B$6,$H$12,C67,$H$8,$H$9,I67,$H$10,$H$11),E66) -> 24.88086576 | F67: 24.43520134 | G67: 238.5318593 | H67: 0.08 | I67: 2.851286263 | J67: 80 | K67: 1 | L67: 3.258254269 | M67: 3.218254269 | N67: 0.1811769191 | O67: 7.336480411 | P67: 44.75259338 | Q67: 154.1138576 | R67: =IF(H67>0, rate1(1,$L$52,$L$51,$L$54,L67,$L$53,$L$50,P67),"") -> 691.7391615 | S67: 0.03036767662 | T67: 0.1868511546 | U67: 3.178254269 | V67: 3.178254269 | W67: 0.0006077685685 | X67: 141.4534293 | Y67: 43.64703807 | Z67: =IF(H67>0, rate1(1,$L$52,$L$51,$L$54,U67,$L$53,$L$50,Y67),"") -> 663.9948803 | AA67: 0.02903761799 | AB67: 0.000625944506 | AC67: 0.1868511546 | AD67: 0.4281482777 | AE67: -0.0680927671 | AF67: 742.5482889 | AG67: 738.8030041 | AH67: 3.258034228 | AI67: 270.117936 | AJ67: 0.6070480948 | AK67: 0.287438134 | AL67: 0.1532204164
B68: 742.5482889 | C68: 738.8030041 | D68: 3.258034228 | E68: =IF(AND(C68<$B$6,C68>$H$12),bb($B$6,$H$12,C68,$H$8,$H$9,I68,$H$10,$H$11),E67) -> 25.81101411 | F68: 25.34593994 | G68: 266.0514625 | H68: 0.08 | I68: 2.996227798 | J68: 80 | K68: 1 | L68: 3.338034228 | M68: 3.298034228 | N68: 0.1857120839 | O68: 7.335763945 | P68: 46.22926538 | Q68: 181.3792546 | R68: =IF(H68>0, rate1(1,$L$52,$L$51,$L$54,L68,$L$53,$L$50,P68),"") -> 725.8011096 | S68: 0.03406627415 | T68: 0.1922617245 | U68: 3.258034228 | V68: 3.258034228 | W68: 0.000638663716 | X68: 167.4434147 | Y68: 45.1146882 | Z68: =IF(H68>0, rate1(1,$L$52,$L$51,$L$54,U68,$L$53,$L$50,Y68),"") -> 700.3934603 | AA68: 0.03258972095 | AB68: 0.0006601787574 | AC68: 0.1922617245 | AD68: 0.4160994614 | AE68: -0.06356321275 | AF68: 742.5417393 | AG68: 738.6107424 | AH68: 3.337832727 | AI68: 264.8958812 | AJ68: 0.680630284 | AK68: 0.3518698674 | AL68: 0.1748298513
B69: 742.5417393 | C69: 738.6107424 | D69: 3.337832727 | E69: =IF(AND(C69<$B$6,C69>$H$12),bb($B$6,$H$12,C69,$H$8,$H$9,I69,$H$10,$H$11),E68) -> 26.78186497 | F69: 26.29643954 | G69: 296.3077093 | H69: 0.08 | I69: 3.144797465 | J69: 80 | K69: 1 | L69: 3.417832727 | M69: 3.377832727 | N69: 0.1902490687 | O69: 7.334936943 | P69: 47.71819511 | Q69: 211.3773603 | R69: =IF(H69>0, rate1(1,$L$52,$L$51,$L$54,L69,$L$53,$L$50,P69),"") -> 757.0992842 | S69: 0.03806354645 | T69: 0.1977771691 | U69: 3.337832727 | V69: 3.337832727 | W69: 0.0006703322212 | X69: 196.0522091 | Y69: 46.59473728 | Z69: =IF(H69>0, rate1(1,$L$52,$L$51,$L$54,U69,$L$53,$L$50,Y69),"") -> 733.7506785 | AA69: 0.03642728803 | AB69: 0.0006956737285 | AC69: 0.1977771691 | AD69: 0.4044956268 | AE69: -0.05950091001 | AF69: 742.5342112 | AG69: 738.4129653 | AH69: 3.41764922 | AI69: 261.2301626 | AJ69: 0.753194218 | AK69: 0.422345804 | AL69: 0.1960215218
B70: 742.5342112 | C70: 738.4129653 | D70: 3.41764922 | E70: =IF(AND(C70<$B$6,C70>$H$12),bb($B$6,$H$12,C70,$H$8,$H$9,I70,$H$10,$H$11),E69) -> 27.79548457 | F70: 27.28867477 | G70: 329.5436147 | H70: 0.08 | I70: 3.29699672 | J70: 80 | K70: 1 | L70: 3.49764922 | M70: 3.45764922 | N70: 0.1947878431 | O70: 7.333986395 | P70: 49.21919328 | Q70: 244.3527739 | R70: =IF(H70>0, rate1(1,$L$52,$L$51,$L$54,L70,$L$53,$L$50,P70),"") -> 785.9506466 | S70: 0.04239180394 | T70: 0.2034107936 | U70: 3.41764922 | V70: 3.41764922 | W70: 0.0007027743946 | X70: 227.5144115 | Y70: 48.08699062 | Z70: =IF(H70>0, rate1(1,$L$52,$L$51,$L$54,U70,$L$53,$L$50,Y70),"") -> 764.4255138 | AA70: 0.04058201786 | AB70: 0.0007325007532 | AC70: 0.2034107936 | AD70: 0.3932927972 | AE70: -0.05584828383 | AF70: 742.5255882 | AG70: 738.2095545 | AH70: 3.497483202 | AI70: 258.808609 | AJ70: 0.8250854983 | AK70: 0.4997503151 | AL70: 0.2169199348
B71: 742.5255882 | C71: 738.2095545 | D71: 3.497483202 | E71: =IF(AND(C71<$B$6,C71>$H$12),bb($B$6,$H$12,C71,$H$8,$H$9,I71,$H$10,$H$11),E70) -> 28.85414531 | F71: 28.32481494 | G71: 366.0236672 | H71: 0.08 | I71: 3.452826994 | J71: 80 | K71: 1 | L71: 3.577483202 | M71: 3.537483202 | N71: 0.1993283789 | O71: 7.332897604 | P71: 50.73207795 | Q71: 280.5719549 | R71: =IF(H71>0, rate1(1,$L$52,$L$51,$L$54,L71,$L$53,$L$50,P71),"") -> 812.6257667 | S71: 0.0470845093 | T71: 0.2091773939 | U71: 3.497483202 | V71: 3.497483202 | W71: 0.0007359905413 | X71: 262.0854197 | Y71: 49.59126118 | Z71: =IF(H71>0, rate1(1,$L$52,$L$51,$L$54,U71,$L$53,$L$50,Y71),"") -> 792.7229128 | AA71: 0.04508642798 | AB71: 0.0007707404763 | AC71: 0.2091773939 | AD71: 0.3824505054 | AE71: -0.05255745142 | AF71: 742.5157392 | AG71: 738.0003771 | AH71: 3.577334199 | AI71: 257.4092558 | AJ71: 0.8965880694 | AK71: 0.5850390397 | AL71: 0.2376246235
B72: 742.5157392 | C72: 738.0003771 | D72: 3.577334199 | E72: =IF(AND(C72<$B$6,C72>$H$12),bb($B$6,$H$12,C72,$H$8,$H$9,I72,$H$10,$H$11),E71) -> 29.960353 | F72: 29.40724915 | G72: 406.0361566 | H72: 0.08 | I72: 3.612289698 | J72: 80 | K72: 1 | L72: 3.657334199 | M72: 3.617334199 | N72: 0.2038706496 | O72: 7.331654002 | P72: 52.25667406 | Q72: 320.3256339 | R72: =IF(H72>0, rate1(1,$L$52,$L$51,$L$54,L72,$L$53,$L$50,P72),"") -> 837.3569919 | S72: 0.05217699722 | T72: 0.2150935871 | U72: 3.577334199 | V72: 3.577334199 | W72: 0.0007699809617 | X72: 300.0436805 | Y72: 51.10736913 | Z72: =IF(H72>0, rate1(1,$L$52,$L$51,$L$54,U72,$L$53,$L$50,Y72),"") -> 818.9035663 | AA72: 0.0499746499 | AB72: 0.0008104846483 | AC72: 0.2150935871 | AD72: 0.3719311257 | AE72: -0.04958802332 | AF72: 742.5045163 | AG72: 737.7852835 | AH72: 3.657201769 | AI72: 256.8720262 | AJ72: 0.96794141 | AK72: 0.6792569195 | AL72: 0.258217364
B73: 742.5045163 | C73: 737.7852835 | D73: 3.657201769 | E73: =IF(AND(C73<$B$6,C73>$H$12),bb($B$6,$H$12,C73,$H$8,$H$9,I73,$H$10,$H$11),E72) -> 31.1168792 | F73: 30.5386161 | G73: 449.8958609 | H73: 0.08 | I73: 3.775386217 | J73: 80 | K73: 1 | L73: 3.737201769 | M73: 3.697201769 | N73: 0.2084146306 | O73: 7.330236919 | P73: 53.79281303 | Q73: 363.9316014 | R73: =IF(H73>0, rate1(1,$L$52,$L$51,$L$54,L73,$L$53,$L$50,P73),"") -> 860.3449502 | S73: 0.05770708578 | T73: 0.2211781787 | U73: 3.657201769 | V73: 3.657201769 | W73: 0.0008047459517 | X73: 341.6932866 | Y73: 52.63514138 | Z73: =IF(H73>0, rate1(1,$L$52,$L$51,$L$54,U73,$L$53,$L$50,Y73),"") -> 843.1916382 | AA73: 0.05528306886 | AB73: 0.0008518381805 | AC73: 0.2211781787 | AD73: 0.3616993343 | AE73: -0.04690558625 | AF73: 742.4917527 | AG73: 737.5641053 | AH73: 3.737085498 | AI73: 257.0808124 | AJ73: 1.039352747 | AK73: 0.7835562497 | AL73: 0.2787671261
B74: 742.4917527 | C74: 737.5641053 | D74: 3.737085498 | E74: =IF(AND(C74<$B$6,C74>$H$12),bb($B$6,$H$12,C74,$H$8,$H$9,I74,$H$10,$H$11),E73) -> 32.32679972 | F74: 31.72183946 | G74: 497.9471664 | H74: 0.08 | I74: 3.942117922 | J74: 80 | K74: 1 | L74: 3.817085498 | M74: 3.777085498 | N74: 0.2129602987 | O74: 7.328625308 | P74: 55.34033243 | Q74: 411.7379545 | R74: =IF(H74>0, rate1(1,$L$52,$L$51,$L$54,L74,$L$53,$L$50,P74),"") -> 881.7637706 | S74: 0.06371565233 | T74: 0.2274525888 | U74: 3.737085498 | V74: 3.737085498 | W74: 0.0008402858028 | X74: 387.3669904 | Y74: 54.17441123 | Z74: =IF(H74>0, rate1(1,$L$52,$L$51,$L$54,U74,$L$53,$L$50,Y74),"") -> 865.7809312 | AA74: 0.06105090064 | AB74: 0.0008949215707 | AC74: 0.2274525888 | AD74: 0.3517216508 | AE74: -0.04448060287 | AF74: 742.4772604 | AG74: 737.3366527 | AH74: 3.816984997 | AI74: 257.9518419 | AJ74: 1.111006036 | AK74: 0.8992158431 | AL74: 0.2993335911
B75: 742.4772604 | C75: 737.3366527 | D75: 3.816984997 | E75: =IF(AND(C75<$B$6,C75>$H$12),bb($B$6,$H$12,C75,$H$8,$H$9,I75,$H$10,$H$11),E74) -> 33.59354057 | F75: 32.96017014 | G75: 550.5677136 | H75: 0.08 | I75: 4.112486161 | J75: 80 | K75: 1 | L75: 3.896984997 | M75: 3.856984997 | N75: 0.2175076324 | O75: 7.326795415 | P75: 56.89907555 | Q75: 464.1269017 | R75: =IF(H75>0, rate1(1,$L$52,$L$51,$L$54,L75,$L$53,$L$50,P75),"") -> 901.7653066 | S75: 0.07024722195 | T75: 0.2339413633 | U75: 3.816984997 | V75: 3.816984997 | W75: 0.0008766008029 | X75: 437.4297256 | Y75: 55.72501796 | Z75: =IF(H75>0, rate1(1,$L$52,$L$51,$L$54,U75,$L$53,$L$50,Y75),"") -> 886.8398453 | AA75: 0.06732076303 | AB75: 0.000939873826 | AC75: 0.2339413633 | AD75: 0.3419660332 | AE75: -0.04228758307 | AF75: 742.4608267 | AG75: 737.1027114 | AH75: 3.896899902 | AI75: 259.4259965 | AJ75: 1.183068813 | AK75: 1.027662232 | AL75: 0.3199697384
B76: 742.4608267 | C76: 737.1027114 | D76: 3.896899902 | E76: =IF(AND(C76<$B$6,C76>$H$12),bb($B$6,$H$12,C76,$H$8,$H$9,I76,$H$10,$H$11),E75) -> 34.92093332 | F76: 34.25723694 | G76: 608.172687 | H76: 0.08 | I76: 4.286492267 | J76: 80 | K76: 1 | L76: 3.976899902 | M76: 3.936899902 | N76: 0.2220566113 | O76: 7.324720383 | P76: 58.46889116 | Q76: 521.5192521 | R76: =IF(H76>0, rate1(1,$L$52,$L$51,$L$54,L76,$L$53,$L$50,P76),"") -> 920.4825772 | S76: 0.07735060631 | T76: 0.2406727982 | U76: 3.896899902 | V76: 3.896899902 | W76: 0.0009136912358 | X76: 492.282748 | Y76: 57.28680653 | Z76: =IF(H76>0, rate1(1,$L$52,$L$51,$L$54,U76,$L$53,$L$50,Y76),"") -> 906.5153965 | AA76: 0.07413928292 | AB76: 0.0009868560346 | AC76: 0.2406727982 | AD76: 0.3324015037 | AE76: -0.04030444238 | AF76: 742.4422105 | AG76: 736.8620386 | AH76: 3.976829871 | AI76: 261.4637193 | AJ76: 1.255697624 | AK76: 1.17049381 | AL76: 0.3407238181
B77: 742.4422105 | C77: 736.8620386 | D77: 3.976829871 | E77: =IF(AND(C77<$B$6,C77>$H$12),bb($B$6,$H$12,C77,$H$8,$H$9,I77,$H$10,$H$11),E76) -> 36.31328217 | F77: 35.61710775 | G77: 671.219899 | H77: 0.08 | I77: 4.464137556 | J77: 80 | K77: 1 | L77: 4.056829871 | M77: 4.016829871 | N77: 0.2266072164 | O77: 7.322369779 | P77: 60.04963319 | Q77: 584.3797541 | R77: =IF(H77>0, rate1(1,$L$52,$L$51,$L$54,L77,$L$53,$L$50,P77),"") -> 938.0325908 | S77: 0.08507962691 | T77: 0.2476797141 | U77: 3.976829871 | V77: 3.976829871 | W77: 0.0009515573822 | X77: 552.3685432 | Y77: 58.85962724 | Z77: =IF(H77>0, rate1(1,$L$52,$L$51,$L$54,U77,$L$53,$L$50,Y77),"") -> 924.9364972 | AA77: 0.08155777411 | AB77: 0.001036055786 | AC77: 0.2476797141 | AD77: 0.3229977889 | AE77: -0.03851199507 | AF77: 742.421138 | AG77: 736.6143588 | AH77: 4.056774582 | AI77: 264.0416938 | AJ77: 1.329042539 | AK77: 1.329508902 | AL77: 0.3616409157
B78: 742.421138 | C78: 736.6143588 | D78: 4.056774582 | E78: =IF(AND(C78<$B$6,C78>$H$12),bb($B$6,$H$12,C78,$H$8,$H$9,I78,$H$10,$H$11),E77) -> 37.77544569 | F78: 37.04436393 | G78: 740.2158638 | H78: 0.08 | I78: 4.645423329 | J78: 80 | K78: 1 | L78: 4.136774582 | M78: 4.096774582 | N78: 0.2311594298 | O78: 7.319709025 | P78: 61.64116042 | Q78: 653.2234954 | R78: =IF(H78>0, rate1(1,$L$52,$L$51,$L$54,L78,$L$53,$L$50,P78),"") -> 954.5186759 | S78: 0.09349395891 | T78: 0.2550004295 | U78: 4.056774582 | V78: 4.056774582 | W78: 0.0009901995194 | X78: 618.1766862 | Y78: 60.44333547 | Z78: =IF(H78>0, rate1(1,$L$52,$L$51,$L$54,U78,$L$53,$L$50,Y78),"") -> 942.2166508 | AA78: 0.08963302017 | AB78: 0.001087692701 | AC78: 0.2550004295 | AD78: 0.3137249618 | AE78: -0.03689354821 | AF78: 742.397297 | AG78: 736.3593584 | AH78: 4.13673373 | AI78: 267.1508016 | AJ78: 1.403251095 | AK78: 1.506738941 | AL78: 0.3827642512
B79: 742.397297 | C79: 736.3593584 | D79: 4.13673373 | E79: =IF(AND(C79<$B$6,C79>$H$12),bb($B$6,$H$12,C79,$H$8,$H$9,I79,$H$10,$H$11),E78) -> 39.31293752 | F79: 38.54419161 | G79: 815.7231151 | H79: 0.08 | I79: 4.830350873 | J79: 80 | K79: 1 | L79: 4.21673373 | M79: 4.17673373 | N79: 0.2357132345 | O79: 7.316698701 | P79: 63.24333627 | Q79: 728.623644 | R79: =IF(H79>0, rate1(1,$L$52,$L$51,$L$54,L79,$L$53,$L$50,P79),"") -> 970.032417 | S79: 0.1026601373 | T79: 0.2626799994 | U79: 4.13673373 | V79: 4.13673373 | W79: 0.001029617922 | X79: 690.2509012 | Y79: 62.03779138 | Z79: =IF(H79>0, rate1(1,$L$52,$L$51,$L$54,U79,$L$53,$L$50,Y79),"") -> 958.45618 | AA79: 0.09842820135 | AB79: 0.001142025431 | AC79: 0.2626799994 | AD79: 0.3045530691 | AE79: -0.03543457396 | AF79: 742.3703302 | AG79: 736.0966784 | AH79: 4.21670703 | AI79: 270.7950732 | AJ79: 1.478471949 | AK79: 1.704488203 | AL79: 0.4041363153
B80: 742.3703302 | C80: 736.0966784 | D80: 4.21670703 | E80: =IF(AND(C80<$B$6,C80>$H$12),bb($B$6,$H$12,C80,$H$8,$H$9,I80,$H$10,$H$11),E79) -> 40.93205136 | F80: 40.12249444 | G80: 885.9830075 | H80: 0.06 | I80: 5.01892146 | J80: 80 | K80: 1 | L80: 4.27670703 | M80: 4.24670703 | N80: 0.1802571943 | O80: 7.313293698 | P80: 64.55166254 | Q80: 804.9545871 | R80: =IF(H80>0, rate1(1,$L$52,$L$51,$L$54,L80,$L$53,$L$50,P80),"") -> 981.9673085 | S80: 0.1120885717 | T80: 0.203012585 | U80: 4.21670703 | V80: 4.21670703 | W80: 0.00106981286 | X80: 769.1976437 | Y80: 63.64285971 | Z80: =IF(H80>0, rate1(1,$L$52,$L$51,$L$54,U80,$L$53,$L$50,Y80),"") -> 973.7440799 | AA80: 0.1080140127 | AB80: 0.001199360612 | AC80: 0.203012585 | AD80: 0.2955481799 | AE80: -0.03867310566 | AF80: 742.3475748 | AG80: 735.8936658 | AH80: 4.276856129 | AI80: 206.7406759 | AJ80: 1.535899914 | AK80: 1.925382003 | AL80: 0.4257999212
B81: 742.3475748 | C81: 735.8936658 | D81: 4.276856129 | E81: =IF(AND(C81<$B$6,C81>$H$12),bb($B$6,$H$12,C81,$H$8,$H$9,I81,$H$10,$H$11),E80) -> 42.2083502 | F81: 41.57020078 | G81: 957.2335688 | H81: 0.06 | I81: 5.163127216 | J81: 80 | K81: 1 | L81: 4.336856129 | M81: 4.306856129 | N81: 0.1828348858 | O81: 7.31042045 | P81: 65.7698499 | Q81: 871.8752645 | R81: =IF(H81>0, rate1(1,$L$52,$L$51,$L$54,L81,$L$53,$L$50,P81),"") -> 992.5345927 | S81: 0.1201617789 | T81: 0.2078051185 | U81: 4.276856129 | V81: 4.276856129 | W81: 0.001100551172 | X81: 838.0294565 | Y81: 64.85678315 | Z81: =IF(H81>0, rate1(1,$L$52,$L$51,$L$54,U81,$L$53,$L$50,Y81),"") -> 984.661895 | AA81: 0.1164205903 | AB81: 0.001245560002 | AC81: 0.2078051185 | AD81: 0.2887320602 | AE81: -0.03318318355 | AF81: 742.3226046 | AG81: 735.6858607 | AH81: 4.337013275 | AI81: 209.3681369 | AJ81: 1.59405773 | AK81: 2.108550729 | AL81: 0.4423391752
B82: 742.3226046 | C82: 735.6858607 | D82: 4.337013275 | E82: =IF(AND(C82<$B$6,C82>$H$12),bb($B$6,$H$12,C82,$H$8,$H$9,I82,$H$10,$H$11),E81) -> 43.53846784 | F82: 42.87340902 | G82: 1028.901536 | H82: 0.06 | I82: 5.309395124 | J82: 80 | K82: 1 | L82: 4.397013275 | M82: 4.367013275 | N82: 0.1854133576 | O82: 7.307267542 | P82: 66.9938778 | Q82: 943.5928633 | R82: =IF(H82>0, rate1(1,$L$52,$L$51,$L$54,L82,$L$53,$L$50,P82),"") -> 1002.660562 | S82: 0.128788091 | T82: 0.2128223406 | U82: 4.337013275 | V82: 4.337013275 | W82: 0.001131729043 | X82: 907.3266116 | Y82: 66.07658591 | Z82: =IF(H82>0, rate1(1,$L$52,$L$51,$L$54,U82,$L$53,$L$50,Y82),"") -> 995.1170593 | AA82: 0.1247769796 | AB82: 0.001293075042 | AC82: 0.2128223406 | AD82: 0.2819252896 | AE82: -0.03236484201 | AF82: 742.2951956 | AG82: 735.4730384 | AH82: 4.397178389 | AI82: 212.257616 | AJ82: 1.653018179 | AK82: 2.308964938 | AL82: 0.4590886262
B83: 742.2951956 | C83: 735.4730384 | D83: 4.397178389 | E83: =IF(AND(C83<$B$6,C83>$H$12),bb($B$6,$H$12,C83,$H$8,$H$9,I83,$H$10,$H$11),E82) -> 44.9263334 | F83: 44.23240062 | G83: 1105.693288 | H83: 0.06 | I83: 5.45772581 | J83: 80 | K83: 1 | L83: 4.457178389 | M83: 4.427178389 | N83: 0.1879926065 | O83: 7.303806701 | P83: 68.22369484 | Q83: 1020.481161 | R83: =IF(H83>0, rate1(1,$L$52,$L$51,$L$54,L83,$L$53,$L$50,P83),"") -> 1012.371575 | S83: 0.1380116595 | T83: 0.2180918205 | U83: 4.397178389 | V83: 4.397178389 | W83: 0.001163346608 | X83: 981.6059309 | Y83: 67.30221571 | Z83: =IF(H83>0, rate1(1,$L$52,$L$51,$L$54,U83,$L$53,$L$50,Y83),"") -> 1005.137611 | AA83: 0.1337095351 | AB83: 0.001342905937 | AC83: 0.2180918205 | AD83: 0.2751134814 | AE83: -0.03161561563 | AF83: 742.2650964 | AG83: 735.2549465 | AH83: 4.457351395 | AI83: 215.4266535 | AJ83: 1.712858916 | AK83: 2.527357125 | AL83: 0.4760692355
B84: 742.2650964 | C84: 735.2549465 | D84: 4.457351395 | E84: =IF(AND(C84<$B$6,C84>$H$12),bb($B$6,$H$12,C84,$H$8,$H$9,I84,$H$10,$H$11),E83) -> 46.37637381 | F84: 45.6513536 | G84: 1188.012416 | H84: 0.06 | I84: 5.608119896 | J84: 80 | K84: 1 | L84: 4.517351395 | M84: 4.487351395 | N84: 0.1905726293 | O84: 7.300006174 | P84: 69.45925081 | Q84: 1102.953294 | R84: =IF(H84>0, rate1(1,$L$52,$L$51,$L$54,L84,$L$53,$L$50,P84),"") -> 1021.691953 | S84: 0.1478815254 | T84: 0.223645696 | U84: 4.457351395 | V84: 4.457351395 | W84: 0.001195403999 | X84: 1061.260666 | Y84: 68.53362149 | Z84: =IF(H84>0, rate1(1,$L$52,$L$51,$L$54,U84,$L$53,$L$50,Y84),"") -> 1014.749389 | AA84: 0.1432649796 | AB84: 0.001395301897 | AC84: 0.223645696 | AD84: 0.2682814875 | AE84: -0.03093236851 | AF84: 742.2320233 | AG84: 735.0313008 | AH84: 4.517532221 | AI84: 218.8973842 | AJ84: 1.773663745 | AK84: 2.76555293 | AL84: 0.4933033678
B85: 742.2320233 | C85: 735.0313008 | D85: 4.517532221 | E85: =IF(AND(C85<$B$6,C85>$H$12),bb($B$6,$H$12,C85,$H$8,$H$9,I85,$H$10,$H$11),E84) -> 47.89360337 | F85: 47.13498859 | G85: 1276.306122 | H85: 0.06 | I85: 5.760577999 | J85: 80 | K85: 1 | L85: 4.577532221 | M85: 4.547532221 | N85: 0.1931534233 | O85: 7.295830148 | P85: 70.70049662 | Q85: 1191.468014 | R85: =IF(H85>0, rate1(1,$L$52,$L$51,$L$54,L85,$L$53,$L$50,P85),"") -> 1030.644172 | S85: 0.1584524364 | T85: 0.2295216951 | U85: 4.517532221 | V85: 4.517532221 | W85: 0.001227901348 | X85: 1146.726519 | Y85: 69.77075335 | Z85: =IF(H85>0, rate1(1,$L$52,$L$51,$L$54,U85,$L$53,$L$50,Y85),"") -> 1023.976245 | AA85: 0.1534953629 | AB85: 0.00145055478 | AC85: 0.2295216951 | AD85: 0.2614131966 | AE85: -0.03031237922 | AF85: 742.1956551 | AG85: 734.8017792 | AH85: 4.577720797 | AI85: 222.6973202 | AJ85: 1.835524111 | AK85: 3.02560574 | AL85: 0.5108151585
B86: 742.1956551 | C86: 734.8017792 | D86: 4.577720797 | E86: =IF(AND(C86<$B$6,C86>$H$12),bb($B$6,$H$12,C86,$H$8,$H$9,I86,$H$10,$H$11),E85) -> 49.48373466 | F86: 48.68866901 | G86: 1371.072369 | H86: 0.06 | I86: 5.915100738 | J86: 80 | K86: 1 | L86: 4.637720797 | M86: 4.607720797 | N86: 0.1957349855 | O86: 7.291238048 | P86: 71.94738428 | Q86: 1286.537351 | R86: =IF(H86>0, rate1(1,$L$52,$L$51,$L$54,L86,$L$53,$L$50,P86),"") -> 1039.249031 | S86: 0.1697858501 | T86: 0.2357644536 | U86: 4.577720797 | V86: 4.577720797 | W86: 0.001260838785 | X86: 1238.488591 | Y86: 71.01356251 | Z86: =IF(H86>0, rate1(1,$L$52,$L$51,$L$54,U86,$L$53,$L$50,Y86),"") -> 1032.840226 | AA86: 0.1644589785 | AB86: 0.001509008837 | AC86: 0.2357644536 | AD86: 0.2544912902 | AE86: -0.02975333098 | AF86: 742.1556256 | AG86: 734.5660147 | AH86: 4.637917056 | AI86: 226.8604026 | AJ86: 1.89854089 | AK86: 3.309835693 | AL86: 0.5286309441
B87: 742.1556256 | C87: 734.5660147 | D87: 4.637917056 | E87: =IF(AND(C87<$B$6,C87>$H$12),bb($B$6,$H$12,C87,$H$8,$H$9,I87,$H$10,$H$11),E86) -> 51.15331732 | F87: 50.31852599 | G87: 1472.868687 | H87: 0.06 | I87: 6.071688726 | J87: 80 | K87: 1 | L87: 4.697917056 | M87: 4.667917056 | N87: 0.1983173132 | O87: 7.28618366 | P87: 73.19986683 | Q87: 1388.736087 | R87: =IF(H87>0, rate1(1,$L$52,$L$51,$L$54,L87,$L$53,$L$50,P87),"") -> 1047.525812 | S87: 0.1819511789 | T87: 0.2424272343 | U87: 4.637917056 | V87: 4.637917056 | W87: 0.001294216443 | X87: 1337.089937 | Y87: 72.26200126 | Z87: =IF(H87>0, rate1(1,$L$52,$L$51,$L$54,U87,$L$53,$L$50,Y87),"") -> 1041.361747 | AA87: 0.1762214968 | AB87: 0.001571073339 | AC87: 0.2424272343 | AD87: 0.2474969455 | AE87: -0.02925330945 | AF87: 742.1115157 | AG87: 734.3235875 | AH87: 4.698120934 | AI87: 231.4284112 | AJ87: 1.96282656 | AK87: 3.620877723 | AL87: 0.5467797763
B88: 742.1115157 | C88: 734.3235875 | D88: 4.698120934 | E88: =IF(AND(C88<$B$6,C88>$H$12),bb($B$6,$H$12,C88,$H$8,$H$9,I88,$H$10,$H$11),E87) -> 52.9099136 | F88: 52.03161546 | G88: 1582.323127 | H88: 0.06 | I88: 6.230342577 | J88: 80 | K88: 1 | L88: 4.758120934 | M88: 4.728120934 | N88: 0.2009004039 | O88: 7.280614047 | P88: 74.45789836 | Q88: 1498.713606 | R88: =IF(H88>0, rate1(1,$L$52,$L$51,$L$54,L88,$L$53,$L$50,P88),"") -> 1055.492406 | S88: 0.1950273536 | T88: 0.2495741996 | U88: 4.698120934 | V88: 4.698120934 | W88: 0.001328034452 | X88: 1443.142219 | Y88: 73.51602296 | Z88: =IF(H88>0, rate1(1,$L$52,$L$51,$L$54,U88,$L$53,$L$50,Y88),"") -> 1049.559735 | AA88: 0.1888573804 | AB88: 0.001637239149 | AC88: 0.2495741996 | AD88: 0.2404094658 | AE88: -0.02881080919 | AF88: 742.0628419 | AG88: 734.0740133 | AH88: 4.758332368 | AI88: 236.4528613 | AJ88: 2.02850791 | AK88: 3.961741383 | AL88: 0.5652940492
B89: 742.0628419 | C89: 734.0740133 | D89: 4.758332368 | E89: =IF(AND(C89<$B$6,C89>$H$12),bb($B$6,$H$12,C89,$H$8,$H$9,I89,$H$10,$H$11),E88) -> 54.76232319 | F89: 53.83611839 | G89: 1700.148059 | H89: 0.06 | I89: 6.3910629 | J89: 80 | K89: 1 | L89: 4.818332368 | M89: 4.788332368 | N89: 0.2034842551 | O89: 7.274468169 | P89: 75.72143392 | Q89: 1617.208895 | R89: =IF(H89>0, rate1(1,$L$52,$L$51,$L$54,L89,$L$53,$L$50,P89),"") -> 1063.165444 | S89: 0.209104809 | T89: 0.2572834648 | U89: 4.758332368 | V89: 4.758332368 | W89: 0.001362292942 | X89: 1557.339099 | Y89: 74.77558194 | Z89: =IF(H89>0, rate1(1,$L$52,$L$51,$L$54,U89,$L$53,$L$50,Y89),"") -> 1057.451761 | AA89: 0.2024516752 | AB89: 0.001708100813 | AC89: 0.2572834648 | AD89: 0.2332058146 | AE89: -0.02842475007 | AF89: 742.0090427 | AG89: 733.8167298 | AH89: 4.818551299 | AI89: 241.9975801 | AJ89: 2.09572946 | AK89: 4.335886214 | AL89: 0.5842102781
B90: 742.0090427 | C90: 733.8167298 | D90: 4.818551299 | E90: =IF(AND(C90<$B$6,C90>$H$12),bb($B$6,$H$12,C90,$H$8,$H$9,I90,$H$10,$H$11),E89) -> 56.72087497 | F90: 55.74159908 | G90: 1827.15777 | H90: 0.06 | I90: 6.553850304 | J90: 80 | K90: 1 | L90: 4.878551299 | M90: 4.848551299 | N90: 0.2060688643 | O90: 7.267675123 | P90: 76.99042952 | Q90: 1745.069794 | R90: =IF(H90>0, rate1(1,$L$52,$L$51,$L$54,L90,$L$53,$L$50,P90),"") -> 1070.5604 | S90: 0.2242880428 | T90: 0.265651267 | U90: 4.818551299 | V90: 4.818551299 | W90: 0.001396992042 | X90: 1680.47335 | Y90: 76.04063352 | Z90: =IF(H90>0, rate1(1,$L$52,$L$51,$L$54,U90,$L$53,$L$50,Y90),"") -> 1065.05416 | AA90: 0.2171023034 | AB90: 0.00178438645 | AC90: 0.265651267 | AD90: 0.2258600182 | AE90: -0.02809450572 | AF90: 741.9494603 | AG90: 733.5510785 | AH90: 4.878777669 | AI90: 248.1422505 | AJ90: 2.164657863 | AK90: 4.74731793 | AL90: 0.6035700845
B91: 741.9494603 | C91: 733.5510785 | D91: 4.878777669 | E91: =IF(AND(C91<$B$6,C91>$H$12),bb($B$6,$H$12,C91,$H$8,$H$9,I91,$H$10,$H$11),E90) -> 58.79781151 | F91: 57.75934324 | G91: 1964.291251 | H91: 0.06 | I91: 6.718705395 | J91: 80 | K91: 1 | L91: 4.938777669 | M91: 4.908777669 | N91: 0.2086542293 | O91: 7.260151851 | P91: 78.26484209 | Q91: 1883.278088 | R91: =IF(H91>0, rate1(1,$L$52,$L$51,$L$54,L91,$L$53,$L$50,P91),"") -> 1077.691691 | S91: 0.2406989605 | T91: 0.2747977659 | U91: 4.878777669 | V91: 4.878777669 | W91: 0.001432131882 | X91: 1813.458974 | Y91: 77.31113398 | Z91: =IF(H91>0, rate1(1,$L$52,$L$51,$L$54,U91,$L$53,$L$50,Y91),"") -> 1072.382137 | AA91: 0.2329230451 | AB91: 0.001866998966 | AC91: 0.2747977659 | AD91: 0.2183423865 | AE91: -0.0278199469 | AF91: 741.8833167 | AG91: 733.2762808 | AH91: 4.939011424 | AI91: 254.9873663 | AJ91: 2.235487687 | AK91: 5.200712971 | AL91: 0.6234214646
B92: 741.8833167 | C92: 733.2762808 | D92: 4.939011424 | E92: =IF(AND(C92<$B$6,C92>$H$12),bb($B$6,$H$12,C92,$H$8,$H$9,I92,$H$10,$H$11),E91) -> 61.00780421 | F92: 59.90280786 | G92: 2112.642165 | H92: 0.06 | I92: 6.885628779 | J92: 80 | K92: 1 | L92: 4.999011424 | M92: 4.969011424 | N92: 0.2112403478 | O92: 7.251800127 | P92: 79.54462943 | Q92: 2032.982747 | R92: =IF(H92>0, rate1(1,$L$52,$L$51,$L$54,L92,$L$53,$L$50,P92),"") -> 1084.572765 | S92: 0.2584813259 | T92: 0.2848752906 | U92: 4.939011424 | V92: 4.939011424 | W92: 0.00146771259 | X92: 1957.360318 | Y92: 78.58704048 | Z92: =IF(H92>0, rate1(1,$L$52,$L$51,$L$54,U92,$L$53,$L$50,Y92),"") -> 1079.449864 | AA92: 0.2500474775 | AB92: 0.00195707401 | AC92: 0.2848752906 | AD92: 0.2106184776 | AE92: -0.02760150358 | AF92: 741.8096818 | AG92: 732.9914055 | AH92: 4.99925251 | AI92: 262.6612983 | AJ92: 2.308449159 | AK92: 5.701582424 | AL92: 0.6438204539
B93: 741.8096818 | C93: 732.9914055 | D93: 4.99925251 | E93: =IF(AND(C93<$B$6,C93>$H$12),bb($B$6,$H$12,C93,$H$8,$H$9,I93,$H$10,$H$11),E92) -> 63.36865708 | F93: 62.18823064 | G93: 2246.776045 | H93: 0.04 | I93: 7.054621057 | J93: 80 | K93: 1 | L93: 5.03925251 | M93: 5.01925251 | N93: 0.1429115766 | O93: 7.242502488 | P93: 80.50863138 | Q93: 2181.997961 | R93: =IF(H93>0, rate1(1,$L$52,$L$51,$L$54,L93,$L$53,$L$50,P93),"") -> 1089.580327 | S93: 0.2765071934 | T93: 0.1975300588 | U93: 4.99925251 | V93: 4.99925251 | W93: 0.001503734296 | X93: 2113.431073 | Y93: 79.86831108 | Z93: =IF(H93>0, rate1(1,$L$52,$L$51,$L$54,U93,$L$53,$L$50,Y93),"") -> 1086.270564 | AA93: 0.2686342756 | AB93: 0.002056063398 | AC93: 0.1975300588 | AD93: 0.2025008257 | AE93: -0.03365489979 | AF93: 741.7550633 | AG93: 732.7938754 | AH93: 5.039599376 | AI93: 181.2900378 | AJ93: 2.358807503 | AK93: 6.256491758 | AL93: 0.6648333577
B94: 741.7550633 | C94: 732.7938754 | D94: 5.039599376 | E94: =IF(AND(C94<$B$6,C94>$H$12),bb($B$6,$H$12,C94,$H$8,$H$9,I94,$H$10,$H$11),E93) -> 65.04796495 | F94: 64.20831101 | G94: 2375.927493 | H94: =dv(S93) -> 0.04 | I94: 7.168950318 | J94: 80 | K94: 1 | L94: 5.079599376 | M94: 5.059599376 | N94: 0.1440749116 | O94: 7.235605995 | P94: 81.37137387 | Q94: 2298.387842 | R94: =IF(H94>0, rate1(1,$L$52,$L$51,$L$54,L94,$L$53,$L$50,P94),"") -> 1093.939859 | S94: 0.2903721493 | T94: 0.203028829 | U94: 5.039599376 | V94: 5.039599376 | W94: 0.001528104256 | X94: 2239.956584 | Y94: 80.72934242 | Z94: =IF(H94>0, rate1(1,$L$52,$L$51,$L$54,U94,$L$53,$L$50,Y94),"") -> 1090.706381 | AA94: 0.2838290457 | AB94: 0.002133714369 | AC94: 0.203028829 | AD94: 0.1970163557 | AE94: -0.02738408834 | AF94: 741.6961094 | AG94: 732.5908466 | AH94: 5.079950312 | AI94: 185.5941416 | AJ94: 2.410361431 | AK94: 6.663809872 | AL94: 0.6793365608
B95: 741.6961094 | C95: 732.5908466 | D95: 5.079950312 | E95: =IF(AND(C95<$B$6,C95>$H$12),bb($B$6,$H$12,C95,$H$8,$H$9,I95,$H$10,$H$11),E94) -> 66.81324075 | F95: 65.93060285 | G95: 2498.263041 | H95: 0.04 | I95: 7.284210247 | J95: 80 | K95: 1 | L95: 5.119950312 | M95: 5.099950312 | N95: 0.1452385598 | O95: 7.22816208 | P95: 82.2365002 | Q95: 2421.848131 | R95: =IF(H95>0, rate1(1,$L$52,$L$51,$L$54,L95,$L$53,$L$50,P95),"") -> 1098.200274 | S95: 0.3050966759 | T95: 0.2090054181 | U95: 5.079950312 | V95: 5.079950312 | W95: 0.001552672593 | X95: 2359.866203 | Y95: 81.59276647 | Z95: =IF(H95>0, rate1(1,$L$52,$L$51,$L$54,U95,$L$53,$L$50,Y95),"") -> 1095.04056 | AA95: 0.2981462097 | AB95: 0.002212245078 | AC95: 0.2090054181 | AD95: 0.1913825984 | AE95: -0.02734606328 | AF95: 741.6323425 | AG95: 732.3818412 | AH95: 5.12030531 | AI95: 190.3163048 | AJ95: 2.463227071 | AK95: 7.104768096 | AL95: 0.6941840921
B96: 741.6323425 | C96: 732.3818412 | D96: 5.12030531 | E96: =IF(AND(C96<$B$6,C96>$H$12),bb($B$6,$H$12,C96,$H$8,$H$9,I96,$H$10,$H$11),E95) -> 68.67390462 | F96: 67.74357269 | G96: 2628.13992 | H96: 0.04 | I96: 7.400401095 | J96: 80 | K96: 1 | L96: 5.16030531 | M96: 5.14030531 | N96: 0.1464025211 | O96: 7.220110452 | P96: 83.10399875 | Q96: 2553.049698 | R96: =IF(H96>0, rate1(1,$L$52,$L$51,$L$54,L96,$L$53,$L$50,P96),"") -> 1102.364814 | S96: 0.3207672973 | T96: 0.215541037 | U96: 5.12030531 | V96: 5.12030531 | W96: 0.001577439361 | X96: 2487.179527 | Y96: 82.45857151 | Z96: =IF(H96>0, rate1(1,$L$52,$L$51,$L$54,U96,$L$53,$L$50,Y96),"") -> 1099.27645 | AA96: 0.3133692433 | AB96: 0.002297361931 | AC96: 0.215541037 | AD96: 0.1855795099 | AE96: -0.02733782599 | AF96: 741.563204 | AG96: 732.1663001 | AH96: 5.160664358 | AI96: 195.5260493 | AJ96: 2.517539863 | AK96: 7.580228286 | AL96: 0.7094093965
B97: 741.563204 | C97: 732.1663001 | D97: 5.160664358 | E97: =IF(AND(C97<$B$6,C97>$H$12),bb($B$6,$H$12,C97,$H$8,$H$9,I97,$H$10,$H$11),E96) -> 70.64112286 | F97: 69.65751374 | G97: 2766.297922 | H97: 0.04 | I97: 7.517523112 | J97: 80 | K97: 1 | L97: 5.200664358 | M97: 5.180664358 | N97: 0.1475667953 | O97: 7.211380562 | P97: 83.97385807 | Q97: 2692.77439 | R97: =IF(H97>0, rate1(1,$L$52,$L$51,$L$54,L97,$L$53,$L$50,P97),"") -> 1106.436581 | S97: 0.3374854295 | T97: 0.2227374337 | U97: 5.160664358 | V97: 5.160664358 | W97: 0.001602404613 | X97: 2622.622467 | Y97: 83.32674595 | Z97: =IF(H97>0, rate1(1,$L$52,$L$51,$L$54,U97,$L$53,$L$50,Y97),"") -> 1103.417255 | AA97: 0.3295927055 | AB97: 0.002390195671 | AC97: 0.2227374337 | AD97: 0.179583644 | AE97: -0.0273609876 | AF97: 741.4880334 | AG97: 731.9435627 | AH97: 5.201027449 | AI97: 201.3106197 | AJ97: 2.573459479 | AK97: 8.094098102 | AL97: 0.7250514804
B98: 741.4880334 | C98: 731.9435627 | D98: 5.201027449 | E98: =IF(AND(C98<$B$6,C98>$H$12),bb($B$6,$H$12,C98,$H$8,$H$9,I98,$H$10,$H$11),E97) -> 72.72827943 | F98: 71.68470114 | G98: 2913.604418 | H98: 0.04 | I98: 7.635576548 | J98: 80 | K98: 1 | L98: 5.241027449 | M98: 5.221027449 | N98: 0.1487313821 | O98: 7.201889016 | P98: 84.84606686 | Q98: 2841.9435 | R98: =IF(H98>0, rate1(1,$L$52,$L$51,$L$54,L98,$L$53,$L$50,P98),"") -> 1110.418546 | S98: 0.3553712653 | T98: 0.230724096 | U98: 5.201027449 | V98: 5.201027449 | W98: 0.001627568403 | X98: 2767.046023 | Y98: 84.1972784 | Z98: =IF(H98>0, rate1(1,$L$52,$L$51,$L$54,U98,$L$53,$L$50,Y98),"") -> 1107.466045 | AA98: 0.3469281486 | AB98: 0.002492173563 | AC98: 0.230724096 | AD98: 0.1733672412 | AE98: -0.02741755307 | AF98: 741.4060407 | AG98: 731.7128386 | AH98: 5.241394574 | AI98: 207.7811983 | AJ98: 2.631176479 | AK98: 8.650983251 | AL98: 0.74115633
B99: 741.4060407 | C99: 731.7128386 | D99: 5.241394574 | E99: =IF(AND(C99<$B$6,C99>$H$12),bb($B$6,$H$12,C99,$H$8,$H$9,I99,$H$10,$H$11),E98) -> 74.95162065 | F99: 73.83995004 | G99: 3071.088555 | H99: 0.04 | I99: 7.754561654 | J99: 80 | K99: 1 | L99: 5.281394574 | M99: 5.261394574 | N99: 0.1498962813 | O99: 7.191536069 | P99: 85.72061395 | Q99: 3001.65642 | R99: =IF(H99>0, rate1(1,$L$52,$L$51,$L$54,L99,$L$53,$L$50,P99),"") -> 1114.313556 | S99: 0.3745690616 | T99: 0.2396687982 | U99: 5.241394574 | V99: 5.241394574 | W99: 0.001652930784 | X99: 2921.45979 | Y99: 85.07015758 | Z99: =IF(H99>0, rate1(1,$L$52,$L$51,$L$54,U99,$L$53,$L$50,Y99),"") -> 1111.42576 | AA99: 0.3655087616 | AB99: 0.002605127831 | AC99: 0.2396687982 | AD99: 0.1668969858 | AE99: -0.02751000486 | AF99: 741.3162682 | AG99: 731.4731698 | AH99: 5.281765724 | AI99: 215.0820089 | AJ99: 2.690921481 | AK99: 9.256375468 | AL99: 0.7577788259
B100: 741.3162682 | C100: 731.4731698 | D100: 5.281765724 | E100: =IF(AND(C100<$B$6,C100>$H$12),bb($B$6,$H$12,C100,$H$8,$H$9,I100,$H$10,$H$11),E99) -> 77.33115709 | F100: 76.14138887 | G100: 3239.988283 | H100: 0.04 | I100: 7.874478679 | J100: 80 | K100: 1 | L100: 5.321765724 | M100: 5.301765724 | N100: 0.1510614929 | O100: 7.180200792 | P100: 86.59748833 | Q100: 3173.244309 | R100: =IF(H100>0, rate1(1,$L$52,$L$51,$L$54,L100,$L$53,$L$50,P100),"") -> 1118.124342 | S100: 0.3952544956 | T100: 0.2497934945 | U100: 5.281765724 | V100: 5.281765724 | W100: 0.001678491808 | X100: 3087.078055 | Y100: 85.94537237 | Z100: =IF(H100>0, rate1(1,$L$52,$L$51,$L$54,U100,$L$53,$L$50,Y100),"") -> 1115.299217 | AA100: 0.3854957763 | AB100: 0.00273145691 | AC100: 0.2497934945 | AD100: 0.1601322727 | AE100: -0.02764140624 | AF100: 741.2175362 | AG100: 731.2233763 | AH100: 5.32214089 | AI100: 223.4040394 | AJ100: 2.752978159 | AK100: 9.916911364 | AL100: 0.7749853866
B101: 741.2175362 | C101: 731.2233763 | D101: 5.32214089 | E101: =IF(AND(C101<$B$6,C101>$H$12),bb($B$6,$H$12,C101,$H$8,$H$9,I101,$H$10,$H$11),E100) -> 79.89195759 | F101: 78.61155734 | G101: 3421.816641 | H101: 0.04 | I101: 7.995327873 | J101: 80 | K101: 1 | L101: 5.36214089 | M101: 5.34214089 | N101: 0.1522270165 | O101: 7.167734232 | P101: 87.47667914 | Q101: 3358.346548 | R101: =IF(H101>0, rate1(1,$L$52,$L$51,$L$54,L101,$L$53,$L$50,P101),"") -> 1121.853521 | S101: 0.4176451665 | T101: 0.2613990779 | U101: 5.32214089 | V101: 5.32214089 | W101: 0.00170425153 | X101: 3265.384748 | Y101: 86.8229118 | Z101: =IF(H101>0, rate1(1,$L$52,$L$51,$L$54,U101,$L$53,$L$50,Y101),"") -> 1119.089117 | AA101: 0.4070875249 | AB101: 0.002874372866 | AC101: 0.2613990779 | AD101: 0.153022728 | AE101: -0.02781552436 | AF101: 741.1083641 | AG101: 730.9619772 | AH101: 5.362520064 | AI101: 233.0064246 | AJ101: 2.817702166 | AK101: 10.64073783 | AL101: 0.7928577097
B102: 741.1083641 | C102: 730.9619772 | D102: 5.362520064 | E102: =IF(AND(C102<$B$6,C102>$H$12),bb($B$6,$H$12,C102,$H$8,$H$9,I102,$H$10,$H$11),E101) -> 82.66606292 | F102: 81.27901026 | G102: 3618.457861 | H102: 0.04 | I102: 8.117109487 | J102: 80 | K102: 1 | L102: 5.402520064 | M102: 5.382520064 | N102: 0.153392852 | O102: 7.153949439 | P102: 88.35817564 | Q102: 3559.022975 | R102: =IF(H102>0, rate1(1,$L$52,$L$51,$L$54,L102,$L$53,$L$50,P102),"") -> 1125.503606 | S102: 0.4420160451 | T102: 0.274905489 | U102: 5.362520064 | V102: 5.362520064 | W102: 0.001730210003 | X102: 3458.227617 | Y102: 87.70276504 | Z102: =IF(H102>0, rate1(1,$L$52,$L$51,$L$54,U102,$L$53,$L$50,Y102),"") -> 1122.798051 | AA102: 0.4305326162 | AB102: 0.003038295172 | AC102: 0.274905489 | AD102: 0.1455045519 | AE102: -0.02803696467 | AF102: 740.9868515 | AG102: 730.6870717 | AH102: 5.402903238 | AI102: 244.2510958 | AJ102: 2.885549692 | AK102: 11.4380431 | AL102: 0.8114982237
B103: 740.9868515 | C103: 730.6870717 | D103: 5.402903238 | E103: =IF(AND(C103<$B$6,C103>$H$12),bb($B$6,$H$12,C103,$H$8,$H$9,I103,$H$10,$H$11),E102) -> 85.69541805 | F103: 84.18074049 | G103: 3832.311481 | H103: 0.04 | I103: 8.239823768 | J103: 80 | K103: 1 | L103: 5.442903238 | M103: 5.422903238 | N103: 0.1545589992 | O103: 7.138606444 | P103: 89.24196724 | Q103: 3777.92463 | R103: =IF(H103>0, rate1(1,$L$52,$L$51,$L$54,L103,$L$53,$L$50,P103),"") -> 1129.077007 | S103: 0.4687230233 | T103: 0.2909198139 | U103: 5.402903238 | V103: 5.402903238 | W103: 0.00175636728 | X103: 3667.959437 | Y103: 88.58492139 | Z103: =IF(H103>0, rate1(1,$L$52,$L$51,$L$54,U103,$L$53,$L$50,Y103),"") -> 1126.428506 | AA103: 0.4561497616 | AB103: 0.003229505396 | AC103: 0.2909198139 | AD103: 0.1374949319 | AE103: -0.02831128268 | AF103: 740.8504906 | AG103: 730.3961519 | AH103: 5.443290405 | AI103: 257.6616228 | AJ103: 2.957122365 | AK103: 12.32185539 | AL103: 0.8310383113
B104: 740.8504906 | C104: 730.3961519 | D104: 5.443290405 | E104: =IF(AND(C104<$B$6,C104>$H$12),bb($B$6,$H$12,C104,$H$8,$H$9,I104,$H$10,$H$11),E103) -> 89.03656196 | F104: 87.36599001 | G104: 4066.517324 | H104: 0.04 | I104: 8.363470967 | J104: 80 | K104: 1 | L104: 5.483290405 | M104: 5.463290405 | N104: 0.155725458 | O104: 7.121388618 | P104: 90.12804347 | Q104: 4018.564859 | R104: =IF(H104>0, rate1(1,$L$52,$L$51,$L$54,L104,$L$53,$L$50,P104),"") -> 1132.576041 | S104: 0.4982403841 | T104: 0.3103586918 | U104: 5.443290405 | V104: 5.443290405 | W104: 0.001782723413 | X104: 3897.658448 | Y104: 89.46937028 | Z104: =IF(H104>0, rate1(1,$L$52,$L$51,$L$54,U104,$L$53,$L$50,Y104),"") -> 1129.982868 | AA104: 0.4843588439 | AB104: 0.003457294655 | AC104: 0.3103586918 | AD104: 0.1288831312 | AE104: -0.02864496433 | AF104: 740.6958574 | AG104: 730.0857932 | AH104: 5.483681556 | AI104: 274.0290104 | AJ104: 3.033241535 | AK104: 13.30929499 | AL104: 0.8516512412
B105: 740.6958574 | C105: 730.0857932 | D105: 5.483681556 | E105: =IF(AND(C105<$B$6,C105>$H$12),bb($B$6,$H$12,C105,$H$8,$H$9,I105,$H$10,$H$11),E104) -> 92.76853401 | F105: 90.90254799 | G105: 4325.324514 | H105: 0.04 | I105: 8.488051334 | J105: 80 | K105: 1 | L105: 5.523681556 | M105: 5.503681556 | N105: 0.1568922282 | O105: 7.101863595 | P105: 91.016394 | Q105: 4285.773069 | R105: =IF(H105>0, rate1(1,$L$52,$L$51,$L$54,L105,$L$53,$L$50,P105),"") -> 1136.002932 | S105: 0.5312236391 | T105: 0.3346845986 | U105: 5.483681556 | V105: 5.483681556 | W105: 0.001809278457 | X105: 4151.489897 | Y105: 90.35610129 | Z105: =IF(H105>0, rate1(1,$L$52,$L$51,$L$54,U105,$L$53,$L$50,Y105),"") -> 1133.463431 | AA105: 0.515732079 | AB105: 0.003736110484 | AC105: 0.3346845986 | AD105: 0.1195155085 | AE105: -0.02904494256 | AF105: 740.518065 | AG105: 729.7511086 | AH105: 5.524076684 | AI105: 294.6159637 | AJ105: 3.115079302 | AK105: 14.42363871 | AL105: 0.873573562
B106: 740.518065 | C106: 729.7511086 | D106: 5.524076684 | E106: =IF(AND(C106<$B$6,C106>$H$12),bb($B$6,$H$12,C106,$H$8,$H$9,I106,$H$10,$H$11),E105) -> 97.00711592 | F106: 94.88782496 | G106: 4565.287795 | H106: 0.02 | I106: 8.613565116 | J106: 80 | K106: 1 | L106: 5.544076684 | M106: 5.534076684 | N106: 0.07987709771 | O106: 7.079414345 | P106: 91.57575737 | Q106: 4561.300443 | R106: =IF(H106>0, rate1(1,$L$52,$L$51,$L$54,L106,$L$53,$L$50,P106),"") -> 1138.120308 | S106: 0.5661130611 | T106: 0.1840965711 | U106: 5.524076684 | V106: 5.524076684 | W106: 0.001836032463 | X106: 4435.336895 | Y106: 91.24510413 | Z106: =IF(H106>0, rate1(1,$L$52,$L$51,$L$54,U106,$L$53,$L$50,Y106),"") -> 1136.872396 | AA106: 0.551083693 | AB106: 0.004089921517 | AC106: 0.1840965711 | AD106: 0.1086386339 | AE106: -0.04193241862 | AF106: 740.4138456 | AG106: 729.5670121 | AH106: 5.544529626 | AI106: 161.7549303 | AJ106: 3.160011227 | AK106: 15.69794836 | AL106: 0.8971428391
B107: 740.4138456 | C107: 729.5670121 | D107: 5.544529626 | E107: =IF(AND(C107<$B$6,C107>$H$12),bb($B$6,$H$12,C107,$H$8,$H$9,I107,$H$10,$H$11),E106) -> 99.43432603 | F107: 98.22072097 | G107: 4778.136033 | H107: 0.02 | I107: 8.677466795 | J107: 80 | K107: 1 | L107: 5.564529626 | M107: 5.554529626 | N107: 0.08017940515 | O107: 7.0662549 | P107: 92.02711603 | Q107: 4730.373164 | R107: =IF(H107>0, rate1(1,$L$52,$L$51,$L$54,L107,$L$53,$L$50,P107),"") -> 1139.806638 | S107: 0.5873201766 | T107: 0.1942896177 | U107: 5.544529626 | V107: 5.544529626 | W107: 0.001849653485 | X107: 4646.04458 | Y107: 91.6960555 | Z107: =IF(H107>0, rate1(1,$L$52,$L$51,$L$54,U107,$L$53,$L$50,Y107),"") -> 1138.571679 | AA107: 0.5774756764 | AB107: 0.004377626048 | AC107: 0.1942896177 | AD107: 0.1029391083 | AE107: -0.03012544237 | AF107: 740.2997354 | AG107: 729.3727225 | AH107: 5.564984378 | AI107: 170.4584017 | AJ107: 3.207360784 | AK107: 16.43640616 | AL107: 0.9100832335
B108: 740.2997354 | C108: 729.3727225 | D108: 5.564984378 | E108: =IF(AND(C108<$B$6,C108>$H$12),bb($B$6,$H$12,C108,$H$8,$H$9,I108,$H$10,$H$11),E107) -> 102.0815611 | F108: 100.7579436 | G108: 4955.816651 | H108: 0.02 | I108: 8.741610319 | J108: 80 | K108: 1 | L108: 5.584984378 | M108: 5.574984378 | N108: 0.08048178969 | O108: 7.051846584 | P108: 92.47906966 | Q108: 4913.198579 | R108: =IF(H108>0, rate1(1,$L$52,$L$51,$L$54,L108,$L$53,$L$50,P108),"") -> 1141.475684 | S108: 0.610372274 | T108: 0.2065607356 | U108: 5.564984378 | V108: 5.564984378 | W108: 0.001863326057 | X108: 4821.982028 | Y108: 92.1476028 | Z108: =IF(H108>0, rate1(1,$L$52,$L$51,$L$54,U108,$L$53,$L$50,Y108),"") -> 1140.253485 | AA108: 0.5996824287 | AB108: 0.00465461971 | AC108: 0.2065607356 | AD108: 0.09682382251 | AE108: -0.03051156486 | AF108: 740.1736564 | AG108: 729.1661617 | AH108: 5.585440939 | AI108: 180.9593831 | AJ108: 3.257627279 | AK108: 17.2508796 | AL108: 0.9237199056
B109: 740.1736564 | C109: 729.1661617 | D109: 5.585440939 | E109: =IF(AND(C109<$B$6,C109>$H$12),bb($B$6,$H$12,C109,$H$8,$H$9,I109,$H$10,$H$11),E108) -> 104.9994004 | F109: 103.5404808 | G109: 5148.842411 | H109: 0.02 | I109: 8.80599575 | J109: 80 | K109: 1 | L109: 5.605440939 | M109: 5.595440939 | N109: 0.08078425134 | O109: 7.035927015 | P109: 92.93161705 | Q109: 5112.665395 | R109: =IF(H109>0, rate1(1,$L$52,$L$51,$L$54,L109,$L$53,$L$50,P109),"") -> 1143.127702 | S109: 0.6356693852 | T109: 0.2217333599 | U109: 5.585440939 | V109: 5.585440939 | W109: 0.001877050194 | X109: 5013.110984 | Y109: 92.59974481 | Z109: =IF(H109>0, rate1(1,$L$52,$L$51,$L$54,U109,$L$53,$L$50,Y109),"") -> 1141.918074 | AA109: 0.6239518072 | AB109: 0.004991514996 | AC109: 0.2217333599 | AD109: 0.09019842575 | AE109: -0.03093853884 | AF109: 740.0327073 | AG109: 728.9444284 | AH109: 5.60589931 | AI109: 193.9707695 | AJ109: 3.311508048 | AK109: 18.14768112 | AL109: 0.9381966563
B110: 740.0327073 | C110: 728.9444284 | D110: 5.60589931 | E110: =IF(AND(C110<$B$6,C110>$H$12),bb($B$6,$H$12,C110,$H$8,$H$9,I110,$H$10,$H$11),E109) -> 108.2596525 | F110: 106.6295265 | G110: 5360.72411 | H110: 0.02 | I110: 8.870623152 | J110: 80 | K110: 1 | L110: 5.62589931 | M110: 5.61589931 | N110: 0.0810867901 | O110: 7.018129841 | P110: 93.38475699 | Q110: 5332.839349 | R110: =IF(H110>0, rate1(1,$L$52,$L$51,$L$54,L110,$L$53,$L$50,P110),"") -> 1144.762942 | S110: 0.6637759912 | T110: 0.2411689469 | U110: 5.60589931 | V110: 5.60589931 | W110: 0.001890825907 | X110: 5222.906021 | Y110: 93.05248032 | Z110: =IF(H110>0, rate1(1,$L$52,$L$51,$L$54,U110,$L$53,$L$50,Y110),"") -> 1143.565699 | AA110: 0.6507732488 | AB110: 0.0054143215 | AC110: 0.2411689469 | AD110: 0.08292941633 | AE110: -0.03140623547 | AF110: 739.8726251 | AG110: 728.7032594 | AH110: 5.62635949 | AI110: 210.6715181 | AJ110: 3.370027914 | AK110: 19.14640604 | AL110: 0.9537143179
B111: 739.8726251 | C111: 728.7032594 | D111: 5.62635949 | E111: =IF(AND(C111<$B$6,C111>$H$12),bb($B$6,$H$12,C111,$H$8,$H$9,I111,$H$10,$H$11),E110) -> 111.9697996 | F111: 110.114726 | G111: 5596.559435 | H111: 0.02 | I111: 8.935492584 | J111: 80 | K111: 1 | L111: 5.64635949 | M111: 5.63635949 | N111: 0.08138940599 | O111: 6.997916801 | P111: 93.83848827 | Q111: 5579.753627 | R111: =IF(H111>0, rate1(1,$L$52,$L$51,$L$54,L111,$L$53,$L$50,P111),"") -> 1146.381651 | S111: 0.6955318502 | T111: 0.2673166505 | U111: 5.62635949 | V111: 5.62635949 | W111: 0.001904653211 | X111: 5456.412063 | Y111: 93.50580812 | Z111: =IF(H111>0, rate1(1,$L$52,$L$51,$L$54,U111,$L$53,$L$50,Y111),"") -> 1145.196612 | AA111: 0.6808608008 | AB111: 0.005968095476 | AC111: 0.2673166505 | AD111: 0.07481763654 | AE111: -0.03190564229 | AF111: 739.6866979 | AG111: 728.4359428 | AH111: 5.646821479 | AI111: 233.1829459 | AJ111: 3.434800955 | AK111: 20.27575793 | AL111: 0.9705680393
B112: 739.6866979 | C112: 728.4359428 | D112: 5.646821479 | E112: =IF(AND(C112<$B$6,C112>$H$12),bb($B$6,$H$12,C112,$H$8,$H$9,I112,$H$10,$H$11),E111) -> 116.3027285 | F112: 114.136264 | G112: 5864.249235 | H112: 0.02 | I112: 9.000604108 | J112: 80 | K112: 1 | L112: 5.666821479 | M112: 5.656821479 | N112: 0.08169209902 | O112: 6.974440388 | P112: 94.2928097 | Q112: 5863.029615 | R112: =IF(H112>0, rate1(1,$L$52,$L$51,$L$54,L112,$L$53,$L$50,P112),"") -> 1147.98407 | S112: 0.732279472 | T112: 0.3051394663 | U112: 5.646821479 | V112: 5.646821479 | W112: 0.001918532119 | X112: 5721.44792 | Y112: 93.95972702 | Z112: =IF(H112>0, rate1(1,$L$52,$L$51,$L$54,U112,$L$53,$L$50,Y112),"") -> 1146.811055 | AA112: 0.7153271547 | AB112: 0.006739427911 | AC112: 0.3051394663 | AD112: 0.06554379951 | AE112: -0.03240016749 | AF112: 739.4632505 | AG112: 728.1308033 | AH112: 5.667285276 | AI112: 265.8046173 | AJ112: 3.508635571 | AK112: 21.58078015 | AL112: 0.989222675
B113: 739.4632505 | C113: 728.1308033 | D113: 5.667285276 | E113: =IF(AND(C113<$B$6,C113>$H$12),bb($B$6,$H$12,C113,$H$8,$H$9,I113,$H$10,$H$11),E112) -> 121.567015 | F113: 118.9348718 | G113: 6177.239669 | H113: 0.02 | I113: 9.065957788 | J113: 80 | K113: 1 | L113: 5.687285276 | M113: 5.677285276 | N113: 0.08199486919 | O113: 6.946226433 | P113: 94.74772011 | Q113: 6199.693928 | R113: =IF(H113>0, rate1(1,$L$52,$L$51,$L$54,L113,$L$53,$L$50,P113),"") -> 1149.570435 | S113: 0.7764003585 | T113: 0.3667039384 | U113: 5.667285276 | V113: 5.667285276 | W113: 0.001932462643 | X113: 6031.319695 | Y113: 94.41423581 | Z113: =IF(H113>0, rate1(1,$L$52,$L$51,$L$54,U113,$L$53,$L$50,Y113),"") -> 1148.40927 | AA113: 0.7560782127 | AB113: 0.007922468364 | AC113: 0.3667039384 | AD113: 0.05453991055 | AE113: -0.03275730292 | AF113: 739.1785415 | AG113: 727.7640994 | AH113: 5.687750882 | AI113: 318.9921447 | AJ113: 3.5972445 | AK113: 23.13952467 | AL113: 1.010487044
B114: 739.1785415 | C114: 727.7640994 | D114: 5.687750882 | E114: =IF(AND(C114<$B$6,C114>$H$12),bb($B$6,$H$12,C114,$H$8,$H$9,I114,$H$10,$H$11),E113) -> 128.4118281 | F114: 124.9894216 | G114: 6562.034682 | H114: 0.02 | I114: 9.131553683 | J114: 80 | K114: 1 | L114: 5.707750882 | M114: 5.697750882 | N114: 0.08229771651 | O114: 6.910277168 | P114: 95.2032183 | Q114: 6625.265378 | R114: =IF(H114>0, rate1(1,$L$52,$L$51,$L$54,L114,$L$53,$L$50,P114),"") -> 1151.140978 | S114: 0.8328739861 | T114: 0.4924291235 | U114: 5.687750882 | V114: 5.687750882 | W114: 0.001946444797 | X114: 6412.254389 | Y114: 94.86933332 | Z114: =IF(H114>0, rate1(1,$L$52,$L$51,$L$54,U114,$L$53,$L$50,Y114),"") -> 1149.991491 | AA114: 0.8069017356 | AB114: 0.01008007401 | AC114: 0.4924291235 | AD114: 0.04061498203 | AE114: -0.03241623245 | AF114: 738.7684101 | AG114: 727.2716702 | AH114: 5.708218295 | AI114: 427.7748189 | AJ114: 3.716070838 | AK114: 25.1100156 | AL114: 1.036006416
B115: 738.7684101 | C115: 727.2716702 | D115: 5.708218295 | E115: =IF(AND(C115<$B$6,C115>$H$12),bb($B$6,$H$12,C115,$H$8,$H$9,I115,$H$10,$H$11),E114) -> 138.6882968 | F115: 133.5500624 | G115: 7050.172099 | H115: 0.01 | I115: 9.197391856 | J115: 80 | K115: 1 | L115: 5.718218295 | M115: 5.713218295 | N115: 0.04226291646 | O115: 6.858491243 | P115: 95.4920876 | Q115: 7221.008272 | R115: =IF(H115>0, rate1(1,$L$52,$L$51,$L$54,L115,$L$53,$L$50,P115),"") -> 1152.12786 | S115: 0.9138366576 | T115: 0.4904976441 | U115: 5.708218295 | V115: 5.708218295 | W115: 0.001960478594 | X115: 6932.07231 | Y115: 95.32501836 | Z115: =IF(H115>0, rate1(1,$L$52,$L$51,$L$54,U115,$L$53,$L$50,Y115),"") -> 1151.557949 | AA115: 0.8777052544 | AB115: 0.01603076718 | AC115: 0.4904976441 | AD115: 0.02038745776 | AE115: -0.04115774428 | AF115: 738.3201753 | AG115: 726.7811726 | AH115: 5.7187006 | AI115: 425.731953 | AJ115: 3.834329714 | AK115: 27.9170888 | AL115: 1.070228401
B116: 738.3201753 | C116: 726.7811726 | D116: 5.7187006 | E116: =IF(AND(C116<$B$6,C116>$H$12),bb($B$6,$H$12,C116,$H$8,$H$9,I116,$H$10,$H$11),E115) -> 138.6882968 | F116: 138.6882968 | G116: 7342.514536 | H116: 0.005 | I116: 9.231202189 | J116: 80 | K116: 1 | L116: 5.7237006 | M116: 5.7212006 | N116: 0.02215148212 | O116: 6.801894138 | P116: 95.64217466 | Q116: 7251.653171 | R116: =IF(H116>0, rate1(1,$L$52,$L$51,$L$54,L116,$L$53,$L$50,P116),"") -> 1152.637846 | S116: 0.9249415329 | T116: 0.2951230283 | U116: 5.7187006 | V116: 5.7187006 | W116: 0.001967685467 | X116: 7242.046206 | Y116: 95.55860717 | Z116: =IF(H116>0, rate1(1,$L$52,$L$51,$L$54,U116,$L$53,$L$50,Y116),"") -> 1152.354122 | AA116: 0.9239436041 | AB116: 0.02587140033 | AC116: 0.2951230283 | AD116: 0.01694208693 | AE116: -0.008771079859 | AF116: 738.0472038 | AG116: 726.4860496 | AH116: 5.724187077 | AI116: 256.0414178 | AJ116: 3.90545233 | AK116: 30.91857233 | AL116: 1.104286958
B117: 738.0472038 | C117: 726.4860496 | D117: 5.724187077 | E117: =IF(AND(C117<$B$6,C117>$H$12),bb($B$6,$H$12,C117,$H$8,$H$9,I117,$H$10,$H$11),E116) -> 138.6882968 | F117: 138.6882968 | G117: 7363.649386 | H117: 0.005 | I117: 9.248923375 | J117: 80 | K117: 1 | L117: 5.729187077 | M117: 5.726687077 | N117: 0.02217461944 | O117: 6.76742693 | P117: 95.76451971 | Q117: 7272.765979 | R117: =IF(H117>0, rate1(1,$L$52,$L$51,$L$54,L117,$L$53,$L$50,P117),"") -> 1153.052176 | S117: 0.9320239626 | T117: 0.3262122989 | U117: 5.724187077 | V117: 5.724187077 | W117: 0.001971462843 | X117: 7263.140576 | Y117: 95.68092547 | Z117: =IF(H117>0, rate1(1,$L$52,$L$51,$L$54,U117,$L$53,$L$50,Y117),"") -> 1152.769213 | AA117: 0.9310189171 | AB117: 0.02857976071 | AC117: 0.3262122989 | AD117: 0.01532744172 | AE117: -0.005197339147 | AF117: 737.7431661 | AG117: 726.1598373 | AH117: 5.729674023 | AI117: 282.9120015 | AJ117: 3.984038997 | AK117: 32.79856017 | AL117: 1.124770271
B118: 737.7431661 | C118: 726.1598373 | D118: 5.729674023 | E118: =IF(AND(C118<$B$6,C118>$H$12),bb($B$6,$H$12,C118,$H$8,$H$9,I118,$H$10,$H$11),E117) -> 138.6882968 | F118: 138.6882968 | G118: 7384.826566 | H118: 0.005 | I118: 9.266663071 | J118: 80 | K118: 1 | L118: 5.734674023 | M118: 5.732174023 | N118: 0.02219776237 | O118: 6.729037106 | P118: 95.88691437 | Q118: 7293.92109 | R118: =IF(H118>0, rate1(1,$L$52,$L$51,$L$54,L118,$L$53,$L$50,P118),"") -> 1153.465431 | S118: 0.9397310011 | T118: 0.36831145 | U118: 5.729674023 | V118: 5.729674023 | W118: 0.001975244164 | X118: 7284.277228 | Y118: 95.80329339 | Z118: =IF(H118>0, rate1(1,$L$52,$L$51,$L$54,U118,$L$53,$L$50,Y118),"") -> 1153.183226 | AA118: 0.9387181745 | AB118: 0.03223213648 | AC118: 0.36831145 | AD118: 0.01357546717 | AE118: -0.005045110548 | AF118: 737.3970524 | AG118: 725.7915258 | AH118: 5.735161438 | AI118: 319.3086158 | AJ118: 4.072735835 | AK118: 34.88182495 | AL118: 1.147403231
B119: 737.3970524 | C119: 725.7915258 | D119: 5.735161438 | E119: =IF(AND(C119<$B$6,C119>$H$12),bb($B$6,$H$12,C119,$H$8,$H$9,I119,$H$10,$H$11),E118) -> 138.6882968 | F119: 138.6882968 | G119: 7406.046124 | H119: 0.005 | I119: 9.28442128 | J119: 80 | K119: 1 | L119: 5.740161438 | M119: 5.737661438 | N119: 0.02222091089 | O119: 6.685334484 | P119: 96.00935862 | Q119: 7315.118552 | R119: =IF(H119>0, rate1(1,$L$52,$L$51,$L$54,L119,$L$53,$L$50,P119),"") -> 1153.877614 | S119: 0.9482841246 | T119: 0.429672914 | U119: 5.735161438 | V119: 5.735161438 | W119: 0.001979029432 | X119: 7305.456214 | Y119: 95.92571092 | Z119: =IF(H119>0, rate1(1,$L$52,$L$51,$L$54,U119,$L$53,$L$50,Y119),"") -> 1153.596165 | AA119: 0.9472626147 | AB119: 0.03752611965 | AC119: 0.429672914 | AD119: 0.01163675865 | AE119: -0.004859013806 | AF119: 736.9896004 | AG119: 725.3618529 | AH119: 5.740649322 | AI119: 372.3730391 | AJ119: 4.17617279 | AK119: 37.2398637 | AL119: 1.17294792
B120: 736.9896004 | C120: 725.3618529 | D120: 5.740649322 | E120: =IF(AND(C120<$B$6,C120>$H$12),bb($B$6,$H$12,C120,$H$8,$H$9,I120,$H$10,$H$11),E119) -> 138.6882968 | F120: 138.6882968 | G120: 7427.30811 | H120: 0.005 | I120: 9.302198009 | J120: 80 | K120: 1 | L120: 5.745649322 | M120: 5.743149322 | N120: 0.02224406502 | O120: 6.633886878 | P120: 96.13185245 | Q120: 7336.358416 | R120: =IF(H120>0, rate1(1,$L$52,$L$51,$L$54,L120,$L$53,$L$50,P120),"") -> 1154.288731 | S120: 0.958071725 | T120: 0.5305265957 | U120: 5.740649322 | V120: 5.740649322 | W120: 0.001982818647 | X120: 7326.677581 | Y120: 96.04817804 | Z120: =IF(H120>0, rate1(1,$L$52,$L$51,$L$54,U120,$L$53,$L$50,Y120),"") -> 1154.008034 | AA120: 0.957040213 | AB120: 0.04615522529 | AC120: 0.5305265957 | AD120: 0.009424598202 | AE120: -0.004607710021 | AF120: 736.4813179 | AG120: 724.8313263 | AH120: 5.746137675 | AI120: 459.6134239 | AJ120: 4.303843186 | AK120: 39.99767561 | AL120: 1.202737764
B121: 736.4813179 | C121: 724.8313263 | D121: 5.746137675 | E121: =IF(AND(C121<$B$6,C121>$H$12),bb($B$6,$H$12,C121,$H$8,$H$9,I121,$H$10,$H$11),E120) -> 138.6882968 | F121: 138.6882968 | G121: 7448.612573 | H121: 0.005 | I121: 9.319993261 | J121: 80 | K121: 1 | L121: 5.751137675 | M121: 5.748637675 | N121: 0.02226722475 | O121: 6.569707737 | P121: 96.25439585 | Q121: 7357.64073 | R121: =IF(H121>0, rate1(1,$L$52,$L$51,$L$54,L121,$L$53,$L$50,P121),"") -> 1154.698784 | S121: 0.9698929876 | T121: 0.7396026038 | U121: 5.746137675 | V121: 5.746137675 | W121: 0.00198661181 | X121: 7347.94138 | Y121: 96.17069474 | Z121: =IF(H121>0, rate1(1,$L$52,$L$51,$L$54,U121,$L$53,$L$50,Y121),"") -> 1154.418837 | AA121: 0.9688492969 | AB121: 0.06377422062 | AC121: 0.7396026038 | AD121: 0.006760387233 | AE121: -0.004195181042 | AF121: 735.7639825 | AG121: 724.0917237 | AH121: 5.751626497 | AI121: 640.5156167 | AJ121: 4.481764191 | AK121: 43.41136612 | AL121: 1.239506838
B122: 735.7639825 | C122: 724.0917237 | D122: 5.751626497 | E122: =IF(AND(C122<$B$6,C122>$H$12),bb($B$6,$H$12,C122,$H$8,$H$9,I122,$H$10,$H$11),E121) -> 138.6882968 | F122: 138.6882968 | G122: 7469.959562 | H122: 0.005 | I122: 9.337807041 | J122: 80 | K122: 1 | L122: 5.756626497 | M122: 5.754126497 | N122: 0.02229039008 | O122: 6.47913219 | P122: 96.37698879 | Q122: 7378.965544 | R122: =IF(H122>0, rate1(1,$L$52,$L$51,$L$54,L122,$L$53,$L$50,P122),"") -> 1155.107778 | S122: 0.9859528198 | T122: 1.586823108 | U122: 5.751626497 | V122: 5.751626497 | W122: 0.001990408923 | X122: 7369.247659 | Y122: 96.29326101 | Z122: =IF(H122>0, rate1(1,$L$52,$L$51,$L$54,U122,$L$53,$L$50,Y122),"") -> 1154.828578 | AA122: 0.9848924058 | AB122: 0.1317489001 | AC122: 1.543919478 | AD122: 0.003238510862 | AE122: -0.003084600231 | AF122: 734.2423534 | AG122: 722.5478042 | AH122: 5.757115788 | AI122: 1336.602097 | AJ122: 4.853042551 | AK122: 48.18231879 | AL122: 1.290748087
B123: 734.2423534 | C123: 722.5478042 | D123: 5.757115788 | E123: =IF(AND(C123<$B$6,C123>$H$12),bb($B$6,$H$12,C123,$H$8,$H$9,I123,$H$10,$H$11),E122) -> 138.6882968 | F123: 138.6882968 | G123: 7452.416956 | H123: 0.005 | I123: 9.355639353 | J123: 80 | K123: -1 | L123: 5.752115788 | M123: 5.754615788 | N123: -0.01831631938 | O123: 6.287001157 | P123: 96.33215874 | Q123: 7380.868481 | R123: =IF(H123>0, rate1(1,$L$52,$L$51,$L$54,L123,$L$53,$L$50,P123),"") -> 1154.958358 | S123: 1.016477103 | T123: 1.111622527 | U123: 5.757115788 | V123: 5.757115788 | W123: 0.001994209986 | X123: 7390.596468 | Y123: 96.41587682 | Z123: =IF(H123>0, rate1(1,$L$52,$L$51,$L$54,U123,$L$53,$L$50,Y123),"") -> 1155.237261 | AA123: 1.017571094 | AB123: -0.1134937853 | AC123: 1.111622527 | AD123: -0.004497929717 | AE123: -0.005826637698 | AF123: 733.1124146 | AG123: 721.4361817 | AH123: 5.752605546 | AI123: 962.4784475 | AJ123: 5.120397675 | AK123: 58.1666824 | AL123: 1.397676255
B124: 733.1124146 | C124: 721.4361817 | D124: 5.752605546 | E124: =IF(AND(C124<$B$6,C124>$H$12),bb($B$6,$H$12,C124,$H$8,$H$9,I124,$H$10,$H$11),E123) -> 138.6882968 | F124: 138.6882968 | G124: 7434.900341 | H124: 0.005 | I124: 9.340986298 | J124: 80 | K124: -1 | L124: 5.747605546 | M124: 5.750105546 | N124: -0.01830352763 | O124: 6.144327545 | P124: 96.23143127 | Q124: 7363.339619 | R124: =IF(H124>0, rate1(1,$L$52,$L$51,$L$54,L124,$L$53,$L$50,P124),"") -> 1154.622034 | S124: 1.037912236 | T124: 0.4827868174 | U124: 5.752605546 | V124: 5.752605546 | W124: 0.0019910866 | X124: 7373.052367 | Y124: 96.31512743 | Z124: =IF(H124>0, rate1(1,$L$52,$L$51,$L$54,U124,$L$53,$L$50,Y124),"") -> 1154.901549 | AA124: 1.03902978 | AB124: -0.05101454826 | AC124: 0.4827868174 | AD124: -0.01035653796 | AE124: -0.007348938666 | AF124: 732.6113242 | AG124: 720.9533949 | AH124: 5.748094919 | AI124: 418.1340762 | AJ124: 5.23654603 | AK124: 65.33947311 | AL124: 1.47467453
B125: 732.6113242 | C125: 720.9533949 | D125: 5.748094919 | E125: =IF(AND(C125<$B$6,C125>$H$12),bb($B$6,$H$12,C125,$H$8,$H$9,I125,$H$10,$H$11),E124) -> 138.6882968 | F125: 138.6882968 | G125: 7417.409703 | H125: 0.005 | I125: 9.326343475 | J125: 80 | K125: -1 | L125: 5.743094919 | M125: 5.745594919 | N125: -0.01829073233 | O125: 6.081056538 | P125: 96.1307216 | Q125: 7345.83674 | R125: =IF(H125>0, rate1(1,$L$52,$L$51,$L$54,L125,$L$53,$L$50,P125),"") -> 1154.284941 | S125: 1.046524021 | T125: 0.393145995 | U125: 5.748094919 | V125: 5.748094919 | W125: 0.001987965396 | X125: 7355.534258 | Y125: 96.21439582 | Z125: =IF(H125>0, rate1(1,$L$52,$L$51,$L$54,U125,$L$53,$L$50,Y125),"") -> 1154.565071 | AA125: 1.047651325 | AB125: -0.04171899517 | AC125: 0.393145995 | AD125: -0.01271792175 | AE125: -0.005391700724 | AF125: 732.1998875 | AG125: 720.5602489 | AH125: 5.743583906 | AI125: 340.5970061 | AJ125: 5.331156309 | AK125: 68.44825829 | AL125: 1.508125257
B126: 732.1998875 | C126: 720.5602489 | D126: 5.743583906 | E126: =IF(AND(C126<$B$6,C126>$H$12),bb($B$6,$H$12,C126,$H$8,$H$9,I126,$H$10,$H$11),E125) -> 138.6882968 | F126: 138.6882968 | G126: 7399.945026 | H126: =dv(S125) -> 0.005 | I126: 9.31171089 | J126: 80 | K126: -1 | L126: 5.738583906 | M126: 5.741083906 | N126: -0.0182779335 | O126: 6.029105794 | P126: 96.03002973 | Q126: 7328.359829 | R126: =IF(H126>0, rate1(1,$L$52,$L$51,$L$54,L126,$L$53,$L$50,P126),"") -> 1153.947077 | S126: 1.053338576 | T126: 0.3426775708 | U126: =L126-K126*H126 -> 5.743583906 | V126: 5.743583906 | W126: 0.001984846373 | X126: 7338.042129 | Y126: 96.11368199 | Z126: =IF(H126>0, rate1(1,$L$52,$L$51,$L$54,U126,$L$53,$L$50,Y126),"") -> 1154.227824 | AA126: 1.054473711 | AB126: -0.03643677546 | AC126: 0.3426775708 | AD126: -0.01459097538 | AE126: -0.005091040089 | AF126: 731.838932 | AG126: 720.2175713 | AH126: 5.739072508 | AI126: 296.9612537 | AJ126: 5.413645546 | AK126: 70.97460583 | AL126: 1.535373017
B127: 731.838932 | C127: 720.2175713 | D127: 5.739072508 | E127: =IF(AND(C127<$B$6,C127>$H$12),bb($B$6,$H$12,C127,$H$8,$H$9,I127,$H$10,$H$11),E126) -> 138.6882968 | F127: 138.6882968 | G127: 7382.506297 | H127: 0.005 | I127: 9.297088543 | J127: 80 | K127: -1 | L127: 5.734072508 | M127: 5.736572508 | N127: -0.01826513112 | O127: 5.983529145 | P127: 95.92935568 | Q127: 7310.90887 | R127: =IF(H127>0, rate1(1,$L$52,$L$51,$L$54,L127,$L$53,$L$50,P127),"") -> 1153.608441 | S127: 1.059145279 | T127: 0.3088180735 | U127: 5.739072508 | V127: 5.739072508 | W127: 0.001981729534 | X127: 7320.575963 | Y127: 96.01298598 | Z127: =IF(H127>0, rate1(1,$L$52,$L$51,$L$54,U127,$L$53,$L$50,Y127),"") -> 1153.889806 | AA127: 1.060287165 | AB127: -0.03287150001 | AC127: 0.3088180735 | AD127: -0.01619076223 | AE127: -0.004911120624 | AF127: 731.5118488 | AG127: 719.9087532 | AH127: 5.734560724 | AI127: 267.6974809 | AJ127: 5.488005957 | AK127: 73.17210278 | AL127: 1.559129917
B128: =IF(H128>0, AF127,"") -> 731.5118488 | C128: =IF(H128>0, AG127,"") -> 719.9087532 | D128: =IF(H128>0, AH127,"") -> 5.734560724 | E128: =IF(AND(C128<$B$6,C128>$H$12),bb($B$6,$H$12,C128,$H$8,$H$9,I128,$H$10,$H$11),E127) -> 138.6882968 | F128: =IF(H128>0, (E128+E127)/2,"") -> 138.6882968 | G128: =IF(H128>0, F128*$S$53*$C$55*(B128-C128+N128)^1.5,"") -> 7365.093499 | H128: 0.005 | I128: =IF(H128>0, (B128-C128)*B$19,"") -> 9.282476438 | J128: =IF(H128>0, $B$7,"") -> 80 | K128: =IF(H128>0, IF((1-S127-0.015)>0,1,-1),"") -> -1 | L128: =IF(H128>0, D128+K128*H128,"") -> 5.729560724 | M128: =IF(H128>0, (D128+L128)/2,"") -> 5.732060724 | N128: =IF(H128>0, 2*($P$53*M128/$S$52/$S$51)^2-(B128-C128)*2,"") -> -0.0182523252 | O128: =IF(H128>0, wh(B128,$F$51,$F$52,$F$53),"") -> 5.94222944 | P128: =IF(H128>0, $C$54*$L$55*$L$55*M128*M128/(($B$19*(B128-C128))^0.333)*1000,"") -> 95.82869949 | Q128: =IF(H128>0, M128/$S$54*(B128-C128+N128/2)*E128-J128,"") -> 7293.483851 | R128: =IF(H128>0, rate1(1,$L$52,$L$51,$L$54,L128,$L$53,$L$50,P128),"") -> 1153.269028 | S128: =IF(H128>0, Q128/O128/R128,"") -> 1.064277744 | T128: =IF(H128>0, N128/(1-S128),"") -> 0.2839602654 | U128: 5.734560724 | V128: =IF(H128>0, (D128+U128)/2,"") -> 5.734560724 | W128: =IF(H128>0, 2*($P$53*V128/$S$52/$S$51)^2-(B128-C128)*2,"") -> 0.001978614877 | X128: =IF(H128>0, V128/$S$54*(B128-C128+W128/2)*F128-J128,"") -> 7303.135747 | Y128: =IF(H128>0, $C$54*$L$55*$L$55*V128*V128/(($B$19*(B128-C128))^0.333)*1000,"") -> 95.91230781 | Z128: =IF(H128>0, rate1(1,$L$52,$L$51,$L$54,U128,$L$53,$L$50,Y128),"") -> 1153.551014 | AA128: =IF(H128>0, X128/O128/Z128,"") -> 1.065425658 | AB128: =IF(H128>0, W128/(1-AA128),"") -> -0.03024218559 | AC128: =IF(H128>0, delta_z(N128,S128,H128,AE127,AB128),"") -> 0.2839602654 | AD128: =IF(H128>0, H128/AC128*K128,"") -> -0.01760809736 | AE128: =IF(H128>0, (AD128-AD127)/(AC128+AC127)*2,"") -> -0.004782007161 | AF128: =IF(H128>0, B128-(AC128-N128),"") -> 731.2096362 | AG128: =IF(H128>0, C128-AC128,"") -> 719.624793 | AH128: =IF(H128>0, $S$54*$S$53*$C$55*SQRT(AF128-AG128),"") -> 5.730048555 | AI128: =IF(H128>0, AC128/R128*1000000,"") -> 246.222051 | AJ128: =IF(H128>0, AJ127+AI128/3600,"") -> 5.556400972 | AK128: =IF(H128>0, AK127+AI127*G127/1000000,"") -> 75.14838112 | AL128: =IF(H128>0, AL127+AI127*J127/1000000,"") -> 1.580545716
B129: 731.2096362 | C129: 719.624793 | D129: 5.730048555 | E129: =IF(AND(C129<$B$6,C129>$H$12),bb($B$6,$H$12,C129,$H$8,$H$9,I129,$H$10,$H$11),E128) -> 138.6882968 | F129: 138.6882968 | G129: 7347.70662 | H129: 0.005 | I129: 9.267874578 | J129: 80 | K129: -1 | L129: 5.725048555 | M129: 5.727548555 | N129: -0.01823951573 | O129: 5.904070063 | P129: 95.72806116 | Q129: 7276.084755 | R129: =IF(H129>0, rate1(1,$L$52,$L$51,$L$54,L129,$L$53,$L$50,P129),"") -> 1152.928837 | S129: 1.068916411 | T129: 0.2646614259 | U129: 5.730048555 | V129: 5.730048555 | W129: 0.001975502404 | X129: 7285.721465 | Y129: 95.81164749 | Z129: =IF(H129>0, rate1(1,$L$52,$L$51,$L$54,U129,$L$53,$L$50,Y129),"") -> 1153.211445 | AA129: 1.070069825 | AB129: -0.02819334018 | AC129: 0.2646614259 | AD129: -0.01889206174 | AE129: -0.004680691274 | AF129: 730.9267352 | AG129: 719.3601315 | AH129: 5.725536 | AI129: 229.5557345 | AJ129: 5.620166453 | AK129: 76.96182955 | AL129: 1.60024348
B130: 730.9267352 | C130: 719.3601315 | D130: 5.725536 | E130: =IF(AND(C130<$B$6,C130>$H$12),bb($B$6,$H$12,C130,$H$8,$H$9,I130,$H$10,$H$11),E129) -> 138.6882968 | F130: 138.6882968 | G130: 7330.345643 | H130: 0.005 | I130: 9.253282965 | J130: 80 | K130: -1 | L130: 5.720536 | M130: 5.723036 | N130: -0.01822670272 | O130: 5.868349104 | P130: 95.62744071 | Q130: 7258.711569 | R130: =IF(H130>0, rate1(1,$L$52,$L$51,$L$54,L130,$L$53,$L$50,P130),"") -> 1152.587864 | S130: 1.073172549 | T130: 0.2490920827 | U130: 5.725536 | V130: 5.725536 | W130: 0.001972392115 | X130: 7268.333103 | Y130: 95.71100504 | Z130: =IF(H130>0, rate1(1,$L$52,$L$51,$L$54,U130,$L$53,$L$50,Y130),"") -> 1152.871098 | AA130: 1.074331053 | AB130: -0.02653523707 | AC130: 0.2490920827 | AD130: -0.02007289813 | AE130: -0.004596898572 | AF130: 730.6594165 | AG130: 719.1110395 | AH130: 5.72102306 | AI130: 216.1154827 | AJ130: 5.680198532 | AK130: 78.64853774 | AL130: 1.618607939
B131: 730.6594165 | C131: 719.1110395 | D131: 5.72102306 | E131: =IF(AND(C131<$B$6,C131>$H$12),bb($B$6,$H$12,C131,$H$8,$H$9,I131,$H$10,$H$11),E130) -> 138.6882968 | F131: 138.6882968 | G131: 7313.010555 | H131: 0.005 | I131: 9.238701603 | J131: 80 | K131: -1 | L131: 5.71602306 | M131: 5.71852306 | N131: -0.01821388616 | O131: 5.834595652 | P131: 95.52683818 | Q131: 7241.364277 | R131: =IF(H131>0, rate1(1,$L$52,$L$51,$L$54,L131,$L$53,$L$50,P131),"") -> 1152.246108 | S131: 1.077120722 | T131: 0.2361736972 | U131: 5.72102306 | V131: 5.72102306 | W131: 0.001969284011 | X131: 7250.970646 | Y131: 95.61038048 | Z131: =IF(H131>0, rate1(1,$L$52,$L$51,$L$54,U131,$L$53,$L$50,Y131),"") -> 1152.529969 | AA131: 1.078283988 | AB131: -0.02515564259 | AC131: 0.2361736972 | AD131: -0.02117085882 | AE131: -0.004525193129 | AF131: 730.4050289 | AG131: 718.8748658 | AH131: 5.716509734 | AI131: 204.9681015 | AJ131: 5.737134116 | AK131: 80.23273892 | AL131: 1.635897177
B132: 730.4050289 | C132: 718.8748658 | D132: 5.716509734 | E132: =IF(AND(C132<$B$6,C132>$H$12),bb($B$6,$H$12,C132,$H$8,$H$9,I132,$H$10,$H$11),E131) -> 138.6882968 | F132: 138.6882968 | G132: 7295.70134 | H132: 0.005 | I132: 9.224130494 | J132: 80 | K132: -1 | L132: 5.711509734 | M132: 5.714009734 | N132: -0.01820106606 | O132: 5.80247498 | P132: 95.42625357 | Q132: 7224.042865 | R132: =IF(H132>0, rate1(1,$L$52,$L$51,$L$54,L132,$L$53,$L$50,P132),"") -> 1151.903566 | S132: 1.080813885 | T132: 0.2252220169 | U132: 5.716509734 | V132: 5.716509734 | W132: 0.001966178093 | X132: 7233.634079 | Y132: 95.50977384 | Z132: =IF(H132>0, rate1(1,$L$52,$L$51,$L$54,U132,$L$53,$L$50,Y132),"") -> 1152.188055 | AA132: 1.081981639 | AB132: -0.02398315191 | AC132: 0.2252220169 | AD132: -0.02220031625 | AE132: -0.004462362347 | AF132: 730.1616058 | AG132: 718.6496437 | AH132: 5.711996022 | AI132: 195.5215901 | AJ132: 5.791445669 | AK132: 81.73167281 | AL132: 1.652294625
B133: 730.1616058 | C133: 718.6496437 | D133: 5.711996022 | E133: =IF(AND(C133<$B$6,C133>$H$12),bb($B$6,$H$12,C133,$H$8,$H$9,I133,$H$10,$H$11),E132) -> 138.6882968 | F133: 138.6882968 | G133: 7278.417984 | H133: 0.005 | I133: 9.209569641 | J133: 80 | K133: -1 | L133: 5.706996022 | M133: 5.709496022 | N133: -0.01818824241 | O133: 5.771738759 | P133: 95.3256869 | Q133: 7206.747318 | R133: =IF(H133>0, rate1(1,$L$52,$L$51,$L$54,L133,$L$53,$L$50,P133),"") -> 1151.560234 | S133: 1.084291292 | T133: 0.2157784271 | U133: 5.711996022 | V133: 5.711996022 | W133: 0.001963074361 | X133: 7216.323389 | Y133: 95.40918513 | Z133: =IF(H133>0, rate1(1,$L$52,$L$51,$L$54,U133,$L$53,$L$50,Y133),"") -> 1151.845355 | AA133: 1.085463305 | AB133: -0.02296979227 | AC133: 0.2157784271 | AD133: -0.02317191792 | AE133: -0.004406352349 | AF133: 729.9276391 | AG133: 718.4338653 | AH133: 5.707481924 | AI133: 187.3791927 | AJ133: 5.843495444 | AK133: 83.15813994 | AL133: 1.667936353
B134: 729.9276391 | C134: 718.4338653 | D134: 5.707481924 | E134: =IF(AND(C134<$B$6,C134>$H$12),bb($B$6,$H$12,C134,$H$8,$H$9,I134,$H$10,$H$11),E133) -> 138.6882968 | F134: 138.6882968 | G134: 7261.160473 | H134: 0.005 | I134: 9.195019047 | J134: 80 | K134: -1 | L134: 5.702481924 | M134: 5.704981924 | N134: -0.01817541521 | O134: 5.742196567 | P134: 95.22513821 | Q134: 7189.477622 | R134: =IF(H134>0, rate1(1,$L$52,$L$51,$L$54,L134,$L$53,$L$50,P134),"") -> 1151.216111 | S134: 1.087583029 | T134: 0.207522113 | U134: 5.707481924 | V134: 5.707481924 | W134: 0.001959972816 | X134: 7199.038559 | Y134: 95.30861437 | Z134: =IF(H134>0, rate1(1,$L$52,$L$51,$L$54,U134,$L$53,$L$50,Y134),"") -> 1151.501865 | AA134: 1.088759103 | AB134: -0.02208193593 | AC134: 0.207522113 | AD134: -0.0240938179 | AE134: -0.004355770408 | AF134: 729.7019416 | AG134: 718.2263432 | AH134: 5.702967441 | AI134: 180.2633849 | AJ134: 5.893568607 | AK134: 84.52196403 | AL134: 1.682926688
B135: 729.7019416 | C135: 718.2263432 | D135: 5.702967441 | E135: =IF(AND(C135<$B$6,C135>$H$12),bb($B$6,$H$12,C135,$H$8,$H$9,I135,$H$10,$H$11),E134) -> 138.6882968 | F135: 138.6882968 | G135: 7243.92879 | H135: 0.005 | I135: 9.180478715 | J135: 80 | K135: -1 | L135: 5.697967441 | M135: 5.700467441 | N135: -0.01816258447 | O135: 5.713698493 | P135: 95.1246075 | Q135: 7172.233761 | R135: =IF(H135>0, rate1(1,$L$52,$L$51,$L$54,L135,$L$53,$L$50,P135),"") -> 1150.871194 | S135: 1.090712767 | T135: 0.2002208191 | U135: 5.702967441 | V135: 5.702967441 | W135: 0.001956873458 | X135: 7181.779576 | Y135: 95.20806159 | Z135: =IF(H135>0, rate1(1,$L$52,$L$51,$L$54,U135,$L$53,$L$50,Y135),"") -> 1151.157583 | AA135: 1.091892729 | AB135: -0.02129519374 | AC135: 0.2002208191 | AD135: -0.02497242805 | AE135: -0.004309627872 | AF135: 729.4835582 | AG135: 718.0261224 | AH135: 5.698452572 | AI135: 173.9732649 | AJ135: 5.941894514 | AK135: 85.83088539 | AL135: 1.697347759
B136: 729.4835582 | C136: 718.0261224 | D136: 5.698452572 | E136: =IF(AND(C136<$B$6,C136>$H$12),bb($B$6,$H$12,C136,$H$8,$H$9,I136,$H$10,$H$11),E135) -> 138.6882968 | F136: 138.6882968 | G136: 7226.722923 | H136: 0.005 | I136: 9.165948648 | J136: 80 | K136: -1 | L136: 5.693452572 | M136: 5.695952572 | N136: -0.01814975017 | O136: 5.686123948 | P136: 95.0240948 | Q136: 7155.015721 | R136: =IF(H136>0, rate1(1,$L$52,$L$51,$L$54,L136,$L$53,$L$50,P136),"") -> 1150.52548 | S136: 1.093699538 | T136: 0.1937015967 | U136: 5.698452572 | V136: 5.698452572 | W136: 0.001953776288 | X136: 7164.546425 | Y136: 95.1075268 | Z136: =IF(H136>0, rate1(1,$L$52,$L$51,$L$54,U136,$L$53,$L$50,Y136),"") -> 1150.812506 | AA136: 1.094883236 | AB136: -0.02059137499 | AC136: 0.1937015967 | AD136: -0.02581290028 | AE136: -0.004267196755 | AF136: 729.2717068 | AG136: 717.8324208 | AH136: 5.693937318 | AI136: 168.3592411 | AJ136: 5.98866097 | AK136: 87.09113533 | AL136: 1.71126562
B137: 729.2717068 | C137: 717.8324208 | D137: 5.693937318 | E137: =IF(AND(C137<$B$6,C137>$H$12),bb($B$6,$H$12,C137,$H$8,$H$9,I137,$H$10,$H$11),E136) -> 138.6882968 | F137: 138.6882968 | G137: 7209.542855 | H137: 0.005 | I137: 9.151428847 | J137: 80 | K137: -1 | L137: 5.688937318 | M137: 5.691437318 | N137: -0.01813691232 | O137: 5.659374185 | P137: 94.92360012 | Q137: 7137.823487 | R137: =IF(H137>0, rate1(1,$L$52,$L$51,$L$54,L137,$L$53,$L$50,P137),"") -> 1150.178966 | S137: 1.096558923 | T137: 0.1878325868 | U137: 5.693937318 | V137: 5.693937318 | W137: 0.001950681306 | X137: 7147.33909 | Y137: 95.00701002 | Z137: =IF(H137>0, rate1(1,$L$52,$L$51,$L$54,U137,$L$53,$L$50,Y137),"") -> 1150.466631 | AA137: 1.097746221 | AB137: -0.01995659055 | AC137: 0.1878325868 | AD137: -0.02661944918 | AE137: -0.004227924731 | AF137: 729.0657374 | AG137: 717.6445882 | AH137: 5.689421677 | AI137: 163.3072698 | AJ137: 6.0340241 | AK137: 88.30782092 | AL137: 1.724734359
B138: 729.0657374 | C138: 717.6445882 | D138: 5.689421677 | E138: =IF(AND(C138<$B$6,C138>$H$12),bb($B$6,$H$12,C138,$H$8,$H$9,I138,$H$10,$H$11),E137) -> 138.6882968 | F138: 138.6882968 | G138: 7192.388572 | H138: 0.005 | I138: 9.136919318 | J138: 80 | K138: -1 | L138: 5.684421677 | M138: 5.686921677 | N138: -0.01812407093 | O138: 5.633367103 | P138: 94.82312349 | Q138: 7120.657045 | R138: =IF(H138>0, rate1(1,$L$52,$L$51,$L$54,L138,$L$53,$L$50,P138),"") -> 1149.83165 | S138: 1.09930387 | T138: 0.182511224 | U138: 5.689421677 | V138: 5.689421677 | W138: 0.001947588514 | X138: 7130.157557 | Y138: 94.90651128 | Z138: =IF(H138>0, rate1(1,$L$52,$L$51,$L$54,U138,$L$53,$L$50,Y138),"") -> 1150.119957 | AA138: 1.100494646 | AB138: -0.01938002259 | AC138: 0.182511224 | AD138: -0.02739557541 | AE138: -0.004191382195 | AF138: 728.8651021 | AG138: 717.462077 | AH138: 5.684905651 | AI138: 158.7286486 | AJ138: 6.078115391 | AK138: 89.48519168 | AL138: 1.737798941
B139: 728.8651021 | C139: 717.462077 | D139: 5.684905651 | E139: =IF(AND(C139<$B$6,C139>$H$12),bb($B$6,$H$12,C139,$H$8,$H$9,I139,$H$10,$H$11),E138) -> 138.6882968 | F139: 138.6882968 | G139: 7175.26006 | H139: 0.005 | I139: 9.122420061 | J139: 80 | K139: -1 | L139: 5.679905651 | M139: 5.682405651 | N139: -0.01811122598 | O139: 5.608033553 | P139: 94.72266493 | Q139: 7103.516379 | R139: =IF(H139>0, rate1(1,$L$52,$L$51,$L$54,L139,$L$53,$L$50,P139),"") -> 1149.483529 | S139: 1.101945283 | T139: 0.1776563414 | U139: 5.684905651 | V139: 5.684905651 | W139: 0.001944497911 | X139: 7113.001812 | Y139: 94.80603059 | Z139: =IF(H139>0, rate1(1,$L$52,$L$51,$L$54,U139,$L$53,$L$50,Y139),"") -> 1149.772479 | AA139: 1.103139427 | AB139: -0.01885309985 | AC139: 0.1776563414 | AD139: -0.02814422474 | AE139: -0.004157227906 | AF139: 728.6693345 | AG139: 717.2844206 | AH139: 5.680389238 | AI139: 154.5531858 | AJ139: 6.121046832 | AK139: 90.6268298 | AL139: 1.750497233
B140: 728.6693345 | C140: 717.2844206 | D140: 5.680389238 | E140: =IF(AND(C140<$B$6,C140>$H$12),bb($B$6,$H$12,C140,$H$8,$H$9,I140,$H$10,$H$11),E139) -> 138.6882968 | F140: 138.6882968 | G140: 7101.492826 | H140: 0.02 | I140: 9.10793108 | J140: 80 | K140: -1 | L140: 5.660389238 | M140: 5.670389238 | N140: -0.07816480843 | O140: 5.583314635 | P140: 94.37241402 | Q140: 7058.040383 | R140: =IF(H140>0, rate1(1,$L$52,$L$51,$L$54,L140,$L$53,$L$50,P140),"") -> 1148.262967 | S140: 1.100907114 | T140: 0.7746213838 | U140: 5.680389238 | V140: 5.680389238 | W140: 0.001941409499 | X140: 7095.871839 | Y140: 94.70556798 | Z140: =IF(H140>0, rate1(1,$L$52,$L$51,$L$54,U140,$L$53,$L$50,Y140),"") -> 1149.424196 | AA140: 1.105689857 | AB140: -0.01836892915 | AC140: 0.7746213838 | AD140: -0.02581906518 | AE140: 0.00488336437 | AF140: 727.8165483 | AG140: 716.5097993 | AH140: 5.660855877 | AI140: 674.6027748 | AJ140: 6.308436492 | AK140: 91.7357891 | AL140: 1.762861488
B141: 727.8165483 | C141: 716.5097993 | D141: 5.660855877 | E141: =IF(AND(C141<$B$6,C141>$H$12),bb($B$6,$H$12,C141,$H$8,$H$9,I141,$H$10,$H$11),E140) -> 138.6882968 | F141: 138.6882968 | G141: 7028.226469 | H141: 0.02 | I141: 9.045399233 | J141: 80 | K141: -1 | L141: 5.640855877 | M141: 5.650855877 | N141: -0.07790243062 | O141: 5.475636165 | P141: 93.93860737 | Q141: 6984.526826 | R141: =IF(H141>0, rate1(1,$L$52,$L$51,$L$54,L141,$L$53,$L$50,P141),"") -> 1146.736347 | S141: 1.112343261 | T141: 0.6934321616 | U141: 5.660855877 | V141: 5.660855877 | W141: 0.001928080465 | X141: 7022.098316 | Y141: 94.27137724 | Z141: =IF(H141>0, rate1(1,$L$52,$L$51,$L$54,U141,$L$53,$L$50,Y141),"") -> 1147.908885 | AA141: 1.117184509 | AB141: -0.01645337329 | AC141: 0.6934321616 | AD141: -0.02884204268 | AE141: -0.004118347735 | AF141: 727.0452137 | AG141: 715.8163671 | AH141: 5.64132079 | AI141: 604.7006038 | AJ141: 6.476408881 | AK141: 96.52647587 | AL141: 1.81682971
B142: 727.0452137 | C142: 715.8163671 | D142: 5.64132079 | E142: =IF(AND(C142<$B$6,C142>$H$12),bb($B$6,$H$12,C142,$H$8,$H$9,I142,$H$10,$H$11),E141) -> 138.6882968 | F142: 138.6882968 | G142: 6955.45937 | H142: 0.02 | I142: 8.983077289 | J142: 80 | K142: -1 | L142: 5.62132079 | M142: 5.63132079 | N142: -0.07763998369 | O142: 5.378242317 | P142: 93.50526345 | Q142: 6911.513314 | R142: =IF(H142>0, rate1(1,$L$52,$L$51,$L$54,L142,$L$53,$L$50,P142),"") -> 1145.194663 | S142: 1.1221566 | T142: 0.6355774794 | U142: 5.64132079 | V142: 5.64132079 | W142: 0.001914796173 | X142: 6948.825712 | Y142: 93.8376483 | Z142: =IF(H142>0, rate1(1,$L$52,$L$51,$L$54,U142,$L$53,$L$50,Y142),"") -> 1146.378671 | AA142: 1.12704941 | AB142: -0.01507127162 | AC142: 0.6355774794 | AD142: -0.03146744598 | AE142: -0.003950916867 | AF142: 726.3319962 | AG142: 715.1807896 | AH142: 5.621783975 | AI142: 554.995146 | AJ142: 6.6305742 | AK142: 100.7764487 | AL142: 1.865205758
B143: 726.3319962 | C143: 715.1807896 | D143: 5.621783975 | E143: =IF(AND(C143<$B$6,C143>$H$12),bb($B$6,$H$12,C143,$H$8,$H$9,I143,$H$10,$H$11),E142) -> 138.6882968 | F143: 138.6882968 | G143: 6883.18991 | H143: 0.02 | I143: 8.920965302 | J143: 80 | K143: -1 | L143: 5.601783975 | M143: 5.611783975 | N143: -0.07737746764 | O143: 5.288186725 | P143: 93.07238353 | Q143: 6838.99823 | R143: =IF(H143>0, rate1(1,$L$52,$L$51,$L$54,L143,$L$53,$L$50,P143),"") -> 1143.637698 | S143: 1.130829806 | T143: 0.5914360793 | U143: 5.621783975 | V143: 5.621783975 | W143: 0.001901556635 | X143: 6876.052409 | Y143: 93.40438245 | Z143: =IF(H143>0, rate1(1,$L$52,$L$51,$L$54,U143,$L$53,$L$50,Y143),"") -> 1144.833341 | AA143: 1.135769306 | AB143: -0.01400579185 | AC143: 0.5914360793 | AD143: -0.03381599585 | AE143: -0.003828074836 | AF143: 725.6631827 | AG143: 714.5893535 | AH143: 5.602245433 | AI143: 517.153361 | AJ143: 6.774227911 | AK143: 104.6366948 | AL143: 1.90960537
B144: 725.6631827 | C144: 714.5893535 | D144: 5.602245433 | E144: =IF(AND(C144<$B$6,C144>$H$12),bb($B$6,$H$12,C144,$H$8,$H$9,I144,$H$10,$H$11),E143) -> 138.6882968 | F144: 138.6882968 | G144: 6811.416467 | H144: 0.02 | I144: 8.859063328 | J144: 80 | K144: -1 | L144: 5.582245433 | M144: 5.592245433 | N144: -0.07711488243 | O144: 5.203737868 | P144: 92.6399689 | Q144: 6766.979952 | R144: =IF(H144>0, rate1(1,$L$52,$L$51,$L$54,L144,$L$53,$L$50,P144),"") -> 1142.065231 | S144: 1.13864559 | T144: 0.5562014794 | U144: 5.602245433 | V144: 5.602245433 | W144: 0.001888361862 | X144: 6803.776787 | Y144: 92.97158095 | Z144: =IF(H144>0, rate1(1,$L$52,$L$51,$L$54,U144,$L$53,$L$50,Y144),"") -> 1143.272676 | AA144: 1.14362811 | AB144: -0.01314757858 | AC144: 0.5562014794 | AD144: -0.03595819274 | AE144: -0.003733228983 | AF144: 725.0298663 | AG144: 714.0331521 | AH144: 5.582705162 | AI144: 487.0137576 | AJ144: 6.909509511 | AK144: 108.1963596 | AL144: 1.950977638
B145: 725.0298663 | C145: 714.0331521 | D145: 5.582705162 | E145: =IF(AND(C145<$B$6,C145>$H$12),bb($B$6,$H$12,C145,$H$8,$H$9,I145,$H$10,$H$11),E144) -> 138.6882968 | F145: 138.6882968 | G145: 6740.137421 | H145: 0.02 | I145: 8.797371422 | J145: 80 | K145: -1 | L145: 5.562705162 | M145: 5.572705162 | N145: -0.07685222805 | O145: 5.123771122 | P145: 92.20802086 | Q145: 6695.456861 | R145: =IF(H145>0, rate1(1,$L$52,$L$51,$L$54,L145,$L$53,$L$50,P145),"") -> 1140.477036 | S145: 1.145787156 | T145: 0.5271536268 | U145: 5.582705162 | V145: 5.582705162 | W145: 0.001875211867 | X145: 6731.997225 | Y145: 92.5392451 | Z145: =IF(H145>0, rate1(1,$L$52,$L$51,$L$54,U145,$L$53,$L$50,Y145),"") -> 1141.696455 | AA145: 1.150809807 | AB145: -0.01243428335 | AC145: 0.5271536268 | AD145: -0.03793960429 | AE145: -0.003657917022 | AF145: 724.4258605 | AG145: 713.5059984 | AH145: 5.563163163 | AI145: 462.2220442 | AJ145: 7.037904523 | AK145: 111.5136132 | AL145: 1.989938739
B146: 724.4258605 | C146: 713.5059984 | D146: 5.563163163 | E146: =IF(AND(C146<$B$6,C146>$H$12),bb($B$6,$H$12,C146,$H$8,$H$9,I146,$H$10,$H$11),E145) -> 138.6882968 | F146: 138.6882968 | G146: 6669.351148 | H146: 0.02 | I146: 8.735889639 | J146: 80 | K146: -1 | L146: 5.543163163 | M146: 5.553163163 | N146: -0.07658950448 | O146: 5.047505316 | P146: 91.7765407 | Q146: 6624.427334 | R146: =IF(H146>0, rate1(1,$L$52,$L$51,$L$54,L146,$L$53,$L$50,P146),"") -> 1138.872884 | S146: 1.152381566 | T146: 0.502616599 | U146: 5.563163163 | V146: 5.563163163 | W146: 0.001862106661 | X146: 6660.712101 | Y146: 92.1073762 | Z146: =IF(H146>0, rate1(1,$L$52,$L$51,$L$54,U146,$L$53,$L$50,Y146),"") -> 1140.104451 | AA146: 1.157441996 | AB146: -0.01182725515 | AC146: 0.502616599 | AD146: -0.03979176183 | AE146: -0.003597224895 | AF146: 723.8466544 | AG146: 713.0033818 | AH146: 5.543619434 | AI146: 441.3280936 | AJ146: 7.16049566 | AK146: 114.6290533 | AL146: 2.026916503
B147: 723.8466544 | C147: 713.0033818 | D147: 5.543619434 | E147: =IF(AND(C147<$B$6,C147>$H$12),bb($B$6,$H$12,C147,$H$8,$H$9,I147,$H$10,$H$11),E146) -> 138.6882968 | F147: 138.6882968 | G147: 6599.056026 | H147: 0.02 | I147: 8.674618036 | J147: 80 | K147: -1 | L147: 5.523619434 | M147: 5.533619434 | N147: -0.0763267117 | O147: 4.974370892 | P147: 91.34552973 | Q147: 6553.889747 | R147: =IF(H147>0, rate1(1,$L$52,$L$51,$L$54,L147,$L$53,$L$50,P147),"") -> 1137.252543 | S147: 1.158521376 | T147: 0.4814916052 | U147: 5.543619434 | V147: 5.543619434 | W147: 0.001849046255 | X147: 6589.919793 | Y147: 91.67597553 | Z147: =IF(H147>0, rate1(1,$L$52,$L$51,$L$54,U147,$L$53,$L$50,Y147),"") -> 1138.496434 | AA147: 1.163617624 | AB147: -0.01130102127 | AC147: 0.4814916052 | AD147: -0.04153758816 | AE147: -0.003548037335 | AF147: 723.2888361 | AG147: 712.5218902 | AH147: 5.524073975 | AI147: 423.3814278 | AJ147: 7.278101612 | AK147: 117.5724253 | AL147: 2.06222275
B148: 723.2888361 | C148: 712.5218902 | D148: 5.524073975 | E148: =IF(AND(C148<$B$6,C148>$H$12),bb($B$6,$H$12,C148,$H$8,$H$9,I148,$H$10,$H$11),E147) -> 138.6882968 | F148: 138.6882968 | G148: 6529.25043 | H148: 0.02 | I148: 8.613556666 | J148: 80 | K148: -1 | L148: 5.504073975 | M148: 5.514073975 | N148: -0.07606384968 | O148: 4.903937033 | P148: 90.91498926 | Q148: 6483.842479 | R148: =IF(H148>0, rate1(1,$L$52,$L$51,$L$54,L148,$L$53,$L$50,P148),"") -> 1135.615772 | S148: 1.164276562 | T148: 0.4630231408 | U148: 5.524073975 | V148: 5.524073975 | W148: 0.001836030662 | X148: 6519.618677 | Y148: 91.24504442 | Z148: =IF(H148>0, rate1(1,$L$52,$L$51,$L$54,U148,$L$53,$L$50,Y148),"") -> 1136.872169 | AA148: 1.169406962 | AB148: -0.01083798825 | AC148: 0.4630231408 | AD148: -0.04319438542 | AE148: -0.003508250701 | AF148: 722.7497491 | AG148: 712.0588671 | AH148: 5.504526785 | AI148: 407.7286987 | AJ148: 7.391359584 | AK148: 120.3663431 | AL148: 2.096093264
B149: 722.7497491 | C149: 712.0588671 | D149: 5.504526785 | E149: =IF(AND(C149<$B$6,C149>$H$12),bb($B$6,$H$12,C149,$H$8,$H$9,I149,$H$10,$H$11),E148) -> 138.6882968 | F149: 138.6882968 | G149: 6459.932736 | H149: 0.02 | I149: 8.552705587 | J149: 80 | K149: -1 | L149: 5.484526785 | M149: 5.494526785 | N149: -0.07580091842 | O149: 4.835868315 | P149: 90.48492063 | Q149: 6414.283903 | R149: =IF(H149>0, rate1(1,$L$52,$L$51,$L$54,L149,$L$53,$L$50,P149),"") -> 1133.962329 | S149: 1.169701603 | T149: 0.4466717878 | U149: 5.504526785 | V149: 5.504526785 | W149: 0.001823059894 | X149: 6449.80713 | Y149: 90.81458418 | Z149: =IF(H149>0, rate1(1,$L$52,$L$51,$L$54,U149,$L$53,$L$50,Y149),"") -> 1135.231417 | AA149: 1.174864714 | AB149: -0.0104255447 | AC149: 0.4466717878 | AD149: -0.04477560604 | AE149: -0.003476375599 | AF149: 722.2272764 | AG149: 711.6121953 | AH149: 5.484977864 | AI149: 393.9035508 | AJ149: 7.500777237 | AK149: 123.0285058 | AL149: 2.12871156
B150: 722.2272764 | C150: 711.6121953 | D150: 5.484977864 | E150: =IF(AND(C150<$B$6,C150>$H$12),bb($B$6,$H$12,C150,$H$8,$H$9,I150,$H$10,$H$11),E149) -> 138.6882968 | F150: 138.6882968 | G150: 6391.101318 | H150: 0.02 | I150: 8.492064852 | J150: 80 | K150: -1 | L150: 5.464977864 | M150: 5.474977864 | N150: -0.07553791788 | O150: 4.769897428 | P150: 90.05532516 | Q150: 6345.212396 | R150: =IF(H150>0, rate1(1,$L$52,$L$51,$L$54,L150,$L$53,$L$50,P150),"") -> 1132.291966 | S150: 1.174839928 | T150: 0.4320404308 | U150: 5.484977864 | V150: 5.484977864 | W150: 0.001810133962 | X150: 6380.483525 | Y150: 90.38459614 | Z150: =IF(H150>0, rate1(1,$L$52,$L$51,$L$54,U150,$L$53,$L$50,Y150),"") -> 1133.573933 | AA150: 1.18003449 | AB150: -0.01005437325 | AC150: 0.4320404308 | AD150: -0.04629196384 | AE150: -0.003451318338 | AF150: 721.719698 | AG150: 711.1801549 | AH150: 5.465427211 | AI150: 381.5627451 | AJ150: 7.606766888 | AK150: 125.5730963 | AL150: 2.160223844
B151: 721.719698 | C151: 711.1801549 | D151: 5.465427211 | E151: =IF(AND(C151<$B$6,C151>$H$12),bb($B$6,$H$12,C151,$H$8,$H$9,I151,$H$10,$H$11),E150) -> 138.6882968 | F151: 138.6882968 | G151: 6322.754548 | H151: 0.02 | I151: 8.431634518 | J151: 80 | K151: -1 | L151: 5.445427211 | M151: 5.455427211 | N151: -0.07527484804 | O151: 4.705807202 | P151: 89.62620418 | Q151: 6276.62633 | R151: =IF(H151>0, rate1(1,$L$52,$L$51,$L$54,L151,$L$53,$L$50,P151),"") -> 1130.604431 | S151: 1.179726843 | T151: 0.4188291908 | U151: 5.465427211 | V151: 5.465427211 | W151: 0.001797252878 | X151: 6311.646238 | Y151: 89.95508163 | Z151: =IF(H151>0, rate1(1,$L$52,$L$51,$L$54,U151,$L$53,$L$50,Y151),"") -> 1131.899468 | AA151: 1.184951741 | AB151: -0.00971741531 | AC151: 0.4188291908 | AD151: -0.0477521635 | AE151: -0.003432252432 | AF151: 721.225594 | AG151: 710.7613257 | AH151: 5.445874825 | AI151: 370.4471515 | AJ151: 7.709668875 | AK151: 128.0117024 | AL151: 2.190748864
B152: 721.225594 | C152: 710.7613257 | D152: 5.445874825 | E152: =IF(AND(C152<$B$6,C152>$H$12),bb($B$6,$H$12,C152,$H$8,$H$9,I152,$H$10,$H$11),E151) -> 138.6882968 | F152: 138.6882968 | G152: 6254.890799 | H152: 0.02 | I152: 8.371414639 | J152: 80 | K152: -1 | L152: 5.425874825 | M152: 5.435874825 | N152: -0.07501170889 | O152: 4.643418332 | P152: 89.19755906 | Q152: 6208.524078 | R152: =IF(H152>0, rate1(1,$L$52,$L$51,$L$54,L152,$L$53,$L$50,P152),"") -> 1128.899465 | S152: 1.184391524 | T152: 0.4068067083 | U152: 5.445874825 | V152: 5.445874825 | W152: 0.001784416654 | X152: 6243.293641 | Y152: 89.52604199 | Z152: =IF(H152>0, rate1(1,$L$52,$L$51,$L$54,U152,$L$53,$L$50,Y152),"") -> 1130.207768 | AA152: 1.189645763 | AB152: -0.009409209202 | AC152: 0.4068067083 | AD152: -0.04916339774 | AE152: -0.003418538934 | AF152: 720.7437756 | AG152: 710.354519 | AH152: 5.426320707 | AI152: 360.3568969 | AJ152: 7.809768013 | AK152: 130.3539489 | AL152: 2.220384636
B153: 720.7437756 | C153: 710.354519 | D153: 5.426320707 | E153: =IF(AND(C153<$B$6,C153>$H$12),bb($B$6,$H$12,C153,$H$8,$H$9,I153,$H$10,$H$11),E152) -> 138.6882968 | F153: 138.6882968 | G153: 6187.508442 | H153: 0.02 | I153: 8.311405272 | J153: 80 | K153: -1 | L153: 5.406320707 | M153: 5.416320707 | N153: -0.07474850041 | O153: 4.582580727 | P153: 88.76939113 | Q153: 6140.904012 | R153: =IF(H153>0, rate1(1,$L$52,$L$51,$L$54,L153,$L$53,$L$50,P153),"") -> 1127.176807 | S153: 1.188858427 | T153: 0.3957911831 | U153: 5.426320707 | V153: 5.426320707 | W153: 0.001771625302 | X153: 6175.424105 | Y153: 89.09747856 | Z153: =IF(H153>0, rate1(1,$L$52,$L$51,$L$54,U153,$L$53,$L$50,Y153),"") -> 1128.498575 | AA153: 1.194141109 | AB153: -0.009125451635 | AC153: 0.3957911831 | AD153: -0.05053169665 | AE153: -0.003409674819 | AF153: 720.2732359 | AG153: 709.9587278 | AH153: 5.406764854 | AI153: 351.13496 | AJ153: 7.907305502 | AK153: 132.6079419 | AL153: 2.249213188
B154: 720.2732359 | C154: 709.9587278 | D154: 5.406764854 | E154: =IF(AND(C154<$B$6,C154>$H$12),bb($B$6,$H$12,C154,$H$8,$H$9,I154,$H$10,$H$11),E153) -> 138.6882968 | F154: 138.6882968 | G154: 6120.605849 | H154: 0.02 | I154: 8.251606472 | J154: 80 | K154: -1 | L154: 5.386764854 | M154: 5.396764854 | N154: -0.07448522257 | O154: 4.523167249 | P154: 88.34170177 | Q154: 6073.764504 | R154: =IF(H154>0, rate1(1,$L$52,$L$51,$L$54,L154,$L$53,$L$50,P154),"") -> 1125.436188 | S154: 1.1931483 | T154: 0.3856374733 | U154: 5.406764854 | V154: 5.406764854 | W154: 0.001758878833 | X154: 6108.036004 | Y154: 88.66939271 | Z154: =IF(H154>0, rate1(1,$L$52,$L$51,$L$54,U154,$L$53,$L$50,Y154),"") -> 1126.771624 | AA154: 1.198458611 | AB154: -0.008862698489 | AC154: 0.3856374733 | AD154: -0.05186217986 | AE154: -0.003405258313 | AF154: 719.8131132 | AG154: 709.5730903 | AH154: 5.387207267 | AI154: 342.6560097 | AJ154: 8.002487727 | AK154: 134.7805924 | AL154: 2.277303985
B155: 719.8131132 | C155: 709.5730903 | D155: 5.387207267 | E155: =IF(AND(C155<$B$6,C155>$H$12),bb($B$6,$H$12,C155,$H$8,$H$9,I155,$H$10,$H$11),E154) -> 138.6882968 | F155: 138.6882968 | G155: 6054.181389 | H155: 0.02 | I155: 8.192018294 | J155: 80 | K155: -1 | L155: 5.367207267 | M155: 5.377207267 | N155: -0.07422187535 | O155: 4.46506909 | P155: 87.91449234 | Q155: 6007.103923 | R155: =IF(H155>0, rate1(1,$L$52,$L$51,$L$54,L155,$L$53,$L$50,P155),"") -> 1123.677334 | S155: 1.197278934 | T155: 0.3762280843 | U155: 5.387207267 | V155: 5.387207267 | W155: 0.001746177259 | X155: 6041.127706 | Y155: 88.2417858 | Z155: =IF(H155>0, rate1(1,$L$52,$L$51,$L$54,U155,$L$53,$L$50,Y155),"") -> 1125.026647 | AA155: 1.202616129 | AB155: -0.008618155258 | AC155: 0.3762280843 | AD155: -0.05315924259 | AE155: -0.003404964868 | AF155: 719.3626632 | AG155: 709.1968622 | AH155: 5.367647945 | AI155: 334.818611 | AJ155: 8.095492896 | AK155: 136.8778548 | AL155: 2.304716465
B156: 719.3626632 | C156: 709.1968622 | D156: 5.367647945 | E156: =IF(AND(C156<$B$6,C156>$H$12),bb($B$6,$H$12,C156,$H$8,$H$9,I156,$H$10,$H$11),E155) -> 138.6882968 | F156: 138.6882968 | G156: 5988.23343 | H156: 0.02 | I156: 8.132640793 | J156: 80 | K156: -1 | L156: 5.347647945 | M156: 5.357647945 | N156: -0.07395845874 | O156: 4.408192275 | P156: 87.48776422 | Q156: 5940.920639 | R156: =IF(H156>0, rate1(1,$L$52,$L$51,$L$54,L156,$L$53,$L$50,P156),"") -> 1121.899968 | S156: 1.201265726 | T156: 0.3674667322 | U156: 5.367647945 | V156: 5.367647945 | W156: 0.001733520593 | X156: 5974.697582 | Y156: 87.81465921 | Z156: =IF(H156>0, rate1(1,$L$52,$L$51,$L$54,U156,$L$53,$L$50,Y156),"") -> 1123.263368 | AA156: 1.206629122 | AB156: -0.008389526976 | AC156: 0.3674667322 | AD156: -0.05442669566 | AE156: -0.003408530078 | AF156: 718.921238 | AG156: 708.8293955 | AH156: 5.348086887 | AI156: 327.5396584 | AJ156: 8.186476135 | AK156: 138.9049074 | AL156: 2.331501954
B157: 718.921238 | C157: 708.8293955 | D157: 5.348086887 | E157: =IF(AND(C157<$B$6,C157>$H$12),bb($B$6,$H$12,C157,$H$8,$H$9,I157,$H$10,$H$11),E156) -> 138.6882968 | F157: 138.6882968 | G157: 5922.760341 | H157: 0.02 | I157: 8.073474026 | J157: 80 | K157: -1 | L157: 5.328086887 | M157: 5.338086887 | N157: -0.07369497271 | O157: 4.352454988 | P157: 87.06151881 | Q157: 5875.213021 | R157: =IF(H157>0, rate1(1,$L$52,$L$51,$L$54,L157,$L$53,$L$50,P157),"") -> 1120.103803 | S157: 1.205122118 | T157: 0.3592736529 | U157: 5.348086887 | V157: 5.348086887 | W157: 0.001720908846 | X157: 5908.744001 | Y157: 87.3880143 | Z157: =IF(H157>0, rate1(1,$L$52,$L$51,$L$54,U157,$L$53,$L$50,Y157),"") -> 1121.481507 | AA157: 1.210511081 | AB157: -0.008174908587 | AC157: 0.3592736529 | AD157: -0.05566787277 | AE157: -0.003415737249 | AF157: 718.4882694 | AG157: 708.4701218 | AH157: 5.328524093 | AI157: 320.7503196 | AJ157: 8.275573446 | AK157: 140.8662913 | AL157: 2.357705127
B158: 718.4882694 | C158: 708.4701218 | D158: 5.328524093 | E158: =IF(AND(C158<$B$6,C158>$H$12),bb($B$6,$H$12,C158,$H$8,$H$9,I158,$H$10,$H$11),E157) -> 138.6882968 | F158: 138.6882968 | G158: 5857.760488 | H158: =dv(S157) -> 0.02 | I158: 8.014518048 | J158: 80 | K158: -1 | L158: 5.308524093 | M158: 5.318524093 | N158: -0.07343141724 | O158: 4.297785483 | P158: 86.63575749 | Q158: 5809.979436 | R158: =IF(H158>0, rate1(1,$L$52,$L$51,$L$54,L158,$L$53,$L$50,P158),"") -> 1118.288551 | S158: 1.208859929 | T158: 0.3515821226 | U158: 5.328524093 | V158: 5.328524093 | W158: 0.00170834203 | X158: 5843.265329 | Y158: 86.96185248 | Z158: =IF(H158>0, rate1(1,$L$52,$L$51,$L$54,U158,$L$53,$L$50,Y158),"") -> 1119.680778 | AA158: 1.214273871 | AB158: -0.007972703452 | AC158: 0.3515821226 | AD158: -0.05688571378 | AE158: -0.003426408168 | AF158: 718.0632559 | AG158: 708.1185397 | AH158: 5.308959562 | AI158: 314.393027 | AJ158: 8.362904842 | AK158: 142.7660186 | AL158: 2.383365152
B159: 718.0632559 | C159: 708.1185397 | D159: 5.308959562 | E159: =IF(AND(C159<$B$6,C159>$H$12),bb($B$6,$H$12,C159,$H$8,$H$9,I159,$H$10,$H$11),E158) -> 138.6882968 | F159: 138.6882968 | G159: 5793.232239 | H159: 0.02 | I159: 7.955772914 | J159: 80 | K159: -1 | L159: 5.288959562 | M159: 5.298959562 | N159: -0.07316779231 | O159: 4.24412044 | P159: 86.21048167 | Q159: 5745.21825 | R159: =IF(H159>0, rate1(1,$L$52,$L$51,$L$54,L159,$L$53,$L$50,P159),"") -> 1116.453915 | S159: 1.212489624 | T159: 0.3443358359 | U159: 5.308959562 | V159: 5.308959562 | W159: 0.001695820156 | X159: 5778.259935 | Y159: 86.53617514 | Z159: =IF(H159>0, rate1(1,$L$52,$L$51,$L$54,U159,$L$53,$L$50,Y159),"") -> 1117.86089 | AA159: 1.217927994 | AB159: -0.00778156182 | AC159: 0.3443358359 | AD159: -0.05808283052 | AE159: -0.003440396147 | AF159: 717.6457522 | AG159: 707.7742039 | AH159: 5.289393293 | AI159: 308.4192115 | AJ159: 8.448576845 | AK159: 144.6076577 | AL159: 2.408516595
B160: 717.6457522 | C160: 707.7742039 | D160: 5.289393293 | E160: =IF(AND(C160<$B$6,C160>$H$12),bb($B$6,$H$12,C160,$H$8,$H$9,I160,$H$10,$H$11),E159) -> 138.6882968 | F160: 138.6882968 | G160: 5729.173957 | H160: 0.02 | I160: 7.897238681 | J160: 80 | K160: -1 | L160: 5.269393293 | M160: 5.279393293 | N160: -0.07290409789 | O160: 4.191403648 | P160: 85.78569276 | Q160: 5680.92783 | R160: =IF(H160>0, rate1(1,$L$52,$L$51,$L$54,L160,$L$53,$L$50,P160),"") -> 1114.599591 | S160: 1.216020525 | T160: 0.3374869023 | U160: 5.289393293 | V160: 5.289393293 | W160: 0.001683343237 | X160: 5713.726183 | Y160: 86.11098369 | Z160: =IF(H160>0, rate1(1,$L$52,$L$51,$L$54,U160,$L$53,$L$50,Y160),"") -> 1116.021545 | AA160: 1.221482806 | AB160: -0.00760033371 | AC160: 0.3374869023 | AD160: -0.05926155908 | AE160: -0.003457580681 | AF160: 717.2353612 | AG160: 707.436717 | AH160: 5.269825285 | AI160: 302.7875704 | AJ160: 8.532684504 | AK160: 146.3944018 | AL160: 2.433190131
B161: 717.2353612 | C161: 707.436717 | D161: 5.269825285 | E161: =IF(AND(C161<$B$6,C161>$H$12),bb($B$6,$H$12,C161,$H$8,$H$9,I161,$H$10,$H$11),E160) -> 138.6882968 | F161: 138.6882968 | G161: 5665.584009 | H161: 0.02 | I161: 7.838915402 | J161: 80 | K161: -1 | L161: 5.249825285 | M161: 5.259825285 | N161: -0.07264033398 | O161: 4.139584945 | P161: 85.36139218 | Q161: 5617.106541 | R161: =IF(H161>0, rate1(1,$L$52,$L$51,$L$54,L161,$L$53,$L$50,P161),"") -> 1112.725273 | S161: 1.219460985 | T161: 0.3309942949 | U161: 5.269825285 | V161: 5.269825285 | W161: 0.001670911285 | X161: 5649.66244 | Y161: 85.68627954 | Z161: =IF(H161>0, rate1(1,$L$52,$L$51,$L$54,U161,$L$53,$L$50,Y161),"") -> 1114.162439 | AA161: 1.224946689 | AB161: -0.007428032366 | AC161: 0.3309942949 | AD161: -0.06042400219 | AE161: -0.003477863308 | AF161: 716.8317266 | AG161: 707.1057227 | AH161: 5.250255539 | AI161: 297.4627276 | AJ161: 8.615313039 | AK161: 148.1291244 | AL161: 2.457413137
B162: 716.8317266 | C162: 707.1057227 | D162: 5.250255539 | E162: =IF(AND(C162<$B$6,C162>$H$12),bb($B$6,$H$12,C162,$H$8,$H$9,I162,$H$10,$H$11),E161) -> 138.6882968 | F162: 138.6882968 | G162: 5602.460756 | H162: 0.02 | I162: 7.780803135 | J162: 80 | K162: -1 | L162: 5.230255539 | M162: 5.240255539 | N162: -0.07237650053 | O162: 4.088619346 | P162: 84.93758137 | Q162: 5553.752746 | R162: =IF(H162>0, rate1(1,$L$52,$L$51,$L$54,L162,$L$53,$L$50,P162),"") -> 1110.830645 | S162: 1.222818525 | T162: 0.3248226358 | U162: 5.250255539 | V162: 5.250255539 | W162: 0.001658524311 | X162: 5586.06707 | Y162: 85.26206411 | Z162: =IF(H162>0, rate1(1,$L$52,$L$51,$L$54,U162,$L$53,$L$50,Y162),"") -> 1112.283261 | AA162: 1.228327189 | AB162: -0.007263805598 | AC162: 0.3248226358 | AD162: -0.06157206362 | AE162: -0.003501164353 | AF162: 716.4345275 | AG162: 706.7809 | AH162: 5.230684052 | AI162: 292.4141832 | AJ162: 8.696539201 | AK162: 149.8144245 | AL162: 2.481210155
B163: 716.4345275 | C163: 706.7809 | D163: 5.230684052 | E163: =IF(AND(C163<$B$6,C163>$H$12),bb($B$6,$H$12,C163,$H$8,$H$9,I163,$H$10,$H$11),E162) -> 138.6882968 | F163: 138.6882968 | G163: 5539.802562 | H163: 0.02 | I163: 7.722901935 | J163: 80 | K163: -1 | L163: 5.210684052 | M163: 5.220684052 | N163: -0.07211259755 | O163: 4.038466335 | P163: 84.51426175 | Q163: 5490.864808 | R163: =IF(H163>0, rate1(1,$L$52,$L$51,$L$54,L163,$L$53,$L$50,P163),"") -> 1108.915386 | S163: 1.226099951 | T163: 0.318941235 | U163: 5.230684052 | V163: 5.230684052 | W163: 0.001646182327 | X163: 5522.938435 | Y163: 84.83833884 | Z163: =IF(H163>0, rate1(1,$L$52,$L$51,$L$54,U163,$L$53,$L$50,Y163),"") -> 1110.383697 | AA163: 1.231631134 | AB163: -0.007106913047 | AC163: 0.318941235 | AD163: -0.06270747651 | AE163: -0.003527420349 | AF163: 716.0434736 | AG163: 706.4619588 | AH163: 5.211110826 | AI163: 287.6154837 | AJ163: 8.776432391 | AK163: 151.4526635 | AL163: 2.50460329
B164: 716.0434736 | C164: 706.4619588 | D164: 5.211110826 | E164: =IF(AND(C164<$B$6,C164>$H$12),bb($B$6,$H$12,C164,$H$8,$H$9,I164,$H$10,$H$11),E163) -> 138.6882968 | F164: 138.6882968 | G164: 5477.607789 | H164: 0.02 | I164: 7.665211857 | J164: 80 | K164: -1 | L164: 5.191110826 | M164: 5.201110826 | N164: -0.07184862499 | O164: 3.989089271 | P164: 84.09143479 | Q164: 5428.441091 | R164: =IF(H164>0, rate1(1,$L$52,$L$51,$L$54,L164,$L$53,$L$50,P164),"") -> 1106.979166 | S164: 1.22931145 | T164: 0.3133233213 | U164: 5.211110826 | V164: 5.211110826 | W164: 0.001633885345 | X164: 5460.274899 | Y164: 84.41510516 | Z164: =IF(H164>0, rate1(1,$L$52,$L$51,$L$54,U164,$L$53,$L$50,Y164),"") -> 1108.463421 | AA164: 1.23486473 | AB164: -0.006956707998 | AC164: 0.3133233213 | AD164: -0.06383182688 | AE164: -0.003556581978 | AF164: 715.6583017 | AG164: 706.1486355 | AH164: 5.191535858 | AI164: 283.0435575 | AJ164: 8.855055602 | AK164: 153.0459965 | AL164: 2.527612529
B165: 715.6583017 | C165: 706.1486355 | D165: 5.191535858 | E165: =IF(AND(C165<$B$6,C165>$H$12),bb($B$6,$H$12,C165,$H$8,$H$9,I165,$H$10,$H$11),E164) -> 138.6882968 | F165: 138.6882968 | G165: 5415.874798 | H165: 0.02 | I165: 7.607732957 | J165: 80 | K165: -1 | L165: 5.171535858 | M165: 5.181535858 | N165: -0.07158458285 | O165: 3.940454893 | P165: 83.66910193 | Q165: 5366.479955 | R165: =IF(H165>0, rate1(1,$L$52,$L$51,$L$54,L165,$L$53,$L$50,P165),"") -> 1105.021652 | S165: 1.232458668 | T165: 0.3079454235 | U165: 5.191535858 | V165: 5.191535858 | W165: 0.001621633376 | X165: 5398.074823 | Y165: 83.99236454 | Z165: =IF(H165>0, rate1(1,$L$52,$L$51,$L$54,U165,$L$53,$L$50,Y165),"") -> 1106.522105 | AA165: 1.23803364 | AB165: -0.006812622689 | AC165: 0.3079454235 | AD165: -0.06494657324 | AE165: -0.003588612401 | AF165: 715.2787717 | AG165: 705.8406901 | AH165: 5.171959148 | AI165: 278.6781807 | AJ165: 8.932466207 | AK165: 154.5963981 | AL165: 2.550256013
B166: 715.2787717 | C166: 705.8406901 | D166: 5.171959148 | E166: =IF(AND(C166<$B$6,C166>$H$12),bb($B$6,$H$12,C166,$H$8,$H$9,I166,$H$10,$H$11),E165) -> 138.6882968 | F166: 138.6882968 | G166: 5354.601948 | H166: 0.02 | I166: 7.55046529 | J166: 80 | K166: -1 | L166: 5.151959148 | M166: 5.161959148 | N166: -0.07132047109 | O166: 3.892532904 | P166: 83.24726464 | Q166: 5304.979761 | R166: =IF(H166>0, rate1(1,$L$52,$L$51,$L$54,L166,$L$53,$L$50,P166),"") -> 1103.0425 | S166: 1.235546779 | T166: 0.3027868662 | U166: 5.171959148 | V166: 5.171959148 | W166: 0.001609426434 | X166: 5336.336568 | Y166: 83.57011841 | Z166: =IF(H166>0, rate1(1,$L$52,$L$51,$L$54,U166,$L$53,$L$50,Y166),"") -> 1104.559411 | AA166: 1.241143053 | AB166: -0.006674156341 | AC166: 0.3027868662 | AD166: -0.06605306316 | AE166: -0.003623485921 | AF166: 714.9046643 | AG166: 705.5379032 | AH166: 5.152380696 | AI166: 274.5015411 | AJ166: 9.008716636 | AK166: 156.1056842 | AL166: 2.572550268
B167: 714.9046643 | C167: 705.5379032 | D167: 5.152380696 | E167: =IF(AND(C167<$B$6,C167>$H$12),bb($B$6,$H$12,C167,$H$8,$H$9,I167,$H$10,$H$11),E166) -> 138.6882968 | F167: 138.6882968 | G167: 5293.787599 | H167: 0.02 | I167: 7.493408913 | J167: 80 | K167: -1 | L167: 5.132380696 | M167: 5.142380696 | N167: -0.0710562897 | O167: 3.845295618 | P167: 82.82592439 | Q167: 5243.938869 | R167: =IF(H167>0, rate1(1,$L$52,$L$51,$L$54,L167,$L$53,$L$50,P167),"") -> 1101.041362 | S167: 1.238580543 | T167: 0.2978293573 | U167: 5.152380696 | V167: 5.152380696 | W167: 0.001597264529 | X167: 5275.058494 | Y167: 83.14836826 | Z167: =IF(H167>0, rate1(1,$L$52,$L$51,$L$54,U167,$L$53,$L$50,Y167),"") -> 1102.574995 | AA167: 1.244197739 | AB167: -0.006540865353 | AC167: 0.2978293573 | AD167: -0.06715254728 | AE167: -0.003661186887 | AF167: 714.5357787 | AG167: 705.2400738 | AH167: 5.132800501 | AI167: 270.4978829 | AJ167: 9.083854936 | AK167: 157.5755307 | AL167: 2.594510391
B168: 714.5357787 | C168: 705.2400738 | D168: 5.132800501 | E168: =IF(AND(C168<$B$6,C168>$H$12),bb($B$6,$H$12,C168,$H$8,$H$9,I168,$H$10,$H$11),E167) -> 138.6882968 | F168: 138.6882968 | G168: 5233.430109 | H168: 0.02 | I168: 7.436563882 | J168: 80 | K168: -1 | L168: 5.112800501 | M168: 5.122800501 | N168: -0.07079203866 | O168: 3.798717657 | P168: 82.40508267 | Q168: 5183.355637 | R168: =IF(H168>0, rate1(1,$L$52,$L$51,$L$54,L168,$L$53,$L$50,P168),"") -> 1099.01788 | S168: 1.24156435 | T168: 0.2930566473 | U168: 5.132800501 | V168: 5.132800501 | W168: 0.001585147673 | X168: 5214.23896 | Y168: 82.72711556 | Z168: =IF(H168>0, rate1(1,$L$52,$L$51,$L$54,U168,$L$53,$L$50,Y168),"") -> 1100.568507 | AA168: 1.247202101 | AB168: -0.006412355186 | AC168: 0.2930566473 | AD168: -0.06824619125 | AE168: -0.003701708801 | AF168: 714.17193 | AG168: 704.9470172 | AH168: 5.113218561 | AI168: 266.6532117 | AJ168: 9.157925273 | AK168: 159.007489 | AL168: 2.616150222
B169: 714.17193 | C169: 704.9470172 | D169: 5.113218561 | E169: =IF(AND(C169<$B$6,C169>$H$12),bb($B$6,$H$12,C169,$H$8,$H$9,I169,$H$10,$H$11),E168) -> 138.6882968 | F169: 138.6882968 | G169: 5173.527835 | H169: 0.02 | I169: 7.379930251 | J169: 80 | K169: -1 | L169: 5.093218561 | M169: 5.103218561 | N169: -0.07052771794 | O169: 3.752775696 | P169: 81.98474097 | Q169: 5123.228423 | R169: =IF(H169>0, rate1(1,$L$52,$L$51,$L$54,L169,$L$53,$L$50,P169),"") -> 1096.971689 | S169: 1.244502269 | T169: 0.2884542468 | U169: 5.113218561 | V169: 5.113218561 | W169: 0.001573075879 | X169: 5153.876323 | Y169: 82.3063618 | Z169: =IF(H169>0, rate1(1,$L$52,$L$51,$L$54,U169,$L$53,$L$50,Y169),"") -> 1098.539587 | AA169: 1.250160215 | AB169: -0.006288273624 | AC169: 0.2884542468 | AD169: -0.06933508598 | AE169: -0.0037450536 | AF169: 713.812948 | AG169: 704.658563 | AH169: 5.093634877 | AI169: 262.9550512 | AJ169: 9.230968343 | AK169: 160.403 | AL169: 2.637482479
B170: 713.812948 | C170: 704.658563 | D170: 5.093634877 | E170: =IF(AND(C170<$B$6,C170>$H$12),bb($B$6,$H$12,C170,$H$8,$H$9,I170,$H$10,$H$11),E169) -> 138.6882968 | F170: 138.6882968 | G170: 5114.079134 | H170: 0.02 | I170: 7.323508076 | J170: 80 | K170: -1 | L170: 5.073634877 | M170: 5.083634877 | N170: -0.07026332752 | O170: 3.70744824 | P170: 81.5649008 | Q170: 5063.555585 | R170: =IF(H170>0, rate1(1,$L$52,$L$51,$L$54,L170,$L$53,$L$50,P170),"") -> 1094.902418 | S170: 1.247398078 | T170: 0.2840091896 | U170: 5.093634877 | V170: 5.093634877 | W170: 0.001561049158 | X170: 5093.968942 | Y170: 81.88610846 | Z170: =IF(H170>0, rate1(1,$L$52,$L$51,$L$54,U170,$L$53,$L$50,Y170),"") -> 1096.487868 | AA170: 1.253075865 | AB170: -0.006168305131 | AC170: 0.2840091896 | AD170: -0.07042025656 | AE170: -0.003791231057 | AF170: 713.4586755 | AG170: 704.3745538 | AH170: 5.074049448 | AI170: 259.3922389 | AJ170: 9.303021742 | AK170: 161.7634053 | AL170: 2.658518883
B171: 713.4586755 | C171: 704.3745538 | D171: 5.074049448 | E171: =IF(AND(C171<$B$6,C171>$H$12),bb($B$6,$H$12,C171,$H$8,$H$9,I171,$H$10,$H$11),E170) -> 138.6882968 | F171: 138.6882968 | G171: 5055.082361 | H171: 0.02 | I171: 7.267297414 | J171: 80 | K171: -1 | L171: 5.054049448 | M171: 5.064049448 | N171: -0.06999886737 | O171: 3.66271543 | P171: 81.14556366 | Q171: 5004.335478 | R171: =IF(H171>0, rate1(1,$L$52,$L$51,$L$54,L171,$L$53,$L$50,P171),"") -> 1092.809685 | S171: 1.250255295 | T171: 0.279709835 | U171: 5.074049448 | V171: 5.074049448 | W171: 0.001549067522 | X171: 5034.515172 | Y171: 81.46635706 | Z171: =IF(H171>0, rate1(1,$L$52,$L$51,$L$54,U171,$L$53,$L$50,Y171),"") -> 1094.412977 | AA171: 1.255952579 | AB171: -0.006052166101 | AC171: 0.279709835 | AD171: -0.07150266989 | AE171: -0.003840258311 | AF171: 713.1089668 | AG171: 704.0948439 | AH171: 5.054462272 | AI171: 255.9547548 | AJ171: 9.374120285 | AK171: 163.0899577 | AL171: 2.679270262
B172: 713.1089668 | C172: 704.0948439 | D172: 5.054462272 | E172: =IF(AND(C172<$B$6,C172>$H$12),bb($B$6,$H$12,C172,$H$8,$H$9,I172,$H$10,$H$11),E171) -> 138.6882968 | F172: 138.6882968 | G172: 4996.535872 | H172: 0.02 | I172: 7.211298321 | J172: 80 | K172: -1 | L172: 5.034462272 | M172: 5.044462272 | N172: -0.06973433749 | O172: 3.618558878 | P172: 80.72673107 | Q172: 4945.566458 | R172: =IF(H172>0, rate1(1,$L$52,$L$51,$L$54,L172,$L$53,$L$50,P172),"") -> 1090.693102 | S172: 1.253077213 | T172: 0.275545699 | U172: 5.054462272 | V172: 5.054462272 | W172: 0.001537130984 | X172: 4975.51337 | Y172: 81.04710911 | Z172: =IF(H172>0, rate1(1,$L$52,$L$51,$L$54,U172,$L$53,$L$50,Y172),"") -> 1092.31453 | AA172: 1.25879365 | AB172: -0.005939600845 | AC172: 0.275545699 | AD172: -0.07258324144 | AE172: -0.003892159483 | AF172: 712.7636868 | AG172: 703.8192982 | AH172: 5.034873349 | AI172: 252.6335764 | AJ172: 9.444296279 | AK172: 164.3838301 | AL172: 2.699746642
B173: 712.7636868 | C173: 703.8192982 | D173: 5.034873349 | E173: =IF(AND(C173<$B$6,C173>$H$12),bb($B$6,$H$12,C173,$H$8,$H$9,I173,$H$10,$H$11),E172) -> 138.6882968 | F173: 138.6882968 | G173: 4938.438019 | H173: 0.02 | I173: 7.155510851 | J173: 80 | K173: -1 | L173: 5.014873349 | M173: 5.024873349 | N173: -0.06946973783 | O173: 3.574961519 | P173: 80.30840458 | Q173: 4887.246878 | R173: =IF(H173>0, rate1(1,$L$52,$L$51,$L$54,L173,$L$53,$L$50,P173),"") -> 1088.55227 | S173: 1.255866913 | T173: 0.2715073123 | U173: 5.034873349 | V173: 5.034873349 | W173: 0.001525239554 | X173: 4916.961888 | Y173: 80.62836614 | Z173: =IF(H173>0, rate1(1,$L$52,$L$51,$L$54,U173,$L$53,$L$50,Y173),"") -> 1090.192136 | AA173: 1.261602165 | AB173: -0.005830378172 | AC173: 0.2715073123 | AD173: -0.07366284109 | AE173: -0.00394696537 | AF173: 712.4227097 | AG173: 703.5477909 | AH173: 5.015282679 | AI173: 249.4205559 | AJ173: 9.513579767 | AK173: 165.6461228 | AL173: 2.719957328
B174: 712.4227097 | C174: 703.5477909 | D174: 5.015282679 | E174: =IF(AND(C174<$B$6,C174>$H$12),bb($B$6,$H$12,C174,$H$8,$H$9,I174,$H$10,$H$11),E173) -> 138.6882968 | F174: 138.6882968 | G174: 4880.787157 | H174: 0.02 | I174: 7.09993506 | J174: 80 | K174: -1 | L174: 4.995282679 | M174: 5.005282679 | N174: -0.06920506839 | O174: 3.531907483 | P174: 79.89058571 | Q174: 4829.375093 | R174: =IF(H174>0, rate1(1,$L$52,$L$51,$L$54,L174,$L$53,$L$50,P174),"") -> 1086.386784 | S174: 1.258627293 | T174: 0.2675860984 | U174: 5.015282679 | V174: 5.015282679 | W174: 0.001513393245 | X174: 4858.859082 | Y174: 80.21012967 | Z174: =IF(H174>0, rate1(1,$L$52,$L$51,$L$54,U174,$L$53,$L$50,Y174),"") -> 1088.045396 | AA174: 1.264381023 | AB174: -0.005724288472 | AC174: 0.2675860984 | AD174: -0.07474229834 | AE174: -0.004004713217 | AF174: 712.0859186 | AG174: 703.2802048 | AH174: 4.99569026 | AI174: 246.3083151 | AJ174: 9.581998743 | AK174: 166.8778708 | AL174: 2.739910973
B175: 712.0859186 | C175: 703.2802048 | D175: 4.99569026 | E175: =IF(AND(C175<$B$6,C175>$H$12),bb($B$6,$H$12,C175,$H$8,$H$9,I175,$H$10,$H$11),E174) -> 138.6882968 | F175: 138.6882968 | G175: 4823.581636 | H175: 0.02 | I175: 7.044571006 | J175: 80 | K175: -1 | L175: 4.97569026 | M175: 4.98569026 | N175: -0.06894032914 | O175: 3.489381985 | P175: 79.47327602 | Q175: 4771.949455 | R175: =IF(H175>0, rate1(1,$L$52,$L$51,$L$54,L175,$L$53,$L$50,P175),"") -> 1084.196229 | S175: 1.261361084 | T175: 0.2637742695 | U175: 4.99569026 | V175: 4.99569026 | W175: 0.001501592068 | X175: 4801.203304 | Y175: 79.79240125 | Z175: =IF(H175>0, rate1(1,$L$52,$L$51,$L$54,U175,$L$53,$L$50,Y175),"") -> 1085.873902 | AA175: 1.267132956 | AB175: -0.005621141213 | AC175: 0.2637742695 | AD175: -0.07582240692 | AE175: -0.004065446539 | AF175: 711.753204 | AG175: 703.0164305 | AH175: 4.976096091 | AI175: 243.2901559 | AJ175: 9.649579342 | AK175: 168.0800492 | AL175: 2.759615638
B176: 711.753204 | C176: 703.0164305 | D176: 4.976096091 | E176: =IF(AND(C176<$B$6,C176>$H$12),bb($B$6,$H$12,C176,$H$8,$H$9,I176,$H$10,$H$11),E175) -> 138.6882968 | F176: 138.6882968 | G176: 4766.819809 | H176: 0.02 | I176: 6.989418742 | J176: 80 | K176: -1 | L176: 4.956096091 | M176: 4.966096091 | N176: -0.06867552005 | O176: 3.447371222 | P176: 79.05647707 | Q176: 4714.968316 | R176: =IF(H176>0, rate1(1,$L$52,$L$51,$L$54,L176,$L$53,$L$50,P176),"") -> 1081.980179 | S176: 1.264070865 | T176: 0.2600647365 | U176: 4.976096091 | V176: 4.976096091 | W176: 0.001489836036 | X176: 4743.992906 | Y176: 79.37518244 | Z176: =IF(H176>0, rate1(1,$L$52,$L$51,$L$54,U176,$L$53,$L$50,Y176),"") -> 1083.677236 | AA176: 1.269860542 | AB176: -0.005520762781 | AC176: 0.2600647365 | AD176: -0.07690392887 | AE176: -0.004129215004 | AF176: 711.4244637 | AG176: 702.7563658 | AH176: 4.956500173 | AI176: 240.3599821 | AJ176: 9.716346004 | AK176: 169.2535791 | AL176: 2.77907885
B177: 711.4244637 | C177: 702.7563658 | D177: 4.956500173 | E177: =IF(AND(C177<$B$6,C177>$H$12),bb($B$6,$H$12,C177,$H$8,$H$9,I177,$H$10,$H$11),E176) -> 138.6882968 | F177: 138.6882968 | G177: 4710.500025 | H177: 0.02 | I177: 6.934478326 | J177: 80 | K177: -1 | L177: 4.936500173 | M177: 4.946500173 | N177: -0.06841064111 | O177: 3.405862285 | P177: 78.64019044 | Q177: 4658.430026 | R177: =IF(H177>0, rate1(1,$L$52,$L$51,$L$54,L177,$L$53,$L$50,P177),"") -> 1079.738202 | S177: 1.266759079 | T177: 0.2564510316 | U177: 4.956500173 | V177: 4.956500173 | W177: 0.001478125161 | X177: 4687.226239 | Y177: 78.95847479 | Z177: =IF(H177>0, rate1(1,$L$52,$L$51,$L$54,U177,$L$53,$L$50,Y177),"") -> 1081.45497 | AA177: 1.272566223 | AB177: -0.005422994617 | AC177: 0.2564510316 | AD177: -0.07798759815 | AE177: -0.004196074353 | AF177: 711.099602 | AG177: 702.4999148 | AH177: 4.936902504 | AI177: 237.5122333 | AJ177: 9.782321624 | AK177: 170.3993319 | AL177: 2.798307649
B178: 711.099602 | C178: 702.4999148 | D178: 4.936902504 | E178: =IF(AND(C178<$B$6,C178>$H$12),bb($B$6,$H$12,C178,$H$8,$H$9,I178,$H$10,$H$11),E177) -> 138.6882968 | F178: 138.6882968 | G178: 4654.620634 | H178: 0.02 | I178: 6.879749813 | J178: 80 | K178: -1 | L178: 4.916902504 | M178: 4.926902504 | N178: -0.06814569228 | O178: 3.364843085 | P178: 78.22441769 | Q178: 4602.332935 | R178: =IF(H178>0, rate1(1,$L$52,$L$51,$L$54,L178,$L$53,$L$50,P178),"") -> 1077.469852 | S178: 1.269428046 | T178: 0.2529272408 | U178: 4.936902504 | V178: 4.936902504 | W178: 0.001466459454 | X178: 4630.901654 | Y178: 78.54227989 | Z178: =IF(H178>0, rate1(1,$L$52,$L$51,$L$54,U178,$L$53,$L$50,Y178),"") -> 1079.206669 | AA178: 1.275252317 | AB178: -0.005327691588 | AC178: 0.2529272408 | AD178: -0.079074124 | AE178: -0.004266086374 | AF178: 710.7785291 | AG178: 702.2469875 | AH178: 4.917303084 | AI178: 234.7418263 | AJ178: 9.847527687 | AK178: 171.5181333 | AL178: 2.817308628
B179: 710.7785291 | C179: 702.2469875 | D179: 4.917303084 | E179: =IF(AND(C179<$B$6,C179>$H$12),bb($B$6,$H$12,C179,$H$8,$H$9,I179,$H$10,$H$11),E178) -> 138.6882968 | F179: 138.6882968 | G179: 4599.179985 | H179: 0.02 | I179: 6.82523326 | J179: 80 | K179: -1 | L179: 4.897303084 | M179: 4.907303084 | N179: -0.06788067355 | O179: 3.324302276 | P179: 77.80916043 | Q179: 4546.675393 | R179: =IF(H179>0, rate1(1,$L$52,$L$51,$L$54,L179,$L$53,$L$50,P179),"") -> 1075.174676 | S179: 1.272079974 | T179: 0.2494879451 | U179: 4.917303084 | V179: 4.917303084 | W179: 0.001454838927 | X179: 4575.017498 | Y179: 78.12659931 | Z179: =IF(H179>0, rate1(1,$L$52,$L$51,$L$54,U179,$L$53,$L$50,Y179),"") -> 1076.931886 | AA179: 1.277921028 | AB179: -0.00523472058 | AC179: 0.2494879451 | AD179: -0.08016419386 | AE179: -0.004339318902 | AF179: 710.4611605 | AG179: 701.9974996 | AH179: 4.897701911 | AI179: 232.0441048 | AJ179: 9.911984383 | AK179: 172.6107674 | AL179: 2.836087974
B180: 710.4611605 | C180: 701.9974996 | D180: 4.897701911 | E180: =IF(AND(C180<$B$6,C180>$H$12),bb($B$6,$H$12,C180,$H$8,$H$9,I180,$H$10,$H$11),E179) -> 138.6882968 | F180: 138.6882968 | G180: 4544.176424 | H180: 0.02 | I180: 6.770928721 | J180: 80 | K180: -1 | L180: 4.877701911 | M180: 4.887701911 | N180: -0.06761558489 | O180: 3.284229198 | P180: 77.39442026 | Q180: 4491.455748 | R180: =IF(H180>0, rate1(1,$L$52,$L$51,$L$54,L180,$L$53,$L$50,P180),"") -> 1072.85221 | S180: 1.274716969 | T180: 0.2461281699 | U180: 4.897701911 | V180: 4.897701911 | W180: 0.001443263593 | X180: 4519.572122 | Y180: 77.71143465 | Z180: =IF(H180>0, rate1(1,$L$52,$L$51,$L$54,U180,$L$53,$L$50,Y180),"") -> 1074.630165 | AA180: 1.28057446 | AB180: -0.00514395926 | AC180: 0.2461281699 | AD180: -0.08125847605 | AE180: -0.004415845865 | AF180: 710.1474167 | AG180: 701.7513714 | AH180: 4.878098985 | AI180: 229.4147952 | AJ180: 9.975710715 | AK180: 173.67798 | AL180: 2.854651502
B181: 710.1474167 | C181: 701.7513714 | D181: 4.878098985 | E181: =IF(AND(C181<$B$6,C181>$H$12),bb($B$6,$H$12,C181,$H$8,$H$9,I181,$H$10,$H$11),E180) -> 138.6882968 | F181: 138.6882968 | G181: 4489.608299 | H181: 0.02 | I181: 6.716836253 | J181: 80 | K181: -1 | L181: 4.858098985 | M181: 4.868098985 | N181: -0.06735042629 | O181: 3.24461382 | P181: 76.98019879 | Q181: 4436.672346 | R181: =IF(H181>0, rate1(1,$L$52,$L$51,$L$54,L181,$L$53,$L$50,P181),"") -> 1070.501978 | S181: 1.277341048 | T181: 0.2428433393 | U181: 4.878098985 | V181: 4.878098985 | W181: 0.001431733463 | X181: 4464.563871 | Y181: 77.29678752 | Z181: =IF(H181>0, rate1(1,$L$52,$L$51,$L$54,U181,$L$53,$L$50,Y181),"") -> 1072.301039 | AA181: 1.283214623 | AB181: -0.005055294991 | AC181: 0.2428433393 | AD181: -0.08235762223 | AE181: -0.004495747354 | AF181: 709.837223 | AG181: 701.5085281 | AH181: 4.858494304 | AI181: 226.8499678 | AJ181: 10.03872459 | AK181: 174.7204813 | AL181: 2.873004686
B182: 709.837223 | C182: 701.5085281 | D182: 4.858494304 | E182: =IF(AND(C182<$B$6,C182>$H$12),bb($B$6,$H$12,C182,$H$8,$H$9,I182,$H$10,$H$11),E181) -> 138.6882968 | F182: 138.6882968 | G182: 4435.473956 | H182: 0.02 | I182: 6.662955912 | J182: 80 | K182: -1 | L182: 4.838494304 | M182: 4.848494304 | N182: -0.06708519771 | O182: 3.205446687 | P182: 76.56649763 | Q182: 4382.323535 | R182: =IF(H182>0, rate1(1,$L$52,$L$51,$L$54,L182,$L$53,$L$50,P182),"") -> 1068.123496 | S182: 1.279954143 | T182: 0.239629237 | U182: 4.858494304 | V182: 4.858494304 | W182: 0.001420248549 | X182: 4409.991094 | Y182: 76.88265953 | Z182: =IF(H182>0, rate1(1,$L$52,$L$51,$L$54,U182,$L$53,$L$50,Y182),"") -> 1069.944031 | AA182: 1.285843442 | AB182: -0.004968623873 | AC182: 0.239629237 | AD182: -0.08346226967 | AE182: -0.004579109733 | AF182: 709.5305085 | AG182: 701.2688988 | AH182: 4.838887869 | AI182: 224.346003 | AJ182: 10.10104293 | AK182: 175.7389488 | AL182: 2.891152683
B183: 709.5305085 | C183: 701.2688988 | D183: 4.838887869 | E183: =IF(AND(C183<$B$6,C183>$H$12),bb($B$6,$H$12,C183,$H$8,$H$9,I183,$H$10,$H$11),E182) -> 138.6882968 | F183: 138.6882968 | G183: 4381.771739 | H183: 0.02 | I183: 6.609287754 | J183: 80 | K183: -1 | L183: 4.818887869 | M183: 4.828887869 | N183: -0.06681989913 | O183: 3.166718878 | P183: 76.15331844 | Q183: 4328.407659 | R183: =IF(H183>0, rate1(1,$L$52,$L$51,$L$54,L183,$L$53,$L$50,P183),"") -> 1065.716266 | S183: 1.282558111 | T183: 0.2364819715 | U183: 4.838887869 | V183: 4.838887869 | W183: 0.001408808863 | X183: 4355.852135 | Y183: 76.4690523 | Z183: =IF(H183>0, rate1(1,$L$52,$L$51,$L$54,U183,$L$53,$L$50,Y183),"") -> 1067.558651 | AA183: 1.288462768 | AB183: -0.004883849909 | AC183: 0.2364819715 | AD183: -0.08457304325 | AE183: -0.004666025776 | AF183: 709.2272067 | AG183: 701.0324169 | AH183: 4.819279678 | AI183: 221.899561 | AJ183: 10.1626817 | AK183: 176.7340297 | AL183: 2.909100363
B184: 709.2272067 | C184: 701.0324169 | D184: 4.819279678 | E184: =IF(AND(C184<$B$6,C184>$H$12),bb($B$6,$H$12,C184,$H$8,$H$9,I184,$H$10,$H$11),E183) -> 138.6882968 | F184: 138.6882968 | G184: 4328.499993 | H184: 0.02 | I184: 6.555831834 | J184: 80 | K184: -1 | L184: 4.799279678 | M184: 4.809279678 | N184: -0.06655453053 | O184: 3.128421962 | P184: 75.74066284 | Q184: 4274.923064 | R184: =IF(H184>0, rate1(1,$L$52,$L$51,$L$54,L184,$L$53,$L$50,P184),"") -> 1063.279778 | S184: 1.285154741 | T184: 0.2333979449 | U184: 4.819279678 | V184: 4.819279678 | W184: 0.001397414417 | X184: 4302.145339 | Y184: 76.05596747 | Z184: =IF(H184>0, rate1(1,$L$52,$L$51,$L$54,U184,$L$53,$L$50,Y184),"") -> 1065.1444 | AA184: 1.291074382 | AB184: -0.00480088425 | AC184: 0.2333979449 | AD184: -0.08569055744 | AE184: -0.004756594831 | AF184: 708.9272542 | AG184: 700.7990189 | AH184: 4.799669731 | AI184: 219.5075555 | AJ184: 10.22365602 | AK184: 177.7063429 | AL184: 2.926852328
B185: 708.9272542 | C185: 700.7990189 | D185: 4.799669731 | E185: =IF(AND(C185<$B$6,C185>$H$12),bb($B$6,$H$12,C185,$H$8,$H$9,I185,$H$10,$H$11),E184) -> 138.6882968 | F185: 138.6882968 | G185: 4275.657061 | H185: 0.02 | I185: 6.50258821 | J185: 80 | K185: -1 | L185: 4.779669731 | M185: 4.789669731 | N185: -0.06628909189 | O185: 3.090547963 | P185: 75.3285325 | Q185: 4221.868092 | R185: =IF(H185>0, rate1(1,$L$52,$L$51,$L$54,L185,$L$53,$L$50,P185),"") -> 1060.813513 | S185: 1.287745761 | T185: 0.2303738259 | U185: 4.799669731 | V185: 4.799669731 | W185: 0.001386065223 | X185: 4248.869051 | Y185: 75.64340669 | Z185: =IF(H185>0, rate1(1,$L$52,$L$51,$L$54,U185,$L$53,$L$50,Y185),"") -> 1062.700766 | AA185: 1.293680003 | AB185: -0.004719644539 | AC185: 0.2303738259 | AD185: -0.08681541802 | AE185: -0.004850923016 | AF185: 708.6305913 | AG185: 700.5686451 | AH185: 4.780058026 | AI185: 217.1671299 | AJ185: 10.28398022 | AK185: 178.6564813 | AL185: 2.944412933
B186: 708.6305913 | C186: 700.5686451 | D186: 4.780058026 | E186: =IF(AND(C186<$B$6,C186>$H$12),bb($B$6,$H$12,C186,$H$8,$H$9,I186,$H$10,$H$11),E185) -> 138.6882968 | F186: 138.6882968 | G186: 4223.241285 | H186: 0.02 | I186: 6.449556936 | J186: 80 | K186: -1 | L186: 4.760058026 | M186: 4.770058026 | N186: -0.06602358318 | O186: 3.053089325 | P186: 74.91692909 | Q186: 4169.241087 | R186: =IF(H186>0, rate1(1,$L$52,$L$51,$L$54,L186,$L$53,$L$50,P186),"") -> 1058.316937 | S186: 1.290332843 | T186: 0.2274065256 | U186: 4.780058026 | V186: 4.780058026 | W186: 0.001374761292 | X186: 4196.021614 | Y186: 75.23137162 | Z186: =IF(H186>0, rate1(1,$L$52,$L$51,$L$54,U186,$L$53,$L$50,Y186),"") -> 1060.227225 | AA186: 1.296281293 | AB186: -0.004640054316 | AC186: 0.2274065256 | AD186: -0.08794822376 | AE186: -0.004949123447 | AF186: 708.3371612 | AG186: 700.3412386 | AH186: 4.760444563 | AI186: 214.8756366 | AJ186: 10.3436679 | AK186: 179.5850135 | AL186: 2.961786303
B187: 708.3371612 | C187: 700.3412386 | D187: 4.760444563 | E187: =IF(AND(C187<$B$6,C187>$H$12),bb($B$6,$H$12,C187,$H$8,$H$9,I187,$H$10,$H$11),E186) -> 138.6882968 | F187: 138.6882968 | G187: 4171.251006 | H187: 0.02 | I187: 6.39673807 | J187: 80 | K187: -1 | L187: 4.740444563 | M187: 4.750444563 | N187: -0.06575800437 | O187: 3.016038883 | P187: 74.50585428 | Q187: 4117.040391 | R187: =IF(H187>0, rate1(1,$L$52,$L$51,$L$54,L187,$L$53,$L$50,P187),"") -> 1055.789506 | S187: 1.29291761 | T187: 0.2244931753 | U187: 4.760444563 | V187: 4.760444563 | W187: 0.001363502638 | X187: 4143.601368 | Y187: 74.81986394 | Z187: =IF(H187>0, rate1(1,$L$52,$L$51,$L$54,U187,$L$53,$L$50,Y187),"") -> 1057.723243 | AA187: 1.298879863 | AB187: -0.004562042497 | AC187: 0.2244931753 | AD187: -0.08908956796 | AE187: -0.00505131649 | AF187: 708.04691 | AG187: 700.1167454 | AH187: 4.740829341 | AI187: 212.6306183 | AJ187: 10.40273196 | AK187: 180.4924852 | AL187: 2.978976354
B188: 708.04691 | C188: 700.1167454 | D188: 4.740829341 | E188: =IF(AND(C188<$B$6,C188>$H$12),bb($B$6,$H$12,C188,$H$8,$H$9,I188,$H$10,$H$11),E187) -> 138.6882968 | F188: 138.6882968 | G188: 4119.684566 | H188: 0.02 | I188: 6.344131666 | J188: 80 | K188: -1 | L188: 4.720829341 | M188: 4.730829341 | N188: -0.06549235545 | O188: 2.979389834 | P188: 74.09530976 | Q188: 4065.264345 | R188: =IF(H188>0, rate1(1,$L$52,$L$51,$L$54,L188,$L$53,$L$50,P188),"") -> 1053.230659 | S188: 1.295501639 | T188: 0.2216311075 | U188: 4.740829341 | V188: 4.740829341 | W188: 0.001352289271 | X188: 4091.606657 | Y188: 74.40888531 | Z188: =IF(H188>0, rate1(1,$L$52,$L$51,$L$54,U188,$L$53,$L$50,Y188),"") -> 1055.188268 | AA188: 1.301477279 | AB188: -0.004485542902 | AC188: 0.2216311075 | AD188: -0.09024003996 | AE188: -0.005157630047 | AF188: 707.7597865 | AG188: 699.8951143 | AH188: 4.721212359 | AI188: 210.4297911 | AJ188: 10.46118468 | AK188: 181.3794208 | AL188: 2.995986804
B189: 707.7597865 | C189: 699.8951143 | D189: 4.721212359 | E189: =IF(AND(C189<$B$6,C189>$H$12),bb($B$6,$H$12,C189,$H$8,$H$9,I189,$H$10,$H$11),E188) -> 138.6882968 | F189: 138.6882968 | G189: 4068.540303 | H189: 0.02 | I189: 6.291737782 | J189: 80 | K189: -1 | L189: 4.701212359 | M189: 4.711212359 | N189: -0.06522663639 | O189: 2.943135712 | P189: 73.68529723 | Q189: 4013.911288 | R189: =IF(H189>0, rate1(1,$L$52,$L$51,$L$54,L189,$L$53,$L$50,P189),"") -> 1050.639826 | S189: 1.298086467 | T189: 0.2188178385 | U189: 4.721212359 | V189: 4.721212359 | W189: 0.001341121204 | X189: 4040.03582 | Y189: 73.99843743 | Z189: =IF(H189>0, rate1(1,$L$52,$L$51,$L$54,U189,$L$53,$L$50,Y189),"") -> 1052.621741 | AA189: 1.304075066 | AB189: -0.00441049383 | AC189: 0.2188178385 | AD189: -0.09140022651 | AE189: -0.005268199874 | AF189: 707.475742 | AG189: 699.6762965 | AH189: 4.701593616 | AI189: 208.2710298 | AJ189: 10.51903774 | AK189: 182.2463252 | AL189: 3.012821187
B190: 707.475742 | C190: 699.6762965 | D190: 4.701593616 | E190: =IF(AND(C190<$B$6,C190>$H$12),bb($B$6,$H$12,C190,$H$8,$H$9,I190,$H$10,$H$11),E189) -> 138.6882968 | F190: 138.6882968 | G190: 4017.816556 | H190: =dv(S189) -> 0.02 | I190: 6.239556473 | J190: 80 | K190: -1 | L190: 4.681593616 | M190: 4.691593616 | N190: -0.06496084716 | O190: 2.907270363 | P190: 73.27581841 | Q190: 3962.979561 | R190: =IF(H190>0, rate1(1,$L$52,$L$51,$L$54,L190,$L$53,$L$50,P190),"") -> 1048.01642 | S190: 1.300673597 | T190: 0.2160510526 | U190: =L190-K190*H190 -> 4.701593616 | V190: 4.701593616 | W190: 0.001329998449 | X190: 3988.887196 | Y190: 73.58852201 | Z190: =IF(H190>0, rate1(1,$L$52,$L$51,$L$54,U190,$L$53,$L$50,Y190),"") -> 1050.023086 | AA190: 1.306674712 | AB190: -0.004336837688 | AC190: 0.2160510526 | AD190: -0.09257071307 | AE190: -0.005383169928 | AF190: 707.1947301 | AG190: 699.4602454 | AH190: 4.681973112 | AI190: 206.1523546 | AJ190: 10.57630228 | AK190: 183.0936843 | AL190: 3.029482869
B191: 707.1947301 | C191: 699.4602454 | D191: 4.681973112 | E191: =IF(AND(C191<$B$6,C191>$H$12),bb($B$6,$H$12,C191,$H$8,$H$9,I191,$H$10,$H$11),E190) -> 138.6882968 | F191: 138.6882968 | G191: 3967.511663 | H191: 0.02 | I191: 6.187587795 | J191: 80 | K191: -1 | L191: 4.661973112 | M191: 4.671973112 | N191: -0.06469498774 | O191: 2.871787927 | P191: 72.86687502 | Q191: 3912.467501 | R191: =IF(H191>0, rate1(1,$L$52,$L$51,$L$54,L191,$L$53,$L$50,P191),"") -> 1045.359841 | S191: 1.3032645 | T191: 0.2133285885 | U191: 4.681973112 | V191: 4.681973112 | W191: 0.001318921017 | X191: 3938.159124 | Y191: 73.17914076 | Z191: =IF(H191>0, rate1(1,$L$52,$L$51,$L$54,U191,$L$53,$L$50,Y191),"") -> 1047.391712 | AA191: 1.309277672 | AB191: -0.004264520642 | AC191: 0.2133285885 | AD191: -0.09375208519 | AE191: -0.005502692748 | AF191: 706.9167066 | AG191: 699.2469168 | AH191: 4.662350844 | AI191: 204.0719186 | AJ191: 10.63298893 | AK191: 183.9219666 | AL191: 3.045975058
B192: =IF(H192>0, AF191,"") -> 706.9167066 | C192: =IF(H192>0, AG191,"") -> 699.2469168 | D192: =IF(H192>0, AH191,"") -> 4.662350844 | E192: =IF(AND(C192<$B$6,C192>$H$12),bb($B$6,$H$12,C192,$H$8,$H$9,I192,$H$10,$H$11),E191) -> 138.6882968 | F192: =IF(H192>0, (E192+E191)/2,"") -> 138.6882968 | G192: =IF(H192>0, F192*$S$53*$C$55*(B192-C192+N192)^1.5,"") -> 3917.623962 | H192: 0.02 | I192: =IF(H192>0, (B192-C192)*B$19,"") -> 6.135831805 | J192: =IF(H192>0, $B$7,"") -> 80 | K192: =IF(H192>0, IF((1-S191-0.015)>0,1,-1),"") -> -1 | L192: =IF(H192>0, D192+K192*H192,"") -> 4.642350844 | M192: =IF(H192>0, (D192+L192)/2,"") -> 4.652350844 | N192: =IF(H192>0, 2*($P$53*M192/$S$52/$S$51)^2-(B192-C192)*2,"") -> -0.0644290581 | O192: =IF(H192>0, wh(B192,$F$51,$F$52,$F$53),"") -> 2.836682817 | P192: =IF(H192>0, $C$54*$L$55*$L$55*M192*M192/(($B$19*(B192-C192))^0.333)*1000,"") -> 72.4584688 | Q192: =IF(H192>0, M192/$S$54*(B192-C192+N192/2)*E192-J192,"") -> 3862.373446 | R192: =IF(H192>0, rate1(1,$L$52,$L$51,$L$54,L192,$L$53,$L$50,P192),"") -> 1042.669475 | S192: =IF(H192>0, Q192/O192/R192,"") -> 1.305860619 | T192: =IF(H192>0, N192/(1-S192),"") -> 0.2106484261 | U192: 4.662350844 | V192: =IF(H192>0, (D192+U192)/2,"") -> 4.662350844 | W192: =IF(H192>0, 2*($P$53*V192/$S$52/$S$51)^2-(B192-C192)*2,"") -> 0.001307888921 | X192: =IF(H192>0, V192/$S$54*(B192-C192+W192/2)*F192-J192,"") -> 3887.849943 | Y192: =IF(H192>0, $C$54*$L$55*$L$55*V192*V192/(($B$19*(B192-C192))^0.333)*1000,"") -> 72.77029542 | Z192: =IF(H192>0, rate1(1,$L$52,$L$51,$L$54,U192,$L$53,$L$50,Y192),"") -> 1044.727018 | AA192: =IF(H192>0, X192/O192/Z192,"") -> 1.311885374 | AB192: =IF(H192>0, W192/(1-AA192),"") -> -0.004193492316 | AC192: =IF(H192>0, delta_z(N192,S192,H192,AE191,AB192),"") -> 0.2106484261 | AD192: =IF(H192>0, H192/AC192*K192,"") -> -0.09494492966 | AE192: =IF(H192>0, (AD192-AD191)/(AC192+AC191)*2,"") -> -0.005626929873 | AF192: =IF(H192>0, B192-(AC192-N192),"") -> 706.6416291 | AG192: =IF(H192>0, C192-AC192,"") -> 699.0362684 | AH192: =IF(H192>0, $S$54*$S$53*$C$55*SQRT(AF192-AG192),"") -> 4.642726813 | AI192: =IF(H192>0, AC192/R192*1000000,"") -> 202.0279975 | AJ192: =IF(H192>0, AJ191+AI192/3600,"") -> 10.68910782 | AK192: =IF(H192>0, AK191+AI191*G191/1000000,"") -> 184.7316243 | AL192: =IF(H192>0, AL191+AI191*J191/1000000,"") -> 3.062300811
B193: 706.6416291 | C193: 699.0362684 | D193: 4.642726813 | E193: =IF(AND(C193<$B$6,C193>$H$12),bb($B$6,$H$12,C193,$H$8,$H$9,I193,$H$10,$H$11),E192) -> 138.6882968 | F193: 138.6882968 | G193: 3868.151788 | H193: 0.02 | I193: 6.084288558 | J193: 80 | K193: -1 | L193: 4.622726813 | M193: 4.632726813 | N193: -0.06416305822 | O193: 2.8019497 | P193: 72.05060149 | Q193: 3812.695732 | R193: =IF(H193>0, rate1(1,$L$52,$L$51,$L$54,L193,$L$53,$L$50,P193),"") -> 1039.944692 | S193: 1.308463375 | T193: 0.2080086757 | U193: 4.642726813 | V193: 4.642726813 | W193: 0.001296902172 | X193: 3837.957988 | Y193: 72.36198771 | Z193: =IF(H193>0, rate1(1,$L$52,$L$51,$L$54,U193,$L$53,$L$50,Y193),"") -> 1042.028383 | AA193: 1.314499222 | AB193: -0.004123705509 | AC193: 0.2080086757 | AD193: -0.09614983574 | AE193: -0.005756052296 | AF193: 706.3694574 | AG193: 698.8282597 | AH193: 4.623101017 | AI193: 200.0189791 | AJ193: 10.74466864 | AK193: 185.5230941 | AL193: 3.078463051
B194: 706.3694574 | C194: 698.8282597 | D194: 4.623101017 | E194: =IF(AND(C194<$B$6,C194>$H$12),bb($B$6,$H$12,C194,$H$8,$H$9,I194,$H$10,$H$11),E193) -> 138.6882968 | F194: 138.6882968 | G194: 3819.093476 | H194: 0.02 | I194: 6.032958112 | J194: 80 | K194: -1 | L194: 4.603101017 | M194: 4.613101017 | N194: -0.06389698808 | O194: 2.767583482 | P194: 71.64327486 | Q194: 3763.432695 | R194: =IF(H194>0, rate1(1,$L$52,$L$51,$L$54,L194,$L$53,$L$50,P194),"") -> 1037.184846 | S194: 1.311074168 | T194: 0.205407567 | U194: 4.623101017 | V194: 4.623101017 | W194: 0.001285960783 | X194: 3788.481596 | Y194: 71.9542194 | Z194: =IF(H194>0, rate1(1,$L$52,$L$51,$L$54,U194,$L$53,$L$50,Y194),"") -> 1039.295175 | AA194: 1.317120595 | AB194: -0.004055115948 | AC194: 0.205407567 | AD194: -0.09736739639 | AE194: -0.005890240962 | AF194: 706.1001528 | AG194: 698.6228521 | AH194: 4.603473456 | AI194: 198.0433553 | AJ194: 10.79968069 | AK194: 186.2967978 | AL194: 3.094464569
B195: 706.1001528 | C195: 698.6228521 | D195: 4.603473456 | E195: =IF(AND(C195<$B$6,C195>$H$12),bb($B$6,$H$12,C195,$H$8,$H$9,I195,$H$10,$H$11),E194) -> 138.6882968 | F195: 138.6882968 | G195: 3770.447361 | H195: 0.02 | I195: 5.981840521 | J195: 80 | K195: -1 | L195: 4.583473456 | M195: 4.593473456 | N195: -0.06363084765 | O195: 2.733579293 | P195: 71.23649069 | Q195: 3714.582671 | R195: =IF(H195>0, rate1(1,$L$52,$L$51,$L$54,L195,$L$53,$L$50,P195),"") -> 1034.389277 | S195: 1.313694382 | T195: 0.2028434404 | U195: 4.603473456 | V195: 4.603473456 | W195: 0.001275064766 | X195: 3739.419101 | Y195: 71.54699224 | Z195: =IF(H195>0, rate1(1,$L$52,$L$51,$L$54,U195,$L$53,$L$50,Y195),"") -> 1036.526745 | AA195: 1.31975086 | AB195: -0.003987682057 | AC195: 0.2028434404 | AD195: -0.09859820934 | AE195: -0.006029687295 | AF195: 705.8336785 | AG195: 698.4200087 | AH195: 4.583844129 | AI195: 196.0997131 | AJ195: 10.85415283 | AK195: 187.0531439 | AL195: 3.110308038
B196: 705.8336785 | C196: 698.4200087 | D196: 4.583844129 | E196: =IF(AND(C196<$B$6,C196>$H$12),bb($B$6,$H$12,C196,$H$8,$H$9,I196,$H$10,$H$11),E195) -> 138.6882968 | F196: 138.6882968 | G196: 3722.211776 | H196: 0.02 | I196: 5.930935843 | J196: 80 | K196: -1 | L196: 4.563844129 | M196: 4.573844129 | N196: -0.0633646369 | O196: 2.699932473 | P196: 70.83025074 | Q196: 3666.143992 | R196: =IF(H196>0, rate1(1,$L$52,$L$51,$L$54,L196,$L$53,$L$50,P196),"") -> 1031.557305 | S196: 1.316325387 | T196: 0.2003147379 | U196: 4.583844129 | V196: 4.583844129 | W196: 0.001264214132 | X196: 3690.768838 | Y196: 71.14030801 | Z196: =IF(H196>0, rate1(1,$L$52,$L$51,$L$54,U196,$L$53,$L$50,Y196),"") -> 1033.722427 | AA196: 1.322391364 | AB196: -0.003921364753 | AC196: 0.2003147379 | AD196: -0.09984287833 | AE196: -0.006174593787 | AF196: 705.5699991 | AG196: 698.219694 | AH196: 4.564213034 | AI196: 194.1867281 | AJ196: 10.90809359 | AK196: 187.7925276 | AL196: 3.125996015
B197: 705.5699991 | C197: 698.219694 | D197: 4.564213034 | E197: =IF(AND(C197<$B$6,C197>$H$12),bb($B$6,$H$12,C197,$H$8,$H$9,I197,$H$10,$H$11),E196) -> 138.6882968 | F197: 138.6882968 | G197: 3674.385053 | H197: 0.02 | I197: 5.880244134 | J197: 80 | K197: -1 | L197: 4.544213034 | M197: 4.554213034 | N197: -0.06309835581 | O197: 2.666638558 | P197: 70.42455684 | Q197: 3618.114992 | R197: =IF(H197>0, rate1(1,$L$52,$L$51,$L$54,L197,$L$53,$L$50,P197),"") -> 1028.688236 | S197: 1.318968543 | T197: 0.1978199956 | U197: 4.564213034 | V197: 4.564213034 | W197: 0.001253408894 | X197: 3642.529141 | Y197: 70.7341685 | Z197: =IF(H197>0, rate1(1,$L$52,$L$51,$L$54,U197,$L$53,$L$50,Y197),"") -> 1030.881538 | AA197: 1.325043447 | AB197: -0.003856127252 | AC197: 0.1978199956 | AD197: -0.1011020142 | AE197: -0.00632517462 | AF197: 705.3090808 | AG197: 698.021874 | AH197: 4.54458017 | AI197: 192.3031572 | AJ197: 10.96151113 | AK197: 188.5153317 | AL197: 3.141530953
B198: 705.3090808 | C198: 698.021874 | D198: 4.54458017 | E198: =IF(AND(C198<$B$6,C198>$H$12),bb($B$6,$H$12,C198,$H$8,$H$9,I198,$H$10,$H$11),E197) -> 138.6882968 | F198: 138.6882968 | G198: 3626.965524 | H198: 0.02 | I198: 5.829765449 | J198: 80 | K198: -1 | L198: 4.52458017 | M198: 4.53458017 | N198: -0.06283200435 | O198: 2.633693267 | P198: 70.01941077 | Q198: 3570.494003 | R198: =IF(H198>0, rate1(1,$L$52,$L$51,$L$54,L198,$L$53,$L$50,P198),"") -> 1025.781357 | S198: 1.321625205 | T198: 0.1953578368 | U198: 4.54458017 | V198: 4.54458017 | W198: 0.001242649063 | X198: 3594.69834 | Y198: 70.32857552 | Z198: =IF(H198>0, rate1(1,$L$52,$L$51,$L$54,U198,$L$53,$L$50,Y198),"") -> 1028.003379 | AA198: 1.327708438 | AB198: -0.003791934902 | AC198: 0.1953578368 | AD198: -0.102376236 | AE198: -0.006481656349 | AF198: 705.0508909 | AG198: 697.8265161 | AH198: 4.524945538 | AI198: 190.4478332 | AJ198: 11.01441331 | AK198: 189.2219275 | AL198: 3.156915206
B199: 705.0508909 | C199: 697.8265161 | D199: 4.524945538 | E199: =IF(AND(C199<$B$6,C199>$H$12),bb($B$6,$H$12,C199,$H$8,$H$9,I199,$H$10,$H$11),E198) -> 138.6882968 | F199: 138.6882968 | G199: 3579.95152 | H199: 0.02 | I199: 5.779499846 | J199: 80 | K199: -1 | L199: 4.504945538 | M199: 4.514945538 | N199: -0.0625655825 | O199: 2.601092496 | P199: 69.61481438 | Q199: 3523.279356 | R199: =IF(H199>0, rate1(1,$L$52,$L$51,$L$54,L199,$L$53,$L$50,P199),"") -> 1022.835938 | S199: 1.324296722 | T199: 0.1929269652 | U199: 4.524945538 | V199: 4.524945538 | W199: 0.001231934651 | X199: 3547.274768 | Y199: 69.92353087 | Z199: =IF(H199>0, rate1(1,$L$52,$L$51,$L$54,U199,$L$53,$L$50,Y199),"") -> 1025.087234 | AA199: 1.330387661 | AB199: -0.003728755024 | AC199: 0.1929269652 | AD199: -0.1036661722 | AE199: -0.006644278637 | AF199: 704.7953984 | AG199: 697.6335892 | AH199: 4.505309134 | AI199: 188.6196585 | AJ199: 11.06680766 | AK199: 189.9126753 | AL199: 3.172151032
B200: 704.7953984 | C200: 697.6335892 | D200: 4.505309134 | E200: =IF(AND(C200<$B$6,C200>$H$12),bb($B$6,$H$12,C200,$H$8,$H$9,I200,$H$10,$H$11),E199) -> 138.6882968 | F200: 138.6882968 | G200: 3533.341371 | H200: 0.02 | I200: 5.72944738 | J200: 80 | K200: -1 | L200: 4.485309134 | M200: 4.495309134 | N200: -0.06229909023 | O200: 2.568832304 | P200: 69.21076949 | Q200: 3476.469381 | R200: =IF(H200>0, rate1(1,$L$52,$L$51,$L$54,L200,$L$53,$L$50,P200),"") -> 1019.851228 | S200: 1.326984444 | T200: 0.1905261594 | U200: 4.505309134 | V200: 4.505309134 | W200: 0.001221265672 | X200: 3500.256756 | Y200: 69.51903639 | Z200: =IF(H200>0, rate1(1,$L$52,$L$51,$L$54,U200,$L$53,$L$50,Y200),"") -> 1022.132367 | AA200: 1.333082439 | AB200: -0.003666556769 | AC200: 0.1905261594 | AD200: -0.1049724618 | AE200: -0.006813295047 | AF200: 704.5425731 | AG200: 697.443063 | AH200: 4.48567096 | AI200: 186.8176007 | AJ200: 11.11870143 | AK200: 190.5879245 | AL200: 3.187240605
B201: 704.5425731 | C201: 697.443063 | D201: 4.48567096 | E201: =IF(AND(C201<$B$6,C201>$H$12),bb($B$6,$H$12,C201,$H$8,$H$9,I201,$H$10,$H$11),E200) -> 138.6882968 | F201: 138.6882968 | G201: 3487.133405 | H201: 0.02 | I201: 5.679608107 | J201: 80 | K201: -1 | L201: 4.46567096 | M201: 4.47567096 | N201: -0.06203252751 | O201: 2.536908903 | P201: 68.80727795 | Q201: 3430.062408 | R201: =IF(H201>0, rate1(1,$L$52,$L$51,$L$54,L201,$L$53,$L$50,P201),"") -> 1016.826459 | S201: 1.329689719 | T201: 0.1881542671 | U201: 4.48567096 | V201: 4.48567096 | W201: 0.001210642135 | X201: 3453.642632 | Y201: 69.11509391 | Z201: =IF(H201>0, rate1(1,$L$52,$L$51,$L$54,U201,$L$53,$L$50,Y201),"") -> 1019.138024 | AA201: 1.335794094 | AB201: -0.003605310985 | AC201: 0.1881542671 | AD201: -0.1062957556 | AE201: -0.006988973902 | AF201: 704.2923864 | AG201: 697.2549087 | AH201: 4.466031013 | AI201: 185.0406876 | AJ201: 11.17010162 | AK201: 191.2480149 | AL201: 3.202186013
B202: 704.2923864 | C202: 697.2549087 | D202: 4.466031013 | E202: =IF(AND(C202<$B$6,C202>$H$12),bb($B$6,$H$12,C202,$H$8,$H$9,I202,$H$10,$H$11),E201) -> 138.6882968 | F202: 138.6882968 | G202: 3441.32595 | H202: 0.02 | I202: 5.629982085 | J202: 80 | K202: -1 | L202: 4.446031013 | M202: 4.456031013 | N202: -0.06176589432 | O202: 2.50531865 | P202: 68.40434164 | Q202: 3384.056765 | R202: =IF(H202>0, rate1(1,$L$52,$L$51,$L$54,L202,$L$53,$L$50,P202),"") -> 1013.760841 | S202: 1.332413905 | T202: 0.1858102003 | U202: 4.466031013 | V202: 4.466031013 | W202: 0.001200064055 | X202: 3407.430726 | Y202: 68.71170528 | Z202: =IF(H202>0, rate1(1,$L$52,$L$51,$L$54,U202,$L$53,$L$50,Y202),"") -> 1016.10343 | AA202: 1.338523951 | AB202: -0.003544990101 | AC202: 0.1858102003 | AD202: -0.1076367173 | AE202: -0.007171599215 | AF202: 704.0448103 | AG202: 697.0690985 | AH202: 4.446389293 | AI202: 183.2880032 | AJ202: 11.22101496 | AK202: 191.8932764 | AL202: 3.216989268
B203: 704.0448103 | C203: 697.0690985 | D203: 4.446389293 | E203: =IF(AND(C203<$B$6,C203>$H$12),bb($B$6,$H$12,C203,$H$8,$H$9,I203,$H$10,$H$11),E202) -> 138.6882968 | F203: 138.6882968 | G203: 3395.917334 | H203: 0.02 | I203: 5.58056937 | J203: 80 | K203: -1 | L203: 4.426389293 | M203: 4.436389293 | N203: -0.06149919063 | O203: 2.474058042 | P203: 68.00196242 | Q203: 3338.450781 | R203: =IF(H203>0, rate1(1,$L$52,$L$51,$L$54,L203,$L$53,$L$50,P203),"") -> 1010.653566 | S203: 1.335158365 | T203: 0.1834929309 | U203: 4.446389293 | V203: 4.446389293 | W203: 0.001189531441 | X203: 3361.619365 | Y203: 68.30887238 | Z203: =IF(H203>0, rate1(1,$L$52,$L$51,$L$54,U203,$L$53,$L$50,Y203),"") -> 1013.027792 | AA203: 1.341273341 | AB203: -0.003485568009 | AC203: 0.1834929309 | AD203: -0.1089960246 | AE203: -0.007361471692 | AF203: 703.7998181 | AG203: 696.8856056 | AH203: 4.426745799 | AI203: 181.5586834 | AJ203: 11.27144793 | AK203: 192.5240302 | AL203: 3.231652308
B204: 703.7998181 | C204: 696.8856056 | D204: 4.426745799 | E204: =IF(AND(C204<$B$6,C204>$H$12),bb($B$6,$H$12,C204,$H$8,$H$9,I204,$H$10,$H$11),E203) -> 138.6882968 | F204: 138.6882968 | G204: 3350.905882 | H204: 0.02 | I204: 5.531370017 | J204: 80 | K204: -1 | L204: 4.406745799 | M204: 4.416745799 | N204: -0.06123241642 | O204: 2.443123703 | P204: 67.60014218 | Q204: 3293.242781 | R204: =IF(H204>0, rate1(1,$L$52,$L$51,$L$54,L204,$L$53,$L$50,P204),"") -> 1007.503802 | S204: 1.337924471 | T204: 0.1812014862 | U204: 4.426745799 | V204: 4.426745799 | W204: 0.001179044308 | X204: 3316.206878 | Y204: 67.90659708 | Z204: =IF(H204>0, rate1(1,$L$52,$L$51,$L$54,U204,$L$53,$L$50,Y204),"") -> 1009.910295 | AA204: 1.344043606 | AB204: -0.003427019969 | AC204: 0.1812014862 | AD204: -0.1103743707 | AE204: -0.007558909819 | AF204: 703.5573842 | AG204: 696.7044041 | AH204: 4.407100529 | AI204: 179.851913 | AJ204: 11.32140679 | AK204: 193.1405885 | AL204: 3.246177003
B205: 703.5573842 | C205: 696.7044041 | D205: 4.407100529 | E205: =IF(AND(C205<$B$6,C205>$H$12),bb($B$6,$H$12,C205,$H$8,$H$9,I205,$H$10,$H$11),E204) -> 138.6882968 | F205: 138.6882968 | G205: 3306.28992 | H205: 0.02 | I205: 5.482384084 | J205: 80 | K205: -1 | L205: 4.387100529 | M205: 4.397100529 | N205: -0.06096557166 | O205: 2.412512382 | P205: 67.19888284 | Q205: 3248.431091 | R205: =IF(H205>0, rate1(1,$L$52,$L$51,$L$54,L205,$L$53,$L$50,P205),"") -> 1004.310697 | S205: 1.340713613 | T205: 0.1789349453 | U205: 4.407100529 | V205: 4.407100529 | W205: 0.001168602666 | X205: 3271.191588 | Y205: 67.50488128 | Z205: =IF(H205>0, rate1(1,$L$52,$L$51,$L$54,U205,$L$53,$L$50,Y205),"") -> 1006.750103 | AA205: 1.346836096 | AB205: -0.003369322513 | AC205: 0.1789349453 | AD205: -0.1117724655 | AE205: -0.007764251038 | AF205: 703.3174837 | AG205: 696.5254692 | AH205: 4.387453482 | AI205: 178.1669217 | AJ205: 11.3708976 | AK205: 193.7432553 | AL205: 3.260565156
B206: 703.3174837 | C206: 696.5254692 | D206: 4.387453482 | E206: =IF(AND(C206<$B$6,C206>$H$12),bb($B$6,$H$12,C206,$H$8,$H$9,I206,$H$10,$H$11),E205) -> 138.6882968 | F206: 138.6882968 | G206: 3262.067773 | H206: 0.02 | I206: 5.433611627 | J206: 80 | K206: -1 | L206: 4.367453482 | M206: 4.377453482 | N206: -0.06069865632 | O206: 2.382220944 | P206: 66.79818631 | Q206: 3204.014037 | R206: =IF(H206>0, rate1(1,$L$52,$L$51,$L$54,L206,$L$53,$L$50,P206),"") -> 1001.073375 | S206: 1.343527193 | T206: 0.1766924355 | U206: 4.387453482 | V206: 4.387453482 | W206: 0.001158206527 | X206: 3226.571822 | Y206: 67.10372689 | Z206: =IF(H206>0, rate1(1,$L$52,$L$51,$L$54,U206,$L$53,$L$50,Y206),"") -> 1003.546357 | AA206: 1.349652177 | AB206: -0.003312453356 | AC206: 0.1766924355 | AD206: -0.113191037 | AE206: -0.007977853021 | AF206: 703.0800926 | AG206: 696.3487767 | AH206: 4.367804658 | AI206: 176.5029817 | AJ206: 11.41992621 | AK206: 194.3323268 | AL206: 3.27481851
B207: 703.0800926 | C207: 696.3487767 | D207: 4.367804658 | E207: =IF(AND(C207<$B$6,C207>$H$12),bb($B$6,$H$12,C207,$H$8,$H$9,I207,$H$10,$H$11),E206) -> 138.6882968 | F207: 138.6882968 | G207: 3218.237764 | H207: 0.02 | I207: 5.385052702 | J207: 80 | K207: -1 | L207: 4.347804658 | M207: 4.357804658 | N207: -0.06043167037 | O207: 2.352246362 | P207: 66.39805452 | Q207: 3159.989942 | R207: =IF(H207>0, rate1(1,$L$52,$L$51,$L$54,L207,$L$53,$L$50,P207),"") -> 997.790936 | S207: 1.346366634 | T207: 0.1744731288 | U207: 4.367804658 | V207: 4.367804658 | W207: 0.001147855905 | X207: 3182.345905 | Y207: 66.70313582 | Z207: =IF(H207>0, rate1(1,$L$52,$L$51,$L$54,U207,$L$53,$L$50,Y207),"") -> 1000.298176 | AA207: 1.352493233 | AB207: -0.003256391321 | AC207: 0.1744731288 | AD207: -0.1146308325 | AE207: -0.008200095047 | AF207: 702.8451878 | AG207: 696.1743036 | AH207: 4.348154055 | AI207: 174.8594044 | AJ207: 11.46849827 | AK207: 194.9080915 | AL207: 3.288938748
B208: 702.8451878 | C208: 696.1743036 | D208: 4.348154055 | E208: =IF(AND(C208<$B$6,C208>$H$12),bb($B$6,$H$12,C208,$H$8,$H$9,I208,$H$10,$H$11),E207) -> 138.6882968 | F208: 138.6882968 | G208: 3174.798215 | H208: 0.02 | I208: 5.336707366 | J208: 80 | K208: -1 | L208: 4.328154055 | M208: 4.338154055 | N208: -0.06016461379 | O208: 2.322585716 | P208: 65.99848941 | Q208: 3116.35713 | R208: =IF(H208>0, rate1(1,$L$52,$L$51,$L$54,L208,$L$53,$L$50,P208),"") -> 994.4624577 | S208: 1.349233383 | T208: 0.1722762391 | U208: 4.348154055 | V208: 4.348154055 | W208: 0.00113755081 | X208: 3138.512158 | Y208: 66.30311002 | Z208: =IF(H208>0, rate1(1,$L$52,$L$51,$L$54,U208,$L$53,$L$50,Y208),"") -> 997.0046561 | AA208: 1.355360667 | AB208: -0.003201116261 | AC208: 0.1722762391 | AD208: -0.1160926202 | AE208: -0.008431379499 | AF208: 702.612747 | AG208: 696.0020274 | AH208: 4.328501673 | AI208: 173.2355382 | AJ208: 11.51661925 | AK208: 195.4708306 | AL208: 3.3029275
B209: =IF(H209>0, AF208,"") -> 702.612747 | C209: =IF(H209>0, AG208,"") -> 696.0020274 | D209: =IF(H209>0, AH208,"") -> 4.328501673 | E209: =IF(AND(C209<$B$6,C209>$H$12),bb($B$6,$H$12,C209,$H$8,$H$9,I209,$H$10,$H$11),E208) -> 138.6882968 | F209: =IF(H209>0, (E209+E208)/2,"") -> 138.6882968 | G209: =IF(H209>0, F209*$S$53*$C$55*(B209-C209+N209)^1.5,"") -> 3131.747448 | H209: =dv(S208) -> 0.02 | I209: =IF(H209>0, (B209-C209)*B$19,"") -> 5.288575675 | J209: =IF(H209>0, $B$7,"") -> 80 | K209: =IF(H209>0, IF((1-S208-0.015)>0,1,-1),"") -> -1 | L209: =IF(H209>0, D209+K209*H209,"") -> 4.308501673 | M209: =IF(H209>0, (D209+L209)/2,"") -> 4.318501673 | N209: =IF(H209>0, 2*($P$53*M209/$S$52/$S$51)^2-(B209-C209)*2,"") -> -0.05989748655 | O209: =IF(H209>0, wh(B209,$F$51,$F$52,$F$53),"") -> 2.293236184 | P209: =IF(H209>0, $C$54*$L$55*$L$55*M209*M209/(($B$19*(B209-C209))^0.333)*1000,"") -> 65.59949296 | Q209: =IF(H209>0, M209/$S$54*(B209-C209+N209/2)*E209-J209,"") -> 3073.113923 | R209: =IF(H209>0, rate1(1,$L$52,$L$51,$L$54,L209,$L$53,$L$50,P209),"") -> 991.0869912 | S209: =IF(H209>0, Q209/O209/R209,"") -> 1.35212891 | T209: =IF(H209>0, N209/(1-S209),"") -> 0.1701010192 | U209: =L209-K209*H209 -> 4.328501673 | V209: =IF(H209>0, (D209+U209)/2,"") -> 4.328501673 | W209: =IF(H209>0, 2*($P$53*V209/$S$52/$S$51)^2-(B209-C209)*2,"") -> 0.001127291254 | X209: =IF(H209>0, V209/$S$54*(B209-C209+W209/2)*F209-J209,"") -> 3095.068905 | Y209: =IF(H209>0, $C$54*$L$55*$L$55*V209*V209/(($B$19*(B209-C209))^0.333)*1000,"") -> 65.90365143 | Z209: =IF(H209>0, rate1(1,$L$52,$L$51,$L$54,U209,$L$53,$L$50,Y209),"") -> 993.6648664 | AA209: =IF(H209>0, X209/O209/Z209,"") -> 1.358255905 | AB209: =IF(H209>0, W209/(1-AA209),"") -> -0.003146608995 | AC209: =IF(H209>0, delta_z(N209,S209,H209,AE208,AB209),"") -> 0.1701010192 | AD209: =IF(H209>0, H209/AC209*K209,"") -> -0.1175771909 | AE209: =IF(H209>0, (AD209-AD208)/(AC209+AC208)*2,"") -> -0.008672133488 | AF209: =IF(H209>0, B209-(AC209-N209),"") -> 702.3827485 | AG209: =IF(H209>0, C209-AC209,"") -> 695.8319264 | AH209: =IF(H209>0, $S$54*$S$53*$C$55*SQRT(AF209-AG209),"") -> 4.308847509 | AI209: =IF(H209>0, AC209/R209*1000000,"") -> 171.6307657 | AJ209: =IF(H209>0, AJ208+AI209/3600,"") -> 11.56429446 | AK209: =IF(H209>0, AK208+AI208*G208/1000000,"") -> 196.0208185 | AL209: =IF(H209>0, AL208+AI208*J208/1000000,"") -> 3.316786344
B210: 702.3827485 | C210: 695.8319264 | D210: 4.308847509 | E210: =IF(AND(C210<$B$6,C210>$H$12),bb($B$6,$H$12,C210,$H$8,$H$9,I210,$H$10,$H$11),E209) -> 138.6882968 | F210: 138.6882968 | G210: 3089.083784 | H210: 0.02 | I210: 5.240657685 | J210: 80 | K210: -1 | L210: 4.288847509 | M210: 4.298847509 | N210: -0.05963028862 | O210: 2.26419504 | P210: 65.20106713 | Q210: 3030.258642 | R210: =IF(H210>0, rate1(1,$L$52,$L$51,$L$54,L210,$L$53,$L$50,P210),"") -> 987.6635621 | S210: 1.355054716 | T210: 0.1679467582 | U210: 4.308847509 | V210: 4.308847509 | W210: 0.001117077251 | X210: 3052.014468 | Y210: 65.50476203 | Z210: =IF(H210>0, rate1(1,$L$52,$L$51,$L$54,U210,$L$53,$L$50,Y210),"") -> 990.2778526 | AA210: 1.361180401 | AB210: -0.003092851241 | AC210: 0.1679467582 | AD210: -0.119085359 | AE210: -0.008922810608 | AF210: 702.1551714 | AG210: 695.6639796 | AH210: 4.289191564 | AI210: 170.0445017 | AJ210: 11.61152904 | AK210: 196.5583227 | AL210: 3.330516805
B211: 702.1551714 | C211: 695.6639796 | D211: 4.289191564 | E211: =IF(AND(C211<$B$6,C211>$H$12),bb($B$6,$H$12,C211,$H$8,$H$9,I211,$H$10,$H$11),E210) -> 138.6882968 | F211: 138.6882968 | G211: 3046.805543 | H211: 0.02 | I211: 5.192953454 | J211: 80 | K211: -1 | L211: 4.269191564 | M211: 4.279191564 | N211: -0.05936301997 | O211: 2.235459645 | P211: 64.80321392 | Q211: 2987.789607 | R211: =IF(H211>0, rate1(1,$L$52,$L$51,$L$54,L211,$L$53,$L$50,P211),"") -> 984.1911691 | S211: 1.358012333 | T211: 0.1658127793 | U211: 4.289191564 | V211: 4.289191564 | W211: 0.001106908811 | X211: 3009.347167 | Y211: 65.10644378 | Z211: =IF(H211>0, rate1(1,$L$52,$L$51,$L$54,U211,$L$53,$L$50,Y211),"") -> 986.8426337 | AA211: 1.364135635 | AB211: -0.003039825558 | AC211: 0.1658127793 | AD211: -0.1206179649 | AE211: -0.009183892855 | AF211: 701.9299956 | AG211: 695.4981668 | AH211: 4.269533835 | AI211: 168.4761909 | AJ211: 11.65832799 | AK211: 197.0836044 | AL211: 3.344120365
B212: 701.9299956 | C212: 695.4981668 | D212: 4.269533835 | E212: =IF(AND(C212<$B$6,C212>$H$12),bb($B$6,$H$12,C212,$H$8,$H$9,I212,$H$10,$H$11),E211) -> 138.6882968 | F212: 138.6882968 | G212: 3004.911045 | H212: 0.02 | I212: 5.145463038 | J212: 80 | K212: -1 | L212: 4.249533835 | M212: 4.259533835 | N212: -0.05909568058 | O212: 2.207027447 | P212: 64.40593533 | Q212: 2945.705138 | R212: =IF(H212>0, rate1(1,$L$52,$L$51,$L$54,L212,$L$53,$L$50,P212),"") -> 980.6687832 | S212: 1.361003328 | T212: 0.1636984371 | U212: 4.269533835 | V212: 4.269533835 | W212: 0.001096785948 | X212: 2967.065321 | Y212: 64.70869868 | Z212: =IF(H212>0, rate1(1,$L$52,$L$51,$L$54,U212,$L$53,$L$50,Y212),"") -> 983.3582017 | AA212: 1.367123124 | AB212: -0.002987515296 | AC212: 0.1636984371 | AD212: -0.1221758763 | AE212: -0.009455892701 | AF212: 701.7072015 | AG212: 695.3344684 | AH212: 4.249874322 | AI212: 166.9253064 | AJ212: 11.70469613 | AK212: 197.5969186 | AL212: 3.35759846
B213: 701.7072015 | C213: 695.3344684 | D213: 4.249874322 | E213: =IF(AND(C213<$B$6,C213>$H$12),bb($B$6,$H$12,C213,$H$8,$H$9,I213,$H$10,$H$11),E212) -> 138.6882968 | F213: 138.6882968 | G213: 2963.398606 | H213: 0.02 | I213: 5.098186494 | J213: 80 | K213: -1 | L213: 4.229874322 | M213: 4.239874322 | N213: -0.05882827041 | O213: 2.178895976 | P213: 64.00923338 | Q213: 2904.003554 | R213: =IF(H213>0, rate1(1,$L$52,$L$51,$L$54,L213,$L$53,$L$50,P213),"") -> 977.0953464 | S213: 1.364029308 | T213: 0.1616031158 | U213: 4.249874322 | V213: 4.249874322 | W213: 0.001086708672 | X213: 2925.16725 | Y213: 64.31152875 | Z213: =IF(H213>0, rate1(1,$L$52,$L$51,$L$54,U213,$L$53,$L$50,Y213),"") -> 979.8235205 | AA213: 1.370144416 | AB213: -0.002935904538 | AC213: 0.1616031158 | AD213: -0.12375999 | AE213: -0.009739355359 | AF213: 701.4867701 | AG213: 695.1728653 | AH213: 4.230213023 | AI213: 165.3913473 | AJ213: 11.75063817 | AK213: 198.0985143 | AL213: 3.370952485
B214: 701.4867701 | C214: 695.1728653 | D214: 4.230213023 | E214: =IF(AND(C214<$B$6,C214>$H$12),bb($B$6,$H$12,C214,$H$8,$H$9,I214,$H$10,$H$11),E213) -> 138.6882968 | F214: 138.6882968 | G214: 2922.266544 | H214: 0.02 | I214: 5.051123878 | J214: 80 | K214: -1 | L214: 4.210213023 | M214: 4.220213023 | N214: -0.05856078945 | O214: 2.15106284 | P214: 63.61311012 | Q214: 2862.683173 | R214: =IF(H214>0, rate1(1,$L$52,$L$51,$L$54,L214,$L$53,$L$50,P214),"") -> 973.4697713 | S214: 1.367091922 | T214: 0.1595262273 | U214: 4.230213023 | V214: 4.230213023 | W214: 0.001076676996 | X214: 2883.651272 | Y214: 63.91493601 | Z214: =IF(H214>0, rate1(1,$L$52,$L$51,$L$54,U214,$L$53,$L$50,Y214),"") -> 976.237525 | AA214: 1.373201103 | AB214: -0.002884978062 | AC214: 0.1595262273 | AD214: -0.1253712342 | AE214: -0.01003486124 | AF214: 701.2686831 | AG214: 695.013339 | AH214: 4.210549938 | AI214: 163.8738377 | AJ214: 11.79615868 | AK214: 198.5886348 | AL214: 3.384183793
B215: 701.2686831 | C215: 695.013339 | D215: 4.210549938 | E215: =IF(AND(C215<$B$6,C215>$H$12),bb($B$6,$H$12,C215,$H$8,$H$9,I215,$H$10,$H$11),E214) -> 138.6882968 | F215: 138.6882968 | G215: 2881.513176 | H215: 0.02 | I215: 5.004275246 | J215: 80 | K215: -1 | L215: 4.190549938 | M215: 4.200549938 | N215: -0.05829323765 | O215: 2.123525719 | P215: 63.21756758 | Q215: 2821.742311 | R215: =IF(H215>0, rate1(1,$L$52,$L$51,$L$54,L215,$L$53,$L$50,P215),"") -> 969.7909394 | S215: 1.370192868 | T215: 0.1574672088 | U215: 4.210549938 | V215: 4.210549938 | W215: 0.001066690933 | X215: 2842.515703 | Y215: 63.51892249 | Z215: =IF(H215>0, rate1(1,$L$52,$L$51,$L$54,U215,$L$53,$L$50,Y215),"") -> 972.5991202 | AA215: 1.376294819 | AB215: -0.002834721288 | AC215: 0.1574672088 | AD215: -0.1270105703 | AE215: -0.01034302866 | AF215: 701.0529227 | AG215: 694.8558718 | AH215: 4.190885065 | AI215: 162.3723242 | AJ215: 11.8412621 | AK215: 199.0675178 | AL215: 3.3972937
B216: 701.0529227 | C216: 694.8558718 | D216: 4.190885065 | E216: =IF(AND(C216<$B$6,C216>$H$12),bb($B$6,$H$12,C216,$H$8,$H$9,I216,$H$10,$H$11),E215) -> 138.6882968 | F216: 138.6882968 | G216: 2841.136817 | H216: 0.02 | I216: 4.957640656 | J216: 80 | K216: -1 | L216: 4.170885065 | M216: 4.180885065 | N216: -0.05802561499 | O216: 2.096282367 | P216: 62.82260785 | Q216: 2781.179284 | R216: =IF(H216>0, rate1(1,$L$52,$L$51,$L$54,L216,$L$53,$L$50,P216),"") -> 966.0577005 | S216: 1.373333892 | T216: 0.155425522 | U216: 4.190885065 | V216: 4.190885065 | W216: 0.001056750493 | X216: 2801.758861 | Y216: 63.12349026 | Z216: =IF(H216>0, rate1(1,$L$52,$L$51,$L$54,U216,$L$53,$L$50,Y216),"") -> 968.9071801 | AA216: 1.379427242 | AB216: -0.002785120244 | AC216: 0.155425522 | AD216: -0.1286789952 | AE216: -0.01066451674 | AF216: 700.8394715 | AG216: 694.7004463 | AH216: 4.171218403 | AI216: 160.8863756 | AJ216: 11.88595276 | AK216: 199.5353958 | AL216: 3.410283485
B217: 700.8394715 | C217: 694.7004463 | D217: 4.171218403 | E217: =IF(AND(C217<$B$6,C217>$H$12),bb($B$6,$H$12,C217,$H$8,$H$9,I217,$H$10,$H$11),E216) -> 138.6882968 | F217: 138.6882968 | G217: 2801.135781 | H217: 0.02 | I217: 4.911220164 | J217: 80 | K217: -1 | L217: 4.151218403 | M217: 4.161218403 | N217: -0.05775792144 | O217: 2.069330603 | P217: 62.428233 | Q217: 2740.992407 | R217: =IF(H217>0, rate1(1,$L$52,$L$51,$L$54,L217,$L$53,$L$50,P217),"") -> 962.2688713 | S217: 1.376516796 | T217: 0.1534006506 | U217: 4.171218403 | V217: 4.171218403 | W217: 0.00104685569 | X217: 2761.379059 | Y217: 62.72864139 | Z217: =IF(H217>0, rate1(1,$L$52,$L$51,$L$54,U217,$L$53,$L$50,Y217),"") -> 965.1605462 | AA217: 1.382600106 | AB217: -0.002736161526 | AC217: 0.1534006506 | AD217: -0.1303775436 | AE217: -0.0110000286 | AF217: 700.6283129 | AG217: 694.5470457 | AH217: 4.15154995 | AI217: 159.4155803 | AJ217: 11.93023487 | AK217: 199.992496 | AL217: 3.423154396
B218: 700.6283129 | C218: 694.5470457 | D218: 4.15154995 | E218: =IF(AND(C218<$B$6,C218>$H$12),bb($B$6,$H$12,C218,$H$8,$H$9,I218,$H$10,$H$11),E217) -> 138.6882968 | F218: 138.6882968 | G218: 2761.508382 | H218: 0.02 | I218: 4.865013827 | J218: 80 | K218: -1 | L218: 4.13154995 | M218: 4.14154995 | N218: -0.05749015698 | O218: 2.042668314 | P218: 62.03444514 | Q218: 2701.179994 | R218: =IF(H218>0, rate1(1,$L$52,$L$51,$L$54,L218,$L$53,$L$50,P218),"") -> 958.4232342 | S218: 1.379743443 | T218: 0.1513920991 | U218: 4.15154995 | V218: 4.15154995 | W218: 0.001037006536 | X218: 2721.374613 | Y218: 62.33437796 | Z218: =IF(H218>0, rate1(1,$L$52,$L$51,$L$54,U218,$L$53,$L$50,Y218),"") -> 961.3580271 | AA218: 1.385815198 | AB218: -0.00268783226 | AC218: 0.1513920991 | AD218: -0.1321072904 | AE218: -0.01135031491 | AF218: 700.4194307 | AG218: 694.3956536 | AH218: 4.131879706 | AI218: 157.9595461 | AJ218: 11.97411252 | AK218: 200.4390407 | AL218: 3.435907642
B219: 700.4194307 | C219: 694.3956536 | D219: 4.131879706 | E219: =IF(AND(C219<$B$6,C219>$H$12),bb($B$6,$H$12,C219,$H$8,$H$9,I219,$H$10,$H$11),E218) -> 138.6882968 | F219: 138.6882968 | G219: 2722.252933 | H219: 0.02 | I219: 4.819021701 | J219: 80 | K219: -1 | L219: 4.111879706 | M219: 4.121879706 | N219: -0.05722232157 | O219: 2.016293448 | P219: 61.64124638 | Q219: 2661.740359 | R219: =IF(H219>0, rate1(1,$L$52,$L$51,$L$54,L219,$L$53,$L$50,P219),"") -> 954.5195364 | S219: 1.38301576 | T219: 0.1493993917 | U219: 4.131879706 | V219: 4.131879706 | W219: 0.001027203042 | X219: 2681.743835 | Y219: 61.94070208 | Z219: =IF(H219>0, rate1(1,$L$52,$L$51,$L$54,U219,$L$53,$L$50,Y219),"") -> 957.4983965 | AA219: 1.389074365 | AB219: -0.002640120073 | AC219: 0.1493993917 | AD219: -0.1338693537 | AE219: -0.01171617765 | AF219: 700.212809 | AG219: 694.2462542 | AH219: 4.112207669 | AI219: 156.5178982 | AJ219: 12.01758971 | AK219: 200.8752473 | AL219: 3.448544406
B220: 700.212809 | C220: 694.2462542 | D220: 4.112207669 | E220: =IF(AND(C220<$B$6,C220>$H$12),bb($B$6,$H$12,C220,$H$8,$H$9,I220,$H$10,$H$11),E219) -> 138.6882968 | F220: 138.6882968 | G220: 2683.367746 | H220: 0.02 | I220: 4.773243844 | J220: 80 | K220: -1 | L220: 4.092207669 | M220: 4.102207669 | N220: -0.05695441518 | O220: 1.990204013 | P220: 61.24863885 | Q220: 2622.671814 | R220: =IF(H220>0, rate1(1,$L$52,$L$51,$L$54,L220,$L$53,$L$50,P220),"") -> 950.556488 | S220: 1.386335744 | T220: 0.1474220703 | U220: 4.112207669 | V220: 4.112207669 | W220: 0.00101744522 | X220: 2642.485039 | Y220: 61.54761587 | Z220: =IF(H220>0, rate1(1,$L$52,$L$51,$L$54,U220,$L$53,$L$50,Y220),"") -> 953.5803927 | AA220: 1.39237952 | AB220: -0.002593013058 | AC220: 0.1474220703 | AD220: -0.1356648971 | AE220: -0.01209847433 | AF220: 700.0084325 | AG220: 694.0988321 | AH220: 4.092533838 | AI220: 155.0902784 | AJ220: 12.06067035 | AK220: 201.3013286 | AL220: 3.461065837
B221: 700.0084325 | C221: 694.0988321 | D221: 4.092533838 | E221: =IF(AND(C221<$B$6,C221>$H$12),bb($B$6,$H$12,C221,$H$8,$H$9,I221,$H$10,$H$11),E220) -> 138.6882968 | F221: 138.6882968 | G221: 2644.851131 | H221: 0.02 | I221: 4.727680312 | J221: 80 | K221: -1 | L221: 4.072533838 | M221: 4.082533838 | N221: -0.05668643778 | O221: 1.964398076 | P221: 60.8566247 | Q221: 2583.97267 | R221: =IF(H221>0, rate1(1,$L$52,$L$51,$L$54,L221,$L$53,$L$50,P221),"") -> 946.5327613 | S221: 1.389705466 | T221: 0.145459694 | U221: 4.092533838 | V221: 4.092533838 | W221: 0.001007733083 | X221: 2603.596536 | Y221: 61.15512147 | Z221: =IF(H221>0, rate1(1,$L$52,$L$51,$L$54,U221,$L$53,$L$50,Y221),"") -> 949.6027166 | AA221: 1.395732646 | AB221: -0.002546499746 | AC221: 0.145459694 | AD221: -0.1374951332 | AE221: -0.01249812259 | AF221: 699.8062864 | AG221: 693.9533724 | AH221: 4.072858212 | AI221: 153.6763438 | AJ221: 12.10335822 | AK221: 201.7174929 | AL221: 3.47347306
B222: 699.8062864 | C222: 693.9533724 | D222: 4.072858212 | E222: =IF(AND(C222<$B$6,C222>$H$12),bb($B$6,$H$12,C222,$H$8,$H$9,I222,$H$10,$H$11),E221) -> 138.6882968 | F222: 138.6882968 | G222: 2606.701398 | H222: 0.02 | I222: 4.682331162 | J222: 80 | K222: -1 | L222: 4.052858212 | M222: 4.062858212 | N222: -0.05641838935 | O222: 1.938873757 | P222: 60.46520611 | Q222: 2545.641238 | R222: =IF(H222>0, rate1(1,$L$52,$L$51,$L$54,L222,$L$53,$L$50,P222),"") -> 942.4469888 | S222: 1.393127079 | T222: 0.1435118372 | U222: 4.072858212 | V222: 4.072858212 | W222: 0.0009980666427 | X222: 2565.076637 | Y222: 60.76322103 | Z222: =IF(H222>0, rate1(1,$L$52,$L$51,$L$54,U222,$L$53,$L$50,Y222),"") -> 945.5640307 | AA222: 1.399135801 | AB222: -0.002500569082 | AC222: 0.1435118372 | AD222: -0.1393613265 | AE222: -0.01291610522 | AF222: 699.6063561 | AG222: 693.8098606 | AH222: 4.053180789 | AI222: 152.275766 | AJ222: 12.14565704 | AK222: 202.1239439 | AL222: 3.485767167
... 777 more rows

Sheet W.H curve
A1: The Breach Evolution of Avalanche Lake Spreadsheet(V1.0)
A2: Copy Right：Chen ZuYu（Email：chenzuyu@cashq.ac.cn）
A3: Disclaimer: The author assumes No responsibility and makes no guarantees, expressed or implied, about its quality, reliability, or any other characteristic.
Z4: H | AA4: W (1000000m3)
Z5: 667 | AA5: 0
B6: water elevation | D6: Reservoir capacity | G6: W=a1(H-Hr)2+b1(H-Hr)+c1 | M6: a1 | N6: ='W.H curve'!G47 -> 0.06313333333 | O6: W~H curve coefficient | Z6: 670 | AA6: 214
B7: H | D7: W (1000000m3) | M7: b1 | N7: =G46 -> 1.963333333 | O7: W~H curve coefficient | Z7: 680 | AA7: 1280
B8: h1 | C8: 700 | D8: W1 | E8: 44 | M8: c1 | N8: =G45 -> 44 | O8: W~H curve coefficient | Z8: 690 | AA8: 2345
B9: h2 | C9: 720 | D9: W2 | E9: 108.52 | Z9: 700 | AA9: 4302
B10: h3 | C10: 750 | D10: W3 | E10: 300 | Z10: 710 | AA10: 7130
B11: Elevations of dead Water Hr(m) | Z11: 720 | AA11: 11039
B12: 700 | Z12: 730 | AA12: 16000
Z13: 740 | AA13: 22395
Z14: 750 | AA14: 30190
Z15: 752 | AA15: 31611
B29: h | C29: h2 | D29: W | F29: SUMMARY OUTPUT
B30: =C8-$B$12 -> 0 | C30: =IF(B30<>"",B30^2,"") -> 0 | D30: =E8 -> 44
B31: =C9-$B$12 -> 20 | C31: =IF(B31<>"",B31^2,"") -> 400 | D31: =E9 -> 108.52 | F31: 回归统计
B32: =C10-$B$12 -> 50 | C32: =IF(B32<>"",B32^2,"") -> 2500 | D32: =E10 -> 300 | F32: Multiple R | G32: 1
F33: R Square | G33: 1
F34: Adjusted R Square | G34: 65535
F35: 标准误差 | G35: 0
F36: 观测值 | G36: 3
F38: 方差分析
G39: df | H39: SS | I39: MS | J39: F | K39: Significance F
F40: 回归分析 | G40: 2 | H40: 35454.4736 | I40: 17727.2368
F41: 残差 | G41: 0 | H41: 0 | I41: 65535
F42: 总计 | G42: 2 | H42: 35454.4736
G44: Coefficients | H44: 标准误差 | I44: t Stat | J44: P-value | K44: Lower 95% | L44: Upper 95%
F45: Intercept | G45: 44 | H45: 0 | I45: 65535 | K45: 44 | L45: 44
F46: X Variable 1 | G46: 1.963333333 | H46: 0 | I46: 65535 | K46: 1.963333333 | L46: 1.963333333
F47: X Variable 2 | G47: 0.06313333333 | H47: 0 | I47: 65535 | K47: 0.06313333333 | L47: 0.06313333333
F51: RESIDUAL OUTPUT
F53: 观测值 | G53: 预测 Y | H53: 残差 | I53: 标准残差
F54: 1 | G54: 44 | H54: -2.842170943e-14 | I54: -1.264911064
F55: 2 | G55: 108.52 | H55: 1.421085472e-14 | I55: 0.632455532
F56: 3 | G56: 300 | H56: 0 | I56: 0

Sheet erosion model
A1: The Breach Evolution of Avalanche Lake Spreadsheet(V1.0)
A2: Copy Right：Chen ZuYu（Email：chenzuyu@cashq.ac.cn）
A3: Disclaimer: The author assumes No responsibility and makes no guarantees, expressed or implied, about its quality, reliability, or any other characteristic.
B6: Vc | C6: 2.7 | D6: The incipient velocity,m/s
B7: a2 | C7: 1.1 | D7: Erosion coefficient
B8: b2 | C8: 0.0007 | D8: Erosion coefficient
B9: zc | C9: 0 | D9: Erosion coefficient
B17: Vc | C17: 2.6 | D17: The incipient velocity,m/s
B18: a2 | C18: 8 | D18: Erosion coefficient
B19: b2 | C19: 1.3 | D19: Erosion coefficient
B29: 1 | C29: =B29/($C$7+$C$8*B29) -> 0.9085127646 | D29: =1/$C$8 -> 1428.571429 | E29: =B29/$C$7 -> 0.9090909091 | F29: =$C$18*B29^$C$19 -> 8
B30: 200 | C30: =B30/($C$7+$C$8*B30) -> 161.2903226 | D30: =1/$C$8 -> 1428.571429 | E30: =B30/$C$7 -> 181.8181818 | F30: =$C$18*B30^$C$19 -> 7842.038703
B31: 400 | C31: 289.8550725 | D31: 1428.571429 | E31: 363.6363636 | F31: 19309.36428
B32: 600 | C32: 394.7368421 | D32: 1428.571429 | E32: 545.4545455 | F32: 32710.45706
B33: 800 | C33: 481.9277108 | D33: 1428.571429 | E33: 727.2727273 | F33: 47545.23191
B34: 1000 | C34: 555.5555556 | D34: 1428.571429 | E34: 909.0909091 | F34: 63546.25878
B35: 1200 | C35: 618.556701 | D35: 1428.571429 | E35: 1090.909091 | F35: 80542.59293
B36: 1400 | C36: 673.0769231 | D36: 1428.571429 | E36: 1272.727273 | F36: 98413.89791
B37: 1600 | C37: 720.7207207 | D37: 1428.571429 | E37: 1454.545455 | F37: 117070.0933
B38: 1800 | C38: 762.7118644 | D38: 1428.571429 | E38: 1636.363636 | F38: 136440.7957
B39: 2000 | C39: 800 | D39: 1428.571429 | E39: 1818.181818 | F39: 156469.243
B40: 2200 | C40: 833.3333333 | D40: 1428.571429 | E40: 2000 | F40: 177108.5274
B41: 2400 | C41: 863.3093525 | D41: 1428.571429 | E41: 2181.818182 | F41: 198319.1266
B42: 2600 | C42: 890.4109589 | D42: 1428.571429 | E42: 2363.636364 | F42: 220067.2109
B43: 2800 | C43: 915.0326797 | D43: 1428.571429 | E43: 2545.454545 | F43: 242323.4412
B44: 3000 | C44: 937.5 | D44: 1428.571429 | E44: 2727.272727 | F44: 265062.0901
B45: 3200 | C45: 958.0838323 | D45: 1428.571429 | E45: 2909.090909 | F45: 288260.3827
B46: 3400 | C46: 977.0114943 | D46: 1428.571429 | E46: 3090.909091 | F46: 311897.9923
B47: 3600 | C47: 994.4751381 | D47: 1428.571429 | E47: 3272.727273 | F47: 335956.6469
B48: 3800 | C48: 1010.638298 | D48: 1428.571429 | E48: 3454.545455 | F48: 360419.8176
B49: 4000 | C49: 1025.641026 | D49: 1428.571429 | E49: 3636.363636 | F49: 385272.4687
B50: 4200 | C50: 1039.60396 | D50: 1428.571429 | E50: 3818.181818 | F50: 410500.8536
B51: 4400 | C51: 1052.631579 | D51: 1428.571429 | E51: 4000 | F51: 436092.3481
B52: 4600 | C52: 1064.814815 | D52: 1428.571429 | E52: 4181.818182 | F52: 462035.3115
B53: 4800 | C53: 1076.233184 | D53: 1428.571429 | E53: 4363.636364 | F53: 488318.9696
B54: 5000 | C54: 1086.956522 | D54: 1428.571429 | E54: 4545.454545 | F54: 514933.3174
B55: 5200 | C55: 1097.046414 | D55: 1428.571429 | E55: 4727.272727 | F55: 541869.0346

Sheet calculation2
A1: Dam Breach Analysis DB-IWHR 2014
A2: Copy Right：Chen ZuYu（Email：chenzuyu@cashq.ac.cn）
A3: Disclaimer: The author assumes No responsibility and makes no guarantees, expressed or implied, about its quality, reliability, or any other characteristic.
A6: Z0 | B6: 740 | C6: Elevations of channel bed,m
A7: Qin | B7: 80 | C7: Inflow flow,m3/s
A8: Hr | B8: 700 | C8: Elevations of dead Water,m | I8: Stage | J8: Bottom fh (m) | K8: Breach B (m) | L8: Center | N8: Toe of Slope
L9: x | M9: y | N9: x | O9: y
I10: 1 | J10: =B6 -> 740 | K10: 16 | L10: - | M10: - | N10: - | O10: -
A11: a1 | B11: 0.06313333333 | C11: W~H curve coefficient | I11: =IF(J11="","",I10+1) -> 2 | J11: 736.5 | K11: =K10 -> 16 | L11: - | M11: - | N11: - | O11: -
A12: b1 | B12: 1.963333333 | C12: W~H curve coefficient | I12: 3 | J12: 735.5 | K12: =IF(J12="","",K11+(-N12)*2) -> 22.6 | L12: 13.423 | M12: 778.3 | N12: -3.3 | O12: =IF(J12="","",J11) -> 736.5
A13: c1 | B13: 44 | C13: W~H curve coefficient | I13: 4 | J13: 733 | K13: =IF(J13="","",K12+(-N13)*2) -> 31.6 | L13: 6.003 | M13: 794.1 | N13: -4.5 | O13: =IF(J13="","",J12) -> 735.5
A14: Note: obtained by water storage capacity curve worksheet | I14: 5 | J14: 731 | K14: =IF(J14="","",K13+(-N14)*2) -> 43.8 | L14: -4.377 | M14: 788.6 | N14: -6.1 | O14: 733
I15: 6 | J15: 727 | K15: =IF(J15="","",K14+(-N15)*2) -> 62 | L15: -8.684 | M15: 814.6 | N15: -9.1 | O15: 731
I16: 7 | J16: 724 | K16: =IF(J16="","",K15+(-N16)*2) -> 88.2 | L16: -19.377 | M16: 826.6 | N16: -13.1 | O16: 727
A17: mq | B17: 0.36 | C17: Broad-crested weir flow coefficient
A18: mb | B18: 0.9 | C18: Lateral shrinkage coefficient | I18: =IF(J18="","",I17+1) ->  | K18: =IF(J18="","",$P$11-N18) -> 
A19: m | B19: 0.8 | C19: Ratio of tailwater
A22: Vc | B22: 2.6 | C22: The incipient velocity,m/s
A23: a2 | B23: 1.1 | C23: Erosion coefficient
A24: b2 | B24: 0.0007 | C24: Erosion coefficient
A25: zc | B25: 0 | C25: Erosion coefficient
I26: Do not modify the cells filling with pink
D29: 表 1
B30: Qp | C30: =MAX(G56:G329) -> 86.89713128 | D30: m3/s | E30: The peak flow
B31: tp | C31: =INDEX(AJ62:AJ208,MATCH(MAX(G62:G208),G62:G208,0)) -> 0.2385711259 | D31: h | E31: The peak time
B32: Error | C32: =IF(Calculation!H13>0,err(Calculation!H13,B8,B11,B12),"") -> 0.001332540349 | E32: error
D48: 图 1 | L48: 图 2
K50: Tc | L50: 30
B51: Z0 | C51: =B6 -> 740 | E51: Hr | F51: =B8 -> 700 | G51: Ho | H51: 742.5 | K51: Vc | L51: =B22 -> 2.6 | O51: mq | P51: =B17 -> 0.36 | R51: c2 | S51: =1-27.8*(P53-0.67)^3 -> 0.9389234 | T51: =(S54*S53*C55)^2 -> 2.834173567 | W51: Methods | X51: 5
B52: B | C52: =K10 -> 16 | E52: a1*2 | F52: =B11*2 -> 0.1262666667 | G52: H1 | H52: 704.5 | K52: a2 | L52: =B23 -> 1.1 | O52: mb | P52: =B18 -> 0.9 | R52: c1 | S52: =P51*P52*4.427 -> 1.434348
B53: Qin | C53: =B7 -> 80 | E53: b1 | F53: =B12 -> 1.963333333 | K53: b2 | L53: =B24 -> 0.0007 | M53: =1/L53 -> 1428.571429 | O53: m | P53: =B19 -> 0.8 | R53: c2*mq*mb | S53: =P51*P52*S51 -> 0.3042111816
B54: g | C54: 9.8 | E54: c1 | F54: =B13 -> 44 | K54: zc | L54: =B25 -> 0 | O54: s/dz | P54: =B26 -> 0 | R54: m-1 | S54: =1/P53 -> 1.25
B55: Sqrt(2g) | C55: =SQRT(2*C54) -> 4.427188724 | E55: Dq | F55: =(H51-[1]Calculation!F50)^2*0.063+[1]Calculation!F52*(H51-[1]Calculation!F50)+44 -> 271.6790164 | G55: =($H$52-[1]Calculation!$F$50)^2*0.063+[1]Calculation!$F$52*($H$52-[1]Calculation!$F$50)+44 -> 57.33418997 | H55: =F55-G55 -> 214.3448264 | K55: n | L55: 0.025 | R55: mmqmb | S55: =S53*S54 -> 0.380263977
U56: -7.9
A57: Symbols | B57: Ho | C57: zo | D57: Vo | E57: B | F57: B平均 | G57: Q | H57: dV | I57: h | J57: Qin | K57: Index | L57: V1 | M57: Va1 | N57: s1 | O57: E1 | P57: Tau1 | Q57: A1 | R57: D1 | S57: A/DE_1 | T57: dz1 | U57: V2 | V57: Va2 | W57: s2 | X57: A2 | Y57: Tau2 | Z57: D2 | AA57: A/DE_2 | AB57: dz2 | AC57: dz | AD57: dv/dz | AE57: d2z/dz2 | AF57: H1 | AG57: z1 | AH57: V1 | AI57: dt | AJ57: T | AK57: SumQout | AL57: SumQin
A58: Unit | B58: m | C58: m | D58: m/s | E58: m | F58: m | G58: m3 | H58: m/s | I58: m | L58: m/s | M58: m/s
A59: The formula | D59: eq. (22) | G59: eq.(21) | N59: eq.(24) | AC59: eq.(21) | AI59: eq.(21)
A60: Initial value | L60: =(1-$P$54)*O61*R61+C53 -> 2376.021677 | M60: =M61*(B61-C61+N61/2)/$S$54 -> 5.194124458 | N60: =L60/M60 -> 457.4441172 | P60: =((1-$P$54)*O61*R61+C53)/(M61*(B61-C61+N61/2)/$S$54) -> 457.4441172
B61: =(D61/$C$55/$S$54/$S$53)^2+C61 -> 742.385175 | C61: =B6 -> 740 | D61: =$L$51 -> 2.6 | E61: =K10 -> 16 | F61: =E61 -> 16 | G61: =F61*$S$53*$C$55*(B61-C61+N61)^1.5 -> 86.89713128 | H61: 0.08 | I61: =(B61-C61)*B$19 -> 1.908140017 | J61: =B$7 -> 80 | K61: 1 | L61: =D61+H61*K61 -> 2.68 | M61: =(D61+L61)/2 -> 2.64 | N61: =2*($P$53*M61/$S$52/$S$51)^2-(B61-C61)*2 -> 0.1483284207 | O61: =wh(B61,$F$51,$F$52,$F$53) -> 7.315168099 | P61: =$C$54*$L$55*$L$55*M61*M61/(($B$19*(B61-C61))^0.333)*1000 -> 34.4247454 | Q61: =M61/$S$54*(B61-C61+N61/2)*E61-$C$53 -> 3.105991334 | R61: =rate1(1,$L$52,$L$51,$L$54,L61,$L$53,$L$50,P61) -> 313.8713487 | S61: =Q61/O61/R61 -> 0.00135277091 | T61: =N61/(1-S61) -> 0.1485293469 | U61: =L61-K61*H61 -> 2.6 | V61: =(D61+U61)/2 -> 2.6 | W61: =2*($P$53*V61/$S$52/$S$51)^2-(B61-C61)*2 -> 0.0004067313556 | X61: =V61/$S$54*(B61-C61+W61/2)*F61-$C$53 -> -0.6146072638 | Y61: =$C$54*$L$55*$L$55*V61*V61/(($B$19*(B61-C61))^0.333)*1000 -> 33.38947413 | Z61: =rate1(1,$L$52,$L$51,$L$54,U61,$L$53,$L$50,Y61) -> 253.4635036 | AA61: =X61/O61/Z61 -> -0.0003314804689 | AB61: -1e-05 | AC61: =delta_z(N61,S61,H61,AE61,AB61) -> 0.1485293469 | AD61: =H61/AC61*K61 -> 0.5386140966 | AE61: =AD61 -> 0.5386140966 | AF61: =B61-(AC61-N61) -> 742.3849741 | AG61: =C61-AC61 -> 739.8514707 | AH61: =$S$54*$S$53*$C$55*SQRT(AF61-AG61) -> 2.679624692 | AI61: =AC61/R61*1000000 -> 473.2172831 | AJ61: =AI61/3600 -> 0.1314492453
B62: =AF61 -> 742.3849741 | C62: 739.8514707 | D62: 2.679624692 | E62: =CalBreachWidth(C62,B62,I62,E61) -> 0 | F62: =(E62+E61)/2 -> 8 | G62: =F62*$S$53*$C$55*(B62-C62+N62)^1.5 -> 47.43924123 | H62: =dv(S61) -> 0.08 | I62: =(B62-C62)*B$19 -> 2.026802754 | J62: =B$7 -> 80 | K62: =IF((1-S61-0.015)>0,1,-1) -> 1 | L62: =D62+K62*H62 -> 2.759624692 | M62: 2.719624692 | N62: =2*($P$53*M62/$S$52/$S$51)^2-(B62-C62)*2 -> 0.1528492178 | O62: =wh(B62,$F$51,$F$52,$F$53) -> 7.315142729 | P62: =$C$54*$L$55*$L$55*M62*M62/(($B$19*(B62-C62))^0.333)*1000 -> 35.80600099 | Q62: =M62/$S$54*(B62-C62+N62/2)*E62-$C$53 -> -80 | R62: =rate1(1,$L$52,$L$51,$L$54,L62,$L$53,$L$50,P62) -> 385.4171297 | S62: -0.02837501959 | T62: 0.1486317879 | U62: =D62-K62*H62 -> 2.599624692 | V62: 2.639624692 | W62: =2*($P$53*V62/$S$52/$S$51)^2-(B62-C62)*2 -> -0.1497268213 | X62: =V62/$S$54*(B62-C62+W62/2)*F62-$C$53 -> -38.46472361 | Y62: =$C$54*$L$55*$L$55*V62*V62/(($B$19*(B62-C62))^0.333)*1000 -> 33.73045758 | Z62: =rate1(1,$L$52,$L$51,$L$54,U62,$L$53,$L$50,Y62) -> 274.0702221 | AA62: -0.01918571373 | AB62: =W62/(1-AA62) -> -0.1469082811 | AC62: =delta_z(N62,S62,H62,AE61,AB62) -> 0.1486317879 | AD62: 0.5382428694 | AE62: =(AD62-AD61)/(AC62+AC61)*2 -> -0.002498491209 | AF62: 742.3891915 | AG62: 739.7028389 | AH62: =$S$54*$S$53*$C$55*SQRT(AF62-AG62) -> 2.759273401 | AI62: 385.6387702 | AJ62: =AJ61+AI62/3600 -> 0.2385711259 | AK62: =AK61+AI62*G61/1000000 -> 0.03351090284 | AL62: =AL61+AI62*J62/1000000 -> 0.03085110161
B63: 742.3891915 | C63: 739.7028389 | D63: 2.759273401 | E63: =CalBreachWidth(C63,B63,I63,E62) -> 0 | F63: 0 | G63: 0 | H63: 0.08 | I63: 2.149082128 | J63: =IF(H63>0, $B$7,"") -> 80 | K63: 1 | L63: 2.839273401 | M63: 2.799273401 | N63: 0.1573721418 | O63: 7.31567525 | P63: 37.20115937 | Q63: -80 | R63: 448.9273713 | S63: -0.02435900156 | T63: 0.1536298715 | U63: 2.679273401 | V63: 2.719273401 | W63: -0.1541976162 | X63: -80 | Y63: 35.10521111 | Z63: 350.3042744 | AA63: -0.03121692579 | AB63: -0.1495297568 | AC63: 0.1536298715 | AD63: 0.5207320636 | AE63: -0.1158652135 | AF63: 742.3929338 | AG63: 739.549209 | AH63: 2.838945168 | AI63: 342.2154257 | AJ63: 0.3336309664 | AK63: =AK62+AI63*G62/1000000 -> 0.04974534297 | AL63: =AL62+AI63*J63/1000000 -> 0.05822833567
B64: 742.3929338 | C64: 739.549209 | D64: 2.838945168 | E64: 0 | F64: 0 | G64: 0 | H64: 0.08 | I64: 2.274979842 | J64: =IF(H64>0, $B$7,"") -> 80 | K64: 1 | L64: 2.918945168 | M64: 2.878945168 | N64: 0.1618971388 | O64: 7.316147774 | P64: 38.60996028 | Q64: -80 | R64: 505.6659622 | S64: -0.0216243866 | T64: 0.1584703154 | U64: 2.758945168 | V64: 2.798945168 | W64: -0.1586689415 | X64: -80 | Y64: 36.49399004 | Z64: 417.7329537 | AA64: -0.02617633146 | AB64: -0.1546215174 | AC64: 0.1584703154 | AD64: 0.5048264073 | AE64: -0.1019266053 | AF64: 742.3963606 | AG64: 739.3907387 | AH64: 2.918639111 | AI64: 313.3893267 | AJ64: 0.4206835571 | AK64: 0.04974534297 | AL64: 0.08329948181
B65: 742.3963606 | C65: 739.3907387 | D65: 2.918639111 | E65: 0 | F65: 0 | G65: 0 | H65: 0.08 | I65: 2.404497553 | J65: 80 | K65: 1 | L65: 2.998639111 | M65: 2.958639111 | N65: 0.1664241595 | O65: 7.316580468 | P65: 40.03215559 | Q65: -80 | R65: 556.6458941 | S65: -0.01964277417 | T65: 0.1632181031 | U65: 2.838639111 | V65: 2.878639111 | W65: -0.1631407473 | X65: -80 | Y65: 37.89652875 | Z65: 477.779171 | AA65: -0.0228851952 | AB65: -0.1594907699 | AC65: 0.1632181031 | AD65: 0.4901417089 | AE65: -0.09129765024 | AF65: 742.3995667 | AG65: 739.2275206 | AH65: 2.998354417 | AI65: 293.217115 | AJ65: 0.5021327558 | AK65: 0.04974534297 | AL65: 0.106756851
B66: 742.3995667 | C66: 739.2275206 | D66: 2.998354417 | E66: 0 | F66: 0 | G66: 0 | H66: 0.08 | I66: 2.53763688 | J66: 80 | K66: 1 | L66: 3.078354417 | M66: 3.038354417 | N66: 0.1709531583 | O66: 7.316985286 | P66: 41.46750837 | Q66: -80 | R66: 602.688504 | S66: -0.01814115348 | T66: 0.1679071293 | U66: 2.918354417 | V66: 2.958354417 | W66: -0.1676129872 | X66: -80 | Y66: 39.31257411 | Z66: 531.5759704 | AA66: -0.02056801899 | AB66: -0.1642349987 | AC66: 0.1679071293 | AD66: 0.4764538607 | AE66: -0.08267475195 | AF66: 742.4026127 | AG66: 739.0596134 | AH66: 3.078090339 | AI66: 278.5968675 | AJ66: 0.5795207745 | AK66: 0.04974534297 | AL66: 0.1290446004
B67: 742.4026127 | C67: 739.0596134 | D67: 3.078090339 | E67: 0 | F67: 0 | G67: 0 | H67: 0.08 | I67: 2.674399407 | J67: 80 | K67: =IF((1-S66-0.015)>0,1,-1) -> 1 | L67: 3.158090339 | M67: 3.118090339 | N67: 0.1754840934 | O67: 7.317369897 | P67: 42.91579215 | Q67: -80 | R67: 644.4666946 | S67: -0.01696424356 | T67: 0.1725567978 | U67: 2.998090339 | V67: 3.038090339 | W67: -0.1720856188 | X67: -80 | Y67: 40.74188451 | Z67: 580.0366858 | AA67: -0.0188486181 | AB67: -0.1689020486 | AC67: 0.1725567978 | AD67: 0.4636154647 | AE67: -0.07541707054 | AF67: 742.40554 | AG67: 738.8870566 | AH67: 3.157846183 | AI67: 267.7513039 | AJ67: 0.6538961367 | AK67: 0.04974534297 | AL67: 0.1504647047
B68: 742.40554 | C68: 738.8870566 | D68: 3.157846183 | E68: 0 | F68: 0 | G68: 0 | H68: 0.08 | I68: 2.814786682 | J68: 80 | K68: 1 | L68: 3.237846183 | M68: 3.197846183 | N68: 0.1800169258 | O68: 7.317739517 | P68: 44.37679019 | Q68: -80 | R68: 682.5369676 | S68: -0.01601720972 | T68: 0.1771790124 | U68: 3.077846183 | V68: 3.117846183 | W68: -0.1765586025 | X68: -80 | Y68: 42.18422911 | Z68: 623.9056701 | AA68: -0.0175224209 | AB68: -0.1735181445 | AC68: 0.1771790124 | AD68: 0.4515207468 | AE68: -0.06916488114 | AF68: 742.4083779 | AG68: 738.7098776 | AH68: 3.237621307 | AI68: 259.588888 | AJ68: 0.7260041612 | AK68: 0.04974534297 | AL68: 0.1712318158
B69: 742.4083779 | C69: 738.7098776 | D69: 3.237621307 | E69: 0 | F69: 0 | G69: 0 | H69: 0.08 | I69: 2.958800222 | J69: 80 | K69: 1 | L69: 3.317621307 | M69: 3.277621307 | N69: 0.1845516198 | O69: 7.318097851 | P69: 45.8502948 | Q69: -80 | R69: 717.3635105 | S69: -0.01523886048 | T69: 0.1817814772 | U69: 3.157621307 | V69: 3.197621307 | W69: -0.1810319018 | X69: -80 | Y69: 43.63938708 | Z69: 663.7955945 | AA69: -0.0164686276 | AB69: -0.178098858 | AC69: 0.1817814772 | AD69: 0.4400888431 | AE69: -0.06369449567 | AF69: 742.4111481 | AG69: 738.5280962 | AH69: 3.317415115 | AI69: 253.4021797 | AJ69: 0.7963936555 | AK69: 0.04974534297 | AL69: 0.1915039901
B70: 742.4111481 | C70: 738.5280962 | D70: 3.317415115 | E70: 0 | F70: 0 | G70: 0 | H70: 0.08 | I70: 3.106441518 | J70: 80 | K70: 1 | L70: 3.397415115 | M70: 3.357415115 | N70: 0.1890881419 | O70: 7.318447628 | P70: 47.3361068 | Q70: -80 | R70: 749.3365425 | S70: -0.01458794461 | T70: 0.1863693955 | U70: 3.237415115 | V70: 3.277415115 | W70: -0.1855054827 | X70: -80 | Y70: 45.1071469 | Z70: 700.2152917 | AA70: -0.01561131284 | AB70: -0.1826540137 | AC70: 0.1863693955 | AD70: 0.4292550276 | AE70: -0.05885530277 | AF70: 742.4138668 | AG70: 738.3417268 | AH70: 3.397227055 | AI70: 248.7125409 | AJ70: 0.8654804724 | AK70: 0.04974534297 | AL70: 0.2114009934
B71: 742.4138668 | C71: 738.3417268 | D71: 3.397227055 | E71: 0 | F71: 0 | G71: 0 | H71: 0.08 | I71: 3.257712032 | J71: 80 | K71: 1 | L71: 3.477227055 | M71: 3.437227055 | N71: 0.1936264613 | O71: 7.318790915 | P71: 48.83403495 | Q71: -80 | R71: 778.7864561 | S71: -0.01403564117 | T71: 0.190946406 | U71: 3.317227055 | V71: 3.357227055 | W71: -0.1899793136 | X71: -80 | Y71: 46.58730578 | Z71: 733.5908239 | AA71: -0.01490035983 | AB71: -0.1871901136 | AC71: 0.190946406 | AD71: 0.4189657279 | AE71: -0.05453945789 | AF71: 742.4165469 | AG71: 738.1507804 | AH71: 3.477056609 | AI71: 245.184549 | AJ71: 0.9335872916 | AK71: 0.04974534297 | AL71: 0.2310157573
B72: 742.4165469 | C72: 738.1507804 | D72: 3.477056609 | E72: 0 | F72: 0 | G72: 0 | H72: 0.08 | I72: 3.412613201 | J72: 80 | K72: 1 | L72: 3.557056609 | M72: 3.517056609 | N72: 0.198166549 | O72: 7.319129317 | P72: 50.34389547 | Q72: -80 | R72: 805.9948356 | S72: -0.01356120582 | T72: 0.1955151281 | U72: 3.397056609 | V72: 3.437056609 | W72: -0.1944533651 | X72: -80 | Y72: 48.0796691 | Z72: 764.2816255 | AA72: -0.01430135371 | AB72: -0.1917116293 | AC72: 0.1955151281 | AD72: 0.4091754984 | AE72: -0.05066599725 | AF72: 742.4191983 | AG72: 737.9552652 | AH72: 3.556903296 | AI72: 242.5761549 | AJ72: 1.000969557 | AK72: 0.04974534297 | AL72: 0.2504218497
B73: 742.4191983 | C73: 737.9552652 | D73: 3.556903296 | E73: 0 | F73: =(E73+E72)/2 -> 0 | G73: 0 | H73: 0.08 | I73: 3.57114644 | J73: 80 | K73: 1 | L73: 3.636903296 | M73: 3.596903296 | N73: 0.2027083783 | O73: 7.319464103 | P73: 51.86551159 | Q73: -80 | R73: 831.2031296 | S73: -0.0131493272 | T73: 0.2000774938 | U73: 3.476903296 | V73: 3.516903296 | W73: -0.1989276098 | X73: -80 | Y73: 49.58404989 | Z73: 792.5930118 | AA73: -0.01378987924 | AB73: -0.1962217358 | AC73: 0.2000774938 | AD73: 0.3998450723 | AE73: -0.04717189135 | AF73: 742.4218292 | AG73: 737.7551877 | AH73: 3.636766666 | AI73: 240.7083019 | AJ73: 1.067832974 | AK73: 0.04974534297 | AL73: 0.2696785139
B74: 742.4218292 | C74: 737.7551877 | D74: 3.636766666 | E74: 0 | F74: 0 | G74: 0 | H74: 0.08 | I74: 3.733313142 | J74: 80 | K74: 1 | L74: 3.716766666 | M74: 3.676766666 | N74: 0.2072519239 | O74: 7.319796296 | P74: 53.39871311 | Q74: -80 | R74: 854.6195387 | S74: -0.01278845779 | T74: 0.2046349584 | U74: 3.556766666 | V74: 3.596766666 | W74: -0.2034020219 | X74: -80 | Y74: 51.10026834 | Z74: 818.7859736 | AA74: -0.01334813522 | AB74: -0.2007227475 | AC74: 0.2046349584 | AD74: 0.3909400457 | AE74: -0.04400668456 | AF74: 742.4244461 | AG74: 737.5505528 | AH74: 3.716646298 | AI74: 239.4456821 | AJ74: 1.134345664 | AK74: 0.04974534297 | AL74: 0.2888341685
B75: 742.4244461 | C75: 737.5505528 | D75: 3.716646298 | E75: 0 | F75: 0 | G75: 0 | H75: 0.08 | I75: 3.899114682 | J75: 80 | K75: 1 | L75: 3.796646298 | M75: 3.756646298 | N75: 0.2117971625 | O75: 7.320126731 | P75: 54.94333604 | Q75: -80 | R75: 876.424534 | S75: -0.01246972456 | T75: 0.2091886378 | U75: 3.636646298 | V75: 3.676646298 | W75: -0.2078765773 | X75: -80 | Y75: 52.62815143 | Z75: 843.0849216 | AA75: -0.01296283715 | AB75: -0.2052163907 | AC75: 0.2091886378 | AD75: 0.3824299485 | AE75: -0.04112910566 | AF75: 742.4270547 | AG75: 737.3413641 | AH75: 3.796541798 | AI75: 238.6841419 | AJ75: 1.200646814 | AK75: 0.04974534297 | AL75: 0.3079288998
B76: 742.4270547 | C76: 737.3413641 | D76: 3.796541798 | E76: 0 | F76: 0 | G76: 0 | H76: 0.08 | I76: 4.068552412 | J76: 80 | K76: 1 | L76: 3.876541798 | M76: 3.836541798 | N76: 0.2163440721 | O76: 7.320456101 | P76: 56.49922226 | Q76: -80 | R76: 896.7753124 | S76: -0.01218619722 | T76: 0.2137394016 | U76: 3.716541798 | V76: 3.756541798 | W76: -0.2123512535 | X76: -80 | Y76: 54.16753248 | Z76: 865.683862 | AA76: -0.01262387033 | AB76: -0.2097039777 | AC76: 0.2137394016 | AD76: 0.3742875643 | AE76: -0.03850482112 | AF76: 742.4296593 | AG76: 737.1276247 | AH76: 3.876452796 | AI76: 238.3422008 | AJ76: 1.266852981 | AK76: 0.04974534297 | AL76: 0.3269962759
B77: 742.4296593 | C77: 737.1276247 | D77: 3.876452796 | E77: 0 | F77: 0 | G77: 0 | H77: 0.08 | I77: 4.241627669 | J77: 80 | K77: 1 | L77: 3.956452796 | M77: 3.916452796 | N77: 0.2208926319 | O77: 7.320784984 | P77: 58.06621916 | Q77: -80 | R77: 915.8094206 | S77: -0.01193238421 | T77: 0.2182879364 | U77: 3.796452796 | V77: 3.836452796 | W77: -0.2168260293 | X77: -80 | Y77: 55.71825081 | Z77: 886.7513646 | AA77: -0.01232339786 | AB77: -0.2141865236 | AC77: 0.2182879364 | AD77: 0.3664884158 | AE77: -0.03610488395 | AF77: 742.432264 | AG77: 736.9093368 | AH77: 3.956378942 | AI77: 238.3551987 | AJ77: 1.333062758 | AK77: 0.04974534297 | AL77: 0.3460646918
B78: 742.432264 | C78: 736.9093368 | D78: 3.956378942 | E78: 0 | F78: 0 | G78: 0 | H78: 0.08 | I78: 4.418341775 | J78: 80 | K78: 1 | L78: 4.036378942 | M78: 3.996378942 | N78: 0.2254428227 | O78: 7.32111387 | P78: 59.64417938 | Q78: -80 | R78: 933.6477237 | S78: -0.0117038779 | T78: 0.2228347915 | U78: 3.876378942 | V78: 3.916378942 | W78: -0.2213008848 | X78: -80 | Y78: 57.28015142 | Z78: 906.4345874 | AA78: -0.01205525375 | AB78: -0.2186648249 | AC78: 0.2228347915 | AD78: 0.3590103657 | AE78: -0.03390462397 | AF78: 742.4348721 | AG78: 736.686502 | AH78: 4.036319911 | AI78: 238.6711667 | AJ78: 1.399360305 | AK78: 0.04974534297 | AL78: 0.3651583851
B79: 742.4348721 | C79: 736.686502 | D79: 4.036319911 | E79: 0 | F79: 0 | G79: 0 | H79: 0.08 | I79: 4.598696033 | J79: 80 | K79: 1 | L79: 4.116319911 | M79: 4.076319911 | N79: 0.2299946263 | O79: 7.321443178 | P79: 61.23296047 | Q79: -80 | R79: 950.3968514 | S79: -0.01149709982 | T79: 0.227380411 | U79: 3.956319911 | V79: 3.996319911 | W79: -0.2257758012 | X79: -80 | Y79: 58.85308463 | Z79: 924.8625623 | AA79: -0.01181452025 | AB79: -0.2231395149 | AC79: 0.227380411 | AD79: 0.3518332984 | AE79: -0.03188282954 | AF79: 742.4374863 | AG79: 736.4591216 | AH79: 4.116275394 | AI79: 239.247858 | AJ79: 1.465818043 | AK79: 0.04974534297 | AL79: 0.3842982137
B80: 742.4374863 | C80: 736.4591216 | D80: 4.116275394 | E80: 0 | F80: 0 | G80: 0 | H80: 0.08 | I80: 4.782691734 | J80: 80 | K80: 1 | L80: 4.196275394 | M80: 4.156275394 | N80: 0.2345480255 | O80: 7.321773266 | P80: 62.8324247 | Q80: -80 | R80: 966.1512275 | S80: -0.0113091145 | T80: 0.2319251573 | U80: 4.036275394 | V80: 4.076275394 | W80: -0.2302507609 | X80: -80 | Y80: 60.43690585 | Z80: 942.1488936 | AA80: -0.01159722728 | AB80: -0.2276111032 | AC80: 0.2319251573 | AD80: 0.3449388628 | AE80: -0.03002112825 | AF80: 742.4401091 | AG80: 736.2271964 | AH80: 4.196245099 | AI80: 240.0505746 | AJ80: 1.532498758 | AK80: 0.04974534297 | AL80: 0.4035022597
B81: 742.4401091 | C81: 736.2271964 | D81: 4.196245099 | E81: 0 | F81: 0 | G81: 0 | H81: 0.08 | I81: 4.970330154 | J81: 80 | K81: 1 | L81: 4.276245099 | M81: 4.236245099 | N81: 0.2391030041 | O81: 7.322104447 | P81: 64.44243878 | Q81: -80 | R81: 980.9947613 | S81: -0.01113749134 | T81: 0.236469329 | U81: 4.116245099 | V81: 4.156245099 | W81: -0.234725747 | X81: -80 | Y81: 62.03147527 | Z81: 958.3939902 | AA81: -0.01140013477 | AB81: -0.2320800037 | AC81: 0.236469329 | AD81: 0.3383102593 | AE81: -0.02830350777 | AF81: 742.4427428 | AG81: 735.9907271 | AH81: 4.276228753 | AI81: 241.0505523 | AJ81: 1.599457245 | AK81: 0.04974534297 | AL81: 0.4227863039
B82: 742.4427428 | C82: 735.9907271 | D82: 4.276228753 | E82: 0 | F82: 0 | G82: 0 | H82: 0.08 | I82: 5.161612558 | J82: 80 | K82: 1 | L82: 4.356228753 | M82: 4.316228753 | N82: 0.243659547 | O82: 7.322436992 | P82: 66.06287365 | Q82: -80 | R82: 995.0022666 | S82: -0.01098020058 | T82: 0.241013174 | U82: 4.196228753 | V82: 4.236228753 | W82: -0.239200744 | X82: -80 | Y82: 63.63665763 | Z82: 973.6869203 | AA82: -0.01122057228 | AB82: -0.2365465562 | AC82: 0.241013174 | AD82: 0.3319320628 | AE82: -0.02671593806 | AF82: 742.4453892 | AG82: 735.7497139 | AH82: 4.356226095 | AI82: 242.2237437 | AJ82: 1.666741618 | AK82: 0.04974534297 | AL82: 0.4421642034
B83: 742.4453892 | C83: 735.7497139 | D83: 4.356226095 | E83: 0 | F83: 0 | G83: 0 | H83: 0.08 | I83: 5.356540195 | J83: 80 | K83: 1 | L83: 4.436226095 | M83: 4.396226095 | N83: 0.2482176397 | O83: 7.322771141 | P83: 67.69360424 | Q83: -80 | R83: 1008.240657 | S83: -0.01083553401 | T83: 0.2455568996 | U83: 4.276226095 | V83: 4.316226095 | W83: -0.2436757367 | X83: -80 | Y83: 65.25232199 | Z83: 988.1069637 | AA83: -0.01105631913 | AB83: -0.2410110418 | AC83: 0.2455568996 | AD83: 0.325790072 | AE83: -0.02524606881 | AF83: 742.4480499 | AG83: 735.504157 | AH83: 4.436236881 | AI83: 243.5498885 | AJ83: 1.734394365 | AK83: 0.04974534297 | AL83: 0.4616481945
B84: 742.4480499 | C84: 735.504157 | D84: 4.436236881 | E84: 0 | F84: 0 | G84: 0 | H84: 0.08 | I84: 5.555114307 | J84: 80 | K84: 1 | L84: 4.516236881 | M84: 4.476236881 | N84: 0.2527772688 | O84: 7.323107104 | P84: 69.33450933 | Q84: -80 | R84: 1020.769958 | S84: -0.01070204373 | T84: 0.2501006803 | U84: 4.356236881 | V84: 4.396236881 | W84: -0.2481507113 | X84: -80 | Y84: 66.87834153 | Z84: 1001.724915 | AA84: -0.01090551364 | AB84: -0.2454736945 | AC84: 0.2501006803 | AD84: 0.319871181 | AE84: -0.02388298368 | AF84: 742.4507265 | AG84: 735.2540564 | AH84: 4.516260878 | AI84: 245.0117957 | AJ84: 1.802453197 | AK84: 0.04974534297 | AL84: 0.4812491381
B85: 742.4507265 | C85: 735.2540564 | D85: 4.516260878 | E85: 0 | F85: 0 | G85: 0 | H85: 0.08 | I85: 5.757336122 | J85: 80 | K85: 1 | L85: 4.596260878 | M85: 4.556260878 | N85: 0.2573384212 | O85: 7.323445067 | P85: 70.98547133 | Q85: -80 | R85: 1032.644166 | S85: -0.01057849446 | T85: 0.254644664 | U85: 4.436260878 | V85: 4.476260878 | W85: -0.2526256541 | X85: -80 | Y85: 68.5145933 | Z85: 1014.604185 | AA85: -0.01076658342 | AB85: -0.2499347112 | AC85: 0.254644664 | AD85: 0.3141632687 | AE85: -0.02261699852 | AF85: 742.4534203 | AG85: 734.9994117 | AH85: 4.596297866 | AI85: 246.594783 | AJ85: 1.870951748 | AK85: 0.04974534297 | AL85: 0.5009767208
B86: 742.4534203 | C86: 734.9994117 | D86: 4.596297866 | E86: 0 | F86: 0 | G86: 0 | H86: 0.08 | I86: 5.963206859 | J86: 80 | K86: 1 | L86: 4.676297866 | M86: 4.636297866 | N86: 0.2619010848 | O86: 7.323785199 | P86: 72.6463761 | Q86: -80 | R86: 1043.911987 | S86: -0.01046382588 | T86: 0.2591889765 | U86: 4.516297866 | V86: 4.556297866 | W86: -0.2571005526 | X86: -80 | Y86: 70.16095808 | Z86: 1026.801735 | AA86: -0.01063819128 | AB86: -0.2543942579 | AC86: 0.2591889765 | AD86: 0.3086551021 | AE86: -0.02143949393 | AF86: 742.4561324 | AG86: 734.7402227 | AH86: 4.676347635 | AI86: 248.2862346 | AJ86: 1.939920146 | AK86: 0.04974534297 | AL86: 0.5208396195
B87: 742.4561324 | C87: 734.7402227 | D87: 4.676347635 | E87: 0 | F87: 0 | G87: 0 | H87: 0.08 | I87: 6.172727727 | J87: 80 | K87: 1 | L87: 4.756347635 | M87: 4.716347635 | N87: 0.2664652481 | O87: 7.324127648 | P87: 74.31711283 | Q87: -80 | R87: 1054.617462 | S87: -0.01035712277 | T87: 0.2637337256 | U87: 4.596347635 | V87: 4.636347635 | W87: -0.2615753947 | X87: -80 | Y87: 71.81732021 | Z87: 1038.368874 | AA87: -0.01051919294 | AB87: -0.2588524756 | AC87: 0.2637337256 | AD87: 0.3033362526 | AE87: -0.02034277514 | AF87: 742.4588639 | AG87: 734.476489 | AH87: 4.756409987 | AI87: 250.07525 | AJ87: 2.009385494 | AK87: 0.04974534297 | AL87: 0.5408456395
B88: 742.4588639 | C88: 734.476489 | D88: 4.756409987 | E88: 0 | F88: 0 | G88: 0 | H88: 0.08 | I88: 6.385899925 | J88: 80 | K88: 1 | L88: 4.836409987 | M88: 4.796409987 | N88: 0.2710309002 | O88: 7.324472548 | P88: 75.99757386 | Q88: -80 | R88: 1064.800514 | S88: -0.01025759102 | T88: 0.2682790039 | U88: 4.676409987 | V88: 4.716409987 | W88: -0.2660501689 | X88: -80 | Y88: 73.48356736 | Z88: 1049.35194 | AA88: -0.01040860342 | AB88: -0.2633094849 | AC88: 0.2682790039 | AD88: 0.2981970219 | AE88: -0.01931995387 | AF88: 742.4616158 | AG88: 734.20821 | AH88: 4.836484733 | AI88: 251.9523613 | AJ88: 2.079372261 | AK88: 0.04974534297 | AL88: 0.5610018284
B89: 742.4616158 | C89: 734.20821 | D89: 4.836484733 | E89: 0 | F89: 0 | G89: 0 | H89: 0.08 | I89: 6.602724646 | J89: 80 | K89: 1 | L89: 4.916484733 | M89: 4.876484733 | N89: 0.2755980305 | O89: 7.324820021 | P89: 77.68765454 | Q89: -80 | R89: 1074.497413 | S89: -0.01016453826 | T89: 0.2728248915 | U89: 4.756484733 | V89: 4.796484733 | W89: -0.2705248644 | X89: -80 | Y89: 75.15959047 | Z89: 1059.792882 | AA89: -0.01030557031 | AB89: -0.2677653893 | AC89: 0.2728248915 | AD89: 0.2932283765 | AE89: -0.01836484813 | AF89: 742.4643889 | AG89: 733.9353851 | AH89: 4.916571695 | AI89: 253.9093052 | AJ89: 2.149902623 | AK89: 0.04974534297 | AL89: 0.5813145729
B90: 742.4643889 | C90: 733.9353851 | D90: 4.916571695 | E90: 0 | F90: 0 | G90: 0 | H90: 0.08 | I90: 6.82320307 | J90: 80 | K90: 1 | L90: 4.996571695 | M90: 4.956571695 | N90: 0.2801666294 | O90: 7.325170176 | P90: 79.38725311 | Q90: -80 | R90: 1083.741183 | S90: -0.01007735809 | T90: 0.2773714579 | U90: 4.836571695 | V90: 4.876571695 | W90: -0.2749994706 | X90: -80 | Y90: 76.84528353 | Z90: 1069.72977 | AA90: -0.0102093522 | AB90: -0.2722202779 | AC90: 0.2773714579 | AD90: 0.2884218896 | AE90: -0.01747189662 | AF90: 742.4671841 | AG90: 733.6580136 | AH90: 4.9966707 | AI90: 255.9388368 | AJ90: 2.220996745 | AK90: 0.04974534297 | AL90: 0.6017896798
B91: 742.4671841 | C91: 733.6580136 | D91: 4.9966707 | E91: 0 | F91: 0 | G91: 0 | H91: 0.08 | I91: 7.047336373 | J91: 80 | K91: 1 | L91: 5.0766707 | M91: 5.0366707 | N91: 0.2847366872 | O91: 7.325523113 | P91: 81.09627057 | Q91: -80 | R91: 1092.561959 | S91: =Q91/O91/R91 -> -0.009995517158 | T91: 0.2819187634 | U91: 4.9166707 | V91: 4.9566707 | W91: -0.2794739778 | X91: -80 | Y91: 78.54054347 | Z91: 1079.197228 | AA91: -0.0101193012 | AB91: -0.2766742279 | AC91: 0.2819187634 | AD91: 0.2837696897 | AE91: -0.01663608536 | AF91: 742.470002 | AG91: 733.3760949 | AH91: 5.076781587 | AI91: 258.0345774 | AJ91: 2.292673016 | AK91: 0.04974534297 | AL91: 0.622432446
B92: 742.470002 | C92: 733.3760949 | D92: 5.076781587 | E92: 0 | F92: 0 | G92: 0 | H92: 0.08 | I92: 7.275125723 | J92: 80 | K92: 1 | L92: 5.156781587 | M92: 5.116781587 | N92: 0.2893081952 | O92: 7.325878923 | P92: 82.81461058 | Q92: -80 | R92: 1100.987288 | S92: -0.009918544489 | T92: 0.2864668609 | U92: 4.996781587 | V92: 5.036781587 | W92: -0.2839483764 | X92: -80 | Y92: 80.24527005 | Z92: 1088.226814 | AA92: -0.01003484867 | AB92: -0.2811273064 | AC92: 0.2864668609 | AD92: 0.2792644139 | AE92: -0.01585288437 | AF92: 742.4728434 | AG92: 733.089628 | AH92: 5.156904199 | AI92: 260.1908886 | AJ92: 2.364948263 | AK92: 0.04974534297 | AL92: 0.6432477171
B93: =AF92 -> 742.4728434 | C93: =AG92 -> 733.089628 | D93: =AH92 -> 5.156904199 | E93: 0 | F93: 0 | G93: 0 | H93: 0.08 | I93: 7.506572279 | J93: 80 | K93: 1 | L93: 5.236904199 | M93: 5.196904199 | N93: 0.2938811447 | O93: 7.326237689 | P93: 84.5421793 | Q93: -80 | R93: 1109.042406 | S93: -0.009846022638 | T93: 0.2910157966 | U93: 5.076904199 | V93: 5.116904199 | W93: -0.2884226576 | X93: -80 | Y93: 81.95936571 | Z93: 1096.847351 | AA93: -0.009955493466 | AB93: -0.285579572 | AC93: 0.2910157966 | AD93: 0.2748991668 | AE93: -0.01511819296 | AF93: 742.4757087 | AG93: 732.7986122 | AH93: 5.237038389 | AI93: 262.4027675 | AJ93: 2.437837921 | AK93: 0.04974534297 | AL93: 0.6642399385
B94: =AF93 -> 742.4757087 | C94: 732.7986122 | D94: 5.237038389 | E94: 0 | F94: 0 | G94: 0 | H94: 0.08 | I94: 7.741677195 | J94: 80 | K94: 1 | L94: 5.317038389 | M94: 5.277038389 | N94: 0.2984555277 | O94: 7.326599487 | P94: 86.27888534 | Q94: -80 | R94: 1116.75047 | S94: -0.00977758031 | T94: 0.2955656112 | U94: 5.157038389 | V94: 5.197038389 | W94: -0.2928968125 | X94: -80 | Y94: 83.68273547 | Z94: 1105.085215 | AA94: -0.009880792229 | AB94: -0.2900310757 | AC94: =delta_z(N94,S94,H94,AE93,AB94) -> 0.2955656112 | AD94: 0.2706674828 | AE94: -0.01442829209 | AF94: 742.4785986 | AG94: 732.5030466 | AH94: 5.317184016 | AI94: 264.6657594 | AJ94: 2.511356187 | AK94: 0.04974534297 | AL94: 0.6854131992
B95: 742.4785986 | C95: 732.5030466 | D95: 5.317184016 | E95: 0 | F95: 0 | G95: 0 | H95: =dv(S94) -> 0.08 | I95: 7.980441617 | J95: 80 | K95: 1 | L95: 5.397184016 | M95: 5.357184016 | N95: 0.3030313365 | O95: 7.326964387 | P95: 88.02463964 | Q95: -80 | R95: 1124.132769 | S95: -0.009712886157 | T95: 0.3001163406 | U95: 5.237184016 | V95: 5.277184016 | W95: -0.2973708332 | X95: -80 | Y95: 85.41528685 | Z95: 1112.964589 | AA95: -0.009810351307 | AB95: -0.2944818627 | AC95: 0.3001163406 | AD95: 0.2665632929 | AE95: -0.01377980292 | AF95: 742.4815136 | AG95: 732.2029303 | AH95: 5.397340944 | AI95: 266.9758848 | AJ95: 2.585516155 | AK95: 0.04974534297 | AL95: 0.70677127
B96: 742.4815136 | C96: 732.2029303 | D96: 5.397340944 | E96: 0 | F96: 0 | G96: 0 | H96: 0.08 | I96: 8.222866686 | J96: 80 | K96: 1 | L96: 5.477340944 | M96: 5.437340944 | N96: 0.3076085635 | O96: 7.327332454 | P96: 89.77935538 | Q96: -80 | R96: 1131.208906 | S96: -0.009651643561 | T96: 0.3046680164 | U96: 5.317340944 | V96: 5.357340944 | W96: -0.3018447116 | X96: -80 | Y96: 87.15692972 | Z96: 1120.507683 | AA96: -0.009743819982 | AB96: -0.2989319723 | AC96: 0.3046680164 | AD96: 0.2625808936 | AE96: -0.01316965051 | AF96: 742.4844542 | AG96: 731.8982622 | AH96: 5.477509043 | AI96: 269.3295774 | AJ96: 2.660329927 | AK96: 0.04974534297 | AL96: 0.7283176362
B97: 742.4844542 | C97: 731.8982622 | D97: 5.477509043 | E97: 0 | F97: 0 | G97: 0 | H97: 0.08 | I97: 8.468953537 | J97: 80 | K97: 1 | L97: 5.557509043 | M97: 5.517509043 | N97: 0.3121872019 | O97: 7.327703747 | P97: 91.54294788 | Q97: -80 | R97: 1137.99696 | S97: -0.009593586203 | T97: 0.3092206668 | U97: 5.397509043 | V97: 5.437509043 | W97: -0.3063184402 | X97: -80 | Y97: 88.90757622 | Z97: 1127.734931 | AA97: -0.009680884785 | AB97: -0.3033814394 | AC97: 0.3092206668 | AD97: 0.2587149198 | AE97: -0.01259503198 | AF97: 742.4874207 | AG97: 731.5890416 | AH97: 5.557688192 | AI97: 271.7236316 | AJ97: 2.735808713 | AK97: 0.04974534297 | AL97: 0.7500555267
B98: 742.4874207 | C98: 731.5890416 | D98: 5.557688192 | E98: 0 | F98: 0 | G98: 0 | H98: 0.08 | I98: 8.718703299 | J98: 80 | K98: 1 | L98: 5.637688192 | M98: 5.597688192 | N98: 0.3167672448 | O98: 7.328078321 | P98: 93.31533453 | Q98: -80 | R98: 1144.513635 | S98: -0.0095384743 | T98: 0.3137743166 | U98: 5.477688192 | V98: 5.517688192 | W98: -0.3107920118 | X98: -80 | Y98: 90.66714069 | Z98: 1134.665166 | AA98: -0.009621264686 | AB98: -0.3078302951 | AC98: 0.3137743166 | AD98: 0.2549603195 | AE98: -0.01205338851 | AF98: 742.4904136 | AG98: 731.2752673 | AH98: 5.63787827 | AI98: 274.1551582 | AJ98: 2.811962924 | AK98: 0.04974534297 | AL98: 0.7719879394
B99: 742.4904136 | C99: 731.2752673 | D99: 5.63787827 | E99: 0 | F99: 0 | G99: 0 | H99: 0.08 | I99: 8.972117095 | J99: 80 | K99: 1 | L99: 5.71787827 | M99: 5.67787827 | N99: 0.3213486859 | O99: 7.328456228 | P99: 95.09643472 | Q99: -80 | R99: 1150.77438 | S99: -0.009486091384 | T99: 0.318328988 | U99: 5.55787827 | V99: 5.59787827 | W99: -0.3152654196 | X99: -80 | Y99: 92.43553959 | Z99: 1141.315769 | AA99: -0.009564707006 | AB99: -0.3122785666 | AC99: 0.318328988 | AD99: 0.251312331 | AE99: -0.01154238064 | AF99: 742.4934333 | AG99: 730.9569383 | AH99: 5.718079165 | AI99: 276.6215458 | AJ99: 2.888802242 | AK99: 0.04974534297 | AL99: 0.7941176631
B100: 742.4934333 | C100: 730.9569383 | D100: 5.718079165 | E100: 0 | F100: 0 | G100: 0 | H100: 0.08 | I100: 9.229196043 | J100: 80 | K100: 1 | L100: 5.798079165 | M100: 5.758079165 | N100: 0.3259315188 | O100: 7.328837515 | P100: 96.88616972 | Q100: -80 | R100: 1156.793513 | S100: -0.009436241543 | T100: 0.3228847008 | U100: 5.638079165 | V100: 5.678079165 | W100: -0.3197386567 | X100: -80 | Y100: 94.21269138 | Z100: 1147.702811 | AA100: -0.009510983945 | AB100: -0.3167262782 | AC100: 0.3228847008 | AD100: 0.2477664621 | AE100: -0.0110598664 | AF100: 742.4964802 | AG100: 730.6340536 | AH100: 5.798290768 | AI100: 279.1204283 | AJ100: 2.966335694 | AK100: 0.04974534297 | AL100: 0.8164472973
B101: 742.4964802 | C101: 730.6340536 | D101: 5.798290768 | E101: 0 | F101: 0 | G101: 0 | H101: 0.08 | I101: 9.489941258 | J101: 80 | K101: 1 | L101: 5.878290768 | M101: 5.838290768 | N101: 0.3305157379 | O101: 7.329222227 | P101: 98.68446268 | Q101: -80 | R101: 1162.584314 | S101: -0.009388747041 | T101: 0.3274414727 | U101: 5.718290768 | V101: 5.758290768 | W101: -0.324211717 | X101: -80 | Y101: 95.99851646 | Z101: 1153.841166 | AA101: -0.00945988959 | AB101: -0.3211734516 | AC101: 0.3274414727 | AD101: 0.2443184711 | AE101: -0.010603882 | AF101: 742.4995544 | AG101: 730.3066121 | AH101: 5.878512976 | AI101: 281.6496566 | AJ101: 3.04457171 | AK101: 0.04974534297 | AL101: 0.8389792698
B102: 742.4995544 | C102: 730.3066121 | D102: 5.878512976 | E102: 0 | F102: 0 | G102: 0 | H102: 0.08 | I102: 9.754353849 | J102: 80 | K102: 1 | L102: 5.958512976 | M102: 5.918512976 | N102: 0.3351013373 | O102: 7.329610404 | P102: 100.4912385 | Q102: -80 | R102: 1168.15912 | S102: -0.009343446264 | T102: 0.3319993195 | U102: 5.798512976 | V102: 5.838512976 | W102: -0.3286845942 | X102: -80 | Y102: 97.79293713 | Z102: 1159.744627 | AA102: -0.009411237359 | AB102: -0.3256201061 | AC102: 0.3319993195 | AD102: 0.2409643493 | AE102: -0.01017262459 | AF102: 742.5026564 | AG102: 729.9746128 | AH102: 5.958745686 | AI102: 284.2072744 | AJ102: 3.123518175 | AK102: 0.04974534297 | AL102: 0.8617158518
B103: 742.5026564 | C103: 729.9746128 | D103: 5.958745686 | E103: 0 | F103: 0 | G103: 0 | H103: 0.08 | I103: 10.02243492 | J103: 80 | K103: 1 | L103: 6.038745686 | M103: 5.998745686 | N103: 0.3396883117 | O103: 7.330002086 | P103: 102.3064238 | Q103: -80 | R103: 1173.529408 | S103: -0.009300191934 | T103: 0.3365582553 | U103: 5.878745686 | V103: 5.918745686 | W103: -0.3331572825 | X103: -80 | Y103: 99.59587746 | Z103: 1165.425998 | AA103: -0.009364857787 | AB103: -0.3300662589 | AC103: 0.3365582553 | AD103: 0.2377003052 | AE103: -0.009764437028 | AF103: 742.5057865 | AG103: 729.6380545 | AH103: 6.038988805 | AI103: 286.7914967 | AJ103: 3.20318248 | AK103: 0.04974534297 | AL103: 0.8846591715
B104: 742.5057865 | C104: 729.6380545 | D104: 6.038988805 | E104: 0 | F104: 0 | G104: 0 | H104: 0.08 | I104: 10.29418557 | J104: 80 | K104: 1 | L104: 6.118988805 | M104: 6.078988805 | N104: 0.3442766559 | O104: 7.330397307 | P104: 104.1299468 | Q104: -80 | R104: 1178.705867 | S104: -0.009258849559 | T104: 0.341118293 | U104: 5.958988805 | V104: 5.998988805 | W104: -0.3376297762 | X104: -80 | Y104: 101.4072633 | Z104: 1170.897181 | AA104: -0.009320596614 | AB104: -0.3345119255 | AC104: 0.341118293 | AD104: 0.2345227496 | AE104: -0.00937779417 | AF104: 742.5089449 | AG104: 729.2969362 | AH104: 6.11924224 | AI104: 289.4006914 | AJ104: 3.283571561 | AK104: 0.04974534297 | AL104: 0.9078112268
B105: 742.5089449 | C105: 729.2969362 | D105: 6.11924224 | E105: 0 | F105: 0 | G105: 0 | H105: 0.08 | I105: 10.56960689 | J105: 80 | K105: 1 | L105: 6.19924224 | M105: 6.15924224 | N105: 0.348866365 | O105: 7.330796103 | P105: 105.9617375 | Q105: -80 | R105: 1183.698464 | S105: -0.009219296079 | T105: 0.3456794439 | U105: 6.03924224 | V105: 6.07924224 | W105: -0.3421020699 | X105: -80 | Y105: 103.2270221 | Z105: 1176.169253 | AA105: -0.009278313116 | AB105: -0.3389571196 | AC105: 0.3456794439 | AD105: 0.2314282825 | AE105: -0.009011290726 | AF105: 742.5121318 | AG105: 728.9512568 | AH105: 6.199505901 | AI105: 292.0333636 | AJ105: 3.364691939 | AK105: 0.04974534297 | AL105: 0.9311738959
B106: 742.5121318 | C106: 728.9512568 | D106: 6.199505901 | E106: 0 | F106: 0 | G106: 0 | H106: 0.08 | I106: 10.84869998 | J106: 80 | K106: 1 | L106: 6.279505901 | M106: 6.239505901 | N106: 0.3534574341 | O106: 7.331198505 | P106: 107.8017271 | Q106: -80 | R106: 1188.516502 | S106: -0.009181418678 | T106: 0.3502417183 | U106: 6.119505901 | V106: 6.159505901 | W106: -0.3465741583 | X106: -80 | Y106: 105.0550831 | Z106: 1181.252538 | AA106: -0.009237878659 | AB106: -0.3434018536 | AC106: 0.3502417183 | AD106: 0.2284136807 | AE106: -0.008663630344 | AF106: 742.5153475 | AG106: 728.6010151 | AH106: 6.279779704 | AI106: 294.6881408 | AJ106: 3.446549756 | AK106: 0.04974534297 | AL106: 0.9547489472
B107: 742.5153475 | C107: 728.6010151 | D107: 6.279779704 | E107: 0 | F107: 0 | G107: 0 | H107: 0.08 | I107: 11.13146593 | J107: 80 | K107: 1 | L107: 6.359779704 | M107: 6.319779704 | N107: 0.3580498587 | O107: 7.331604543 | P107: 109.6498486 | Q107: -80 | R107: 1193.168677 | S107: -0.009145113744 | T107: 0.3548051255 | U107: 6.199779704 | V107: 6.239779704 | W107: -0.3510460364 | X107: -80 | Y107: 106.8913768 | Z107: 1186.156667 | AA107: -0.009199175431 | AB107: -0.3478461388 | AC107: 0.3548051255 | AD107: 0.2254758859 | AE107: -0.00833361583 | AF107: 742.5185922 | AG107: 728.2462099 | AH107: 6.360063567 | AI107: 297.3637611 | AJ107: 3.529150801 | AK107: 0.04974534297 | AL107: 0.9785380481
B108: 742.5185922 | C108: 728.2462099 | D108: 6.360063567 | E108: 0 | F108: 0 | G108: 0 | H108: 0.08 | I108: 11.41790582 | J108: 80 | K108: 1 | L108: 6.440063567 | M108: 6.400063567 | N108: 0.3626436344 | O108: 7.332014245 | P108: 111.5060363 | Q108: -80 | R108: 1197.663125 | S108: -0.009110285949 | T108: 0.3593696739 | U108: 6.280063567 | V108: 6.320063567 | W108: -0.3555176994 | X108: -80 | Y108: 108.7358355 | Z108: 1190.890637 | AA108: -0.00916209533 | AB108: -0.352289985 | AC108: 0.3593696739 | AD108: 0.2226119948 | AE108: -0.008020140373 | AF108: 742.5218662 | AG108: 727.8868403 | AH108: 6.440357411 | AI108: 300.059062 | AJ108: 3.612500541 | AK108: 0.04974534297 | AL108: 1.002542773
B109: 742.5218662 | C109: 727.8868403 | D109: 6.440357411 | E109: 0 | F109: 0 | G109: 0 | H109: 0.08 | I109: 11.70802073 | J109: 80 | K109: 1 | L109: 6.520357411 | M109: 6.480357411 | N109: 0.367238757 | O109: 7.332427637 | P109: 113.3702258 | Q109: -80 | R109: 1202.007466 | S109: -0.009076847444 | T109: 0.3639353711 | U109: 6.360357411 | V109: 6.400357411 | W109: -0.3599891425 | X109: -80 | Y109: 110.5883929 | Z109: 1195.46286 | AA109: -0.009126538984 | AB109: -0.3567334012 | AC109: 0.3639353711 | AD109: 0.2198192491 | AE109: -0.007722179644 | AF109: 742.5251696 | AG109: 727.5229049 | AH109: 6.52066116 | AI109: 302.7729706 | AJ109: 3.696604144 | AK109: 0.04974534297 | AL109: 1.026764611
B110: 742.5251696 | C110: 727.5229049 | D110: 6.52066116 | E110: 0 | F110: 0 | G110: 0 | H110: 0.08 | I110: 12.00181173 | J110: 80 | K110: 1 | L110: 6.60066116 | M110: 6.56066116 | N110: 0.3718352223 | O110: 7.332844744 | P110: 115.2423543 | Q110: -80 | R110: 1206.208842 | S110: -0.009044717137 | T110: 0.3685022239 | U110: 6.44066116 | V110: 6.48066116 | W110: -0.3644603613 | X110: -80 | Y110: 112.4489839 | Z110: 1199.88121 | AA110: -0.009092414894 | AB110: -0.3611763956 | AC110: 0.3685022239 | AD110: 0.2170950263 | AE110: -0.00743878469 | AF110: 742.5285026 | AG110: 727.1544027 | AH110: 6.60097474 | AI110: 305.5044956 | AJ110: 3.781466503 | AK110: 0.04974534297 | AL110: 1.05120497
B111: 742.5285026 | C111: 727.1544027 | D111: 6.60097474 | E111: 0 | F111: 0 | G111: 0 | H111: 0.08 | I111: 12.29927991 | J111: 80 | K111: 1 | L111: 6.68097474 | M111: 6.64097474 | N111: 0.3764330265 | O111: 7.333265591 | P111: 117.1223599 | Q111: -80 | R111: 1210.273958 | S111: -0.00901382006 | T111: 0.3730702385 | U111: 6.52097474 | V111: 6.56097474 | W111: -0.3689313513 | X111: -80 | Y111: 114.317545 | Z111: 1204.153067 | AA111: -0.009059638668 | AB111: -0.3656189755 | AC111: 0.3730702385 | AD111: 0.2144368318 | AE111: -0.007169075512 | AF111: 742.5318654 | AG111: 726.7813324 | AH111: 6.681298081 | AI111: 308.2527191 | AJ111: 3.867092259 | AK111: 0.04974534297 | AL111: 1.075865188
B112: 742.5318654 | C112: 726.7813324 | D112: 6.681298081 | E112: 0 | F112: 0 | G112: 0 | H112: 0.08 | I112: 12.60042633 | J112: 80 | K112: 1 | L112: 6.761298081 | M112: 6.721298081 | N112: 0.3810321659 | O112: 7.333690199 | P112: 119.0101824 | Q112: -80 | R112: 1214.209112 | S112: -0.008984086805 | T112: 0.3776394206 | U112: 6.601298081 | V112: 6.641298081 | W112: -0.3734021084 | X112: -80 | Y112: 116.1940139 | Z112: 1208.285351 | AA112: -0.009028132346 | AB112: -0.3700611474 | AC112: 0.3776394206 | AD112: 0.2118422909 | AE112: -0.006912235272 | AF112: 742.5352581 | AG112: 726.403693 | AH112: 6.761631116 | AI112: 311.0167902 | AJ112: 3.953485812 | AK112: 0.04974534297 | AL112: 1.100746531
B113: 742.5352581 | C113: 726.403693 | D113: 6.761631116 | E113: 0 | F113: 0 | G113: 0 | H113: 0.08 | I113: 12.90525206 | J113: 80 | K113: 1 | L113: 6.841631116 | M113: 6.801631116 | N113: 0.3856326368 | O113: 7.33411859 | P113: 120.9057625 | Q113: -80 | R113: 1218.020224 | S113: -0.008955453014 | T113: 0.3822097751 | U113: 6.681631116 | V113: 6.721631116 | W113: -0.3778726284 | X113: -80 | Y113: 118.0783296 | Z113: 1212.284561 | AA113: -0.008997823804 | AB113: -0.3745029172 | AC113: 0.3822097751 | AD113: 0.2093091418 | AE113: -0.006667505051 | AF113: 742.538681 | AG113: 726.0214832 | AH113: 6.841973778 | AI113: 313.7959187 | AJ113: 4.040651345 | AK113: 0.04974534297 | AL113: 1.125850205
B114: 742.538681 | C114: 726.0214832 | D114: 6.841973778 | E114: 0 | F114: 0 | G114: 0 | H114: 0.08 | I114: 13.21375817 | J114: 80 | K114: 1 | L114: 6.921973778 | M114: 6.881973778 | N114: 0.3902344357 | O114: 7.334550783 | P114: 122.8090421 | Q114: -80 | R114: 1221.712866 | S114: -0.008927858935 | T114: 0.3867813068 | U114: 6.761973778 | V114: 6.801973778 | W114: -0.3823429076 | X114: -80 | Y114: 119.9704323 | Z114: 1216.156805 | AA114: -0.008968646217 | AB114: -0.3789442903 | AC114: 0.3867813068 | AD114: 0.2068352286 | AE114: -0.006434179098 | AF114: 742.5421341 | AG114: 725.6347019 | AH114: 6.922326003 | AI114: 316.5893702 | AJ114: 4.128592836 | AK114: 0.04974534297 | AL114: 1.151177354
B115: 742.5421341 | C115: 725.6347019 | D115: 6.922326003 | E115: 0 | F115: 0 | G115: 0 | H115: 0.08 | I115: 13.52594572 | J115: 80 | K115: 1 | L115: 7.002326003 | M115: 6.962326003 | N115: 0.3948375593 | O115: 7.334986798 | P115: 124.7199644 | Q115: -80 | R115: 1225.292287 | S115: -0.008901249017 | T115: 0.3913540198 | U115: 6.842326003 | V115: 6.882326003 | W115: -0.3868129419 | X115: -80 | Y115: 121.8702634 | Z115: 1219.907826 | AA115: -0.008940537581 | AB115: -0.3833852715 | AC115: 0.3913540198 | AD115: 0.2044184957 | AE115: -0.006211600524 | AF115: 742.5456176 | AG115: 725.2433479 | AH115: 7.002687732 | AI115: 319.3964607 | AJ115: 4.217314075 | AK115: 0.04974534297 | AL115: 1.176729071
B116: 742.5456176 | C116: 725.2433479 | D116: 7.002687732 | E116: 0 | F116: 0 | G116: 0 | H116: 0.08 | I116: 13.84181577 | J116: 80 | K116: 1 | L116: 7.082687732 | M116: 7.042687732 | N116: 0.3994420044 | O116: 7.335426653 | P116: 126.6384737 | Q116: -80 | R116: 1228.763434 | S116: -0.008875571547 | T116: 0.3959279179 | U116: 6.922687732 | V116: 6.962687732 | W116: -0.3912827279 | X116: -80 | Y116: 123.7777656 | Z116: 1223.543033 | AA116: -0.008913440291 | AB116: -0.3878258652 | AC116: 0.3959279179 | AD116: 0.2020569816 | AE116: -0.005999157387 | AF116: 742.5491317 | AG116: 724.84742 | AH116: 7.083058904 | AI116: 322.2165529 | AJ116: 4.306818673 | AK116: 0.04974534297 | AL116: 1.202506395
B117: 742.5491317 | C117: 724.84742 | D117: 7.083058904 | E117: 0 | F117: 0 | G117: 0 | H117: 0.08 | I117: 14.16136937 | J117: 80 | K117: 1 | L117: 7.163058904 | M117: 7.123058904 | N117: 0.4040477679 | O117: 7.335870365 | P117: 128.5645151 | Q117: -80 | R117: 1232.130974 | S117: -0.008850778326 | T117: 0.4005030046 | U117: 7.003058904 | V117: 7.043058904 | W117: -0.3957522618 | X117: -80 | Y117: 125.6928824 | Z117: 1227.067522 | AA117: -0.008887300757 | AB117: -0.3922660752 | AC117: 0.4005030046 | AD117: 0.1997488136 | AE117: -0.005796279141 | AF117: 742.5526765 | AG117: 724.446917 | AH117: 7.163439463 | AI117: 325.0490517 | AJ117: 4.397110077 | AK117: 0.04974534297 | AL117: 1.228510319
B118: 742.5526765 | C118: 724.446917 | D118: 7.163439463 | E118: 0 | F118: 0 | G118: 0 | H118: 0.08 | I118: 14.48460759 | J118: 80 | K118: 1 | L118: 7.243439463 | M118: 7.203439463 | N118: 0.4086548467 | O118: 7.33631795 | P118: 130.498035 | Q118: -80 | R118: 1235.399315 | S118: -0.008826824376 | T118: 0.405079283 | U118: 7.083439463 | V118: 7.123439463 | W118: -0.4002215403 | X118: -80 | Y118: 127.6155588 | Z118: 1230.486099 | AA118: -0.008862069062 | AB118: -0.3967059052 | AC118: 0.405079283 | AD118: 0.197492203 | AE118: -0.005602433397 | AF118: 742.556252 | AG118: 724.0418377 | AH118: 7.243829354 | AI118: 327.893401 | AJ118: 4.488191577 | AK118: 0.04974534297 | AL118: 1.254741791
B119: 742.556252 | C119: 724.0418377 | D119: 7.243829354 | E119: 0 | F119: 0 | G119: 0 | H119: 0.08 | I119: 14.81153146 | J119: 80 | K119: 1 | L119: 7.323829354 | M119: 7.283829354 | N119: 0.4132632379 | O119: 7.336769425 | P119: 132.4389807 | Q119: -80 | R119: 1238.572622 | S119: -0.008803667679 | T119: 0.409656756 | U119: 7.163829354 | V119: 7.203829354 | W119: -0.4046905601 | X119: -80 | Y119: 129.5457405 | Z119: 1233.8033 | AA119: -0.008837698652 | AB119: -0.4011453583 | AC119: 0.409656756 | AD119: 0.1952854404 | AE119: -0.005417122968 | AF119: 742.5598585 | AG119: 723.632181 | AH119: 7.324228523 | AI119: 330.7490806 | AJ119: 4.580066321 | AK119: 0.04974534297 | AL119: 1.281201718
B120: 742.5598585 | C120: 723.632181 | D120: 7.324228523 | E120: 0 | F120: 0 | G120: 0 | H120: 0.08 | I120: 15.14214205 | J120: 80 | K120: 1 | L120: 7.404228523 | M120: 7.364228523 | N120: 0.4178729389 | O120: 7.337224803 | P120: 134.3873006 | Q120: -80 | R120: 1241.654833 | S120: -0.008781268935 | T120: 0.4142354262 | U120: 7.244228523 | V120: 7.284228523 | W120: -0.4091593178 | X120: -80 | Y120: 131.4833743 | Z120: 1237.02341 | AA120: -0.008814146062 | AB120: -0.4055844374 | AC120: 0.4142354262 | AD120: 0.193126891 | AE120: -0.005239883185 | AF120: 742.563496 | AG120: 723.2179455 | AH120: 7.404636918 | AI120: 333.6156032 | AJ120: 4.672737322 | AK120: 0.04974534297 | AL120: 1.307890966
B121: 742.563496 | C121: 723.2179455 | D121: 7.404636918 | E121: 0 | F121: 0 | G121: 0 | H121: 0.08 | I121: 15.47644041 | J121: 80 | K121: 1 | L121: 7.484636918 | M121: 7.444636918 | N121: 0.4224839468 | O121: 7.3376841 | P121: 136.3429438 | Q121: -80 | R121: 1244.649676 | S121: -0.008759591348 | T121: 0.418815296 | U121: 7.324636918 | V121: 7.364636918 | W121: -0.4136278104 | X121: -80 | Y121: 133.4284082 | Z121: 1240.150478 | AA121: -0.008791370662 | AB121: -0.410023145 | AC121: 0.418815296 | AD121: 0.191014991 | AE121: -0.005070279433 | AF121: 742.5671647 | AG121: 722.7991302 | AH121: 7.485054491 | AI121: 336.492512 | AJ121: 4.766207465 | AK121: 0.04974534297 | AL121: 1.334810367
B122: 742.5671647 | C122: 722.7991302 | D122: 7.485054491 | E122: 0 | F122: 0 | G122: 0 | H122: 0.08 | I122: 15.81442756 | J122: 80 | K122: 1 | L122: 7.565054491 | M122: 7.525054491 | N122: 0.4270962592 | O122: 7.338147328 | P122: 138.3058607 | Q122: -80 | R122: 1247.56068 | S122: -0.008738600431 | T122: 0.4233963675 | U122: 7.405054491 | V122: 7.445054491 | W122: -0.4180960348 | X122: -80 | Y122: 135.3807909 | Z122: 1243.188338 | AA122: -0.00876933443 | AB122: -0.4144614835 | AC122: 0.4233963675 | AD122: 0.1889482436 | AE122: -0.004907904906 | AF122: 742.5708646 | AG122: 722.3757339 | AH122: 7.565481191 | AI122: 339.3793781 | AJ122: 4.860479514 | AK122: 0.04974534297 | AL122: 1.361960717
B123: 742.5708646 | C123: 722.3757339 | D123: 7.565481191 | E123: 0 | F123: 0 | G123: 0 | H123: 0.08 | I123: 16.15610457 | J123: 80 | K123: 1 | L123: 7.645481191 | M123: 7.605481191 | N123: 0.4317098734 | O123: 7.338614501 | P123: 140.2760021 | Q123: -80 | R123: 1250.39119 | S123: -0.008718263828 | T123: 0.4279786427 | U123: 7.485481191 | V123: 7.525481191 | W123: -0.4225639881 | X123: -80 | Y123: 137.3404721 | Z123: 1246.140615 | AA123: -0.00874800175 | AB123: -0.4188994549 | AC123: 0.4279786427 | AD123: 0.1869252155 | AE123: -0.00475237855 | AF123: 742.5745958 | AG123: 721.9477552 | AH123: 7.645916974 | AI123: 342.2757984 | AJ123: 4.955556125 | AK123: 0.04974534297 | AL123: 1.389342781
B124: 742.5745958 | C124: 721.9477552 | D124: 7.645916974 | E124: 0 | F124: 0 | G124: 0 | H124: 0.08 | I124: 16.50147247 | J124: 80 | K124: 1 | L124: 7.725916974 | M124: 7.685916974 | N124: 0.4363247871 | O124: 7.339085631 | P124: 142.2533202 | Q124: -80 | R124: 1253.144379 | S124: -0.008698551152 | T124: 0.4325621234 | U124: 7.565916974 | V124: 7.605916974 | W124: -0.4270316674 | X124: -80 | Y124: 139.3074026 | Z124: 1249.010747 | AA124: -0.008727339222 | AB124: -0.4233370612 | AC124: 0.4325621234 | AD124: 0.1849445332 | AE124: -0.004603343176 | AF124: 742.5783585 | AG124: 721.5151931 | AH124: 7.726361792 | AI124: 345.1813939 | AJ124: 5.051439845 | AK124: 0.04974534297 | AL124: 1.416957293
B125: 742.5783585 | C125: 721.5151931 | D125: 7.726361792 | E125: 0 | F125: 0 | G125: 0 | H125: 0.08 | I125: 16.8505323 | J125: 80 | K125: 1 | L125: 7.806361792 | M125: =(D125+L125)/2 -> 7.766361792 | N125: 0.440940998 | O125: 7.33956073 | P125: 144.2377676 | Q125: -80 | R125: 1255.823257 | S125: =Q125/O125/R125 -> -0.008679433838 | T125: =N125/(1-S125) -> 0.4371468111 | U125: 7.646361792 | V125: =(D125+U125)/2 -> 7.686361792 | W125: -0.4314990699 | X125: -80 | Y125: 141.2815338 | Z125: 1251.801991 | AA125: =X125/O125/Z125 -> -0.008707315495 | AB125: -0.4277743041 | AC125: 0.4371468111 | AD125: =H125/AC125*K125 -> 0.1830048806 | AE125: -0.004460463736 | AF125: =B125-(AC125-N125) -> 742.5821527 | AG125: =C125-AC125 -> 721.0780463 | AH125: 7.806815603 | AI125: =AC125/R125*1000000 -> 348.0958078 | AJ125: 5.148133125 | AK125: 0.04974534297 | AL125: 1.444804957
B126: =AF125 -> 742.5821527 | C126: 721.0780463 | D126: 7.806815603 | E126: 0 | F126: =(E126+E125)/2 -> 0 | G126: =F126*$S$53*$C$55*(B126-C126+N126)^1.5 -> 0 | H126: 0.08 | I126: =(B126-C126)*B$19 -> 17.2032851 | J126: 80 | K126: =IF((1-S125-0.015)>0,1,-1) -> 1 | L126: =D126+K126*H126 -> 7.886815603 | M126: 7.846815603 | N126: =2*($P$53*M126/$S$52/$S$51)^2-(B126-C126)*2 -> 0.4455585037 | O126: =wh(B126,$F$51,$F$52,$F$53) -> 7.34003981 | P126: =$C$54*$L$55*$L$55*M126*M126/(($B$19*(B126-C126))^0.333)*1000 -> 146.2292981 | Q126: =M126/$S$54*(B126-C126+N126/2)*E126-$C$53 -> -80 | R126: =rate1(1,$L$52,$L$51,$L$54,L126,$L$53,$L$50,P126) -> 1258.430684 | S126: -0.008660885011 | T126: 0.4417327075 | U126: =D126-K126*H126 -> 7.726815603 | V126: 7.766815603 | W126: =2*($P$53*V126/$S$52/$S$51)^2-(B126-C126)*2 -> -0.4359661929 | X126: =V126/$S$54*(B126-C126+W126/2)*F126-$C$53 -> -80 | Y126: =$C$54*$L$55*$L$55*V126*V126/(($B$19*(B126-C126))^0.333)*1000 -> 143.2628182 | Z126: =rate1(1,$L$52,$L$51,$L$54,U126,$L$53,$L$50,Y126) -> 1254.517438 | AA126: -0.008687901113 | AB126: =W126/(1-AA126) -> -0.4322111849 | AC126: =delta_z(N126,S126,H126,AE125,AB126) -> 0.4417327075 | AD126: 0.1811049955 | AE126: =(AD126-AD125)/(AC126+AC125)*2 -> -0.004323425732 | AF126: 742.5859785 | AG126: 720.6363136 | AH126: =$S$54*$S$53*$C$55*SQRT(AF126-AG126) -> 7.887278365 | AI126: 351.0187038 | AJ126: =AJ125+AI126/3600 -> 5.245638321 | AK126: 0.04974534297 | AL126: 1.472886454
B127: 742.5859785 | C127: 720.6363136 | D127: 7.887278365 | E127: =CalBreachWidth(C127,B127,I127,E126) -> 0 | F127: 0 | G127: 0 | H127: =dv(S126) -> 0.08 | I127: 17.5597319 | J127: 80 | K127: 1 | L127: 7.967278365 | M127: 7.927278365 | N127: 0.4501773021 | O127: 7.34052288 | P127: 148.2278659 | Q127: -80 | R127: 1260.969376 | S127: -0.008642879361 | T127: 0.4463198138 | U127: 7.807278365 | V127: 7.847278365 | W127: -0.4404330338 | X127: -80 | Y127: 145.2512089 | Z127: 1257.160022 | AA127: -0.008669068373 | AB127: -0.436647705 | AC127: 0.4463198138 | AD127: 0.1792436668 | AE127: -0.00419193376 | AF127: 742.5898359 | AG127: 720.1899938 | AH127: 7.967750034 | AI127: 353.9497647 | AJ127: 5.3439577 | AK127: =AK126+AI127*G126/1000000 -> 0.04974534297 | AL127: =AL126+AI127*J127/1000000 -> 1.501202435
B128: 742.5898359 | C128: 720.1899938 | D128: 7.967750034 | E128: 0 | F128: 0 | G128: 0 | H128: 0.08 | I128: 17.91987374 | J128: =IF(H128>0, $B$7,"") -> 80 | K128: 1 | L128: 8.047750034 | M128: 8.007750034 | N128: 0.4547973911 | O128: 7.341009952 | P128: 150.2334263 | Q128: -80 | R128: 1263.441915 | S128: -0.008625393031 | T128: 0.4509081313 | U128: 7.887750034 | V128: 7.927750034 | W128: -0.4448995901 | X128: -80 | Y128: 147.24666 | Z128: 1259.73253 | AA128: -0.0086507912 | AB128: -0.4410838657 | AC128: 0.4509081313 | AD128: 0.1774197324 | AE128: -0.004065710173 | AF128: 742.5937252 | AG128: 719.7390856 | AH128: 8.048230573 | AI128: 356.8886911 | AJ128: 5.443093447 | AK128: 0.04974534297 | AL128: 1.52975353
B129: 742.5937252 | C129: 719.7390856 | D129: 8.048230573 | E129: 0 | F129: 0 | G129: 0 | H129: 0.08 | I129: 18.28371166 | J129: 80 | K129: 1 | L129: 8.128230573 | M129: 8.088230573 | N129: 0.4594187687 | O129: 7.341501036 | P129: 152.2459353 | Q129: -80 | R129: 1265.850759 | S129: -0.008608403519 | T129: 0.455497661 | U129: 7.968230573 | V129: 8.008230573 | W129: -0.4493658593 | X129: -80 | Y129: 149.2491264 | Z129: 1262.237611 | AA129: -0.008633045024 | AB129: -0.4455196679 | AC129: 0.455497661 | AD129: 0.1756320764 | AE129: -0.003944493842 | AF129: 742.5976463 | AG129: 719.283588 | AH129: 8.128719941 | AI129: 359.8352001 | AJ129: 5.54304767 | AK129: 0.04974534297 | AL129: 1.558540346
B130: 742.5976463 | C130: 719.283588 | D130: 8.128719941 | E130: 0 | F130: 0 | G130: 0 | H130: 0.08 | I130: 18.65124667 | J130: 80 | K130: 1 | L130: 8.208719941 | M130: 8.168719941 | N130: 0.4640414329 | O130: 7.341996141 | P130: 154.2653495 | Q130: -80 | R130: 1268.198246 | S130: -0.008591889578 | T130: 0.4600884041 | U130: 8.048719941 | V130: 8.088719941 | W130: -0.4538318389 | X130: -80 | Y130: 151.2585635 | Z130: 1264.677783 | AA130: -0.008615806681 | AB130: -0.4499551126 | AC130: 0.4600884041 | AD130: 0.1738796268 | AE130: -0.003828039022 | AF130: 742.6015993 | AG130: 718.8234996 | AH130: 8.209218102 | AI130: 362.7890242 | AJ130: 5.643822398 | AK130: 0.04974534297 | AL130: 1.587563468
B131: 742.6015993 | C131: 718.8234996 | D131: 8.209218102 | E131: 0 | F131: 0 | G131: 0 | H131: 0.08 | I131: 19.02247982 | J131: 80 | K131: 1 | L131: 8.289218102 | M131: 8.249218102 | N131: 0.4686653817 | O131: 7.342495277 | P131: 156.2916263 | Q131: -80 | R131: 1270.486605 | S131: -0.008575831132 | T131: 0.4646803614 | U131: 8.129218102 | V131: 8.169218102 | W131: -0.4582975266 | X131: -80 | Y131: 153.2749278 | Z131: 1267.055444 | AA131: -0.008599054307 | AB131: -0.4543902006 | AC131: 0.4646803614 | AD131: 0.1721613536 | AE131: -0.003716114305 | AF131: 742.6055844 | AG131: 718.3588192 | AH131: 8.289725019 | AI131: 365.7499101 | AJ131: 5.745419596 | AK131: 0.04974534297 | AL131: 1.616823461
B132: 742.6055844 | C132: 718.3588192 | D132: 8.289725019 | E132: 0 | F132: 0 | G132: 0 | H132: 0.08 | I132: 19.39741212 | J132: 80 | K132: 1 | L132: 8.369725019 | M132: 8.329725019 | N132: 0.4732906134 | O132: 7.342998452 | P132: 158.3247239 | Q132: -80 | R132: 1272.717958 | S132: -0.0085602092 | T132: 0.4692735338 | U132: 8.209725019 | V132: 8.249725019 | W132: -0.4627629202 | X132: -80 | Y132: 155.2981762 | Z132: 1269.372878 | AA132: -0.008582767256 | AB132: -0.4588249326 | AC132: 0.4692735338 | AD132: 0.1704762665 | AE132: -0.00360850165 | AF132: 742.6096014 | AG132: 717.8895457 | AH132: 8.370240655 | AI132: 368.717618 | AJ132: 5.847841156 | AK132: 0.04974534297 | AL132: 1.64632087
B133: 742.6096014 | C133: 717.8895457 | D133: 8.370240655 | E133: 0 | F133: 0 | G133: 0 | H133: 0.08 | I133: 19.77604461 | J133: 80 | K133: 1 | L133: 8.450240655 | M133: 8.410240655 | N133: 0.4779171261 | O133: 7.343505676 | P133: 160.364601 | Q133: -80 | R133: 1274.894329 | S133: -0.008545005818 | T133: 0.473867922 | U133: 8.290240655 | V133: 8.330240655 | W133: -0.4672280174 | X133: -80 | Y133: 157.3282667 | Z133: 1271.632258 | AA133: -0.008566926009 | AB133: -0.4632593092 | AC133: 0.473867922 | AD133: 0.1688234132 | AE133: -0.003504995494 | AF133: 742.6136506 | AG133: 717.4156778 | AH133: 8.450764978 | AI133: 371.6919207 | AJ133: 5.951088912 | AK133: 0.04974534297 | AL133: 1.676056224
B134: 742.6136506 | C134: 717.4156778 | D134: 8.450764978 | E134: 0 | F134: 0 | G134: 0 | H134: 0.08 | I134: 20.15837831 | J134: 80 | K134: 1 | L134: 8.530764978 | M134: 8.490764978 | N134: 0.4825449182 | O134: 7.344016955 | P134: 162.4112171 | Q134: -80 | R134: 1277.01765 | S134: -0.008530203975 | T134: 0.4784635267 | U134: 8.370764978 | V134: 8.410764978 | W134: -0.4716928161 | X134: -80 | Y134: 159.3651576 | Z134: 1273.835657 | AA134: -0.008551512103 | AB134: -0.4676933309 | AC134: 0.4784635267 | AD134: 0.1672018775 | AE134: -0.003405401921 | AF134: 742.617732 | AG134: 716.9372142 | AH134: 8.531297953 | AI134: 374.6726026 | AJ134: 6.055164635 | AK134: 0.04974534297 | AL134: 1.706030032
B135: 742.617732 | C135: 716.9372142 | D135: 8.531297953 | E135: 0 | F135: 0 | G135: 0 | H135: 0.08 | I135: 20.54441425 | J135: 80 | K135: 1 | L135: 8.611297953 | M135: 8.571297953 | N135: 0.4871739879 | O135: 7.344532299 | P135: 164.4645323 | Q135: -80 | R135: 1279.089765 | S135: -0.00851578755 | T135: 0.4830603486 | U135: 8.451297953 | V135: 8.491297953 | W135: -0.4761573141 | X135: -80 | Y135: 161.408808 | Z135: 1275.985053 | AA135: -0.008536508061 | AB135: -0.4721269982 | AC135: 0.4830603486 | AD135: 0.1656107777 | AE135: -0.003309537904 | AF135: 742.6218457 | AG135: 716.4541539 | AH135: 8.611839548 | AI135: 377.659459 | AJ135: 6.16007004 | AK135: 0.04974534297 | AL135: 1.736242789
B136: 742.6218457 | C136: 716.4541539 | D136: 8.611839548 | E136: 0 | F136: 0 | G136: 0 | H136: 0.08 | I136: 20.93415344 | J136: 80 | K136: 1 | L136: 8.691839548 | M136: 8.651839548 | N136: 0.4918043336 | O136: 7.345051714 | P136: 166.5245072 | Q136: -80 | R136: 1281.112432 | S136: -0.008501741255 | T136: 0.4876583882 | U136: 8.531839548 | V136: 8.571839548 | W136: -0.4806215095 | X136: -80 | Y136: 163.4591778 | Z136: 1278.082333 | AA136: -0.008521897327 | AB136: -0.4765603114 | AC136: 0.4876583882 | AD136: 0.1640492647 | AE136: -0.003217230595 | AF136: 742.6259916 | AG136: 715.9664955 | AH136: 8.692389732 | AI136: 380.6522955 | AJ136: 6.265806789 | AK136: 0.04974534297 | AL136: 1.766694973
B137: 742.6259916 | C137: 715.9664955 | D137: 8.692389732 | E137: 0 | F137: 0 | G137: 0 | H137: 0.08 | I137: 21.32759691 | J137: 80 | K137: 1 | L137: 8.772389732 | M137: 8.732389732 | N137: 0.4964359539 | O137: 7.345575209 | P137: 168.5911034 | Q137: -80 | R137: 1283.087335 | S137: -0.008488050582 | T137: 0.4922576461 | U137: 8.612389732 | V137: 8.652389732 | W137: -0.4850854001 | X137: -80 | Y137: 165.5162274 | Z137: 1280.129298 | AA137: -0.008507664204 | AB137: -0.4809932708 | AC137: 0.4922576461 | AD137: 0.1625165208 | AE137: -0.003128316672 | AF137: 742.6301699 | AG137: 715.4742378 | AH137: 8.772948473 | AI137: 383.6509273 | AJ137: 6.372376491 | AK137: 0.04974534297 | AL137: 1.797387047
B138: 742.6301699 | C138: 715.4742378 | D138: 8.772948473 | E138: 0 | F138: 0 | G138: 0 | H138: 0.08 | I138: 21.72474567 | J138: 80 | K138: 1 | L138: 8.852948473 | M138: 8.812948473 | N138: 0.5010688471 | O138: 7.34610279 | P138: 170.6642826 | Q138: -80 | R138: 1285.016082 | S138: -0.008474701754 | T138: 0.4968581227 | U138: 8.692948473 | V138: 8.732948473 | W138: -0.489548984 | X138: -80 | Y138: 167.5799178 | Z138: 1282.127668 | AA138: -0.008493793802 | AB138: -0.4854258767 | AC138: 0.4968581227 | AD138: 0.1610117584 | AE138: -0.003042641728 | AF138: 742.6343807 | AG138: 714.9773797 | AH138: 8.853515742 | AI138: 386.6551786 | AJ138: 6.479780707 | AK138: 0.04974534297 | AL138: 1.828319461
B139: 742.6343807 | C139: 714.9773797 | D139: 8.853515742 | E139: 0 | F139: 0 | G139: 0 | H139: 0.08 | I139: 22.12560075 | J139: 80 | K139: 1 | L139: 8.933515742 | M139: 8.893515742 | N139: 0.5057030118 | O139: 7.346634464 | P139: 172.7440075 | Q139: -80 | R139: 1286.900209 | S139: -0.008461681681 | T139: 0.5014598184 | U139: 8.773515742 | V139: 8.813515742 | W139: -0.4940122594 | X139: -80 | Y139: 169.6502107 | Z139: 1284.079089 | AA139: -0.008480271987 | AB139: -0.4898581293 | AC139: 0.5014598184 | AD139: 0.159534218 | AE139: -0.002960059714 | AF139: 742.6386238 | AG139: 714.4759199 | AH139: 8.934091509 | AI139: 389.6648821 | AJ139: 6.588020952 | AK139: 0.04974534297 | AL139: 1.859492652
B140: 742.6386238 | C140: 714.4759199 | D140: 8.934091509 | E140: 0 | F140: 0 | G140: 0 | H140: 0.08 | I140: 22.53016316 | J140: 80 | K140: 1 | L140: 9.014091509 | M140: 8.974091509 | N140: 0.5103384465 | O140: 7.347170238 | P140: 174.8302411 | Q140: -80 | R140: 1288.741189 | S140: -0.008448977917 | T140: 0.5060627336 | U140: 8.854091509 | V140: 8.894091509 | W140: -0.4984752244 | X140: -80 | Y140: 171.7270684 | Z140: 1285.985132 | AA140: -0.008467085332 | AB140: -0.4942900286 | AC140: 0.5060627336 | AD140: 0.1580831677 | AE140: -0.00288043241 | AF140: 742.6428996 | AG140: 713.9698572 | AH140: 9.014675748 | AI140: 392.6798785 | AJ140: 6.697098696 | AK140: 0.04974534297 | AL140: 1.890907042
B141: 742.6428996 | C141: 713.9698572 | D141: 9.014675748 | E141: 0 | F141: 0 | G141: 0 | H141: 0.08 | I141: 22.93843391 | J141: 80 | K141: 1 | L141: 9.094675748 | M141: 9.054675748 | N141: 0.5149751499 | O141: 7.347710118 | P141: 176.9229471 | Q141: -80 | R141: 1290.54043 | S141: -0.00843657862 | T141: 0.5106668688 | U141: 8.934675748 | V141: 8.974675748 | W141: -0.5029378772 | X141: -80 | Y141: 173.8104536 | Z141: 1287.847302 | AA141: -0.008454221075 | AB141: -0.4987215748 | AC141: 0.5106668688 | AD141: 0.1566579015 | AE141: -0.002803628944 | AF141: 742.6472078 | AG141: 713.4591903 | AH141: 9.095268429 | AI141: 395.7000159 | AJ141: 6.807015367 | AK141: 0.04974534297 | AL141: 1.922563043
B142: 742.6472078 | C142: 713.4591903 | D142: 9.095268429 | E142: 0 | F142: 0 | G142: 0 | H142: 0.08 | I142: 23.35041403 | J142: 80 | K142: 1 | L142: 9.175268429 | M142: 9.135268429 | N142: 0.5196131207 | O142: 7.34825411 | P142: 179.0220897 | Q142: -80 | R142: 1292.299281 | S142: -0.008424472518 | T142: 0.515272224 | U142: 9.015268429 | V142: 9.055268429 | W142: -0.507400216 | X142: -80 | Y142: 175.9003298 | Z142: 1289.667038 | AA142: -0.008441667079 | AB142: -0.5031527678 | AC142: 0.515272224 | AD142: 0.1552577381 | AE142: -0.002729525336 | AF142: 742.6515487 | AG142: 712.9439181 | AH142: 9.175869526 | AI142: 398.7251494 | AJ142: 6.917772353 | AK142: 0.04974534297 | AL142: 1.954461055
B143: 742.6515487 | C143: 712.9439181 | D143: 9.175869526 | E143: 0 | F143: 0 | G143: 0 | H143: 0.08 | I143: 23.76610453 | J143: 80 | K143: 1 | L143: 9.255869526 | M143: 9.215869526 | N143: 0.5242523576 | O143: 7.348802221 | P143: 181.1276336 | Q143: -80 | R143: 1294.019035 | S143: -0.008412648875 | T143: 0.5198787998 | U143: 9.095869526 | V143: 9.135869526 | W143: -0.5118622391 | X143: -80 | Y143: 177.9966609 | Z143: 1291.44572 | AA143: -0.008429411792 | AB143: -0.5075836078 | AC143: 0.5198787998 | AD143: 0.1538820203 | AE143: -0.002658004083 | AF143: 742.6559223 | AG143: 712.4240393 | AH143: 9.256479014 | AI143: 401.7551409 | AJ143: 7.029371004 | AK143: 0.04974534297 | AL143: 1.986601466
B144: 742.6559223 | C144: 712.4240393 | D144: 9.256479014 | E144: 0 | F144: 0 | G144: 0 | H144: 0.08 | I144: 24.18550642 | J144: 80 | K144: 1 | L144: 9.336479014 | M144: 9.296479014 | N144: 0.5288928593 | O144: 7.349354456 | P144: 183.2395442 | Q144: -80 | R144: 1295.70093 | S144: -0.008401097457 | T144: 0.5244865963 | U144: 9.176479014 | V144: 9.216479014 | W144: -0.5163239447 | X144: -80 | Y144: 180.0994114 | Z144: 1293.184666 | AA144: -0.008417444216 | AB144: -0.5120140947 | AC144: 0.5244865963 | AD144: 0.1525301134 | AE144: -0.002588953762 | AF144: 742.6603286 | AG144: 711.8995527 | AH144: 9.337096867 | AI144: 404.7898586 | AJ144: 7.141812631 | AK144: 0.04974534297 | AL144: 2.018984655
B145: 742.6603286 | C145: 711.8995527 | D145: 9.337096867 | E145: 0 | F145: 0 | G145: 0 | H145: 0.08 | I145: 24.6086207 | J145: 80 | K145: 1 | L145: 9.417096867 | M145: 9.377096867 | N145: 0.5335346245 | O145: 7.34991082 | P145: 185.3577871 | Q145: -80 | R145: 1297.346155 | S145: -0.008389808508 | T145: 0.5290956136 | U145: 9.257096867 | V145: 9.297096867 | W145: -0.5207853314 | X145: -80 | Y145: 182.2085463 | Z145: 1294.885143 | AA145: -0.008405753871 | AB145: -0.5164442283 | AC145: 0.5290956136 | AD145: 0.1512014047 | AE145: -0.00252226867 | AF145: 742.6647676 | AG145: 711.3704571 | AH145: 9.41772306 | AI145: 407.8291763 | AJ145: 7.255098513 | AK145: 0.04974534297 | AL145: 2.051610989
B146: 742.6647676 | C146: 711.3704571 | D146: 9.41772306 | E146: 0 | F146: 0 | G146: 0 | H146: 0.08 | I146: 25.0354484 | J146: 80 | K146: 1 | L146: 9.49772306 | M146: 9.45772306 | N146: 0.5381776522 | O146: 7.350471319 | P146: 187.4823287 | Q146: -80 | R146: 1298.955849 | S146: -0.008378772717 | T146: 0.5337058522 | U146: 9.33772306 | V146: 9.37772306 | W146: -0.5252463973 | X146: -80 | Y146: 184.3240311 | Z146: 1296.548365 | AA146: -0.008394330767 | AB146: -0.5208740086 | AC146: 0.5337058522 | AD146: 0.1498953022 | AE146: -0.002457848485 | AF146: 742.6692394 | AG146: 710.8367512 | AH146: 9.498357569 | AI146: 410.8729736 | AJ146: 7.369229895 | AK146: 0.04974534297 | AL146: 2.084480827
B147: 742.6692394 | C147: 710.8367512 | D147: 9.498357569 | E147: 0 | F147: 0 | G147: 0 | H147: 0.08 | I147: 25.46599052 | J147: 80 | K147: 1 | L147: 9.578357569 | M147: 9.538357569 | N147: 0.5428219411 | O147: 7.351035958 | P147: 189.6131356 | Q147: -80 | R147: 1300.531106 | S147: -0.0083679812 | T147: 0.538317312 | U147: 9.418357569 | V147: 9.458357569 | W147: -0.5297071411 | X147: -80 | Y147: 186.4458318 | Z147: 1298.175493 | AA147: -0.008383165375 | AB147: -0.5253034355 | AC147: 0.538317312 | AD147: 0.148611234 | AE147: -0.002395597943 | AF147: 742.673744 | AG147: 710.2984339 | AH147: 9.579000371 | AI147: 413.9211354 | AJ147: 7.484207988 | AK147: 0.04974534297 | AL147: 2.117594518
B148: 742.673744 | C148: 710.2984339 | D148: 9.579000371 | E148: 0 | F148: 0 | G148: 0 | H148: 0.08 | I148: 25.90024808 | J148: 80 | K148: 1 | L148: 9.659000371 | M148: 9.619000371 | N148: 0.5474674903 | O148: 7.351604743 | P148: 191.7501752 | Q148: -80 | R148: 1302.072977 | S148: -0.008357425467 | T148: 0.5429299933 | U148: 9.499000371 | V148: 9.539000371 | W148: -0.534167561 | X148: -80 | Y148: 188.5739151 | Z148: 1299.767646 | AA148: -0.008372248602 | AB148: -0.5297325088 | AC148: 0.5429299933 | AD148: 0.1473486471 | AE148: -0.002335426551 | AF148: 742.6782815 | AG148: 709.7555039 | AH148: 9.659651443 | AI148: 416.9735515 | AJ148: 7.600033975 | AK148: 0.04974534297 | AL148: 2.150952402
B149: 742.6782815 | C149: 709.7555039 | D149: 9.659651443 | E149: 0 | F149: 0 | G149: 0 | H149: 0.08 | I149: 26.33822207 | J149: 80 | K149: 1 | L149: 9.739651443 | M149: 9.699651443 | N149: 0.5521142985 | O149: 7.352177677 | P149: 193.893415 | Q149: -80 | R149: 1303.582469 | S149: -0.008347097409 | T149: 0.5475438962 | U149: 9.579651443 | V149: 9.619651443 | W149: -0.5386276557 | X149: -80 | Y149: 190.7082477 | Z149: 1301.325894 | AA149: -0.008361571765 | AB149: -0.5341612283 | AC149: 0.5475438962 | AD149: 0.1461070072 | AE149: -0.002277248304 | AF149: 742.6828519 | AG149: 709.20796 | AH149: 9.740310762 | AI149: 420.0301163 | AJ149: 7.716709007 | AK149: 0.04974534297 | AL149: 2.184554811
B150: 742.6828519 | C150: 709.20796 | D150: 9.740310762 | E150: 0 | F150: 0 | G150: 0 | H150: 0.08 | I150: 26.77991351 | J150: 80 | K150: 1 | L150: 9.820310762 | M150: 9.780310762 | N150: 0.5567623647 | O150: 7.352754767 | P150: 196.0428232 | Q150: -80 | R150: 1305.060553 | S150: -0.008336989273 | T150: 0.5521590209 | U150: 9.660310762 | V150: 9.700310762 | W150: -0.5430874237 | X150: -80 | Y150: 192.8487973 | Z150: 1302.851267 | AA150: -0.008351126569 | AB150: -0.5385895938 | AC150: 0.5521590209 | AD150: 0.1448857973 | AE150: -0.002220981432 | AF150: 742.6874552 | AG150: 708.655801 | AH150: 9.820978308 | AI150: 423.090729 | AJ150: 7.834234209 | AK150: 0.04974534297 | AL150: 2.21840207
B151: 742.6874552 | C151: 708.655801 | D151: 9.820978308 | E151: 0 | F151: 0 | G151: 0 | H151: 0.08 | I151: 27.2253234 | J151: 80 | K151: 1 | L151: 9.900978308 | M151: 9.860978308 | N151: 0.561411688 | O151: 7.353336016 | P151: 198.1983685 | Q151: -80 | R151: 1306.508161 | S151: -0.008327093641 | T151: 0.5567753674 | U151: 9.740978308 | V151: 9.780978308 | W151: -0.5475468635 | X151: -80 | Y151: 194.9955317 | Z151: 1304.344755 | AA151: -0.008340905085 | AB151: -0.5430176052 | AC151: 0.5567753674 | AD151: 0.1436845175 | AE151: -0.002166548153 | AF151: 742.6920916 | AG151: 708.0990256 | AH151: 9.901654058 | AI151: 426.1552925 | AJ151: 7.95261068 | AK151: 0.04974534297 | AL151: 2.252494493
B152: 742.6920916 | C152: 708.0990256 | D152: 9.901654058 | E152: 0 | F152: 0 | G152: 0 | H152: 0.08 | I152: 27.67445275 | J152: 80 | K152: 1 | L152: 9.981654058 | M152: 9.941654058 | N152: 0.5660622673 | O152: 7.353921428 | P152: 200.3600198 | Q152: -80 | R152: 1307.926187 | S152: -0.008317403417 | T152: 0.5613929358 | U152: 9.821654058 | V152: 9.861654058 | W152: -0.5520059736 | X152: -80 | Y152: 197.1484193 | Z152: 1305.807306 | AA152: -0.008330899733 | AB152: -0.5474452621 | AC152: 0.5613929358 | AD152: 0.1425026838 | AE152: -0.002113874457 | AF152: 742.6967609 | AG152: 707.5376327 | AH152: 9.982337993 | AI152: 429.2237143 | AJ152: 8.071839489 | AK152: 0.04974534297 | AL152: 2.28683239
B153: 742.6967609 | C153: 707.5376327 | D153: 9.982337993 | E153: 0 | F153: 0 | G153: 0 | H153: 0.08 | I153: 28.12730256 | J153: 80 | K153: 1 | L153: 10.06233799 | M153: 10.02233799 | N153: 0.5707141018 | O153: 7.354511009 | P153: 202.5277465 | Q153: -80 | R153: 1309.315493 | S153: -0.008307911806 | T153: 0.5660117263 | U153: 9.902337993 | V153: 9.942337993 | W153: -0.5564647529 | X153: -80 | Y153: 199.307429 | Z153: 1307.239834 | AA153: -0.008321103258 | AB153: -0.5518725643 | AC153: 0.5660117263 | AD153: 0.1413398279 | AE153: -0.002062889884 | AF153: 742.7014633 | AG153: 706.971621 | AH153: 10.06303009 | AI153: 432.2959051 | AJ153: 8.191921685 | AK153: 0.04974534297 | AL153: 2.321416063
B154: 742.7014633 | C154: 706.971621 | D154: 10.06303009 | E154: 0 | F154: 0 | G154: 0 | H154: 0.08 | I154: 28.58387385 | J154: 80 | K154: 1 | L154: 10.14303009 | M154: 10.10303009 | N154: 0.5753671905 | O154: 7.355104762 | P154: 204.7015185 | Q154: -80 | R154: 1310.67691 | S154: -0.008298612301 | T154: 0.5706317389 | U154: 9.983030092 | V154: 10.02303009 | W154: -0.5609231998 | X154: -80 | Y154: 201.4725298 | Z154: 1308.643219 | AA154: -0.008311508719 | AB154: -0.5562995115 | AC154: 0.5706317389 | AD154: 0.1401954966 | AE154: -0.002013527333 | AF154: 742.7061987 | AG154: 706.4009892 | AH154: 10.14373033 | AI154: 435.3717797 | AJ154: 8.31285829 | AK154: 0.04974534297 | AL154: 2.356245805
B155: 742.7061987 | C155: 706.4009892 | D155: 10.14373033 | E155: 0 | F155: 0 | G155: 0 | H155: 0.08 | I155: 29.0441676 | J155: 80 | K155: 1 | L155: 10.22373033 | M155: 10.18373033 | N155: 0.5800215324 | O155: 7.355702692 | P155: 206.8813061 | Q155: -80 | R155: 1312.011234 | S155: -0.008289498664 | T155: 0.5752529736 | U155: 10.06373033 | V155: 10.10373033 | W155: -0.565381313 | X155: -80 | Y155: 203.6436915 | Z155: 1310.018305 | AA155: -0.008302109466 | AB155: -0.5607261035 | AC155: 0.5752529736 | AD155: 0.1390692507 | AE155: -0.001965722877 | AF155: 742.7109673 | AG155: 705.8257363 | AH155: 10.2244387 | AI155: 438.4512561 | AJ155: 8.434650306 | AK155: 0.04974534297 | AL155: 2.391321905
B156: 742.7109673 | C156: 705.8257363 | D156: 10.2244387 | E156: 0 | F156: 0 | G156: 0 | H156: 0.08 | I156: 29.50818482 | J156: 80 | K156: 1 | L156: 10.3044387 | M156: 10.2644387 | N156: 0.5846771268 | O156: 7.356304802 | P156: 209.0670799 | Q156: -80 | R156: 1313.319235 | S156: -0.008280564918 | T156: 0.5798754306 | U156: 10.1444387 | V156: 10.1844387 | W156: -0.5698390914 | X156: -80 | Y156: 205.8208842 | Z156: 1311.365906 | AA156: -0.008292899131 | AB156: -0.56515234 | AC156: 0.5798754306 | AD156: 0.137960665 | AE156: -0.001919415587 | AF156: 742.715769 | AG156: 705.2458608 | AH156: 10.30515518 | AI156: 441.5342554 | AJ156: 8.55729871 | AK156: 0.04974534297 | AL156: 2.426644646
B157: 742.715769 | C157: 705.2458608 | D157: 10.30515518 | E157: 0 | F157: 0 | G157: 0 | H157: 0.08 | I157: 29.97592653 | J157: 80 | K157: 1 | L157: 10.38515518 | M157: 10.34515518 | N157: 0.5893339727 | O157: 7.356911096 | P157: 211.258811 | Q157: -80 | R157: 1314.601653 | S157: -0.008271805328 | T157: 0.5844991099 | U157: 10.22515518 | V157: 10.26515518 | W157: -0.5742965335 | X157: -80 | Y157: 208.0040782 | Z157: 1312.686805 | AA157: -0.008283871608 | AB157: -0.5695782206 | AC157: 0.5844991099 | AD157: 0.1368693273 | AE157: -0.001874547367 | AF157: 742.7206038 | AG157: 704.6613617 | AH157: 10.38587974 | AI157: 444.620702 | AJ157: 8.680804461 | AK157: 0.04974534297 | AL157: 2.462214302
B158: =AF157 -> 742.7206038 | C158: 704.6613617 | D158: 10.38587974 | E158: 0 | F158: 0 | G158: 0 | H158: 0.08 | I158: 30.4473937 | J158: 80 | K158: 1 | L158: 10.46587974 | M158: 10.42587974 | N158: 0.5939920695 | O158: 7.357521578 | P158: 213.4564707 | Q158: -80 | R158: 1315.859201 | S158: -0.008263214393 | T158: 0.5891240115 | U158: 10.30587974 | V158: 10.34587974 | W158: -0.5787536382 | X158: -80 | Y158: 210.1932446 | Z158: 1313.981757 | AA158: -0.008275021045 | AB158: -0.5740037451 | AC158: =delta_z(N158,S158,H158,AE157,AB158) -> 0.5891240115 | AD158: 0.1357948385 | AE158: -0.001831062809 | AF158: 742.7254719 | AG158: 704.0722377 | AH158: 10.46661238 | AI158: 447.7105232 | AJ158: 8.805168495 | AK158: 0.04974534297 | AL158: 2.498031144
B159: 742.7254719 | C159: 704.0722377 | D159: 10.46661238 | E159: 0 | F159: 0 | G159: 0 | H159: =dv(S158) -> 0.08 | I159: 30.92258736 | J159: 80 | K159: 1 | L159: 10.54661238 | M159: 10.50661238 | N159: 0.5986514162 | O159: 7.358136252 | P159: 215.660031 | Q159: -80 | R159: 1317.092567 | S159: -0.008254786832 | T159: 0.5937501354 | U159: 10.38661238 | V159: 10.42661238 | W159: -0.5832104042 | X159: -80 | Y159: 212.3883544 | Z159: 1315.251487 | AA159: -0.008266341825 | AB159: -0.5784289131 | AC159: 0.5937501354 | AD159: 0.1347368114 | AE159: -0.001788909041 | AF159: 742.7303732 | AG159: 703.4784876 | AH159: 10.54735306 | AI159: 450.8036491 | AJ159: 8.930391731 | AK159: 0.04974534297 | AL159: 2.534095436
B160: 742.7303732 | C160: 703.4784876 | D160: 10.54735306 | E160: 0 | F160: 0 | G160: 0 | H160: 0.08 | I160: 31.40150849 | J160: 80 | K160: 1 | L160: 10.62735306 | M160: 10.58735306 | N160: 0.6033120121 | O160: 7.35875512 | P160: 217.8694639 | Q160: -80 | R160: 1318.302413 | S160: -0.008246517575 | T160: 0.5983774817 | U160: 10.46735306 | V160: 10.50735306 | W160: -0.5876668303 | X160: -80 | Y160: 214.5893794 | Z160: 1316.496697 | AA160: -0.008257828561 | AB160: -0.5828537242 | AC160: 0.5983774817 | AD160: 0.1336948706 | AE160: -0.001748035596 | AF160: 742.7353077 | AG160: 702.8801101 | AH160: 10.62810179 | AI160: 453.9000123 | AJ160: 9.056475068 | AK160: 0.04974534297 | AL160: 2.570407437
B161: 742.7353077 | C161: 702.8801101 | D161: 10.62810179 | E161: 0 | F161: 0 | G161: 0 | H161: 0.08 | I161: 31.8841581 | J161: 80 | K161: 1 | L161: 10.70810179 | M161: 10.66810179 | N161: 0.6079738565 | O161: 7.359378187 | P161: 220.084742 | Q161: -80 | R161: 1319.48938 | S161: -0.00823840175 | T161: 0.6030060504 | U161: 10.54810179 | V161: 10.58810179 | W161: -0.5921229155 | X161: -80 | Y161: 216.7962915 | Z161: 1317.71806 | AA161: -0.008249476078 | AB161: -0.5872781782 | AC161: 0.6030060504 | AD161: 0.1326686523 | AE161: -0.001708394288 | AF161: 742.7402755 | AG161: 702.277104 | AH161: 10.70885853 | AI161: 456.9995482 | AJ161: 9.183419387 | AK161: 0.04974534297 | AL161: 2.606967401
B162: 742.7402755 | C162: 702.277104 | D162: 10.70885853 | E162: 0 | F162: 0 | G162: 0 | H162: 0.08 | I162: 32.37053719 | J162: 80 | K162: 1 | L162: 10.78885853 | M162: 10.74885853 | N162: 0.6126369486 | O162: 7.360005455 | P162: 222.3058382 | Q162: -80 | R162: 1320.654083 | S162: -0.008230434677 | T162: 0.6076358415 | U162: 10.62885853 | V162: 10.66885853 | W162: -0.5965786584 | X162: -80 | Y162: 219.009063 | Z162: 1318.916229 | AA162: -0.008241279407 | AB162: -0.5917022746 | AC162: 0.6076358415 | AD162: 0.1316578031 | AE162: -0.001669939086 | AF162: 742.7452766 | AG162: 701.6694682 | AH162: 10.78962328 | AI162: 460.1021943 | AJ162: 9.311225552 | AK162: 0.04974534297 | AL162: 2.643775576
B163: 742.7452766 | C163: 701.6694682 | D163: 10.78962328 | E163: 0 | F163: 0 | G163: 0 | H163: 0.08 | I163: 32.86064675 | J163: 80 | K163: 1 | L163: 10.86962328 | M163: 10.82962328 | N163: 0.6173012877 | O163: 7.360636928 | P163: 224.5327257 | Q163: -80 | R163: 1321.797118 | S163: -0.008222611854 | T163: 0.612266855 | U163: 10.70962328 | V163: 10.74962328 | W163: -0.601034058 | X163: -80 | Y163: 221.2276667 | Z163: 1320.091832 | AA163: -0.008233233776 | AB163: -0.5961260132 | AC163: 0.612266855 | AD163: 0.1306619807 | AE163: -0.001632626011 | AF163: 742.7503111 | AG163: 701.0572013 | AH163: 10.87039601 | AI163: 463.2078906 | AJ163: 9.43989441 | AK163: 0.04974534297 | AL163: 2.680832207
B164: 742.7503111 | C164: 701.0572013 | D164: 10.87039601 | E164: 0 | F164: 0 | G164: 0 | H164: 0.08 | I164: 33.35448778 | J164: 80 | K164: 1 | L164: 10.95039601 | M164: 10.91039601 | N164: 0.6219668733 | O164: 7.361272609 | P164: 226.765378 | Q164: -80 | R164: 1322.919061 | S164: -0.008214928956 | T164: 0.616899091 | U164: 10.79039601 | V164: 10.83039601 | W164: -0.6054891133 | X164: -80 | Y164: 223.4520756 | Z164: 1321.245473 | AA164: -0.008225334595 | AB164: -0.6005493936 | AC164: 0.616899091 | AD164: 0.1296808524 | AE164: -0.001596413021 | AF164: 742.7553788 | AG164: 700.4403022 | AH164: 10.95117672 | AI164: 466.3165793 | AJ164: 9.569426793 | AK164: 0.04974534297 | AL164: 2.718137534
B165: 742.7553788 | C165: 700.4403022 | D165: 10.95117672 | E165: 0 | F165: 0 | G165: 0 | H165: 0.08 | I165: 33.85206127 | J165: 80 | K165: 1 | L165: 11.03117672 | M165: 10.99117672 | N165: 0.6266337045 | O165: 7.361912501 | P165: 229.003769 | Q165: -80 | R165: 1324.020465 | S165: -0.008207381817 | T165: 0.6215325495 | U165: 10.87117672 | V165: 10.91117672 | W165: -0.609943823 | X165: -80 | Y165: 225.6822631 | Z165: 1322.377738 | AA165: -0.008217577452 | AB165: -0.6049724153 | AC165: 0.6215325495 | AD165: 0.1287140956 | AE165: -0.001561259919 | AF165: 742.76048 | AG165: 699.8187697 | AH165: 11.03196538 | AI165: 469.4282046 | AJ165: 9.699823517 | AK165: 0.04974534297 | AL165: 2.75569179
B166: 742.76048 | C166: 699.8187697 | D166: 11.03196538 | E166: 0 | F166: 0 | G166: 0 | H166: 0.08 | I166: 34.35336824 | J166: 80 | K166: 1 | L166: 11.11196538 | M166: 11.07196538 | N166: 0.6313017807 | O166: 7.362556607 | P166: 231.2478729 | Q166: -80 | R166: 1325.101866 | S166: -0.008199966431 | T166: 0.6261672305 | U166: 10.95196538 | V166: 10.99196538 | W166: -0.6143981862 | X166: -80 | Y166: 227.918203 | Z166: 1323.489193 | AA166: -0.008209958103 | AB166: -0.6093950781 | AC166: 0.6261672305 | AD166: 0.1277613968 | AE166: -0.001527128257 | AF166: 742.7656145 | AG166: 699.1926025 | AH166: 11.11276199 | AI166: 472.5427127 | AJ166: 9.831085381 | AK166: 0.04974534297 | AL166: 2.793495207
B167: 742.7656145 | C167: 699.1926025 | D167: 11.11276199 | E167: 0 | F167: 0 | G167: 0 | H167: 0.08 | I167: 34.85840966 | J167: 80 | K167: 1 | L167: 11.19276199 | M167: 11.15276199 | N167: 0.6359711014 | O167: 7.36320493 | P167: 233.4976643 | Q167: -80 | R167: 1326.163783 | S167: -0.00819267894 | T167: 0.6308031339 | U167: 11.03276199 | V167: 11.07276199 | W167: -0.6188522017 | X167: -80 | Y167: 230.1598692 | Z167: 1324.580381 | AA167: -0.008202472464 | AB167: -0.6138173816 | AC167: 0.6308031339 | AD167: 0.1268224517 | AE167: -0.001493981248 | AF167: 742.7707825 | AG167: 698.5617993 | AH167: 11.19356653 | AI167: 475.6600518 | AJ167: 9.963213174 | AK167: 0.04974534297 | AL167: 2.831548011
B168: 742.7707825 | C168: 698.5617993 | D168: 11.19356653 | E168: 0 | F168: 0 | G168: 0 | H168: 0.08 | I168: 35.36718654 | J168: 80 | K168: 1 | L168: 11.27356653 | M168: 11.23356653 | N168: 0.640641666 | O168: 7.363857472 | P168: 235.753118 | Q168: -80 | R168: 1327.206717 | S168: -0.008185515629 | T168: 0.6354402598 | U168: 11.11356653 | V168: 11.15356653 | W168: -0.6233058687 | X168: -80 | Y168: 232.4072362 | Z168: 1325.651829 | AA168: -0.008195116606 | AB168: -0.6182393253 | AC168: 0.6354402598 | AD168: 0.1258969648 | AE168: -0.00146178368 | AF168: 742.7759839 | AG168: 697.9263591 | AH168: 11.27437897 | AI168: 478.7801718 | AJ168: 10.09620767 | AK168: 0.04974534297 | AL168: 2.869850425
B169: 742.7759839 | C169: 697.9263591 | D169: 11.27437897 | E169: 0 | F169: 0 | G169: 0 | H169: 0.08 | I169: 35.87969988 | J169: 80 | K169: 1 | L169: 11.35437897 | M169: 11.31437897 | N169: 0.6453134738 | O169: 7.364514236 | P169: 238.0142091 | Q169: -80 | R169: 1328.23115 | S169: -0.008178472918 | T169: 0.6400786082 | U169: 11.19437897 | V169: 11.23437897 | W169: -0.6277591859 | X169: -80 | Y169: 234.6602787 | Z169: 1326.704048 | AA169: -0.008187886742 | AB169: -0.6226609089 | AC169: 0.6400786082 | AD169: 0.1249846487 | AE169: -0.001430501843 | AF169: 742.7812188 | AG169: 697.2862805 | AH169: 11.35519932 | AI169: 481.9030245 | AJ169: 10.23006962 | AK169: 0.04974534297 | AL169: 2.908402667
B170: 742.7812188 | C170: 697.2862805 | D170: 11.35519932 | E170: 0 | F170: 0 | G170: 0 | H170: 0.08 | I170: 36.39595066 | J170: 80 | K170: 1 | L170: 11.43519932 | M170: 11.39519932 | N170: 0.6499865242 | O170: 7.365175225 | P170: 240.2809132 | Q170: -80 | R170: 1329.23755 | S170: -0.008171547359 | T170: 0.6447181791 | U170: 11.27519932 | V170: 11.31519932 | W170: -0.6322121526 | X170: -80 | Y170: 236.9189716 | Z170: 1327.737529 | AA170: -0.008180779227 | AB170: -0.6270821321 | AC170: 0.6447181791 | AD170: 0.1240852245 | AE170: -0.001400103452 | AF170: 742.7864871 | AG170: 696.6415623 | AH170: 11.43602756 | AI170: 485.0285632 | AJ170: 10.36479977 | AK170: 0.04974534297 | AL170: 2.947204952
B171: 742.7864871 | C171: 696.6415623 | D171: 11.43602756 | E171: 0 | F171: 0 | G171: 0 | H171: 0.08 | I171: 36.91593987 | J171: 80 | K171: 1 | L171: 11.51602756 | M171: 11.47602756 | N171: 0.6546608168 | O171: 7.365840441 | P171: 242.5532058 | Q171: -80 | R171: 1330.226371 | S171: -0.008164735625 | T171: 0.6493589725 | U171: 11.35602756 | V171: 11.39602756 | W171: -0.6366647676 | X171: -80 | Y171: 239.1832902 | Z171: 1328.752747 | AA171: -0.008173790548 | AB171: -0.6315029944 | AC171: 0.6493589725 | AD171: 0.1231984209 | AE171: -0.001370557577 | AF171: 742.791789 | AG171: 695.9922033 | AH171: 11.51686366 | AI171: 488.1567428 | AJ171: 10.50039887 | AK171: 0.04974534297 | AL171: 2.986257492
B172: 742.791789 | C172: 695.9922033 | D172: 11.51686366 | E172: 0 | F172: 0 | G172: 0 | H172: 0.08 | I172: 37.43966853 | J172: 80 | K172: 1 | L172: 11.59686366 | M172: 11.55686366 | N172: 0.659336351 | O172: 7.366509888 | P172: 244.8310632 | Q172: -80 | R172: 1331.19805 | S172: -0.008158034511 | T172: 0.6540009883 | U172: 11.43686366 | V172: 11.47686366 | W172: -0.64111703 | X172: -80 | Y172: 241.4532102 | Z172: 1329.750162 | AA172: -0.008166917319 | AB172: -0.6359234954 | AC172: 0.6540009883 | AD172: 0.1223239742 | AE172: -0.001341834578 | AF172: 742.7971243 | AG172: 695.3382023 | AH172: 11.59770763 | AI172: 491.2875199 | AJ172: 10.63686762 | AK172: 0.04974534297 | AL172: 3.025560493
B173: 742.7971243 | C173: 695.3382023 | D173: 11.59770763 | E173: 0 | F173: 0 | G173: 0 | H173: 0.08 | I173: 37.96713761 | J173: 80 | K173: 1 | L173: 11.67770763 | M173: 11.63770763 | N173: 0.6640131262 | O173: 7.367183566 | P173: 247.1144615 | Q173: -80 | R173: 1332.15301 | S173: -0.008151440923 | T173: 0.6586442267 | U173: 11.51770763 | V173: 11.55770763 | W173: -0.645568939 | X173: -80 | Y173: 243.7287074 | Z173: 1330.730221 | AA173: -0.008160156276 | AB173: -0.6403436348 | AC173: 0.6586442267 | AD173: 0.1214616279 | AE173: -0.001313906043 | AF173: 742.8024932 | AG173: 694.6795581 | AH173: 11.67855945 | AI173: 494.4208524 | AJ173: 10.77420675 | AK173: 0.04974534297 | AL173: 3.065114161
B174: 742.8024932 | C174: 694.6795581 | D174: 11.67855945 | E174: 0 | F174: 0 | G174: 0 | H174: 0.08 | I174: 38.49834811 | J174: 80 | K174: 1 | L174: 11.75855945 | M174: 11.71855945 | N174: 0.6686911421 | O174: 7.367861479 | P174: 249.4033774 | Q174: -80 | R174: 1333.091662 | S174: -0.008144951877 | T174: 0.6632886876 | U174: 11.59855945 | V174: 11.63855945 | W174: -0.6500204935 | X174: -80 | Y174: 246.009758 | Z174: 1331.693352 | AA174: -0.00815350427 | AB174: -0.6447634122 | AC174: 0.6632886876 | AD174: 0.1206111328 | AE174: -0.001286744727 | AF174: 742.8078957 | AG174: 694.0162694 | AH174: 11.7594191 | AI174: 497.5566996 | AJ174: 10.91241694 | AK174: 0.04974534297 | AL174: 3.104918697
B175: 742.8078957 | C175: 694.0162694 | D175: 11.7594191 | E175: 0 | F175: 0 | G175: 0 | H175: 0.08 | I175: 39.03330102 | J175: 80 | K175: 1 | L175: 11.8394191 | M175: 11.7994191 | N175: 0.673370398 | O175: 7.368543629 | P175: 251.6977877 | Q175: -80 | R175: 1334.014403 | S175: -0.008138564491 | T175: 0.667934371 | U175: 11.6794191 | V175: 11.7194191 | W175: -0.6544716926 | X175: -80 | Y175: 248.2963384 | Z175: 1332.639974 | AA175: -0.008146958264 | AB175: -0.6491828272 | AC175: 0.667934371 | AD175: 0.1197722463 | AE175: -0.001260324499 | AF175: 742.8133317 | AG175: 693.348335 | AH175: 11.84028657 | AI175: 500.6950223 | AJ175: 11.05149889 | AK175: 0.04974534297 | AL175: 3.144974299
B176: 742.8133317 | C176: 693.348335 | D176: 11.84028657 | E176: 0 | F176: 0 | G176: 0 | H176: 0.08 | I176: 39.57199734 | J176: 80 | K176: 1 | L176: 11.92028657 | M176: 11.88028657 | N176: 0.6780508935 | O176: 7.369230018 | P176: 253.9976695 | Q176: -80 | R176: 1334.921616 | S176: -0.008132275985 | T176: 0.672581277 | U176: 11.76028657 | V176: 11.80028657 | W176: -0.6589225355 | X176: -80 | Y176: 250.5884254 | Z176: 1333.570489 | AA176: -0.008140515325 | AB176: -0.6536018794 | AC176: 0.672581277 | AD176: 0.1189447324 | AE176: -0.001234620288 | AF176: 742.8188013 | AG176: 692.6757538 | AH176: 11.92116186 | AI176: 503.8357824 | AJ176: 11.19145328 | AK176: 0.04974534297 | AL176: 3.185281162
B177: 742.8188013 | C177: 692.6757538 | D177: 11.92116186 | E177: 0 | F177: 0 | G177: 0 | H177: 0.08 | I177: 40.11443806 | J177: 80 | K177: 1 | L177: 12.00116186 | M177: 11.96116186 | N177: 0.6827326282 | O177: 7.369920648 | P177: 256.3030003 | Q177: -80 | R177: 1335.813676 | S177: -0.008126083671 | T177: 0.6772294054 | U177: 11.84116186 | V177: 11.88116186 | W177: -0.6633730213 | X177: -80 | Y177: 252.885996 | Z177: 1334.485288 | AA177: -0.008134172624 | AB177: -0.6580205684 | AC177: 0.6772294054 | AD177: 0.1181283615 | AE177: -0.001209608032 | AF177: 742.8243046 | AG177: 691.9985244 | AH177: 12.00204494 | AI177: 506.978943 | AJ177: 11.33228076 | AK177: 0.04974534297 | AL177: 3.225839477
B178: 742.8243046 | C178: 691.9985244 | D178: 12.00204494 | E178: 0 | F178: 0 | G178: 0 | H178: 0.08 | I178: 40.66062416 | J178: 80 | K178: 1 | L178: 12.08204494 | M178: 12.04204494 | N178: 0.6874156016 | O178: 7.370615522 | P178: 258.6137577 | Q178: -80 | R178: 1336.690942 | S178: -0.008119984955 | T178: 0.6818787564 | U178: 11.92204494 | V178: 11.96204494 | W178: -0.6678231491 | X178: -80 | Y178: 255.1890275 | Z178: 1335.38475 | AA178: -0.008127927428 | AB178: -0.6624388938 | AC178: 0.6818787564 | AD178: 0.1173229101 | AE178: -0.001185264635 | AF178: 742.8298414 | AG178: 691.3166456 | AH178: 12.08293581 | AI178: 510.1244687 | AJ178: 11.473982 | AK178: 0.04974534297 | AL178: 3.266649435
B179: 742.8298414 | C179: 691.3166456 | D179: 12.08293581 | E179: 0 | F179: 0 | G179: 0 | H179: 0.08 | I179: 41.21055664 | J179: 80 | K179: 1 | L179: 12.16293581 | M179: 12.12293581 | N179: 0.6920998133 | O179: 7.371314641 | P179: 260.9299196 | Q179: -80 | R179: 1337.553764 | S179: -0.00811397733 | T179: 0.6865293299 | U179: 12.00293581 | V179: 12.04293581 | W179: -0.672272918 | X179: -80 | Y179: 257.4974973 | Z179: 1336.269241 | AA179: -0.008121777096 | AB179: -0.6668568553 | AC179: 0.6865293299 | AD179: 0.1165281606 | AE179: -0.001161567917 | AF179: 742.8354119 | AG179: 690.6301163 | AH179: 12.16383447 | AI179: 513.2723248 | AJ179: 11.61655765 | AK179: 0.04974534297 | AL179: 3.307711221
B180: 742.8354119 | C180: 690.6301163 | D180: 12.16383447 | E180: 0 | F180: 0 | G180: 0 | H180: 0.08 | I180: 41.76423649 | J180: 80 | K180: 1 | L180: 12.24383447 | M180: 12.20383447 | N180: 0.6967852629 | O180: 7.372018007 | P180: 263.2514642 | Q180: -80 | R180: 1338.402481 | S180: -0.00810805837 | T180: 0.691181126 | U180: 12.08383447 | V180: 12.12383447 | W180: -0.6767223273 | X180: -80 | Y180: 259.8113833 | Z180: 1337.139116 | AA180: -0.00811571908 | AB180: -0.6712744524 | AC180: 0.691181126 | AD180: 0.1157439013 | AE180: -0.001138496575 | AF180: 742.841016 | AG180: 689.9389351 | AH180: 12.24474088 | AI180: 516.422478 | AJ180: 11.76000834 | AK180: 0.04974534297 | AL180: 3.349025019
B181: 742.841016 | C181: 689.9389351 | D181: 12.24474088 | E181: 0 | F181: 0 | G181: 0 | H181: 0.08 | I181: 42.3216647 | J181: 80 | K181: 1 | L181: 12.32474088 | M181: 12.28474088 | N181: 0.7014719499 | O181: 7.372725623 | P181: 265.5783699 | Q181: -80 | R181: 1339.237423 | S181: -0.008102225733 | T181: 0.6958341446 | U181: 12.16474088 | V181: 12.20474088 | W181: -0.6811713761 | X181: -80 | Y181: 262.1306634 | Z181: 1337.994721 | AA181: -0.008109750914 | AB181: -0.6756916848 | AC181: 0.6958341446 | AD181: 0.1149699258 | AE181: -0.001116030142 | AF181: 742.8466538 | AG181: 689.243101 | AH181: 12.32565505 | AI181: 519.574896 | AJ181: 11.9043347 | AK181: 0.04974534297 | AL181: 3.39059101
B182: 742.8466538 | C182: 689.243101 | D182: 12.32565505 | E182: 0 | F182: 0 | G182: 0 | H182: 0.08 | I182: 42.88284226 | J182: 80 | K182: 1 | L182: 12.40565505 | M182: 12.36565505 | N182: 0.706159874 | O182: 7.37343749 | P182: 267.9106152 | Q182: -80 | R182: 1340.058907 | S182: -0.008096477151 | T182: 0.7004883858 | U182: 12.24565505 | V182: 12.28565505 | W182: -0.6856200635 | X182: -80 | Y182: 264.4553161 | Z182: 1338.836387 | AA182: -0.008103870214 | AB182: -0.6801085521 | AC182: 0.7004883858 | AD182: 0.1142060334 | AE182: -0.00109414895 | AF182: 742.8523253 | AG182: 688.5426126 | AH182: 12.40657697 | AI182: 522.7295474 | AJ182: 12.04953735 | AK182: 0.04974534297 | AL182: 3.432409374
B183: 742.8523253 | C183: 688.5426126 | D183: 12.40657697 | E183: 0 | F183: 0 | G183: 0 | H183: 0.08 | I183: 43.44777016 | J183: 80 | K183: 1 | L183: 12.48657697 | M183: 12.44657697 | N183: 0.7108490348 | O183: 7.37415361 | P183: 270.2481792 | Q183: -80 | R183: 1340.867243 | S183: -0.008090810433 | T183: 0.7051438495 | U183: 12.32657697 | V183: 12.36657697 | W183: -0.6900683888 | X183: -80 | Y183: 266.7853197 | Z183: 1339.66444 | AA183: -0.008098074678 | AB183: -0.6845250538 | AC183: 0.7051438495 | AD183: 0.1134520283 | AE183: -0.00107283409 | AF183: 742.8580305 | AG183: 687.8374688 | AH183: 12.48750663 | AI183: 525.8864018 | AJ183: 12.19561691 | AK183: 0.04974534297 | AL183: 3.474480286
B184: 742.8580305 | C184: 687.8374688 | D184: 12.48750663 | E184: 0 | F184: 0 | G184: 0 | H184: 0.08 | I184: 44.01644939 | J184: 80 | K184: 1 | L184: 12.56750663 | M184: 12.52750663 | N184: 0.7155394319 | O184: 7.374873984 | P184: 272.5910408 | Q184: -80 | R184: 1341.662731 | S184: -0.008085223455 | T184: 0.7098005359 | U184: 12.40750663 | V184: 12.44750663 | W184: -0.6945163513 | X184: -80 | Y184: 269.120653 | Z184: 1340.479192 | AA184: -0.008092362075 | AB184: -0.6889411897 | AC184: 0.7098005359 | AD184: 0.1127077199 | AE184: -0.001052067385 | AF184: 742.8637694 | AG184: 687.1276682 | AH184: 12.568444 | AI184: 529.0454297 | AJ184: 12.34257397 | AK184: 0.04974534297 | AL184: 3.516803921
B185: 742.8637694 | C185: 687.1276682 | D185: 12.568444 | E185: 0 | F185: 0 | G185: 0 | H185: 0.08 | I185: 44.58888093 | J185: 80 | K185: 1 | L185: 12.648444 | M185: 12.608444 | N185: 0.7202310649 | O185: 7.375598616 | P185: 274.9391795 | Q185: -80 | R185: 1342.445662 | S185: -0.008079714166 | T185: 0.7144584449 | U185: 12.488444 | V185: 12.528444 | W185: -0.69896395 | X185: -80 | Y185: 271.4612951 | Z185: 1341.28095 | AA185: -0.00808673025 | AB185: -0.6933569593 | AC185: 0.7144584449 | AD185: 0.1119729224 | AE185: -0.001031831351 | AF185: 742.869542 | AG185: 686.4132098 | AH185: 12.6493891 | AI185: 532.2066027 | AJ185: 12.49040914 | AK185: 0.04974534297 | AL185: 3.559380449
B186: 742.869542 | C186: 686.4132098 | D186: 12.6493891 | E186: 0 | F186: 0 | G186: 0 | H186: 0.08 | I186: 45.16506579 | J186: 80 | K186: 1 | L186: 12.7293891 | M186: 12.6893891 | N186: 0.7249239337 | O186: 7.376327505 | P186: 277.2925748 | Q186: -80 | R186: 1343.216318 | S186: -0.008074280576 | T186: 0.7191175766 | U186: 12.5693891 | V186: 12.6093891 | W186: -0.7034111843 | X186: -80 | Y186: 273.8072252 | Z186: 1342.070007 | AA186: -0.008081177115 | AB186: -0.6977723622 | AC186: 0.7191175766 | AD186: 0.1112474547 | AE186: -0.001012109167 | AF186: 742.8753484 | AG186: 685.6940922 | AH186: 12.7303419 | AI186: 535.369893 | AJ186: 12.639123 | AK186: 0.04974534297 | AL186: 3.60221004
B187: 742.8753484 | C187: 685.6940922 | D187: 12.7303419 | E187: 0 | F187: 0 | G187: 0 | H187: 0.08 | I187: 45.74500493 | J187: 80 | K187: 1 | L187: 12.8103419 | M187: 12.7703419 | N187: 0.7296180377 | O187: 7.377060655 | P187: 279.6512064 | Q187: -80 | R187: 1343.974975 | S187: -0.008068920762 | T187: 0.7237779309 | U187: 12.6503419 | V187: 12.6903419 | W187: -0.7078580533 | X187: -80 | Y187: 276.1584227 | Z187: 1342.846651 | AA187: -0.008075700652 | AB187: -0.7021873981 | AC187: 0.7237779309 | AD187: 0.1105311403 | AE187: -0.0009928846505 | AF187: 742.8811885 | AG187: 684.9703143 | AH187: 12.81130239 | AI187: 538.5352737 | AJ187: 12.78871613 | AK187: 0.04974534297 | AL187: 3.645292862
B188: 742.8811885 | C188: 684.9703143 | D188: 12.81130239 | E188: 0 | F188: 0 | G188: 0 | H188: 0.08 | I188: 46.32869936 | J188: 80 | K188: 1 | L188: 12.89130239 | M188: 12.85130239 | N188: 0.7343133766 | O188: 7.377798065 | P188: 282.0150544 | Q188: -80 | R188: 1344.721898 | S188: -0.008063632857 | T188: 0.7284395079 | U188: 12.73130239 | V188: 12.77130239 | W188: -0.7123045564 | X188: -80 | Y188: 278.5148672 | Z188: 1343.611161 | AA188: -0.008070298903 | AB188: -0.7066020666 | AC188: 0.7284395079 | AD188: 0.1098238071 | AE188: -0.0009741422243 | AF188: 742.8870623 | AG188: 684.2418748 | AH188: 12.89227057 | AI188: 541.7027187 | AJ188: 12.93918911 | AK188: 0.04974534297 | AL188: 3.68862908
B189: 742.8870623 | C189: 684.2418748 | D189: 12.89227057 | E189: 0 | F189: 0 | G189: 0 | H189: 0.08 | I189: 46.91615006 | J189: 80 | K189: 1 | L189: 12.97227057 | M189: =(D189+L189)/2 -> 12.93227057 | N189: 0.7390099503 | O189: 7.378539739 | P189: 284.3840991 | Q189: -80 | R189: 1345.457345 | S189: =Q189/O189/R189 -> -0.008058415055 | T189: =N189/(1-S189) -> 0.7331023076 | U189: 12.81227057 | V189: =(D189+U189)/2 -> 12.85227057 | W189: -0.7167506929 | X189: -80 | Y189: 280.8765388 | Z189: 1344.363806 | AA189: =X189/O189/Z189 -> -0.008064969975 | AB189: -0.7110163672 | AC189: 0.7331023076 | AD189: =H189/AC189*K189 -> 0.1091252874 | AE189: -0.0009558668928 | AF189: =B189-(AC189-N189) -> 742.89297 | AG189: =C189-AC189 -> 683.5087725 | AH189: 12.97324643 | AI189: =AC189/R189*1000000 -> 544.8722028 | AJ189: 13.0905425 | AK189: 0.04974534297 | AL189: 3.732218856
B190: =AF189 -> 742.89297 | C190: 683.5087725 | D190: 12.97324643 | E190: 0 | F190: =(E190+E189)/2 -> 0 | G190: =F190*$S$53*$C$55*(B190-C190+N190)^1.5 -> 0 | H190: 0.08 | I190: =(B190-C190)*B$19 -> 47.50735802 | J190: 80 | K190: =IF((1-S189-0.015)>0,1,-1) -> 1 | L190: =D190+K190*H190 -> 13.05324643 | M190: 13.01324643 | N190: =2*($P$53*M190/$S$52/$S$51)^2-(B190-C190)*2 -> 0.7437077583 | O190: =wh(B190,$F$51,$F$52,$F$53) -> 7.379285678 | P190: =$C$54*$L$55*$L$55*M190*M190/(($B$19*(B190-C190))^0.333)*1000 -> 286.7583207 | Q190: =M190/$S$54*(B190-C190+N190/2)*E190-$C$53 -> -80 | R190: =rate1(1,$L$52,$L$51,$L$54,L190,$L$53,$L$50,P190) -> 1346.18157 | S190: -0.008053265606 | T190: 0.7377663301 | U190: =D190-K190*H190 -> 12.89324643 | V190: 12.93324643 | W190: =2*($P$53*V190/$S$52/$S$51)^2-(B190-C190)*2 -> -0.7211964619 | X190: =V190/$S$54*(B190-C190+W190/2)*F190-$C$53 -> -80 | Y190: =$C$54*$L$55*$L$55*V190*V190/(($B$19*(B190-C190))^0.333)*1000 -> 283.2434175 | Z190: =rate1(1,$L$52,$L$51,$L$54,U190,$L$53,$L$50,Y190) -> 1345.104849 | AA190: -0.008059712032 | AB190: =W190/(1-AA190) -> -0.7154302997 | AC190: =delta_z(N190,S190,H190,AE189,AB190) -> 0.7377663301 | AD190: 0.1084354175 | AE190: =(AD190-AD189)/(AC190+AC189)*2 -> -0.0009380442164 | AF190: 742.8989114 | AG190: 682.7710061 | AH190: =$S$54*$S$53*$C$55*SQRT(AF190-AG190) -> 13.05422996 | AI190: 548.0437013 | AJ190: =AJ189+AI190/3600 -> 13.24277686 | AK190: 0.04974534297 | AL190: 3.776062352
B191: 742.8989114 | C191: 682.7710061 | D191: 13.05422996 | E191: =CalBreachWidth(C191,B191,I191,E190) -> 0 | F191: 0 | G191: 0 | H191: =dv(S190) -> 0.08 | I191: 48.10232423 | J191: 80 | K191: 1 | L191: 13.13422996 | M191: 13.09422996 | N191: 0.7484068003 | O191: 7.380035882 | P191: 289.1377 | Q191: -80 | R191: 1346.894814 | S191: -0.008048182813 | T191: 0.7424315753 | U191: 12.97422996 | V191: 13.01422996 | W191: -0.7256418628 | X191: -80 | Y191: 285.6154835 | Z191: 1345.834545 | AA191: -0.008054523298 | AB191: -0.7198438637 | AC191: 0.7424315753 | AD191: 0.1077540378 | AE191: -0.000920660287 | AF191: 742.9048866 | AG191: 682.0285746 | AH191: 13.13522115 | AI191: 551.2171904 | AJ191: 13.39589274 | AK191: =AK190+AI191*G190/1000000 -> 0.04974534297 | AL191: =AL190+AI191*J191/1000000 -> 3.820159727
B192: 742.9048866 | C192: 682.0285746 | D192: 13.13522115 | E192: 0 | F192: 0 | G192: 0 | H192: 0.08 | I192: 48.70104967 | J192: =IF(H192>0, $B$7,"") -> 80 | K192: 1 | L192: 13.21522115 | M192: 13.17522115 | N192: 0.7531070762 | O192: 7.380790354 | P192: 291.5222177 | Q192: -80 | R192: 1347.597317 | S192: -0.008043165031 | T192: 0.7470980433 | U192: 13.05522115 | V192: 13.09522115 | W192: -0.7300868949 | X192: -80 | Y192: 287.9927176 | Z192: 1346.553141 | AA192: -0.008049402049 | AB192: -0.7242570587 | AC192: 0.7470980433 | AD192: 0.1070809925 | AE192: -0.0009037017064 | AF192: 742.9108957 | AG192: 681.2814765 | AH192: 13.21621999 | AI192: 554.3926468 | AJ192: 13.5498907 | AK192: 0.04974534297 | AL192: 3.864511139
B193: 742.9108957 | C193: 681.2814765 | D193: 13.21621999 | E193: 0 | F193: 0 | G193: 0 | H193: 0.08 | I193: 49.30353533 | J193: 80 | K193: 1 | L193: 13.29621999 | M193: 13.25621999 | N193: 0.7578085856 | O193: 7.381549094 | P193: 293.9118549 | Q193: -80 | R193: 1348.289308 | S193: -0.008038210664 | T193: 0.7517657342 | U193: 13.13621999 | V193: 13.17621999 | W193: -0.7345315575 | X193: -80 | Y193: 290.3751002 | Z193: 1347.260879 | AA193: -0.008044346613 | AB193: -0.7286698844 | AC193: 0.7517657342 | AD193: 0.1064161299 | AE193: -0.0008871555636 | AF193: 742.9169385 | AG193: 680.5297108 | AH193: 13.29722647 | AI193: 557.5700481 | AJ193: 13.70477127 | AK193: 0.04974534297 | AL193: 3.909116743
B194: 742.9169385 | C194: 680.5297108 | D194: 13.29722647 | E194: 0 | F194: 0 | G194: 0 | H194: 0.08 | I194: 49.9097822 | J194: 80 | K194: 1 | L194: 13.37722647 | M194: 13.33722647 | N194: 0.7625113282 | O194: 7.382312105 | P194: 296.3065929 | Q194: -80 | R194: 1348.971011 | S194: -0.008033318166 | T194: 0.756434648 | U194: 13.21722647 | V194: 13.25722647 | W194: -0.7389758499 | X194: -80 | Y194: 292.7626125 | Z194: 1347.957993 | AA194: -0.008039355373 | AB194: -0.7330823405 | AC194: 0.756434648 | AD194: 0.1057593015 | AE194: -0.0008710094149 | AF194: 742.9230152 | AG194: 679.7732761 | AH194: 13.37824059 | AI194: 560.7493724 | AJ194: 13.86053498 | AK194: 0.04974534297 | AL194: 3.953976693
B195: 742.9230152 | C195: 679.7732761 | D195: 13.37824059 | E195: 0 | F195: 0 | G195: 0 | H195: 0.08 | I195: 50.51979126 | J195: 80 | K195: 1 | L195: 13.45824059 | M195: 13.41824059 | N195: 0.7672153038 | O195: 7.383079387 | P195: 298.7064131 | Q195: -80 | R195: 1349.642646 | S195: -0.008028486034 | T195: 0.7611047847 | U195: 13.29824059 | V195: 13.33824059 | W195: -0.7434197715 | X195: -80 | Y195: 295.1552356 | Z195: 1348.644709 | AA195: -0.008034426757 | AB195: -0.7374944265 | AC195: 0.7611047847 | AD195: 0.1051103627 | AE195: -0.000855251264 | AF195: 742.9291257 | AG195: 679.0121713 | AH195: 13.45926234 | AI195: 563.9305983 | AJ195: 14.01718237 | AK195: 0.04974534297 | AL195: 3.999091141
B196: 742.9291257 | C196: 679.0121713 | D196: 13.45926234 | E196: 0 | F196: 0 | G196: 0 | H196: 0.08 | I196: 51.13356351 | J196: 80 | K196: 1 | L196: 13.53926234 | M196: 13.49926234 | N196: 0.7719205122 | O196: 7.383850942 | P196: 301.111297 | Q196: -80 | R196: 1350.304423 | S196: -0.008023712813 | T196: 0.7657761443 | U196: 13.37926234 | V196: 13.41926234 | W196: -0.7478633215 | X196: -80 | Y196: 297.5529506 | Z196: 1349.321248 | AA196: -0.008029559241 | AB196: -0.7419061421 | AC196: 0.7657761443 | AD196: 0.1044691723 | AE196: -0.0008398695435 | AF196: 742.9352701 | AG196: 678.2463952 | AH196: 13.5402917 | AI196: 567.1137053 | AJ196: 14.17471396 | AK196: 0.04974534297 | AL196: 4.044460237
B197: 742.9352701 | C197: 678.2463952 | D197: 13.5402917 | E197: 0 | F197: 0 | G197: 0 | H197: 0.08 | I197: 51.75109992 | J197: 80 | K197: 1 | L197: 13.6202917 | M197: 13.5802917 | N197: 0.7766269531 | O197: 7.384626771 | P197: 303.5212264 | Q197: -80 | R197: 1350.956548 | S197: -0.008018997089 | T197: 0.770448727 | U197: 13.4602917 | V197: 13.5002917 | W197: -0.7523064993 | X197: -80 | Y197: 299.9557393 | Z197: 1349.987826 | AA197: -0.008024751348 | AB197: -0.746317487 | AC197: 0.770448727 | AD197: 0.1038355924 | AE197: -0.0008248530971 | AF197: 742.9414483 | AG197: 677.4759465 | AH197: 13.62132868 | AI197: 570.2986731 | AJ197: 14.33313026 | AK197: 0.04974534297 | AL197: 4.090084131
B198: 742.9414483 | C198: 677.4759465 | D198: 13.62132868 | E198: 0 | F198: 0 | G198: 0 | H198: 0.08 | I198: 52.37240148 | J198: 80 | K198: 1 | L198: 13.70132868 | M198: 13.66132868 | N198: 0.7813346263 | O198: 7.385406875 | P198: 305.9361835 | Q198: -80 | R198: 1351.599224 | S198: -0.008014337489 | T198: 0.7751225327 | U198: 13.54132868 | V198: 13.58132868 | W198: -0.7567493043 | X198: -80 | Y198: 302.3635832 | Z198: 1350.644652 | AA198: -0.008020001642 | AB198: -0.7507284608 | AC198: 0.7751225327 | AD198: 0.1032094883 | AE198: -0.0008101911625 | AF198: 742.9476604 | AG198: 676.7008239 | AH198: 13.70237326 | AI198: 573.4854822 | AJ198: 14.49243178 | AK198: 0.04974534297 | AL198: 4.13596297
B199: 742.9476604 | C199: 676.7008239 | D199: 13.70237326 | E199: 0 | F199: 0 | G199: 0 | H199: 0.08 | I199: 52.99746918 | J199: 80 | K199: 1 | L199: 13.78237326 | M199: 13.74237326 | N199: 0.7860435316 | O199: 7.386191255 | P199: 308.3561502 | Q199: -80 | R199: 1352.232644 | S199: -0.008009732681 | T199: 0.7797975616 | U199: 13.62237326 | V199: 13.66237326 | W199: -0.7611917358 | X199: -80 | Y199: 304.7764644 | Z199: 1351.29193 | AA199: -0.008015308731 | AB199: -0.755139063 | AC199: 0.7797975616 | AD199: 0.1025907286 | AE199: -0.0007958733556 | AF199: 742.9539064 | AG199: 675.9210264 | AH199: 13.78342543 | AI199: 576.6741137 | AJ199: 14.65261903 | AK199: 0.04974534297 | AL199: 4.182096899
B200: 742.9539064 | C200: 675.9210264 | D200: 13.78342543 | E200: 0 | F200: 0 | G200: 0 | H200: 0.08 | I200: 53.626304 | J200: 80 | K200: 1 | L200: 13.86342543 | M200: 13.82342543 | N200: 0.7907536687 | O200: 7.386979913 | P200: 310.7811089 | Q200: -80 | R200: 1352.856999 | S200: -0.008005181371 | T200: 0.7844738136 | U200: 13.70342543 | V200: 13.74342543 | W200: -0.7656337932 | X200: -80 | Y200: 307.1943647 | Z200: 1351.929856 | AA200: -0.008010671264 | AB200: -0.7595492935 | AC200: 0.7844738136 | AD200: 0.1019791848 | AE200: -0.0007818896546 | AF200: 742.9601862 | AG200: 675.1365526 | AH200: 13.8644852 | AI200: 579.8645489 | AJ200: 14.81369252 | AK200: 0.04974534297 | AL200: 4.228486063
B201: 742.9601862 | C201: 675.1365526 | D201: 13.8644852 | E201: 0 | F201: 0 | G201: 0 | H201: 0.08 | I201: 54.25890694 | J201: 80 | K201: 1 | L201: 13.9444852 | M201: 13.9044852 | N201: 0.7954650375 | O201: 7.387772849 | P201: 313.2110423 | Q201: -80 | R201: 1353.472474 | S201: -0.008000682301 | T201: 0.7891512888 | U201: 13.7844852 | V201: 13.8244852 | W201: -0.7700754758 | X201: -80 | Y201: 309.6172666 | Z201: 1352.558624 | AA201: -0.008006087926 | AB201: -0.7639591517 | AC201: 0.7891512888 | AD201: 0.1013747315 | AE201: -0.000768230386 | AF201: 742.9665 | AG201: 674.3474013 | AH201: 13.94555254 | AI201: 583.0567698 | AJ201: 14.97565273 | AK201: 0.04974534297 | AL201: 4.275130604
B202: 742.9665 | C202: 674.3474013 | D202: 13.94555254 | E202: 0 | F202: 0 | G202: 0 | H202: 0.08 | I202: 54.89527897 | J202: 80 | K202: 1 | L202: 14.02555254 | M202: 13.98555254 | N202: 0.8001776378 | O202: 7.388570065 | P202: 315.6459328 | Q202: -80 | R202: 1354.079249 | S202: -0.007996234251 | T202: 0.7938299872 | U202: 13.86555254 | V202: 13.90555254 | W202: -0.7745167831 | X202: -80 | Y202: 312.0451523 | Z202: 1353.178421 | AA202: -0.008001557444 | AB202: -0.7683686373 | AC202: 0.7938299872 | AD202: 0.1007772461 | AE202: -0.0007548862099 | AF202: 742.9728476 | AG202: 673.5535713 | AH202: 14.02662747 | AI202: 586.2507589 | AJ202: 15.13850016 | AK202: 0.04974534297 | AL202: 4.322030665
B203: 742.9728476 | C203: 673.5535713 | D203: 14.02662747 | E203: 0 | F203: 0 | G203: 0 | H203: 0.08 | I203: 55.53542108 | J203: 80 | K203: 1 | L203: 14.10662747 | M203: 14.06662747 | N203: 0.8048914693 | O203: 7.389371562 | P203: 318.0857635 | Q203: -80 | R203: 1354.677499 | S203: -0.007991836033 | T203: 0.7985099091 | U203: 13.94662747 | V203: 13.98662747 | W203: -0.7789577145 | X203: -80 | Y203: 314.4780047 | Z203: 1353.789429 | AA203: -0.007997078578 | AB203: -0.7727777501 | AC203: 0.7985099091 | AD203: 0.1001866089 | AE203: -0.0007418481071 | AF203: 742.9792292 | AG203: 672.7550614 | AH203: 14.10770996 | AI203: 589.4464992 | AJ203: 15.3022353 | AK203: 0.04974534297 | AL203: 4.369186385
B204: 742.9792292 | C204: 672.7550614 | D204: 14.10770996 | E204: 0 | F204: 0 | G204: 0 | H204: 0.08 | I204: 56.17933426 | J204: 80 | K204: 1 | L204: 14.18770996 | M204: 14.14770996 | N204: 0.809606532 | O204: 7.39017734 | P204: 320.5305174 | Q204: -80 | R204: 1355.267394 | S204: -0.007987486495 | T204: 0.8031910543 | U204: 14.02770996 | V204: 14.06770996 | W204: -0.7833982693 | X204: -80 | Y204: 316.9158063 | Z204: 1354.391827 | AA204: -0.007992650126 | AB204: -0.7771864896 | AC204: 0.8031910543 | AD204: 0.09960270296 | AE204: -0.0007291073661 | AF204: 742.9856447 | AG204: 671.9518703 | AH204: 14.18880001 | AI204: 592.643974 | AJ204: 15.46685863 | AK204: 0.04974534297 | AL204: 4.416597903
B205: 742.9856447 | C205: 671.9518703 | D205: 14.18880001 | E205: 0 | F205: 0 | G205: 0 | H205: 0.08 | I205: 56.82701948 | J205: 80 | K205: 1 | L205: 14.26880001 | M205: 14.22880001 | N205: 0.8143228255 | O205: 7.390987401 | P205: 322.9801775 | Q205: -80 | R205: 1355.849102 | S205: -0.007983184515 | T205: 0.8078734229 | U205: 14.10880001 | V205: 14.14880001 | W205: -0.787838447 | X205: -80 | Y205: 319.3585401 | Z205: 1354.985787 | AA205: -0.007988270917 | AB205: -0.7815948555 | AC205: 0.8078734229 | AD205: 0.0990254138 | AE205: -0.000716655571 | AF205: 742.9920941 | AG205: 671.1439969 | AH205: 14.26989761 | AI205: 595.843167 | AJ205: 15.63237062 | AK205: 0.04974534297 | AL205: 4.464265356
B206: 742.9920941 | C206: 671.1439969 | D206: 14.26989761 | E206: 0 | F206: 0 | G206: 0 | H206: 0.08 | I206: 57.47847774 | J206: 80 | K206: 1 | L206: 14.34989761 | M206: 14.30989761 | N206: 0.8190403498 | O206: 7.391801746 | P206: 325.4347274 | Q206: -80 | R206: 1356.422784 | S206: -0.007978929003 | T206: 0.8125570151 | U206: 14.18989761 | V206: 14.22989761 | W206: -0.7922782469 | X206: -80 | Y206: 321.8061893 | Z206: 1355.571478 | AA206: -0.007983939814 | AB206: -0.7860028475 | AC206: 0.8125570151 | AD206: 0.09845462966 | AE206: -0.0007044845901 | AF206: 742.9985774 | AG206: 670.3314399 | AH206: 14.35100277 | AI206: 599.0440626 | AJ206: 15.79877175 | AK206: 0.04974534297 | AL206: 4.512188881
B207: 742.9985774 | C207: 670.3314399 | D207: 14.35100277 | E207: 0 | F207: 0 | G207: 0 | H207: 0.08 | I207: 58.13371002 | J207: 80 | K207: 1 | L207: 14.43100277 | M207: 14.39100277 | N207: 0.8237591048 | O207: 7.392620375 | P207: 327.8941504 | Q207: -80 | R207: 1356.988598 | S207: -0.007974718899 | T207: 0.8172418309 | U207: 14.27100277 | V207: 14.31100277 | W207: -0.7967176686 | X207: -80 | Y207: 324.2587372 | Z207: 1356.149063 | AA207: -0.007979655713 | AB207: -0.7904104652 | AC207: 0.8172418309 | AD207: 0.09789024127 | AE207: -0.0006925865644 | AF207: 743.0050947 | AG207: 669.5141981 | AH207: 14.43211546 | AI207: 602.2466454 | AJ207: 15.96606248 | AK207: 0.04974534297 | AL207: 4.560368613
B208: 743.0050947 | C208: 669.5141981 | D208: 14.43211546 | E208: 0 | F208: 0 | G208: 0 | H208: 0.08 | I208: 58.79271731 | J208: 80 | K208: 1 | L208: 14.51211546 | M208: 14.47211546 | N208: 0.8284790901 | O208: 7.393443289 | P208: 330.3584304 | Q208: -80 | R208: 1357.546698 | S208: -0.007970553172 | T208: 0.8219278703 | U208: 14.35211546 | V208: 14.39211546 | W208: -0.8011567113 | X208: -80 | Y208: 326.7161671 | Z208: 1356.718703 | AA208: -0.007975417538 | AB208: -0.7948177082 | AC208: 0.8219278703 | AD208: 0.09733214177 | AE208: -0.000680953897 | AF208: 743.0116459 | AG208: 668.6922702 | AH208: 14.51323569 | AI208: 605.4509003 | AJ208: 16.13424329 | AK208: 0.04974534297 | AL208: 4.608804685

Sheet User Manual
A1: Dam Breach Analysis DB-IWHR 2014
A2: Copy Right：Chen ZuYu（Email：chenzuyu@cashq.ac.cn）
A3: Disclaimer: The author assumes No responsibility and makes no guarantees, expressed or implied, about its quality, reliability, or any other characteristic.
